Workbook

Sheet Lists (hidden)
L1: Syntaxfor"Groups",nospacebetweennumberandletter,i.e.11B.
A2: DataValidationLists | D2: EquipmentFleets | I2: Materials | L2: WageSelection
D3: SlopeRegradingFleets | F3: Liner Repair/ Replacement | I3: HolePluggingMaterials | L3: EquipmentOperators | P3: ToeOffsetCalculator
A4: Yes/No | L4: ='Labor Rates'!A35 -> Bulldozers
D5: Small | F5: Repair single | I5: Cuttings | L5: ='Labor Rates'!A36 -> D6T
A6: Yes | D6: Med | F6: Install/add single | I6: Cement | L6: ='Labor Rates'!A37 -> D6R w/ Winch
A7: No | D7: Large | F7: Replace single | I7: Grout | L7: ='Labor Rates'!A38 -> D7E | P7: Current Slope (a) | R7: 2 | S7: H:1V
F8: Add/replace double | L8: ='Labor Rates'!A39 -> D8T | P8: Final Slope (a') | R8: 3 | S8: H:1V
A9: True/False | D9: RoadRegradingFleets | I9: WellPumpTypes | L9: ='Labor Rates'!A40 -> D9T | P9: Lift Height (h) | R9: 20
D10: optimize | L10: ='Labor Rates'!A41 -> D10T2 | P10: Slope (approx) | R10: 0
A11: TRUE | D11: Small | I11: Submersible | L11: ='Labor Rates'!A42 -> D11T
A12: FALSE | D12: Medium | I12: Line Shaft | L12: ='Labor Rates'!A43 -> Wheeled Dozers | Q12: A | R12: =OffsetCurrentSlope*OffsetLiftHeight -> 40
A13: Dozer Materials | D13: Large | L13: ='Labor Rates'!A44 -> 824K | Q13: B | R13: =OffsetFinalSlope*OffsetLiftHeight -> 60
A14: (select material) | L14: ='Labor Rates'!A45 -> 834K | Q14: C | R14: =0.5*(R13-OffsetA) -> 10
A15: 1.2 | D15: CoverPlacementFleets | F15: TransportMethod | I15: Cost Estimate Type Groups | L15: ='Labor Rates'!A46 -> 844K
A16: 1 | D16: Small Truck | I16: (Select One) | L16: ='Labor Rates'!A47 -> 854K
A17: 0.8 | D17: Med Truck | F17: Road only | I17: =ARO -> ARO | L17: ='Labor Rates'!A48 -> Motor Graders | P17: SchedEquipList - used by EquipSchedHr routine - DO NOT DELETE
A18: 0.8 | D18: Large Truck | F18: Alternative | I18: =LOM -> LOM | L18: ='Labor Rates'!A49 -> 12M2 | P18: =L5 -> D6T | S18: =P18 -> D6T
A19: 0.6 | D19: XLarge Truck | I19: =Bond -> FA | L19: ='Labor Rates'!A50 -> 14M | P19: =L6 -> D6R w/ Winch | S19: =P19 -> D6R w/ Winch
D20: Scraper Dozer | I20: =ARO&"+"&LOM -> ARO+LOM | L20: ='Labor Rates'!A51 -> 16M3 | P20: D7E | S20: D7E
A21: Job Efficiency Correction | D21: Tandem Scraper | F21: Current Currency | I21: =ARO&"+"&LOM&"+"&Bond -> ARO+LOM+FA | L21: ='Labor Rates'!A52 -> 24M | P21: D8T | S21: D8T
I22: =ARO&"+"&Bond -> ARO+FA | L22: ='Labor Rates'!A53 -> Track Excavators | P22: =L9 -> D9T | S22: D9T
A23: 30 min/hr | B23: =ROUND(30/60,2) -> 0.5 | D23: RippingFleets | I23: =LOM&"+"&Bond -> LOM+FA | L23: ='Labor Rates'!A54 -> 312F | P23: D10T2 | S23: D10T2
A24: 35 min/hr | B24: =ROUND(35/60,2) -> 0.58 | L24: ='Labor Rates'!A55 -> 320F | P24: D11T | S24: D11T
A25: 40 min/hr | B25: =ROUND(40/60,2) -> 0.67 | D25: Small Dozer | L25: ='Labor Rates'!A56 -> 325F | P25: =L13 -> 824K | S25: 824K
A26: 45 min/hr | B26: =ROUND(45/60,2) -> 0.75 | D26: Med Dozer | F26: Filter Types | I26: Cost Estimate Types | L26: ='Labor Rates'!A57 -> 330F | P26: =L14 -> 834K | S26: 834K
A27: 50 min/hr | B27: =ROUND(50/60,2) -> 0.83 | D27: Large Dozer | I27: (Select One) | L27: ='Labor Rates'!A58 -> 349F | P27: =L15 -> 844K | S27: 844K
A28: 52.5 min/hr | B28: =ROUND(52.5/60,2) -> 0.88 | D28: Grader | F28: Exact | I28: ARO | L28: ='Labor Rates'!A59 -> 374F | P28: =L16 -> 854K | S28: 854K
A29: 55 min/hr | B29: =ROUND(55/60,2) -> 0.92 | F29: Contains | I29: LOM | L29: ='Labor Rates'!A60 -> 390F | P29: =L18 -> 12M2 | S29: 12M2
A30: 60 min/hr | B30: =ROUND(60/60,2) -> 1 | D30: SlabBreakingFleets | F30: Not | I30: Bond | L30: ='Labor Rates'!A61 -> Scrapers | P30: =L19 -> 14M | S30: 14M
L31: ='Labor Rates'!A62 -> 631K | P31: =L20 -> 16M3 | S31: 16M3
A32: Dozer Operator Correction | D32: Sm Excavator | E32: =SmallExcavator -> 320F | F32: Riprap Crews | I32: CheckBox - for dropdowns that need "X" (could use wingding font for checkbox or xbox) | L32: ='Labor Rates'!A63 -> 637K | P32: =L21 -> 24M | S32: 24M
D33: Med Excavator | E33: =MedExcavator -> 325F | F33: B-13 | L33: ='Labor Rates'!A64 -> Wheeled Loaders | P33: =L23 -> 312F | S33: 312F
A34: Excellent | B34: 1 | D34: Lg Excavator | E34: =LargeExcavator -> 330F | F34: B-12G | I34: X | L34: ='Labor Rates'!A65 -> 926M | P34: =L24 -> 320F | S34: 320F
A35: Average | B35: 0.75 | L35: ='Labor Rates'!A66 -> 930M | P35: 325F | S35: 325F
A36: Poor | B36: 0.6 | D36: RoadFleets | F36: Gabion Crew | I36: List for Equipment Use Graph | L36: ='Labor Rates'!A67 -> 950M | P36: 330F | S36: 330F
D37: Small Excavator | F37: B-13 | L37: ='Labor Rates'!A68 -> 966M | P37: 349F | S37: 349F
A38: Other Operator Correction | D38: Med Excavator | I38: Total Equipment | L38: ='Labor Rates'!A69 -> 972M | P38: 374F | S38: 374F
D39: Large Excavator | I39: =P18 -> D6T | L39: ='Labor Rates'!A70 -> 980M | P39: 390F | S39: 390F
A40: Excellent | B40: 1.25 | D40: Small Dozer | F40: Riprap Types | I40: =P19 -> D6R w/ Winch | L40: ='Labor Rates'!A71 -> 988K | P40: =L31 -> 631K | Q40: Haul | S40: 631K
A41: Average | B41: 1 | D41: Med Dozer | I41: D7E | L41: ='Labor Rates'!A72 -> 990K | P41: =L32 -> 637K | Q41: Haul | S41: 637K
A42: Poor | B42: 0.75 | D42: Large Dozer | F42: Rip-Rap 3/8 to 1/4 m3 pieces, grouted | I42: D8T | L42: ='Labor Rates'!A73 -> 992K | P42: =L34 -> 926M | S42: 926M
F43: Rip-Rap 450 mm min thick, no grout | I43: D9T | L43: ='Labor Rates'!A74 -> 994K | P43: =L35 -> 930M | S43: 930M
A44: Visibility Correction | D44: Number of Excavators | F44: Gabions, 6 in (150 mm) deep | I44: D10T2 | L44: ='Labor Rates'!A75 -> L2350 | P44: 950M | S44: 950M
A45: Normal | B45: 1 | F45: Gabions, 9 in (250 mm) deep | I45: D11T | L45: ='Labor Rates'!A76 -> Shovels/Excavators | P45: 966M | S45: 966M
A46: Dust, rain, snow, fog or darkness | B46: 0.8 | D46: 1 | F46: Gabions, 12 in (300 mm) deep | I46: 824K | L46: ='Labor Rates'!A77 -> PC2000 | P46: 972M | S46: 972M
D47: 2 | F47: Gabions, 18 in (450 mm) deep | I47: 834K | L47: ='Labor Rates'!A78 -> PC3000 | P47: 980M | S47: 980M
A48: Cover Materials | F48: Gabions, 36 in (1m) deep | I48: 844K | L48: ='Labor Rates'!A79 -> PC4000 | P48: 988K | S48: 988K
D49: BackfillFleets | I49: 854K | L49: ='Labor Rates'!A80 -> PC5500 | P49: 990K | S49: 990K
A50: =INDEX(HaulMaterials,B50) -> Alluvium | B50: 2 | D50: Small Truck | I50: 12M2 | L50: ='Labor Rates'!A81 -> PC8000 | P50: 992K | S50: 992K
A51: Basalt | B51: 3 | D51: Med Truck | I51: 14M | L51: ='Labor Rates'!A82 -> EX2500 | P51: 994K | S51: 994K
A52: Clay - Dry | B52: 4 | D52: Large Truck | I52: 16M3 | L52: ='Labor Rates'!A83 -> Hydraulic Hammers | P52: L2350 | S52: L2350
A53: Granite - broken | B53: 5 | D53: XLarge Truck | I53: 24M | L53: ='Labor Rates'!A84 -> H120Es (fits 325) | P53: =L46 -> PC2000 | S53: PC2000
A54: Gravel | B54: 6 | I54: 312F | L54: ='Labor Rates'!A85 -> H160Es (fits 349) | P54: PC3000 | S54: PC3000
A55: Limestone - broken | B55: 7 | D55: DitchExcavatorFleets | I55: 320F | L55: ='Labor Rates'!A86 -> H180Es (fits 374/390) | P55: PC4000 | S55: PC4000
A56: Limestone - crushed | B56: 8 | I56: 325F | L56: ='Labor Rates'!A87 -> Demolition Shears | P56: PC5500 | S56: PC5500
A57: Sandstone | B57: 9 | D57: Small | I57: 330F | L57: ='Labor Rates'!A88 -> S3050 (fits 320/325/330) | P57: PC8000 | S57: PC8000
A58: Shale | B58: 10 | D58: Medium | I58: 349F | L58: ='Labor Rates'!A89 -> S3070 (fits 330/349) | P58: EX2500 | S58: EX2500
A59: Stone - crushed | B59: 11 | D59: Large | I59: 374F | L59: ='Labor Rates'!A90 -> S3090 (fits 374/390) | P59: =L53 -> H120Es (fits 325) | S59: H120Es (fits 325)
A60: Tailings - Coarse (dry, loose sand) | B60: 12 | I60: 390F | L60: ='Labor Rates'!A91 -> Demolition Grapples | P60: =L54 -> H160Es (fits 349) | S60: H160Es (fits 349)
A61: Tailings - Slimes (loose sand & clay) | B61: 13 | D61: ProjectMaintenanceFleets | I61: 631K | L61: ='Labor Rates'!A92 -> G315B (fits 320/325) | P61: =L55 -> H180Es (fits 374/390) | S61: H180Es (fits 374/390)
A62: Topsoil | B62: 14 | I62: 637K | L62: ='Labor Rates'!A93 -> G320B (fits 325/330) | P62: =L57 -> S3050 (fits 320/325/330) | S62: S3050 (fits 320/325/330)
D63: Small | I63: 926M | L63: ='Labor Rates'!A94 -> G330 (fits 349/374) | P63: =L58 -> S3070 (fits 330/349) | S63: S3070 (fits 330/349)
A64: Dozing Density Correction | D64: Medium | I64: 930M | L64: ='Labor Rates'!A95 -> Other Equipment | P64: =L59 -> S3090 (fits 374/390) | S64: S3090 (fits 374/390)
D65: Large | I65: 950M | L65: ='Labor Rates'!A96 -> 420F2 | P65: =L61 -> G315B (fits 320/325) | S65: G315B (fits 320/325)
A66: =Productivity!B182 -> Alluvium | B66: =ROUND(2300/VLOOKUP(A66,DozingMaterialArray,2),2) -> 0.79 | D66: Liner Types | I66: 966M | L66: ='Labor Rates'!A97 -> 430F2 | P66: =L62 -> G320B (fits 325/330) | S66: G320B (fits 325/330)
A67: =Productivity!B183 -> Basalt | B67: 0.7 | I67: 972M | L67: ='Labor Rates'!A98 -> CS54B | P67: =L63 -> G330 (fits 349/374) | S67: G330 (fits 349/374)
A68: =Productivity!B184 -> Clay - Dry | B68: 0.92 | D68: None | I68: 980M | L68: ='Labor Rates'!A99 -> CS64B | P68: =L65 -> 420F2 | S68: 420F2
A69: =Productivity!B185 -> Granite - broken | B69: 0.82 | D69: ='Misc. Unit Costs'!B193 -> 60 mil HDPE | I69: 988K | L69: ='Labor Rates'!A100 -> CP54B | P69: 430F2 | S69: 430F2
A70: =Productivity!B186 -> Gravel | B70: 0.9 | I70: 990K | L70: ='Labor Rates'!A101 -> CP68B | P70: CS54B | S70: CS54B
A71: =Productivity!B187 -> Limestone - broken | B71: 0.88 | D71: ExplRoadFleets | I71: 992K | L71: ='Labor Rates'!A102 -> Light Truck - 1.5 Ton | P71: CS64B | S71: CS64B
A72: =Productivity!B188 -> Limestone - crushed | B72: 0.88 | D72: Small Excavator | I72: 994K | L72: ='Labor Rates'!A103 -> Supervisor's Truck | P72: CP54B | S72: CP54B
A73: =Productivity!B189 -> Sandstone | B73: 0.9 | D73: Small Dozer | E73: NoGrader | I73: L2350 | L73: ='Labor Rates'!A104 -> Flatbed Truck | P73: CP68B | S73: CP68B
A74: =Productivity!B190 -> Shale | B74: 1.1 | D74: =IF(NOI,"","Medium Excavator") -> Medium Excavator | I74: PC2000 | L74: ='Labor Rates'!A105 -> Air Compressor + tools | P74: Light Truck - 1.5 Ton | S74: Light Truck - 1.5 Ton
A75: =Productivity!B191 -> Stone - crushed | B75: 0.85 | D75: =IF(NOI,"","Large Dozer") -> Large Dozer | I75: PC3000 | L75: ='Labor Rates'!A106 -> Welding Equipment | P75: Supervisor's Truck | S75: Supervisor's Truck
A76: Tailings - Coarse (dry, loose sand) | B76: 0.96 | D76: Grader | E76: ExplRoadFleets | I76: PC4000 | L76: ='Labor Rates'!A107 -> Heavy Duty Drill Rig | P76: Flatbed Truck | S76: Flatbed Truck
A77: Tailings - Slimes (loose sand & clay) | B77: 0.85 | I77: PC5500 | L77: ='Labor Rates'!A108 -> Pump (plugging) Drill Rig | P77: Air Compressor + tools | S77: Air Compressor + tools
A78: =Productivity!B194 -> Topsoil | B78: 1.44 | D78: Fence Install Crews | I78: PC8000 | L78: ='Labor Rates'!A109 -> Concrete Pump | P78: Welding Equipment | S78: Welding Equipment
I79: EX2500 | L79: ='Labor Rates'!A110 -> Gas Engine Vibrator | P79: Heavy Duty Drill Rig | S79: Heavy Duty Drill Rig
A80: Drill Hole Types | D80: Install Barbed Wire Fence | E80: B-80A | I80: H120Es (fits 325) | L80: ='Labor Rates'!A111 -> Generator 5KW | P80: Pump (plugging) Drill Rig | S80: Pump (plugging) Drill Rig
D81: Install Chain Link Fence | E81: B-80C | I81: H160Es (fits 349) | L81: ='Labor Rates'!A112 -> HDEP Welder (pipe or liner) | P81: Concrete Pump | S81: Concrete Pump
A82: Monitor | I82: H180Es (fits 374/390) | L82: ='Labor Rates'!A113 -> 5 Ton Crane | P82: Gas Engine Vibrator | S82: Gas Engine Vibrator
A83: Dewatering | I83: S3050 (fits 320/325/330) | L83: ='Labor Rates'!A114 -> 20 Ton Crane | P83: Generator 5KW | S83: =P83 -> Generator 5KW
A84: Production | D84: Fence Removal Crews | I84: S3070 (fits 330/349) | L84: ='Labor Rates'!A115 -> 50 Ton Crane | P84: HDEP Welder (pipe or liner) | S84: HDEP Welder (pipe or liner)
A85: Injection | I85: S3090 (fits 374/390) | L85: ='Labor Rates'!A116 -> 120 Ton Crane | P85: 5 Ton Crane | S85: 5 Ton Crane
D86: Barbed Wire Fence Removal | E86: 2 Clab | I86: G315B (fits 320/325) | L86: Trucks | P86: 20 Ton Crane | S86: 20 Ton Crane
A87: Slab Demolition | D87: Chain Link Fence/Pipeline/Culvert Removal | E87: B-6 | I87: G320B (fits 325/330) | L87: ='Labor Rates'!A122 -> Truck Drivers (4) | P87: 50 Ton Crane | S87: 50 Ton Crane
I88: G330 (fits 349/374) | L88: ='Labor Rates'!A123 -> 725C2 | P88: 120 Ton Crane | S88: 120 Ton Crane
A89: Break & bury | D89: Solid Waste Types | I89: 420F2 | L89: ='Labor Rates'!A124 -> 730C2 | P89: =L88 -> 725C2 | Q89: Haul | S89: 725C2
A90: Bury in place | I90: 430F2 | L90: ='Labor Rates'!A125 -> 735C | P90: 730C2 | Q90: Haul | S90: 730C2
D91: Solid Waste | I91: CS54B | L91: ='Labor Rates'!A126 -> 740C | P91: 735C | Q91: Haul | S91: 735C
D92: Construction Debris | I92: CS64B | L92: ='Labor Rates'!A127 -> 770G | P92: 740C | Q92: Haul | S92: 740C
A93: Building Types | I93: CP54B | L93: ='Labor Rates'!A128 -> 773G | P93: 770G | Q93: Haul | S93: 770G
D94: Hazardous Material Types | I94: CP68B | L94: ='Labor Rates'!A129 -> 777G | P94: 773G | Q94: Haul | S94: 773G
A95: ='Misc. Unit Costs'!B38 -> Lg. steel | I95: Light Truck - 1.5 Ton | L95: ='Labor Rates'!A130 -> 785D | P95: 777G | Q95: Haul | S95: 777G
A96: ='Misc. Unit Costs'!B39 -> Lg. concrete | D96: Solid | I96: Supervisor's Truck | L96: ='Labor Rates'!A131 -> 789D | P96: 785D | Q96: Haul | S96: 785D
A97: ='Misc. Unit Costs'!B40 -> Lg. masonry | D97: Liquid | I97: Flatbed Truck | L97: ='Labor Rates'!A132 -> 793F | P97: 789D | Q97: Haul | S97: 789D
A98: ='Misc. Unit Costs'!B41 -> Lg. mixed | I98: Air Compressor + tools | L98: ='Labor Rates'!A133 -> 797F | P98: 793F | Q98: Haul | S98: 793F
A99: ='Misc. Unit Costs'!B42 -> Sm. steel | D99: Hydrocarbon Contam Wastes | I99: Welding Equipment | L99: ='Labor Rates'!A134 -> 613E (5,000 gal) | P99: 797F | Q99: Haul | S99: 797F
A100: ='Misc. Unit Costs'!B43 -> Sm. concrete | I100: Heavy Duty Drill Rig | L100: ='Labor Rates'!A135 -> 621E (8,000 gal) | P100: 613E (5,000 gal) | Q100: Haul | S100: 613E (5,000 gal)
A101: ='Misc. Unit Costs'!B44 -> Sm. masonry | D101: Contaminated Soil | I101: Pump (plugging) Drill Rig | L101: ='Labor Rates'!A136 -> 777G H2O Truck | P101: 621E (8,000 gal) | Q101: Haul | S101: 621E (8,000 gal)
A102: ='Misc. Unit Costs'!B45 -> Sm. wood | D102: Other | I102: Concrete Pump | L102: ='Labor Rates'!A137 -> 785D H2O Truck | P102: 777G H2O Truck | Q102: Haul | S102: 777G H2O Truck
I103: Gas Engine Vibrator | L103: ='Labor Rates'!A138 -> Dump Truck (10-12 yd3) | P103: 785D H2O Truck | Q103: Haul | S103: 785D H2O Truck
A104: Wall Types | D104: Waste Containment Types | I104: =P83 -> Generator 5KW | L104: ='Labor Rates'!A139 -> Tractor/Trailer (20 ton) | P104: Dump Truck (10-12 yd3) | Q104: Haul | S104: Dump Truck (10-12 yd3)
I105: HDEP Welder (pipe or liner) | L105: ='Labor Rates'!A140 -> Tractor/Trailer (50 ton)
A106: ='Misc. Unit Costs'!B48 -> Block 4 in (100 mm) thick | D106: =IF(Metric,"Solid 200-L drum","Solid 55-gal drum") -> Solid 55-gal drum | I106: 5 Ton Crane | L106: ='Labor Rates'!A141 -> Tractor/Trailer (80 ton)
A107: ='Misc. Unit Costs'!B49 -> Block 6 in (150 mm) thick | D107: Solid Bulk | I107: 20 Ton Crane | P107: Laborers
A108: ='Misc. Unit Costs'!B50 -> Block 8 in (200 mm) thick | D108: =IF(Metric,"Liquid 200-L drum","Liquid 55-gal drum") -> Liquid 55-gal drum | I108: 50 Ton Crane | P108: ='Labor Rates'!A147 -> General Laborer
A109: ='Misc. Unit Costs'!B51 -> Block 12 in (300 mm) thick | D109: Liquid Bulk | I109: 120 Ton Crane | P109: ='Labor Rates'!A148 -> Skilled Laborer
A110: ='Misc. Unit Costs'!B52 -> Conc 6 in (150 mm) thick | I110: 725C2 | P110: ='Labor Rates'!A149 -> Driller's Helper
A111: ='Misc. Unit Costs'!B53 -> Conc 8 in (200 mm) thick | D111: Waste Disposal Sites | I111: 730C2 | P111: ='Labor Rates'!A150 -> Rodmen (reinforcing concrete)
A112: ='Misc. Unit Costs'!B54 -> Conc 10 in (250 mm) thick | I112: 735C | P112: ='Labor Rates'!A151 -> Cement finisher
A113: ='Misc. Unit Costs'!B55 -> Conc 12 in (300 mm) thick | D113: Landfill (bulk) | I113: 740C | P113: ='Labor Rates'!A152 -> Carpenter
D114: Dumpster | I114: 770G | P114: ='Labor Rates'!A159 -> Project Manager
A115: Fence Types | I115: 773G | P115: ='Labor Rates'!A160 -> Foreman
D116: Vacuum Truck Size | I116: 777G | P116: ='Labor Rates'!A161 -> Field Geologist/Engineer
A117: ='Misc. Unit Costs'!B127 -> Barbed 3-strand Removal | I117: 785D | P117: ='Labor Rates'!A162 -> Field Tech/Sampler
A118: ='Misc. Unit Costs'!B129 -> Barbed 5-strand Removal | D118: Small (2,200 gal) | I118: 789D | P118: ='Labor Rates'!A163 -> Range Scientist
A119: ='Misc. Unit Costs'!B130 -> Chain link 8 ft -10 ft Removal | D119: Large (5,000 gal) | I119: 793F | P119: ='Labor Rates'!A159 -> Project Manager
I120: 797F | P120: ='Labor Rates'!A160 -> Foreman
A121: Exploration Hole Types | D121: Waste Categories | I121: 613E (5,000 gal) | P121: ='Labor Rates'!A161 -> Field Geologist/Engineer
I122: 621E (8,000 gal) | P122: ='Labor Rates'!A162 -> Field Tech/Sampler | Q122: <<--- LaborerDropDownList
A123: Rotary | D123: Process - Other | I123: 777G H2O Truck | P123: ='Labor Rates'!A163 -> Range Scientist
A124: Reverse Circ | D124: Other Facilities | I124: 785D H2O Truck | P124: ='Labor Rates'!A164 -> 
A125: Core | D125: Off Site Facilities | I125: Dump Truck (10-12 yd3) | P125: ='Labor Rates'!A165 -> 
A126: Rotary Pre-drill | D126: Waste Mgmt & Disposal | P126: ='Labor Rates'!A166 -> 
P127: =IF(ISBLANK('Labor Rates'!A167),"",'Labor Rates'!A167) -> 
A128: Exploration Access/Slopes | L128: Maintenance Fleets | P128: =IF(ISBLANK('Labor Rates'!A168),"",'Labor Rates'!A168) -> 
D129: HCS Disposal | F129: Power Line Location | L129: 14G/H | M129: <<--- Maintenance Fleets | P129: =IF(ISBLANK('Labor Rates'!A169),"",'Labor Rates'!A169) -> 
A130: Overland | L130: 16G/H | P130: =IF(ISBLANK('Labor Rates'!A170),"",'Labor Rates'!A170) -> 
A131: Original Slope <30 | D131: On site | F131: On site | L131: =L99 -> 613E (5,000 gal) | P131: =IF(ISBLANK('Labor Rates'!A171),"",'Labor Rates'!A171) -> 
A132: Original Slope >30 | D132: Off site | F132: Off site | L132: =L100 -> 621E (8,000 gal) | M132: <<--- Water Truck Fleets | P132: =IF(ISBLANK('Labor Rates'!A172),"",'Labor Rates'!A172) -> 
L133: =L101 -> 777G H2O Truck | P133: =IF(ISBLANK('Labor Rates'!A173),"",'Labor Rates'!A173) -> 
A134: Adit/Decline Plug Types | D134: Pipe Locations | L134: =L102 -> 785D H2O Truck | M134: <<--- Maintenance Fleets | P134: =IF(ISBLANK('Labor Rates'!A174),"",'Labor Rates'!A174) -> 
P135: =IF(ISBLANK('Labor Rates'!A175),"",'Labor Rates'!A175) -> 
A136: Rock Backfill | D136: On site | P136: =IF(ISBLANK('Labor Rates'!A176),"",'Labor Rates'!A176) -> 
A137: Concrete Bulkhead | D137: Off site | L137: Seeding Methods | P137: =IF(ISBLANK('Labor Rates'!A177),"",'Labor Rates'!A177) -> 
A138: Concrete + Rock | L138: Hand Broadcast
A139: Bat Gate | D139: Closure Plan Studies | L139: Mechanical Broadcast
A140: Bat Culvert | L140: Drill
A141: Foam (adit) | D141: closure plan | L141: Hydroseeding
A142: Foam (production) | D142: compliance report | L142: Shrub Planting - bare root
D143: geotechnical | L143: Tree Planting - bare root
A144: Adit/Portal Backfill Methods | D144: hydrological | L144: Cactus Planting
D145: geochemical
A146: Dozer | D146: revegetation | L146: DozerList
A147: Loader | D147: water quality | L147: =L5 -> D6T
D148: wildlife | L148: =L7 -> D7E
A149: Shaft Plug Types | D149: contaminant characterization | L149: =L8 -> D8T
D150: legacy site survey | L150: =L9 -> D9T
A151: Backfill | D151: open hole survey | L151: =L10 -> D10T2
A152: Concrete Cap | D152: land use/socioeconomics | L152: =L11 -> D11T
A153: Steel Cap | B153: << Not currently used | D153: other
A155: Powerline Types | D155: Closure Plan Engineering | L155: Crusher Haul Fleets
A156: ='Misc. Unit Costs'!B163 -> Single Pole Powerlines | L156: LongHaul | M156: ShortHaul | N156: Push (Doze) | O156: Cut (Excavate)
A157: ='Misc. Unit Costs'!B164 -> Double Pole Powerlines | D157: testing | L157: Small Truck | M157: Small Loader | N157: Small Dozer | O157: Small Excavator
D158: design | L158: Med Truck | M158: Med Loader | N158: Med Dozer | O158: Med Excavator
A159: Seed Mixes | D159: materials balance | L159: Large Truck | M159: Large Loader | N159: Large Dozer | O159: Large Excavator
D160: other | L160: XLarge Truck | M160: XLarge Loader
A161: ='Material Costs'!A21 -> None | L161: Scraper Dozer
A162: ='Material Costs'!A22 -> Mix 1 | D162: Closure Plan Permitting | L162: Tandem Scraper
A163: ='Material Costs'!A23 -> Mix 2
A164: ='Material Costs'!A24 -> Mix 3 | D164: application
A165: ='Material Costs'!A25 -> Mix 4 | D165: fees | L165: Pilot Car Requirements
A166: ='Material Costs'!A26 -> User Mix 1 | D166: legal | L166: Width | M166: Lanes | N166: Pilot Cars
A167: ='Material Costs'!A27 -> User Mix 2 | D167: public consultation | L167: =IF(Metric, ROUND(12*Ft2M,1),12) -> 12 | M167: 2 | N167: 1
A168: ='Material Costs'!A28 -> User Mix 3 | D168: other | L168: =IF(Metric, ROUND(14*Ft2M,1),14) -> 14 | M168: 2 | N168: 2
A169: ='Material Costs'!A29 -> User Mix 4 | L169: =IF(Metric, ROUND(16*Ft2M,1),16) -> 16 | M169: 2 | N169: 3
D170: Water Pipe Types | L170: =IF(Metric, ROUND(14*Ft2M,1),14) -> 14 | M170: 4 | N170: 1
A171: ='Material Costs'!A31 -> User Mix 5 (from Seed Mix sheet) | L171: =IF(Metric, ROUND(16*Ft2M,1),16) -> 16 | M171: 4 | N171: 2
D172: Water 4in (100mm ) welded HDPE | E172: 1
A173: Pit Berm Construction | D173: Water 6in (150mm) welded HDPE | E173: 2
D174: Water 12in (300mm) welded HDPE | E174: 3
A175: Haul & Place
A176: Excavate | D176: Drainpipe Types
A177: Dozer
D178: Drain 4in (100mm) perforated PVC | E178: 5
D179: Drain 6in (150mm) perforated PVC | E179: 6
A180: Drillhole Plug Methods | D180: Drain 4in (100mm) corrugated, perf or plain | E180: 3
D181: Drain 6in (150mm) corrugated., perf or plain | E181: 4
A182: =IF(Nevada,"","none") -> none
A183: Grout + Backfill | D183: TrenchBackfillFleets | F183: Sheet - Info from schedule sheets
A184: Grout Only | F184: DetailSheetName | G184: Range Name | H184: First Schedule Column | I184: Last Operations Column | J184: First operations year to show | K184: Last Operations Column to Hide | L184: First Closure Year Column | M184: First Closure Column to Hide | N184: Last Column
A185: Cement Plug | D185: Small Dozer | F185: =CostType&" Schedule" -> FA Schedule | G185: _Schedule | H185: =INDEX(NumbersLetters,MATCH(CELL("Col",'FA Schedule'!$T$25),$A$365:$A$572),2) -> T | I185: =INDEX(NumbersLetters,MATCH(CELL("col",(OFFSET('FA Schedule'!$T$25,1,ClosureYear1-FirstYrOps-1))),$A$365:$A$572),2) -> V | J185: =INDEX(NumbersLetters,MATCH(CELL("col",(OFFSET('FA Schedule'!$T$25,1,ClosureYear1-FirstYrOps-OpsYears))),$A$365:$A$572),2) -> M | K185: =INDEX(NumbersLetters,MATCH(CELL("col",(OFFSET('FA Schedule'!$T$25,1,ClosureYear1-FirstYrOps-OpsYears)))-1,$A$365:$A$572),2) -> L | L185: =INDEX(NumbersLetters,MATCH(CELL("col",(OFFSET('FA Schedule'!$T$25,1,ClosureYear1-FirstYrOps))),$A$365:$A$572),2) -> W | M185: =INDEX(NumbersLetters,MATCH(CELL("col",(OFFSET('FA Schedule'!$T$25,1,ClosureYear1-FirstYrOps-OpsYears+SchedYears))),$A$365:$A$572),2) -> DI | N185: =INDEX(NumbersLetters,MATCH(CELL("col",(OFFSET('FA Schedule'!$T$25,1,100)))-1,$A$365:$A$572),2) -> DO
A186: =IF(Nevada,"","Top Plug") -> Top Plug | D186: Medium Dozer | F186: Acct Codes | G186: AcctSched | H186: =INDEX(NumbersLetters,MATCH(CELL("Col",'Acct Codes'!$H$35),$A$365:$A$572),2) -> H | I186: =INDEX(NumbersLetters,MATCH(CELL("col",(OFFSET('Acct Codes'!$H$35,1,ClosureYear1-FirstYrOps-1))),$A$365:$A$572),2) -> J | J186: =INDEX(NumbersLetters,MATCH(CELL("col",(OFFSET('Acct Codes'!$H$35,1,ClosureYear1-FirstYrOps-OpsYears))),$A$365:$A$572),2) -> A | K186: =INDEX(NumbersLetters,MATCH(CELL("col",(OFFSET('Acct Codes'!$H$35,1,ClosureYear1-FirstYrOps-OpsYears)))-1,$A$365:$A$572),2) ->  | L186: =INDEX(NumbersLetters,MATCH(CELL("col",(OFFSET('Acct Codes'!$H$35,1,ClosureYear1-FirstYrOps))),$A$365:$A$572),2) -> K | M186: =INDEX(NumbersLetters,MATCH(CELL("col",(OFFSET('Acct Codes'!$H$35,1,ClosureYear1-FirstYrOps-OpsYears+SchedYears))),$A$365:$A$572),2) -> CW | N186: =INDEX(NumbersLetters,MATCH(CELL("col",(OFFSET('Acct Codes'!$H$35,1,100)))-1,$A$365:$A$572),2) -> DC
D187: Large Dozer | F187: Human Resources | G187: HRSched | H187: =INDEX(NumbersLetters,MATCH(CELL("Col",'Human Resources'!$K$27),$A$365:$A$572),2) -> K | I187: =INDEX(NumbersLetters,MATCH(CELL("col",(OFFSET('Human Resources'!$K$27,1,ClosureYear1-FirstYrOps-1))),$A$365:$A$572),2) -> M | J187: =INDEX(NumbersLetters,MATCH(CELL("col",(OFFSET('Human Resources'!$K$27,1,ClosureYear1-FirstYrOps-OpsYears))),$A$365:$A$572),2) -> D | K187: =INDEX(NumbersLetters,MATCH(CELL("col",(OFFSET('Human Resources'!$K$27,1,ClosureYear1-FirstYrOps-OpsYears)))-1,$A$365:$A$572),2) -> C | L187: =INDEX(NumbersLetters,MATCH(CELL("col",(OFFSET('Human Resources'!$K$27,1,ClosureYear1-FirstYrOps))),$A$365:$A$572),2) -> N | M187: =INDEX(NumbersLetters,MATCH(CELL("col",(OFFSET('Human Resources'!$K$27,1,ClosureYear1-FirstYrOps-OpsYears+SchedYears))),$A$365:$A$572),2) -> CZ | N187: =INDEX(NumbersLetters,MATCH(CELL("col",(OFFSET('Human Resources'!$K$27,1,100)))-1,$A$365:$A$572),2) -> DF
A188: IFM Project Size | F188: Equip Use | G188: EquipSched | H188: =INDEX(NumbersLetters,MATCH(CELL("Col",'Equip Use'!$F$26),$A$365:$A$572),2) -> F | I188: =INDEX(NumbersLetters,MATCH(CELL("col",(OFFSET('Equip Use'!$F$26,1,ClosureYear1-FirstYrOps-1))),$A$365:$A$572),2) -> H | J188: =INDEX(NumbersLetters,MATCH(CELL("col",(OFFSET('Equip Use'!$F$26,1,ClosureYear1-FirstYrOps-OpsYears))),$A$365:$A$572),2) ->  | K188: =INDEX(NumbersLetters,MATCH(CELL("col",(OFFSET('Equip Use'!$F$26,1,ClosureYear1-FirstYrOps-OpsYears)))-1,$A$365:$A$572),2) ->  | L188: =INDEX(NumbersLetters,MATCH(CELL("col",(OFFSET('Equip Use'!$F$26,1,ClosureYear1-FirstYrOps))),$A$365:$A$572),2) -> I | M188: =INDEX(NumbersLetters,MATCH(CELL("col",(OFFSET('Equip Use'!$F$26,1,ClosureYear1-FirstYrOps-OpsYears+SchedYears))),$A$365:$A$572),2) -> CU | N188: =INDEX(NumbersLetters,MATCH(CELL("col",(OFFSET('Equip Use'!$F$26,1,100)))-1,$A$365:$A$572),2) -> DA
A190: Small
A191: Large | D191: Pond BackfillFleets
A193: Pipe material | D193: Small Truck
D194: Med Truck
A195: HDPE | D195: Large Truck
A196: PVC | D196: XLarge Truck
A197: Brass | D197: Small Dozer
A198: Cast Iron | D198: Med Dozer
A199: Smooth Steel | D199: Large Dozer
A200: Asbestos Cement
D201: Frequency
A202: Evaporator Types
D203: One-time
... 368 more rows

Sheet Property Information
B2: Enter Data Below in Green and Blue Spaces
BC3: Created from working version | BD3: SRCE_2.0_Beta1.xlsm | BE3: dec 3 2017 - fixes error in Ponds that did not allow scraper dozer fleet for backfill
B4: STANDARDIZED RECLAMATION COST ESTIMATOR | BB4: Release version? | BC4: TRUE
BD5: Currency Symbol:
B6: ="Version " & ModelVersion -> Version 2.0 | BB6: Version | BC6: 2.0 | BD6: =INDEX(CurrencySymbols,MATCH(CurrentCur,Currencies,0),2) -> $
B7: ="Build - " & BuildNo & BuildRevision -> Build - Beta 01m | BB7: Build: | BC7: Beta 01
BB8: Build Num: | BC8: 1
BB9: Build Revison: | BC9: m
B10: COST DATA FILE INFORMATION | BC10: Button Links
BB11: IsBRCE? | BC11: FALSE
B12: File Name: | C12: =MID(BF16,BE16+1,BD16-BE16-1) -> 20230223 CHMRP - MMD SF002RE FA Cost Estimate Model_EB.xlsm
BB13: Nevada? | BC13: FALSE
B14: Cost Data File: | C14: =DataFileName -> SRCE_2.0_CostDataFile_2022 NM contractor rates.xlsm
BC15: Button Links
B16: Cost Data Date: | C16: =DataFileDate -> 2022-11-04 | BB16: =MID(BF16,BE16+1,BD16-BE16-1) -> 20230223 CHMRP - MMD SF002RE FA Cost Estimate Model_EB.xlsm | BD16: =FIND("]",BF16,BE16+1) -> 194 | BE16: =FIND("[",BF16) -> 134 | BF16: =BG16 -> https://barrickgold-my.sharepoint.com/personal/eburch_barrick_com/Documents/Desktop/Useful Information/NM CHMRP Cost Estimate Models/[20230223 CHMRP - MMD SF002RE FA Cost Estimate Model_EB.xlsm]Property Information | BG16: =CELL("filename",C12) -> https://barrickgold-my.sharepoint.com/personal/eburch_barrick_com/Documents/Desktop/Useful Information/NM CHMRP Cost Estimate Models/[20230223 CHMRP - MMD SF002RE FA Cost Estimate Model_EB.xlsm]Property Information
BD17: Metric | BE17: English
B18: Cost Data Basis: | C18: =DataCostBasis -> User Data | F18: Data Cost Units: | G18: =DataUnits -> Imperial | BB18: Measurement Units | BC18: 2 | BD18: =IF(BC18=1,TRUE,FALSE) -> FALSE
B20: Author/Source: | C20: =IF(ISBLANK(AuthorSource),"", AuthorSource) -> 2022 Contractor Rates New Mexico | BB20: Language | BD20: =C32 -> Russian
B22: PROJECT INFORMATION | BB22: Cost Data File: | BD22: SRCE_2.0_CostDataFile_2022 NM contractor rates.xlsm
B24: Property/Mine Name: | C24: Cunningham Hill Mine Reclamation Project | F24: Property Code: | G24: 1310 | BB24: Cost Data Date: | BD24: 2022-11-04
B26: Project Name: | C26: CHMRP Surface Reclamation Cost Estimate SF002RE | BB26: Cost Data Basis: | BD26: User Data
B28: Date of Submittal: | C28: December 2022 | F28: Average Elevation | G28: 7100 | H28: =IF(Metric,"m","ft.") -> ft. | BB28: Author/Source: | BD28: 2022 Contractor Rates New Mexico
B30: Units of Measure: | BA30: 1 | BB30: Data Cost Units: | BD30: Imperial
B32: Language: | C32: Russian | D32: <<< Doesn’t work yet
B34: Currency Symbol: | C34: Dollar (US) | BB34: NOI/POO | BC34: 1 | BD34: FALSE | BE34: FALSE | BF34: TRUE
B36: Project Type: | C36: Mine Operations Plan | BB36: Public/Private | BD36: FALSE | BE36: TRUE | BF36: =IF(BE36=TRUE,"Public","Private") -> Public
B38: Land Type: | C38: Private Land | BB38: Std Labor Cost | BD38: TRUE | BE38: FALSE | BF38: =IF(BD38=TRUE,"DAVIS BACON WAGE RATES", "MINE OPERATOR WAGE RATES") -> DAVIS BACON WAGE RATES
B40: Cost Estimate Type: | C40: =CostType -> FA | BB40: Std Equip Cost | BD40: TRUE | BE40: FALSE | BF40: =IF(BD40=TRUE,"CATERPILLAR RENTAL RATES", "MINE OPERATOR COSTS") -> CATERPILLAR RENTAL RATES
BD41: TRUE | BE41: FALSE
B42: Cost Basis Category: | BC42: 1
B44: Cost Basis Description: | C44: =IF(ProjectRegion=0,"**** LOAD DATA FILE FROM SRCE MENU . . . . . . OR SELECT PROJECT REGION IF DATA ALREADY LOADED ****",VLOOKUP(ProjectRegion,RegionInformationTable,2,FALSE)) -> Rates from EnviroWorks, Strickland and others | BB44: In Nevada? | BD44: FALSE
BB45: New Data? | BC45: 2 | BD45: FALSE | BE45: did the data just get imported?
BB46: Selected Region: | BC46: 2 | BD46: =INDEX(RegionInformationTable,BC46,1) -> FAI-Contractor Rates New Mexico 2022 | BE46: 1
B47: Copyright© 2004-2019 | BB47: Zones Valid? | BC47: 1 | BD47: =IF(ProjectRegion="","",IF(OR(ISBLANK(EquipmentZone),ISBLANK(TruckDriverZone),ISBLANK(LaborerZone),EquipmentZoneRate="Invalid Zone",TruckZoneRate="Invalid Zone",LaborZoneRate="Invalid Zone"),FALSE,TRUE)) -> TRUE
B48: SRCE Software. All Rights Reserved | D48: ="" ->  | BB48: Region | BC48: Region Name | BD48: Regional Description
BB50: Region 1 | BC50: FAI-Contractor Rates Northern Nevada 2022 | BD50: Contractor rates from Northern Nevada - NDEP rates
BB51: Region 2 | BC51: FAI-Contractor Rates New Mexico 2022 | BD51: Rates from EnviroWorks, Strickland and others
BB52: Region 3
BB53: Region 4
BB54: Region 5
BB55: Region 6
BB56: Region 7
BB57: Region 8
BB58: Region 9
BB59: Region 10
BB60: Region 11
BB61: Region 12
BB62: Region 13
BB63: Region 14
BB64: Region 15
K167: =IF(J167="None required","",IF(ISBLANK(B13),"",IF(G59="optimize",FI167,G59))) -> 

Sheet Table of Contents (hidden)
B2: =IF('Property Information'!C26=0,"Enter Project Name",CONCATENATE("Project Name: ",'Property Information'!C26)) -> Project Name: CHMRP Surface Reclamation Cost Estimate SF002RE
B3: =IF(SubmittalDate=0,"Enter Submittal Date",CONCATENATE("Project Date: ",SubmittalDate)) -> Project Date: December 2022
B4: =FileName -> 20230223 CHMRP - MMD SF002RE FA Cost Estimate Model_EB.xlsm
B5: =IF('Property Information'!$BD$34=TRUE,"Notice",IF('Property Information'!$BE$34=TRUE,"Plan of Operations","Reclamation Plan")) -> Reclamation Plan
B7: Table of Contents
B9: Property Information
B10: Cost Summary
B11: Cost Schedule
B12: PER-LOM Detail
B13: PER-LOM Summary
B14: Cashflow Summary
B15: Exploration
B16: Exploration Roads & Pads
B17: Waste Rock Dumps
B18: Heap Leach Pads
B19: Tailings
B20: Roads
B21: Pits
B22: Quarries & Borrow Pits
B23: Underground Openings
B24: Material Hauling
B25: Foundations and Buildings
B26: Other Demo & Equipment Removal
B27: Sediment & Drainage Control
B28: Process Ponds
B29: Landfills
B30: Yards, Etc.
B31: Waste Disposal
B32: Well Abandonment
B33: Misc. Costs
B34: Monitoring
B35: Construction Management
B36: Solution Management
B37: Closure Planning
B38: General & Administration
B39: Human Resources
B40: Other User
B41: Reclamation Quantities
B42: Labor Costs
B43: Equipment Costs
B44: Material Costs
B45: Misc. Unit Costs
B46: Fleets (Crews)
B47: Productivity
B48: User Tools
B49: Seed Mixture | C49: Description
B50: User Sheet 1
B51: User Sheet 2
B52: User Sheet 3
B53: User Sheet 4
B54: User Sheet 5
B55: User Sheet 6
B56: User Sheet 7
B57: User Sheet 8
B58: User Sheet 9
B59: User Sheet 10
B60: User Sheet 11
B61: User Sheet 12
B62: User Sheet 13
B63: User Sheet 14
B64: User Sheet 15
B65: User Sheet 16
B66: User Sheet 17
B67: User Sheet 18
B68: User Sheet 19
B69: User Sheet 20

Sheet FA Schedule
A1: =CONCATENATE('Property Information'!$B$26, 'Property Information'!$C$26,IF('Property Information'!$BD$34=TRUE,"- Notice or Exploration",IF('Property Information'!$BE$34=TRUE," - Plan of Operations"," - Reclamation Plan"))) -> Project Name: CHMRP Surface Reclamation Cost Estimate SF002RE - Reclamation Plan
A2: =CONCATENATE('Property Information'!B28,SubmittalDate) -> Date of Submittal: December 2022
A3: =CONCATENATE('Property Information'!B12,FileName) -> File Name: 20230223 CHMRP - MMD SF002RE FA Cost Estimate Model_EB.xlsm
A4: =CONCATENATE("Model Version: ",'Property Information'!B6) -> Model Version: Version 2.0
A5: =CONCATENATE("Cost Data: ",DataCostBasis) -> Cost Data: User Data
A6: =CONCATENATE("Cost Data File: ",DataFileName) -> Cost Data File: SRCE_2.0_CostDataFile_2022 NM contractor rates.xlsm
A7: =CONCATENATE("Cost Estimate Type: ",CostType," Cost Basis: ",CostBasisCategory) -> Cost Estimate Type: FA Cost Basis: FAI-Contractor Rates New Mexico 2022
C9: Cost type: | D9: FA
EB10: ScheduleShtName: | EC10: =ShtName() -> AP-27 & DP-55 NPV | ED10: =IF(LEFT(ScheduleShtName,FIND(" ",ScheduleShtName)-1)<>CostType,"<<-- Cost Type does not match sheet name!! Please reset Cost Type","") -> <<-- Cost Type does not match sheet name!! Please reset Cost Type
C11: Current Year: | D11: 2022
C12: First Year of Operation: | D12: 2020 | I12: Engineering, Design and Construction Plan (%) | J12: 0.05 | EB12: Zero Rows Hidden? | EC12: FALSE
C13: Closure Year 1: | D13: 2023 | I13: Contingency (%) | J13: 0
C14: Closure Period: | D14: 3 | E14: years | I14: Contractor OH and Profit (%) | J14: 0 | EB14: Schedule years to show: | EC14: 100 | EE14: 100 | EF14: SchedulePeriodText
C15: Post Closure Period | D15: 12 | E15: years | I15: Contract Administration (%) | J15: 0.05
EB16: Cost Type: | EC16: =D9 -> FA
C17: Filter | E17: Filter Type | EB17: Total OpsPeriod | EC17: =ClosureYear1-FirstYrOps -> 3
C18: ID Code Filter: | I18: ="Include Complete Work in "&LOM&" Schedule?" -> Include Complete Work in LOM Schedule? | J18: TRUE | K18: Note: | L18: ARO: completed work subtracted completed in ARO year or earlier. FA: completed work subtracted if in Budget year or earlier and after FA release date. | EB18: OpsPeriodShown | EC18: =ClosureYear1-FirstYrOps+1 -> 4
C19: Facility/Activity Type:
C20: =Filter3&":" -> Phases: | I20: Show how many years in schedule (10 to 100) | J20: 100
C21: =Filter1&":" -> Locations:
C22: =Filter2&":" -> Properties: | I22: Show how many operating years in schedule | J22: 10
O25: Financial | Q25: Work | R25: % Complete | S25: Plan Year | T25: 1 | U25: =T25+1 -> 2 | V25: =U25+1 -> 3 | W25: 4 | X25: 5 | Y25: 6 | Z25: 7 | AA25: 8 | AB25: 9 | AC25: 10 | AD25: 11 | AE25: 12 | AF25: 13 | AG25: 14 | AH25: 15 | AI25: =AH25+1 -> 16 | AJ25: 17 | AK25: 18 | AL25: 19 | AM25: 20 | AN25: 21 | AO25: 22 | AP25: 23 | AQ25: 24 | AR25: 25 | AS25: 26 | AT25: 27 | AU25: 28 | AV25: 29 | AW25: 30 | AX25: 31 | AY25: 32 | AZ25: 33 | BA25: 34 | BB25: 35 | BC25: 36 | BD25: 37 | BE25: 38 | BF25: 39 | BG25: 40 | BH25: 41 | BI25: 42 | BJ25: 43 | BK25: 44 | BL25: 45 | BM25: 46 | BN25: 47 | BO25: 48 | BP25: 49 | BQ25: =BP25+1 -> 50 | BR25: 51 | BS25: 52 | BT25: 53 | BU25: 54 | BV25: 55 | BW25: 56 | BX25: 57 | BY25: 58 | BZ25: 59 | CA25: 60 | CB25: 61 | CC25: 62 | CD25: 63 | CE25: 64 | CF25: 65 | CG25: 66 | CH25: 67 | CI25: 68 | CJ25: 69 | CK25: 70 | CL25: 71 | CM25: 72 | CN25: 73 | CO25: 74 | CP25: 75 | CQ25: 76 | CR25: 77 | CS25: 78 | CT25: 79 | CU25: 80 | CV25: 81 | CW25: =CV25+1 -> 82 | CX25: 83 | CY25: 84 | CZ25: 85 | DA25: 86 | DB25: 87 | DC25: 88 | DD25: 89 | DE25: 90 | DF25: 91 | DG25: 92 | DH25: 93 | DI25: 94 | DJ25: 95 | DK25: 96 | DL25: 97 | DM25: 98 | DN25: 99 | DO25: 100 | DP25: Difference | EA25: Test | EC25: Other | ED25: Cost | EE25: Other Cost | EG25: Facility | EL25: Valid | EO25: Quantities | EQ25: Regrade/Placement/Scarify Fleet | ET25: Crusher Fleet | EW25: Costs
A26: User | F26: Facility/Activity | L26: Construct | M26: Closure | N26: Closure | O26: Assurance | P26: % | Q26: Before/During | R26: Before | S26: Closure Year | T26: =FirstYrOps-ClosureYear1 -> -3 | U26: =IF(T26+1=0,1,T26+1) -> -2 | V26: =IF(U26+1=0,1,U26+1) -> -1 | W26: 1 | X26: 2 | Y26: 3 | Z26: 4 | AA26: 5 | AB26: 6 | AC26: 7 | AD26: 8 | AE26: 9 | AF26: 10 | AG26: 11 | AH26: 12 | AI26: =IF(AH26+1=0,1,AH26+1) -> 13 | AJ26: 14 | AK26: 15 | AL26: 16 | AM26: 17 | AN26: 18 | AO26: 19 | AP26: 20 | AQ26: 21 | AR26: 22 | AS26: 23 | AT26: 24 | AU26: 25 | AV26: 26 | AW26: 27 | AX26: 28 | AY26: =IF(AX26+1=0,1,AX26+1) -> 29 | AZ26: 30 | BA26: 31 | BB26: 32 | BC26: 33 | BD26: 34 | BE26: 35 | BF26: 36 | BG26: 37 | BH26: 38 | BI26: 39 | BJ26: 40 | BK26: 41 | BL26: 42 | BM26: 43 | BN26: 44 | BO26: 45 | BP26: 46 | BQ26: =IF(BP26+1=0,1,BP26+1) -> 47 | BR26: 48 | BS26: 49 | BT26: 50 | BU26: 51 | BV26: 52 | BW26: 53 | BX26: 54 | BY26: 55 | BZ26: 56 | CA26: 57 | CB26: 58 | CC26: 59 | CD26: 60 | CE26: 61 | CF26: 62 | CG26: 63 | CH26: 64 | CI26: 65 | CJ26: 66 | CK26: 67 | CL26: 68 | CM26: 69 | CN26: 70 | CO26: 71 | CP26: 72 | CQ26: 73 | CR26: 74 | CS26: 75 | CT26: 76 | CU26: 77 | CV26: 78 | CW26: =IF(CV26+1=0,1,CV26+1) -> 79 | CX26: 80 | CY26: 81 | CZ26: 82 | DA26: 83 | DB26: 84 | DC26: 85 | DD26: 86 | DE26: 87 | DF26: 88 | DG26: 89 | DH26: 90 | DI26: 91 | DJ26: 92 | DK26: 93 | DL26: 94 | DM26: 95 | DN26: 96 | DO26: 97 | DP26: Check | EA26: for FA | EC26: Cost Type | ED26: Type | EE26: Type | EF26: IDCode | EG26: Type | EH26: Phase | EI26: Location | EJ26: Property | EL26: Facility | ER26: Number of | EU26: Number of
A27: Override | B27: Facility | C27: Cost Type | D27: Description | E27: ID Code | F27: Type | G27: =Filter3 -> Phases | H27: =Filter1 -> Locations | I27: =Filter2 -> Properties | J27: Total Cost | K27: =(CostType&" Cost") -> FA Cost | L27: Year | M27: Start | N27: Finish | O27: Release | P27: Scheduled | Q27: Budget year | R27: Budget year | S27: Calendar Year | T27: =FirstYrOps+T25-1 -> 2020 | U27: =T27+1 -> 2021 | V27: =U27+1 -> 2022 | W27: 2023 | X27: 2024 | Y27: 2025 | Z27: 2026 | AA27: 2027 | AB27: 2028 | AC27: 2029 | AD27: 2030 | AE27: 2031 | AF27: 2032 | AG27: 2033 | AH27: 2034 | AI27: =AH27+1 -> 2035 | AJ27: 2036 | AK27: 2037 | AL27: 2038 | AM27: 2039 | AN27: 2040 | AO27: 2041 | AP27: 2042 | AQ27: 2043 | AR27: 2044 | AS27: 2045 | AT27: 2046 | AU27: 2047 | AV27: 2048 | AW27: 2049 | AX27: 2050 | AY27: =AX27+1 -> 2051 | AZ27: 2052 | BA27: 2053 | BB27: 2054 | BC27: 2055 | BD27: 2056 | BE27: 2057 | BF27: 2058 | BG27: 2059 | BH27: 2060 | BI27: 2061 | BJ27: 2062 | BK27: 2063 | BL27: 2064 | BM27: 2065 | BN27: 2066 | BO27: 2067 | BP27: 2068 | BQ27: =BP27+1 -> 2069 | BR27: 2070 | BS27: 2071 | BT27: 2072 | BU27: 2073 | BV27: 2074 | BW27: 2075 | BX27: 2076 | BY27: 2077 | BZ27: 2078 | CA27: 2079 | CB27: 2080 | CC27: 2081 | CD27: 2082 | CE27: 2083 | CF27: 2084 | CG27: 2085 | CH27: 2086 | CI27: 2087 | CJ27: 2088 | CK27: 2089 | CL27: 2090 | CM27: 2091 | CN27: 2092 | CO27: 2093 | CP27: 2094 | CQ27: 2095 | CR27: 2096 | CS27: 2097 | CT27: 2098 | CU27: 2099 | CV27: 2100 | CW27: =CV27+1 -> 2101 | CX27: 2102 | CY27: 2103 | CZ27: 2104 | DA27: 2105 | DB27: 2106 | DC27: 2107 | DD27: 2108 | DE27: 2109 | DF27: 2110 | DG27: 2111 | DH27: 2112 | DI27: 2113 | DJ27: 2114 | DK27: 2115 | DL27: 2116 | DM27: 2117 | DN27: 2118 | DO27: 2119 | EA27: Release | EB27: =(CostType&" Cost") -> FA Cost | EC27: =IF(CostType=LOM,"ARO","LOM") -> LOM | ED27: Filter | EE27: Filter | EF27: Filter | EG27: Filter | EH27: Filter | EI27: Filter | EJ27: Filter | EL27: Test | EQ27: Fleet | ER27: Trucks/Scrapers | ES27: Fleet Hours | ET27: Fleet | EU27: Trucks/Scrapers | EV27: Fleet Hours | EW27: Labor | EX27: Equip | EY27: Materials | EZ27: _ImportTest | FA27: _SchedAcctCodeTest
J28: =CurrencySymbol -> $ | K28: =CurrencySymbol -> $ | Q28: =CurrencySymbol -> $ | DP28: =CurrencySymbol -> $ | EB28: =CurrencySymbol -> $ | EC28: =CurrencySymbol -> $
A29: Dumps | B29: WASTE ROCK DUMPS | J29: =SumByColor(J30,J30:J44) -> 43211 | K29: =SumByColor(K30,K30:K44) -> 43211 | Q29: =SumByColor(Q30,Q30:Q44) -> 0 | T29: =SumByColor(T30,T30:T44) -> 0 | U29: 0 | V29: 0 | W29: 0 | X29: 43211 | Y29: 0 | Z29: 0 | AA29: 0 | AB29: 0 | AC29: 0 | AD29: 0 | AE29: 0 | AF29: 0 | AG29: 0 | AH29: 0 | AI29: 0 | AJ29: 0 | AK29: 0 | AL29: 0 | AM29: 0 | AN29: 0 | AO29: 0 | AP29: 0 | AQ29: 0 | AR29: 0 | AS29: 0 | AT29: 0 | AU29: 0 | AV29: 0 | AW29: 0 | AX29: 0 | AY29: 0 | AZ29: =SumByColor(AZ30,AZ30:AZ44) -> 0 | BA29: 0 | BB29: 0 | BC29: 0 | BD29: 0 | BE29: 0 | BF29: 0 | BG29: 0 | BH29: 0 | BI29: 0 | BJ29: 0 | BK29: 0 | BL29: 0 | BM29: 0 | BN29: 0 | BO29: 0 | BP29: 0 | BQ29: 0 | BR29: 0 | BS29: 0 | BT29: 0 | BU29: 0 | BV29: 0 | BW29: 0 | BX29: 0 | BY29: 0 | BZ29: 0 | CA29: 0 | CB29: 0 | CC29: 0 | CD29: 0 | CE29: 0 | CF29: =SumByColor(CF30,CF30:CF44) -> 0 | CG29: 0 | CH29: 0 | CI29: 0 | CJ29: 0 | CK29: 0 | CL29: 0 | CM29: 0 | CN29: 0 | CO29: 0 | CP29: 0 | CQ29: 0 | CR29: 0 | CS29: 0 | CT29: 0 | CU29: 0 | CV29: 0 | CW29: 0 | CX29: 0 | CY29: 0 | CZ29: 0 | DA29: 0 | DB29: 0 | DC29: 0 | DD29: 0 | DE29: 0 | DF29: 0 | DG29: 0 | DH29: 0 | DI29: 0 | DJ29: 0 | DK29: 0 | DL29: =SumByColor(DL30,DL30:DL44) -> 0 | DM29: 0 | DN29: 0 | DO29: 0 | EB29: =SumByColor(EB30,EB30:EB44) -> 43211 | EC29: =SumByColor(EC30,EC30:EC44) -> 0 | EZ29: FALSE
B30: =(ROW(B30) - ROW($A$29)-1)/INDEX(SheetRangeIndex,MATCH($A$29,TableNamesSorted,0),7) -> 0 | C30: =INDEX(INDIRECT("_"&$A$29&"Table1"),B30+1,9) -> 0 | D30: =INDEX(INDIRECT("_"&$A$29&"Table1"),B30+1,2) -> 0 | E30: =IF(ISBLANK(INDEX(INDIRECT("_"&$A$29&"Table1"),B30+1,3)),"",INDEX(INDIRECT("_"&$A$29&"Table1"),B30+1,3)) ->  | F30: =IF(ISERROR(EL30),"Facility Type",IF(ISBLANK(INDEX(INDIRECT("_"&$A$29&"Table1"),B30+1,5)),"",INDEX(INDIRECT("_"&$A$29&"Table1"),B30+1,5))) ->  | G30: =IF(ISBLANK(INDEX(INDIRECT("_"&$A$29&"Table1"),B30+1,6)),"",INDEX(INDIRECT("_"&$A$29&"Table1"),B30+1,6)) ->  | H30: =IF(ISBLANK(INDEX(INDIRECT("_"&$A$29&"Table1"),B30+1,7)),"",INDEX(INDIRECT("_"&$A$29&"Table1"),B30+1,7)) ->  | I30: =IF(ISBLANK(INDEX(INDIRECT("_"&$A$29&"Table1"),B30+1,8)),"",INDEX(INDIRECT("_"&$A$29&"Table1"),B30+1,8)) ->  | J30: =SUM(J31:J36) -> 0 | K30: =IF(ISERR(ED30),"Cost Type",IF(A30="X","Override",IF(AND(CostType=ARO,L30>ScheduleYear),"Date Range",IF(AND(ISTEXT(LocationFilter),ISERROR(EI30)),"Location",IF(AND(ISTEXT(PropertyFilter),ISERROR(EJ30)),"Property",IF(AND(ISTEXT(FacilityTypeFilter),ISERROR(EG30)),"Facility Type",IF(AND(NOT(ISBLANK(IDCodeFilter)),ISERROR(EF30)),"ID Code",IF(AND(ISTEXT(PhaseFilter),ISERROR(EH30)),"Phase",IF(AND(CostType=LOM,LOMComplete),J30,SUM(T30:DO30)))))))))) -> Cost Type | L30: =INDEX(INDIRECT("_"&$A$29&"Table1"),B30+1,4) -> 0 | Q30: =SUM(Q31:Q36) -> 0 | T30: =IF(ISTEXT($EB30),0,IF(AND(CostType=LOM,LOMComplete,T$27<=ScheduleYear),SUMPRODUCT(T31:T36,$J31:$J36),IF(CostType=Bond,SUMPRODUCT($EB31:$EB36,T31:T36,$EA31:$EA36),IF(T$27<=ScheduleYear,0,SUMPRODUCT(T31:T36,$EB31:$EB36))))) -> 0 | U30: 0 | V30: 0 | W30: 0 | X30: 0 | Y30: 0 | Z30: 0 | AA30: 0 | AB30: 0 | AC30: 0 | AD30: 0 | AE30: 0 | AF30: 0 | AG30: 0 | AH30: 0 | AI30: 0 | AJ30: 0 | AK30: 0 | AL30: 0 | AM30: 0 | AN30: 0 | AO30: 0 | AP30: 0 | AQ30: 0 | AR30: 0 | AS30: 0 | AT30: 0 | AU30: 0 | AV30: 0 | AW30: 0 | AX30: 0 | AY30: 0 | AZ30: =IF(ISTEXT($EB30),0,IF(AND(CostType=LOM,LOMComplete,AZ$27<=ScheduleYear),SUMPRODUCT(AZ31:AZ36,$J31:$J36),IF(CostType=Bond,SUMPRODUCT($EB31:$EB36,AZ31:AZ36,$EA31:$EA36),IF(AZ$27<=ScheduleYear,0,SUMPRODUCT(AZ31:AZ36,$EB31:$EB36))))) -> 0 | BA30: 0 | BB30: 0 | BC30: 0 | BD30: 0 | BE30: 0 | BF30: 0 | BG30: 0 | BH30: 0 | BI30: 0 | BJ30: 0 | BK30: 0 | BL30: 0 | BM30: 0 | BN30: 0 | BO30: 0 | BP30: 0 | BQ30: 0 | BR30: 0 | BS30: 0 | BT30: 0 | BU30: 0 | BV30: 0 | BW30: 0 | BX30: 0 | BY30: 0 | BZ30: 0 | CA30: 0 | CB30: 0 | CC30: 0 | CD30: 0 | CE30: 0 | CF30: =IF(ISTEXT($EB30),0,IF(AND(CostType=LOM,LOMComplete,CF$27<=ScheduleYear),SUMPRODUCT(CF31:CF36,$J31:$J36),IF(CostType=Bond,SUMPRODUCT($EB31:$EB36,CF31:CF36,$EA31:$EA36),IF(CF$27<=ScheduleYear,0,SUMPRODUCT(CF31:CF36,$EB31:$EB36))))) -> 0 | CG30: 0 | CH30: 0 | CI30: 0 | CJ30: 0 | CK30: 0 | CL30: 0 | CM30: 0 | CN30: 0 | CO30: 0 | CP30: 0 | CQ30: 0 | CR30: 0 | CS30: 0 | CT30: 0 | CU30: 0 | CV30: 0 | CW30: 0 | CX30: 0 | CY30: 0 | CZ30: 0 | DA30: 0 | DB30: 0 | DC30: 0 | DD30: 0 | DE30: 0 | DF30: 0 | DG30: 0 | DH30: 0 | DI30: 0 | DJ30: 0 | DK30: 0 | DL30: =IF(ISTEXT($EB30),0,IF(AND(CostType=LOM,LOMComplete,DL$27<=ScheduleYear),SUMPRODUCT(DL31:DL36,$J31:$J36),IF(CostType=Bond,SUMPRODUCT($EB31:$EB36,DL31:DL36,$EA31:$EA36),IF(DL$27<=ScheduleYear,0,SUMPRODUCT(DL31:DL36,$EB31:$EB36))))) -> 0 | DM30: 0 | DN30: 0 | DO30: 0 | DP30: =IF(ISNUMBER(K30),SUM(T30:DO30)-K30,K30) -> Cost Type | EB30: =IF(ISERR(ED30),"Cost Type",IF(A30="X","Override",IF(AND(CostType=ARO,L30>ScheduleYear),0,IF(AND(ISTEXT(LocationFilter),ISERROR(EI30)),"Location",IF(AND(ISTEXT(PropertyFilter),ISERROR(EJ30)),"Property",IF(AND(ISTEXT(FacilityTypeFilter),ISERROR(EG30)),"Facility Type",IF(AND(ISTEXT(IDCodeFilter),ISERROR(EF30)),"ID Code",IF(AND(ISTEXT(PhaseFilter),ISERROR(EH30)),"Phase",J30)))))))) -> Cost Type | EC30: =IF(EE30="","Cost Type",IF(A30="X","Override",IF(AND(OtherCostType=ARO,L30>ScheduleYear),0,IF(AND(ISTEXT(LocationFilter),EI30=""),"Location",IF(AND(ISTEXT(PropertyFilter),EJ30=""),"Property",IF(AND(ISTEXT(FacilityTypeFilter),EG30=""),"Facility Type",IF(AND(ISTEXT(IDCodeFilter),EF30=""),"ID Code",IF(AND(ISTEXT(PhaseFilter),EH30=""),"Phase",J30)))))))) ->  | ED30: =SEARCH(CostType,C30) ->  | EE30: =SEARCH(OtherCostType,C30) ->  | EF30: =IF(AND(IDCodeFilterType="CONTAINS",NOT(ISERROR(SEARCH(IDCodeFilter,E30)))),1,IF(AND(IDCodeFilterType="NOT",ISERROR(SEARCH(IDCodeFilter,E30))),1,IF(AND(OR(IDCodeFilterType="EXACT",ISBLANK(IDCodeFilterType)),NOT(ISERROR(MATCH(IDCodeFilter,E30,0)))),1,$EK30))) ->  | EG30: =IF(AND(FacilityFilterType="CONTAINS",NOT(ISERROR(SEARCH(FacilityTypeFilter,F30)))),1,IF(AND(FacilityFilterType="NOT",ISERROR(SEARCH(FacilityTypeFilter,F30))),1,IF(AND(OR(FacilityFilterType="EXACT",ISBLANK(FacilityFilterType)),NOT(ISERROR(MATCH(FacilityTypeFilter,F30,0)))),1,$EK30))) ->  | EH30: =IF(AND(PhaseFilterType="CONTAINS",NOT(ISERROR(SEARCH(PhaseFilter,G30)))),1,IF(AND(PhaseFilterType="NOT",ISERROR(SEARCH(PhaseFilter,G30))),1,IF(AND(OR(PhaseFilterType="EXACT",ISBLANK(PhaseFilterType)),NOT(ISERROR(MATCH(PhaseFilter,G30,0)))),1,$EK30))) ->  | EI30: =IF(AND(LocationFilterType="CONTAINS",NOT(ISERROR(SEARCH(LocationFilter,H30)))),1,IF(AND(LocationFilterType="NOT",ISERROR(SEARCH(LocationFilter,H30))),1,IF(AND(OR(LocationFilterType="EXACT",ISBLANK(LocationFilterType)),NOT(ISERROR(MATCH(LocationFilter,H30,0)))),1,$EK30))) ->  | EJ30: =IF(AND(PropertyFilterType="CONTAINS",NOT(ISERROR(SEARCH(PropertyFilter,I30)))),1,IF(AND(PropertyFilterType="NOT",ISERROR(SEARCH(PropertyFilter,I30))),1,IF(AND(OR(PropertyFilterType="EXACT",ISBLANK(PropertyFilterType)),NOT(ISERROR(MATCH(PropertyFilter,I30,0)))),1,$EK30))) ->  | EK30: =MATCH("NOT",$EK$27,0) ->  | EL30: =IF(ISBLANK(INDEX(INDIRECT("_"&$A$29&"Table1"),B30+1,2)),"",MATCH(INDEX(INDIRECT("_"&$A$29&"Table1"),B30+1,5),Accounts,0)) ->  | EM30: Surf Area | EN30: Surf Area | EO30: =IF(ISNUMBER(K36),INDEX(INDIRECT("_"&$A$29&"Table8"),B30+1,5),"") ->  | EP30: =IF(Metric,"ha","acres") -> acres | EZ30: FALSE | FA30: 1
D31: Regrading | J31: =IF(INDEX(INDIRECT("_"&$A$29&"Table4"),B30+1,15)=0,0,INDEX(INDIRECT("_"&$A$29&"Table4"),B30+1,15)) -> 0 | K31: =IF(OR(J31="",K30="",ISTEXT(K30),J31=0),"",IF(OR(ISBLANK(M31),ISBLANK(N31)),"Enter Dates",IF(K30="Date Range","",IF(OR(AND(CostType=ARO,L30>ScheduleYear),AND(CostType=ARO,N31<=ScheduleYear)),"Date Range",IF(OR(AND(CostType=Bond,O31>ScheduleYear),AND(CostType=LOM,LOMComplete)),J31,J31-Q31))))) ->  | P31: =IF(K31="","",SUM(T31:DO31)) ->  | Q31: =IF(OR(AND(CostType=ARO,N31<=ScheduleYear),AND(CostType=LOM,LOMComplete)),J31*R31,R31*EB31) -> 0 | R31: =IF(CostType=Bond,SUMIFS(T31:DP31,T$27:DP$27,"<="&O31,T$27:DP$27,"<="&ScheduleYear),SUMIF(T$27:DP$27,"<="&ScheduleYear,T31:DP31)) -> 0 | EA31: =IF(OR(ISBLANK($O31),$O31>ScheduleYear),1,0) -> 1 | EB31: =IF(OR(J31="",EB30="",ISTEXT(EB30)),0,IF(OR(ISBLANK(M31),ISBLANK(N31)),0,IF(OR(AND(CostType=ARO,L30>ScheduleYear),AND(OR(CostType=ARO,AND(CostType=LOM,LOMComplete=TRUE)),N31<=ScheduleYear)),0,J31))) -> 0 | EC31: =IF(OR(J31="",EC30="",ISTEXT(EC30)),0,IF(OR(ISBLANK(M31),ISBLANK(N31)),0,IF(EC30="Date Range",0,IF(OR(AND(OtherCostType=ARO,L30>ScheduleYear),N31<=ScheduleYear),0,J31)))) ->  | EM31: Regrade | EN31: Regrade | EO31: =IF(ISNUMBER(K31),IF(INDEX(INDIRECT("_"&$A$29&"Table4"),B30+1,3)=0,0,INDEX(INDIRECT("_"&$A$29&"Table4"),B30+1,3)),0) -> 0 | EP31: =IF(Metric,"m3","cy") -> cy | EQ31: =INDEX(INDIRECT("_"&$A$29&"Table4"),B30+1,5) ->  | ES31: =IF(OR(NOT(ISNUMBER(K31)),K31=0),0,INDEX(INDIRECT("_"&$A$29&"Table4"),B30+1,12)) -> 0 | EW31: =IF(ISNUMBER($K31),INDEX(INDIRECT("_"&$A$29&"Table4"),B30+1,13),0) -> 0 | EX31: =IF(ISNUMBER($K31),INDEX(INDIRECT("_"&$A$29&"Table4"),B30+1,14),0) -> 0 | EZ31: TRUE
D32: Cover 1 Placement | J32: =INDEX(INDIRECT("_"&$A$29&"Table5"),B30+1,25) -> 0 | K32: =IF(OR(J32="",K30="",ISTEXT(K30),J32=0),"",IF(OR(ISBLANK(M32),ISBLANK(N32)),"Enter Dates",IF(K30="Date Range","",IF(OR(AND(CostType=ARO,L30>ScheduleYear),AND(CostType=ARO,N32<=ScheduleYear)),"Date Range",IF(OR(AND(CostType=Bond,O32>ScheduleYear),AND(CostType=LOM,LOMComplete)),J32,J32-Q32))))) ->  | Q32: 0 | R32: 0 | EA32: 1 | EB32: =IF(OR(J32="",EB30="",ISTEXT(EB30)),0,IF(OR(ISBLANK(M32),ISBLANK(N32)),0,IF(OR(AND(CostType=ARO,L30>ScheduleYear),AND(OR(CostType=ARO,AND(CostType=LOM,LOMComplete=TRUE)),N32<=ScheduleYear)),0,J32))) -> 0 | EC32: =IF(OR(J32="",EC30="",ISTEXT(EC30)),0,IF(OR(ISBLANK(M32),ISBLANK(N32)),0,IF(EC30="Date Range",0,IF(OR(AND(CostType=ARO,L30>ScheduleYear),N32<=ScheduleYear),0,J32)))) ->  | EM32: Cover | EN32: Cover | EO32: =IF(ISNUMBER(K32),INDEX(INDIRECT("_"&$A$29&"Table5"),B30+1,4),0) -> 0 | EP32: =IF(Metric,"m3","cy") -> cy | EQ32: =INDEX(INDIRECT("_"&$A$29&"Table5"),B30+1,10) ->  | ER32: =IF(OR(NOT(ISNUMBER(K32)),K32=0),0,INDEX(INDIRECT("_"&$A$29&"Table5"),B30+1,12)) -> 0 | ES32: =IF(OR(NOT(ISNUMBER(K32)),K32=0),0,INDEX(INDIRECT("_"&$A$29&"Table5"),B30+1,14)) -> 0 | ET32: =INDEX(INDIRECT("_"&$A$29&"Table5"),B30+1,5) ->  | EU32: =IF(OR(NOT(ISNUMBER(K32)),K32=0),0,INDEX(INDIRECT("_"&$A$29&"Table5"),B30+1,7)) -> 0 | EV32: =IF(OR(NOT(ISNUMBER(K32)),K32=0),0,INDEX(INDIRECT("_"&$A$29&"Table5"),B30+1,9)) -> 0 | EW32: =IF(ISNUMBER($K32),INDEX(INDIRECT("_"&$A$29&"Table5"),B30+1,15)+INDEX(INDIRECT("_"&$A$29&"Table5"),B30+1,19)+INDEX(INDIRECT("_"&$A$29&"Table5"),B30+1,22),0) -> 0 | EX32: =IF(ISNUMBER($K31),INDEX(INDIRECT("_"&$A$29&"Table5"),B30+1,16)+INDEX(INDIRECT("_"&$A$29&"Table5"),B30+1,20)+INDEX(INDIRECT("_"&$A$29&"Table5"),B30+1,23),0) -> 0 | EZ32: TRUE
D33: Cover 2 Placement | J33: =INDEX(INDIRECT("_"&$A$29&"Table6"),B30+1,25) -> 0 | K33: =IF(OR(J33="",K30="",ISTEXT(K30),J33=0),"",IF(OR(ISBLANK(M33),ISBLANK(N33)),"Enter Dates",IF(K30="Date Range","",IF(OR(AND(CostType=ARO,L30>ScheduleYear),AND(CostType=ARO,N33<=ScheduleYear)),"Date Range",IF(OR(AND(CostType=Bond,O33>ScheduleYear),AND(CostType=LOM,LOMComplete)),J33,J33-Q33))))) ->  | Q33: 0 | R33: 0 | EA33: 1 | EB33: =IF(OR(J33="",EB30="",ISTEXT(EB30)),0,IF(OR(ISBLANK(M33),ISBLANK(N33)),0,IF(OR(AND(CostType=ARO,L30>ScheduleYear),AND(OR(CostType=ARO,AND(CostType=LOM,LOMComplete=TRUE)),N33<=ScheduleYear)),0,J33))) -> 0 | EC33: =IF(OR(J33="",EC30="",ISTEXT(EC30)),0,IF(OR(ISBLANK(M33),ISBLANK(N33)),0,IF(EC30="Date Range",0,IF(OR(AND(CostType=ARO,L30>ScheduleYear),N33<=ScheduleYear),0,J33)))) ->  | EM33: Cover | EN33: Cover | EO33: =IF(ISNUMBER(K33),INDEX(INDIRECT("_"&$A$29&"Table6"),B30+1,4),0) -> 0 | EP33: =IF(Metric,"m3","cy") -> cy | EQ33: =INDEX(INDIRECT("_"&$A$29&"Table6"),B30+1,10) ->  | ER33: =IF(OR(NOT(ISNUMBER(K33)),K33=0),0,INDEX(INDIRECT("_"&$A$29&"Table6"),B30+1,12)) -> 0 | ES33: =IF(OR(NOT(ISNUMBER(K33)),K33=0),0,INDEX(INDIRECT("_"&$A$29&"Table6"),B30+1,14)) -> 0 | ET33: =INDEX(INDIRECT("_"&$A$29&"Table6"),B30+1,5) ->  | EU33: =IF(OR(NOT(ISNUMBER(K33)),K33=0),0,INDEX(INDIRECT("_"&$A$29&"Table6"),B30+1,7)) -> 0 | EV33: =IF(OR(NOT(ISNUMBER(K33)),K33=0),0,INDEX(INDIRECT("_"&$A$29&"Table6"),B30+1,9)) -> 0 | EZ33: TRUE
D34: Growth Media Placement | J34: =INDEX(INDIRECT("_"&$A$29&"Table7"),B30+1,11) -> 0 | K34: =IF(OR(J34="",K30="",ISTEXT(K30),J34=0),"",IF(OR(ISBLANK(M34),ISBLANK(N34)),"Enter Dates",IF(K30="Date Range","",IF(OR(AND(CostType=ARO,L30>ScheduleYear),AND(CostType=ARO,N34<=ScheduleYear)),"Date Range",IF(OR(AND(CostType=Bond,O34>ScheduleYear),AND(CostType=LOM,LOMComplete)),J34,J34-Q34))))) ->  | Q34: 0 | R34: 0 | EA34: 1 | EB34: =IF(OR(J34="",EB30="",ISTEXT(EB30)),0,IF(OR(ISBLANK(M34),ISBLANK(N34)),0,IF(OR(AND(CostType=ARO,L30>ScheduleYear),AND(OR(CostType=ARO,AND(CostType=LOM,LOMComplete=TRUE)),N34<=ScheduleYear)),0,J34))) -> 0 | EC34: =IF(OR(J34="",EC30="",ISTEXT(EC30)),0,IF(OR(ISBLANK(M34),ISBLANK(N34)),0,IF(EC30="Date Range",0,IF(OR(AND(CostType=ARO,L30>ScheduleYear),N34<=ScheduleYear),0,J34)))) ->  | EM34: GM | EN34: GM | EO34: =IF(ISNUMBER(K34),INDEX(INDIRECT("_"&$A$29&"Table7"),B30+1,3),0) -> 0 | EP34: =IF(Metric,"m3","cy") -> cy | EQ34: =INDEX(INDIRECT("_"&$A$29&"Table7"),B30+1,4) ->  | ER34: =IF(OR(NOT(ISNUMBER(K34)),K34=0),0,INDEX(INDIRECT("_"&$A$29&"Table7"),B30+1,6)) -> 0 | ES34: =IF(OR(NOT(ISNUMBER(K34)),K34=0),0,INDEX(INDIRECT("_"&$A$29&"Table7"),B30+1,8)) -> 0 | EZ34: TRUE
D35: Ripping/Scarifying | J35: =INDEX(INDIRECT("_"&$A$29&"Table8"),B30+1,13) -> 0 | K35: =IF(OR(J35="",K30="",ISTEXT(K30),J35=0),"",IF(OR(ISBLANK(M35),ISBLANK(N35)),"Enter Dates",IF(K30="Date Range","",IF(OR(AND(CostType=ARO,L30>ScheduleYear),AND(CostType=ARO,N35<=ScheduleYear)),"Date Range",IF(OR(AND(CostType=Bond,O35>ScheduleYear),AND(CostType=LOM,LOMComplete)),J35,J35-Q35))))) ->  | Q35: 0 | R35: 0 | EA35: 1 | EB35: =IF(OR(J35="",EB30="",ISTEXT(EB30)),0,IF(OR(ISBLANK(M35),ISBLANK(N35)),0,IF(OR(AND(CostType=ARO,L30>ScheduleYear),AND(OR(CostType=ARO,AND(CostType=LOM,LOMComplete=TRUE)),N35<=ScheduleYear)),0,J35))) -> 0 | EC35: =IF(OR(J35="",EC30="",ISTEXT(EC30)),0,IF(OR(ISBLANK(M35),ISBLANK(N35)), 0,IF(EC30="Date Range",0,IF(OR(AND(CostType=ARO,L30>ScheduleYear),N35<=ScheduleYear),0,J35)))) ->  | EM35: Rip | EN35: Rip | EO35: =IF(ISNUMBER(K35),INDEX(INDIRECT("_"&$A$29&"Table8"),B30+1,5),0) -> 0 | EP35: =IF(Metric,"ha","acres") -> acres | EQ35: =INDEX(INDIRECT("_"&$A$29&"Table8"),B30+1,8) ->  | ES35: =IF(OR(NOT(ISNUMBER(K35)),K35=0),0,INDEX(INDIRECT("_"&$A$29&"Table8"),B30+1,9)+INDEX(INDIRECT("_"&$A$29&"Table8"),B30+1,10)) -> 0 | EZ35: TRUE
D36: Revegetation | J36: =INDEX(INDIRECT("_"&$A$29&"Table8"),B30+1,17) -> 0 | K36: =IF(OR(J36="",K30="",ISTEXT(K30),J36=0),"",IF(OR(ISBLANK(M36),ISBLANK(N36)),"Enter Dates",IF(K30="Date Range","",IF(OR(AND(CostType=ARO,L30>ScheduleYear),AND(CostType=ARO,N36<=ScheduleYear)),"Date Range",IF(OR(AND(CostType=Bond,O36>ScheduleYear),AND(CostType=LOM,LOMComplete)),J36,J36-Q36))))) ->  | Q36: 0 | R36: 0 | EA36: 1 | EB36: =IF(OR(J36="",EB30="",ISTEXT(EB30)),0,IF(OR(ISBLANK(M36),ISBLANK(N36)),0,IF(OR(AND(CostType=ARO,L30>ScheduleYear),AND(OR(CostType=ARO,AND(CostType=LOM,LOMComplete=TRUE)),N36<=ScheduleYear)),0,J36))) -> 0 | EC36: =IF(OR(J36="",EC30="",ISTEXT(EC30)),0,IF(OR(ISBLANK(M36),ISBLANK(N36)), 0,IF(EC30="Date Range",0,IF(OR(AND(CostType=ARO,L30>ScheduleYear),N36<=ScheduleYear),0,J36)))) ->  | EM36: Reveg | EN36: Reveg | EO36: =IF(ISNUMBER(K36),INDEX(INDIRECT("_"&$A$29&"Table8"),B30+1,5),0) -> 0 | EP36: =IF(Metric,"ha","acres") -> acres | EZ36: TRUE
B37: =(ROW(B37) - ROW($A$29)-1)/INDEX(SheetRangeIndex,MATCH($A$29,TableNamesSorted,0),7) -> 1 | C37: =INDEX(INDIRECT("_"&$A$29&"Table1"),B37+1,9) -> FA | D37: =INDEX(INDIRECT("_"&$A$29&"Table1"),B37+1,2) -> Waste Rock Pile Reveg | E37: =IF(ISBLANK(INDEX(INDIRECT("_"&$A$29&"Table1"),B37+1,3)),"",INDEX(INDIRECT("_"&$A$29&"Table1"),B37+1,3)) ->  | F37: =IF(ISERROR(EL37),"Facility Type",IF(ISBLANK(INDEX(INDIRECT("_"&$A$29&"Table1"),B37+1,5)),"",INDEX(INDIRECT("_"&$A$29&"Table1"),B37+1,5))) -> Dumps | G37: =IF(ISBLANK(INDEX(INDIRECT("_"&$A$29&"Table1"),B37+1,6)),"",INDEX(INDIRECT("_"&$A$29&"Table1"),B37+1,6)) -> Post Closure | H37: =IF(ISBLANK(INDEX(INDIRECT("_"&$A$29&"Table1"),B37+1,7)),"",INDEX(INDIRECT("_"&$A$29&"Table1"),B37+1,7)) -> WRD | I37: =IF(ISBLANK(INDEX(INDIRECT("_"&$A$29&"Table1"),B37+1,8)),"",INDEX(INDIRECT("_"&$A$29&"Table1"),B37+1,8)) -> Private Land | J37: =SUM(J38:J43) -> 43211 | K37: =IF(ISERR(ED37),"Cost Type",IF(A37="X","Override",IF(AND(CostType=ARO,L37>ScheduleYear),"Date Range",IF(AND(ISTEXT(LocationFilter),ISERROR(EI37)),"Location",IF(AND(ISTEXT(PropertyFilter),ISERROR(EJ37)),"Property",IF(AND(ISTEXT(FacilityTypeFilter),ISERROR(EG37)),"Facility Type",IF(AND(NOT(ISBLANK(IDCodeFilter)),ISERROR(EF37)),"ID Code",IF(AND(ISTEXT(PhaseFilter),ISERROR(EH37)),"Phase",IF(AND(CostType=LOM,LOMComplete),J37,SUM(T37:DO37)))))))))) -> 43211 | L37: =INDEX(INDIRECT("_"&$A$29&"Table1"),B37+1,4) -> 2000 | Q37: =SUM(Q38:Q43) -> 0 | T37: =IF(ISTEXT($EB37),0,IF(AND(CostType=LOM,LOMComplete,T$27<=ScheduleYear),SUMPRODUCT(T38:T43,$J38:$J43),IF(CostType=Bond,SUMPRODUCT($EB38:$EB43,T38:T43,$EA38:$EA43),IF(T$27<=ScheduleYear,0,SUMPRODUCT(T38:T43,$EB38:$EB43))))) -> 0 | U37: 0 | V37: 0 | W37: 0 | X37: 43211 | Y37: 0 | Z37: 0 | AA37: 0 | AB37: 0 | AC37: 0 | AD37: 0 | AE37: 0 | AF37: 0 | AG37: 0 | AH37: 0 | AI37: 0 | AJ37: 0 | AK37: 0 | AL37: 0 | AM37: 0 | AN37: 0 | AO37: 0 | AP37: 0 | AQ37: 0 | AR37: 0 | AS37: 0 | AT37: 0 | AU37: 0 | AV37: 0 | AW37: 0 | AX37: 0 | AY37: 0 | AZ37: 0 | BA37: 0 | BB37: 0 | BC37: 0 | BD37: 0 | BE37: 0 | BF37: 0 | BG37: 0 | BH37: 0 | BI37: 0 | BJ37: 0 | BK37: 0 | BL37: 0 | BM37: 0 | BN37: 0 | BO37: 0 | BP37: 0 | BQ37: 0 | BR37: 0 | BS37: 0 | BT37: 0 | BU37: 0 | BV37: 0 | BW37: 0 | BX37: 0 | BY37: 0 | BZ37: 0 | CA37: 0 | CB37: 0 | CC37: 0 | CD37: 0 | CE37: 0 | CF37: =IF(ISTEXT($EB37),0,IF(AND(CostType=LOM,LOMComplete,CF$27<=ScheduleYear),SUMPRODUCT(CF38:CF43,$J38:$J43),IF(CostType=Bond,SUMPRODUCT($EB38:$EB43,CF38:CF43,$EA38:$EA43),IF(CF$27<=ScheduleYear,0,SUMPRODUCT(CF38:CF43,$EB38:$EB43))))) -> 0 | CG37: 0 | CH37: 0 | CI37: 0 | CJ37: 0 | CK37: 0 | CL37: 0 | CM37: 0 | CN37: 0 | CO37: 0 | CP37: 0 | CQ37: 0 | CR37: 0 | CS37: 0 | CT37: 0 | CU37: 0 | CV37: 0 | CW37: 0 | CX37: 0 | CY37: 0 | CZ37: 0 | DA37: 0 | DB37: 0 | DC37: 0 | DD37: 0 | DE37: 0 | DF37: 0 | DG37: 0 | DH37: 0 | DI37: 0 | DJ37: 0 | DK37: 0 | DL37: 0 | DM37: 0 | DN37: 0 | DO37: 0 | DP37: =IF(ISNUMBER(K37),SUM(T37:DO37)-K37,K37) -> 0 | EB37: =IF(ISERR(ED37),"Cost Type",IF(A37="X","Override",IF(AND(CostType=ARO,L37>ScheduleYear),0,IF(AND(ISTEXT(LocationFilter),ISERROR(EI37)),"Location",IF(AND(ISTEXT(PropertyFilter),ISERROR(EJ37)),"Property",IF(AND(ISTEXT(FacilityTypeFilter),ISERROR(EG37)),"Facility Type",IF(AND(ISTEXT(IDCodeFilter),ISERROR(EF37)),"ID Code",IF(AND(ISTEXT(PhaseFilter),ISERROR(EH37)),"Phase",J37)))))))) -> 43211 | EC37: =IF(EE37="","Cost Type",IF(A37="X","Override",IF(AND(OtherCostType=ARO,L37>ScheduleYear),0,IF(AND(ISTEXT(LocationFilter),EI37=""),"Location",IF(AND(ISTEXT(PropertyFilter),EJ37=""),"Property",IF(AND(ISTEXT(FacilityTypeFilter),EG37=""),"Facility Type",IF(AND(ISTEXT(IDCodeFilter),EF37=""),"ID Code",IF(AND(ISTEXT(PhaseFilter),EH37=""),"Phase",J37)))))))) ->  | ED37: =SEARCH(CostType,C37) -> 1 | EE37: =SEARCH(OtherCostType,C37) ->  | EF37: =IF(AND(IDCodeFilterType="CONTAINS",NOT(ISERROR(SEARCH(IDCodeFilter,E37)))),1,IF(AND(IDCodeFilterType="NOT",ISERROR(SEARCH(IDCodeFilter,E37))),1,IF(AND(OR(IDCodeFilterType="EXACT",ISBLANK(IDCodeFilterType)),NOT(ISERROR(MATCH(IDCodeFilter,E37,0)))),1,$EK37))) ->  | EG37: =IF(AND(FacilityFilterType="CONTAINS",NOT(ISERROR(SEARCH(FacilityTypeFilter,F37)))),1,IF(AND(FacilityFilterType="NOT",ISERROR(SEARCH(FacilityTypeFilter,F37))),1,IF(AND(OR(FacilityFilterType="EXACT",ISBLANK(FacilityFilterType)),NOT(ISERROR(MATCH(FacilityTypeFilter,F37,0)))),1,$EK37))) ->  | EH37: =IF(AND(PhaseFilterType="CONTAINS",NOT(ISERROR(SEARCH(PhaseFilter,G37)))),1,IF(AND(PhaseFilterType="NOT",ISERROR(SEARCH(PhaseFilter,G37))),1,IF(AND(OR(PhaseFilterType="EXACT",ISBLANK(PhaseFilterType)),NOT(ISERROR(MATCH(PhaseFilter,G37,0)))),1,$EK37))) ->  | EI37: =IF(AND(LocationFilterType="CONTAINS",NOT(ISERROR(SEARCH(LocationFilter,H37)))),1,IF(AND(LocationFilterType="NOT",ISERROR(SEARCH(LocationFilter,H37))),1,IF(AND(OR(LocationFilterType="EXACT",ISBLANK(LocationFilterType)),NOT(ISERROR(MATCH(LocationFilter,H37,0)))),1,$EK37))) ->  | EJ37: =IF(AND(PropertyFilterType="CONTAINS",NOT(ISERROR(SEARCH(PropertyFilter,I37)))),1,IF(AND(PropertyFilterType="NOT",ISERROR(SEARCH(PropertyFilter,I37))),1,IF(AND(OR(PropertyFilterType="EXACT",ISBLANK(PropertyFilterType)),NOT(ISERROR(MATCH(PropertyFilter,I37,0)))),1,$EK37))) ->  | EK37: =MATCH("NOT",$EK$27,0) ->  | EL37: =IF(ISBLANK(INDEX(INDIRECT("_"&$A$29&"Table1"),B37+1,2)),"",MATCH(INDEX(INDIRECT("_"&$A$29&"Table1"),B37+1,5),Accounts,0)) -> 7 | EM37: Surf Area | EN37: Surf Area | EO37: =IF(ISNUMBER(K43),INDEX(INDIRECT("_"&$A$29&"Table8"),B37+1,5),"") -> 71.1 | EP37: =IF(Metric,"ha","acres") -> acres | EZ37: FALSE | FA37: 1
D38: Regrading | J38: =IF(INDEX(INDIRECT("_"&$A$29&"Table4"),B37+1,15)=0,0,INDEX(INDIRECT("_"&$A$29&"Table4"),B37+1,15)) -> 0 | K38: =IF(OR(J38="",K37="",ISTEXT(K37),J38=0),"",IF(OR(ISBLANK(M38),ISBLANK(N38)),"Enter Dates",IF(K37="Date Range","",IF(OR(AND(CostType=ARO,L37>ScheduleYear),AND(CostType=ARO,N38<=ScheduleYear)),"Date Range",IF(OR(AND(CostType=Bond,O38>ScheduleYear),AND(CostType=LOM,LOMComplete)),J38,J38-Q38))))) ->  | P38: =IF(K38="","",SUM(T38:DO38)) ->  | Q38: =IF(OR(AND(CostType=ARO,N38<=ScheduleYear),AND(CostType=LOM,LOMComplete)),J38*R38,R38*EB38) -> 0 | R38: =IF(CostType=Bond,SUMIFS(T38:DP38,T$27:DP$27,"<="&O38,T$27:DP$27,"<="&ScheduleYear),SUMIF(T$27:DP$27,"<="&ScheduleYear,T38:DP38)) -> 0 | EA38: 1 | EB38: =IF(OR(J38="",EB37="",ISTEXT(EB37)),0,IF(OR(ISBLANK(M38),ISBLANK(N38)),0,IF(OR(AND(CostType=ARO,L37>ScheduleYear),AND(OR(CostType=ARO,AND(CostType=LOM,LOMComplete=TRUE)),N38<=ScheduleYear)),0,J38))) -> 0 | EC38: =IF(OR(J38="",EC37="",ISTEXT(EC37)),0,IF(OR(ISBLANK(M38),ISBLANK(N38)),0,IF(EC37="Date Range",0,IF(OR(AND(OtherCostType=ARO,L37>ScheduleYear),N38<=ScheduleYear),0,J38)))) ->  | EM38: Regrade | EN38: Regrade | EO38: =IF(ISNUMBER(K38),IF(INDEX(INDIRECT("_"&$A$29&"Table4"),B37+1,3)=0,0,INDEX(INDIRECT("_"&$A$29&"Table4"),B37+1,3)),0) -> 0 | EP38: =IF(Metric,"m3","cy") -> cy | EQ38: =INDEX(INDIRECT("_"&$A$29&"Table4"),B37+1,5) ->  | ES38: =IF(OR(NOT(ISNUMBER(K38)),K38=0),0,INDEX(INDIRECT("_"&$A$29&"Table4"),B37+1,12)) -> 0 | EW38: =IF(ISNUMBER($K38),INDEX(INDIRECT("_"&$A$29&"Table4"),B37+1,13),0) -> 0 | EX38: =IF(ISNUMBER($K38),INDEX(INDIRECT("_"&$A$29&"Table4"),B37+1,14),0) -> 0 | EZ38: TRUE
D39: Cover 1 Placement | J39: =INDEX(INDIRECT("_"&$A$29&"Table5"),B37+1,25) -> 0 | K39: =IF(OR(J39="",K37="",ISTEXT(K37),J39=0),"",IF(OR(ISBLANK(M39),ISBLANK(N39)),"Enter Dates",IF(K37="Date Range","",IF(OR(AND(CostType=ARO,L37>ScheduleYear),AND(CostType=ARO,N39<=ScheduleYear)),"Date Range",IF(OR(AND(CostType=Bond,O39>ScheduleYear),AND(CostType=LOM,LOMComplete)),J39,J39-Q39))))) ->  | Q39: 0 | R39: 0 | EA39: 1 | EB39: =IF(OR(J39="",EB37="",ISTEXT(EB37)),0,IF(OR(ISBLANK(M39),ISBLANK(N39)),0,IF(OR(AND(CostType=ARO,L37>ScheduleYear),AND(OR(CostType=ARO,AND(CostType=LOM,LOMComplete=TRUE)),N39<=ScheduleYear)),0,J39))) -> 0 | EC39: =IF(OR(J39="",EC37="",ISTEXT(EC37)),0,IF(OR(ISBLANK(M39),ISBLANK(N39)),0,IF(EC37="Date Range",0,IF(OR(AND(CostType=ARO,L37>ScheduleYear),N39<=ScheduleYear),0,J39)))) ->  | EM39: Cover | EN39: Cover | EO39: =IF(ISNUMBER(K39),INDEX(INDIRECT("_"&$A$29&"Table5"),B37+1,4),0) -> 0 | EP39: =IF(Metric,"m3","cy") -> cy | EQ39: =INDEX(INDIRECT("_"&$A$29&"Table5"),B37+1,10) ->  | ER39: =IF(OR(NOT(ISNUMBER(K39)),K39=0),0,INDEX(INDIRECT("_"&$A$29&"Table5"),B37+1,12)) -> 0 | ES39: =IF(OR(NOT(ISNUMBER(K39)),K39=0),0,INDEX(INDIRECT("_"&$A$29&"Table5"),B37+1,14)) -> 0 | ET39: =INDEX(INDIRECT("_"&$A$29&"Table5"),B37+1,5) ->  | EU39: =IF(OR(NOT(ISNUMBER(K39)),K39=0),0,INDEX(INDIRECT("_"&$A$29&"Table5"),B37+1,7)) -> 0 | EV39: =IF(OR(NOT(ISNUMBER(K39)),K39=0),0,INDEX(INDIRECT("_"&$A$29&"Table5"),B37+1,9)) -> 0 | EW39: =IF(ISNUMBER($K39),INDEX(INDIRECT("_"&$A$29&"Table5"),B37+1,15)+INDEX(INDIRECT("_"&$A$29&"Table5"),B37+1,19)+INDEX(INDIRECT("_"&$A$29&"Table5"),B37+1,22),0) -> 0 | EX39: =IF(ISNUMBER($K38),INDEX(INDIRECT("_"&$A$29&"Table5"),B37+1,16)+INDEX(INDIRECT("_"&$A$29&"Table5"),B37+1,20)+INDEX(INDIRECT("_"&$A$29&"Table5"),B37+1,23),0) -> 0 | EZ39: TRUE
D40: Cover 2 Placement | J40: =INDEX(INDIRECT("_"&$A$29&"Table6"),B37+1,25) -> 0 | K40: =IF(OR(J40="",K37="",ISTEXT(K37),J40=0),"",IF(OR(ISBLANK(M40),ISBLANK(N40)),"Enter Dates",IF(K37="Date Range","",IF(OR(AND(CostType=ARO,L37>ScheduleYear),AND(CostType=ARO,N40<=ScheduleYear)),"Date Range",IF(OR(AND(CostType=Bond,O40>ScheduleYear),AND(CostType=LOM,LOMComplete)),J40,J40-Q40))))) ->  | Q40: 0 | R40: 0 | EA40: 1 | EB40: =IF(OR(J40="",EB37="",ISTEXT(EB37)),0,IF(OR(ISBLANK(M40),ISBLANK(N40)),0,IF(OR(AND(CostType=ARO,L37>ScheduleYear),AND(OR(CostType=ARO,AND(CostType=LOM,LOMComplete=TRUE)),N40<=ScheduleYear)),0,J40))) -> 0 | EC40: =IF(OR(J40="",EC37="",ISTEXT(EC37)),0,IF(OR(ISBLANK(M40),ISBLANK(N40)),0,IF(EC37="Date Range",0,IF(OR(AND(CostType=ARO,L37>ScheduleYear),N40<=ScheduleYear),0,J40)))) ->  | EM40: Cover | EN40: Cover | EO40: =IF(ISNUMBER(K40),INDEX(INDIRECT("_"&$A$29&"Table6"),B37+1,4),0) -> 0 | EP40: =IF(Metric,"m3","cy") -> cy | EQ40: =INDEX(INDIRECT("_"&$A$29&"Table6"),B37+1,10) ->  | ER40: =IF(OR(NOT(ISNUMBER(K40)),K40=0),0,INDEX(INDIRECT("_"&$A$29&"Table6"),B37+1,12)) -> 0 | ES40: =IF(OR(NOT(ISNUMBER(K40)),K40=0),0,INDEX(INDIRECT("_"&$A$29&"Table6"),B37+1,14)) -> 0 | ET40: =INDEX(INDIRECT("_"&$A$29&"Table6"),B37+1,5) ->  | EU40: =IF(OR(NOT(ISNUMBER(K40)),K40=0),0,INDEX(INDIRECT("_"&$A$29&"Table6"),B37+1,7)) -> 0 | EV40: =IF(OR(NOT(ISNUMBER(K40)),K40=0),0,INDEX(INDIRECT("_"&$A$29&"Table6"),B37+1,9)) -> 0 | EZ40: TRUE
D41: Growth Media Placement | J41: =INDEX(INDIRECT("_"&$A$29&"Table7"),B37+1,11) -> 0 | K41: =IF(OR(J41="",K37="",ISTEXT(K37),J41=0),"",IF(OR(ISBLANK(M41),ISBLANK(N41)),"Enter Dates",IF(K37="Date Range","",IF(OR(AND(CostType=ARO,L37>ScheduleYear),AND(CostType=ARO,N41<=ScheduleYear)),"Date Range",IF(OR(AND(CostType=Bond,O41>ScheduleYear),AND(CostType=LOM,LOMComplete)),J41,J41-Q41))))) ->  | Q41: 0 | R41: 0 | EA41: 1 | EB41: =IF(OR(J41="",EB37="",ISTEXT(EB37)),0,IF(OR(ISBLANK(M41),ISBLANK(N41)),0,IF(OR(AND(CostType=ARO,L37>ScheduleYear),AND(OR(CostType=ARO,AND(CostType=LOM,LOMComplete=TRUE)),N41<=ScheduleYear)),0,J41))) -> 0 | EC41: =IF(OR(J41="",EC37="",ISTEXT(EC37)),0,IF(OR(ISBLANK(M41),ISBLANK(N41)),0,IF(EC37="Date Range",0,IF(OR(AND(CostType=ARO,L37>ScheduleYear),N41<=ScheduleYear),0,J41)))) ->  | EM41: GM | EN41: GM | EO41: =IF(ISNUMBER(K41),INDEX(INDIRECT("_"&$A$29&"Table7"),B37+1,3),0) -> 0 | EP41: =IF(Metric,"m3","cy") -> cy | EQ41: =INDEX(INDIRECT("_"&$A$29&"Table7"),B37+1,4) ->  | ER41: =IF(OR(NOT(ISNUMBER(K41)),K41=0),0,INDEX(INDIRECT("_"&$A$29&"Table7"),B37+1,6)) -> 0 | ES41: =IF(OR(NOT(ISNUMBER(K41)),K41=0),0,INDEX(INDIRECT("_"&$A$29&"Table7"),B37+1,8)) -> 0 | EZ41: TRUE
D42: Ripping/Scarifying | J42: =INDEX(INDIRECT("_"&$A$29&"Table8"),B37+1,13) -> 0 | K42: =IF(OR(J42="",K37="",ISTEXT(K37),J42=0),"",IF(OR(ISBLANK(M42),ISBLANK(N42)),"Enter Dates",IF(K37="Date Range","",IF(OR(AND(CostType=ARO,L37>ScheduleYear),AND(CostType=ARO,N42<=ScheduleYear)),"Date Range",IF(OR(AND(CostType=Bond,O42>ScheduleYear),AND(CostType=LOM,LOMComplete)),J42,J42-Q42))))) ->  | Q42: 0 | R42: 0 | EA42: 1 | EB42: =IF(OR(J42="",EB37="",ISTEXT(EB37)),0,IF(OR(ISBLANK(M42),ISBLANK(N42)),0,IF(OR(AND(CostType=ARO,L37>ScheduleYear),AND(OR(CostType=ARO,AND(CostType=LOM,LOMComplete=TRUE)),N42<=ScheduleYear)),0,J42))) -> 0 | EC42: =IF(OR(J42="",EC37="",ISTEXT(EC37)),0,IF(OR(ISBLANK(M42),ISBLANK(N42)), 0,IF(EC37="Date Range",0,IF(OR(AND(CostType=ARO,L37>ScheduleYear),N42<=ScheduleYear),0,J42)))) ->  | EM42: Rip | EN42: Rip | EO42: =IF(ISNUMBER(K42),INDEX(INDIRECT("_"&$A$29&"Table8"),B37+1,5),0) -> 0 | EP42: =IF(Metric,"ha","acres") -> acres | EQ42: =INDEX(INDIRECT("_"&$A$29&"Table8"),B37+1,8) ->  | ES42: =IF(OR(NOT(ISNUMBER(K42)),K42=0),0,INDEX(INDIRECT("_"&$A$29&"Table8"),B37+1,9)+INDEX(INDIRECT("_"&$A$29&"Table8"),B37+1,10)) -> 0 | EZ42: TRUE
D43: Revegetation | J43: =INDEX(INDIRECT("_"&$A$29&"Table8"),B37+1,17) -> 43211 | K43: =IF(OR(J43="",K37="",ISTEXT(K37),J43=0),"",IF(OR(ISBLANK(M43),ISBLANK(N43)),"Enter Dates",IF(K37="Date Range","",IF(OR(AND(CostType=ARO,L37>ScheduleYear),AND(CostType=ARO,N43<=ScheduleYear)),"Date Range",IF(OR(AND(CostType=Bond,O43>ScheduleYear),AND(CostType=LOM,LOMComplete)),J43,J43-Q43))))) -> 43211 | M43: 2024 | N43: 2024 | P43: 1 | Q43: 0 | R43: 0 | X43: 1 | EA43: 1 | EB43: =IF(OR(J43="",EB37="",ISTEXT(EB37)),0,IF(OR(ISBLANK(M43),ISBLANK(N43)),0,IF(OR(AND(CostType=ARO,L37>ScheduleYear),AND(OR(CostType=ARO,AND(CostType=LOM,LOMComplete=TRUE)),N43<=ScheduleYear)),0,J43))) -> 43211 | EC43: =IF(OR(J43="",EC37="",ISTEXT(EC37)),0,IF(OR(ISBLANK(M43),ISBLANK(N43)), 0,IF(EC37="Date Range",0,IF(OR(AND(CostType=ARO,L37>ScheduleYear),N43<=ScheduleYear),0,J43)))) ->  | EM43: Reveg | EN43: Reveg | EO43: =IF(ISNUMBER(K43),INDEX(INDIRECT("_"&$A$29&"Table8"),B37+1,5),0) -> 71.1 | EP43: =IF(Metric,"ha","acres") -> acres | EZ43: TRUE
EZ44: FALSE
A45: Tails | B45: TAILINGS IMPOUNDMENTS | J45: =SumByColor(J46,J46:J54) -> 0 | K45: =SumByColor(K46,K46:K54) -> 0 | Q45: =SumByColor(Q46,Q46:Q54) -> 0 | T45: =SumByColor(T46,T46:T54) -> 0 | U45: 0 | V45: 0 | W45: 0 | X45: 0 | Y45: 0 | Z45: 0 | AA45: 0 | AB45: 0 | AC45: 0 | AD45: 0 | AE45: 0 | AF45: 0 | AG45: 0 | AH45: 0 | AI45: 0 | AJ45: 0 | AK45: 0 | AL45: 0 | AM45: 0 | AN45: 0 | AO45: 0 | AP45: 0 | AQ45: 0 | AR45: 0 | AS45: 0 | AT45: 0 | AU45: 0 | AV45: 0 | AW45: 0 | AX45: 0 | AY45: 0 | AZ45: =SumByColor(AZ46,AZ46:AZ54) -> 0 | BA45: 0 | BB45: 0 | BC45: 0 | BD45: 0 | BE45: 0 | BF45: 0 | BG45: 0 | BH45: 0 | BI45: 0 | BJ45: 0 | BK45: 0 | BL45: 0 | BM45: 0 | BN45: 0 | BO45: 0 | BP45: 0 | BQ45: 0 | BR45: 0 | BS45: 0 | BT45: 0 | BU45: 0 | BV45: 0 | BW45: 0 | BX45: 0 | BY45: 0 | BZ45: 0 | CA45: 0 | CB45: 0 | CC45: 0 | CD45: 0 | CE45: 0 | CF45: =SumByColor(CF46,CF46:CF54) -> 0 | CG45: 0 | CH45: 0 | CI45: 0 | CJ45: 0 | CK45: 0 | CL45: 0 | CM45: 0 | CN45: 0 | CO45: 0 | CP45: 0 | CQ45: 0 | CR45: 0 | CS45: 0 | CT45: 0 | CU45: 0 | CV45: 0 | CW45: 0 | CX45: 0 | CY45: 0 | CZ45: 0 | DA45: 0 | DB45: 0 | DC45: 0 | DD45: 0 | DE45: 0 | DF45: 0 | DG45: 0 | DH45: 0 | DI45: 0 | DJ45: 0 | DK45: 0 | DL45: =SumByColor(DL46,DL46:DL54) -> 0 | DM45: 0 | DN45: 0 | DO45: 0 | EB45: =SumByColor(EB46,EB46:EB54) -> 0 | EC45: =SumByColor(EC46,EC46:EC54) -> 0 | EZ45: FALSE
B46: =(ROW(B46) - ROW($B$45)-1)/INDEX(SheetRangeIndex,MATCH($A$45,TableNamesSorted,0),7) -> 0 | C46: =INDEX(INDIRECT("_"&$A$45&"Table1"),B46+1,9) -> 0 | D46: =INDEX(INDIRECT("_"&$A$45&"Table1"),B46+1,2) -> 0 | E46: =IF(ISBLANK(INDEX(INDIRECT("_"&$A$45&"Table1"),B46+1,3)),"",INDEX(INDIRECT("_"&$A$45&"Table1"),B46+1,3)) ->  | F46: =IF(ISERROR(EL46),"Facility Type",IF(ISBLANK(INDEX(INDIRECT("_"&$A$45&"Table1"),B46+1,5)),"",INDEX(INDIRECT("_"&$A$45&"Table1"),B46+1,5))) ->  | G46: =IF(ISBLANK(INDEX(INDIRECT("_"&$A$45&"Table1"),B46+1,6)),"",INDEX(INDIRECT("_"&$A$45&"Table1"),B46+1,6)) ->  | H46: =IF(ISBLANK(INDEX(INDIRECT("_"&$A$45&"Table1"),B46+1,7)),"",INDEX(INDIRECT("_"&$A$45&"Table1"),B46+1,7)) ->  | I46: =IF(ISBLANK(INDEX(INDIRECT("_"&$A$45&"Table1"),B46+1,8)),"",INDEX(INDIRECT("_"&$A$45&"Table1"),B46+1,8)) ->  | J46: =SUM(J47:J53) -> 0 | K46: =IF(ISERR(ED46),"Cost Type",IF(A46="X","Override",IF(AND(CostType=ARO,L46>ScheduleYear),"Date Range",IF(AND(ISTEXT(LocationFilter),ISERROR(EI46)),"Location",IF(AND(ISTEXT(PropertyFilter),ISERROR(EJ46)),"Property",IF(AND(ISTEXT(FacilityTypeFilter),ISERROR(EG46)),"Facility Type",IF(AND(NOT(ISBLANK(IDCodeFilter)),ISERROR(EF46)),"ID Code",IF(AND(ISTEXT(PhaseFilter),ISERROR(EH46)),"Phase",IF(AND(CostType=LOM,LOMComplete),J46,SUM(T46:DO46)))))))))) -> Cost Type | L46: =INDEX(INDIRECT("_"&$A$45&"Table1"),B46+1,4) -> 0 | Q46: =SUM(Q47:Q52) -> 0 | T46: =IF(ISTEXT($EB46),0,IF(AND(CostType=LOM,LOMComplete,T$27<=ScheduleYear),SUMPRODUCT(T47:T53,$J47:$J53),IF(CostType=Bond,SUMPRODUCT($EB47:$EB53,T47:T53,$EA47:$EA53),IF(T$27<=ScheduleYear,0,SUMPRODUCT(T47:T53,$EB47:$EB53))))) -> 0 | U46: 0 | V46: 0 | W46: 0 | X46: 0 | Y46: 0 | Z46: 0 | AA46: 0 | AB46: 0 | AC46: 0 | AD46: 0 | AE46: 0 | AF46: 0 | AG46: 0 | AH46: 0 | AI46: 0 | AJ46: 0 | AK46: 0 | AL46: 0 | AM46: 0 | AN46: 0 | AO46: 0 | AP46: 0 | AQ46: 0 | AR46: 0 | AS46: 0 | AT46: 0 | AU46: 0 | AV46: 0 | AW46: 0 | AX46: 0 | AY46: 0 | AZ46: =IF(ISTEXT($EB46),0,IF(AND(CostType=LOM,LOMComplete,AZ$27<=ScheduleYear),SUMPRODUCT(AZ47:AZ53,$J47:$J53),IF(CostType=Bond,SUMPRODUCT($EB47:$EB53,AZ47:AZ53,$EA47:$EA53),IF(AZ$27<=ScheduleYear,0,SUMPRODUCT(AZ47:AZ53,$EB47:$EB53))))) -> 0 | BA46: 0 | BB46: 0 | BC46: 0 | BD46: 0 | BE46: 0 | BF46: 0 | BG46: 0 | BH46: 0 | BI46: 0 | BJ46: 0 | BK46: 0 | BL46: 0 | BM46: 0 | BN46: 0 | BO46: 0 | BP46: 0 | BQ46: 0 | BR46: 0 | BS46: 0 | BT46: 0 | BU46: 0 | BV46: 0 | BW46: 0 | BX46: 0 | BY46: 0 | BZ46: 0 | CA46: 0 | CB46: 0 | CC46: 0 | CD46: 0 | CE46: 0 | CF46: =IF(ISTEXT($EB46),0,IF(AND(CostType=LOM,LOMComplete,CF$27<=ScheduleYear),SUMPRODUCT(CF47:CF53,$J47:$J53),IF(CostType=Bond,SUMPRODUCT($EB47:$EB53,CF47:CF53,$EA47:$EA53),IF(CF$27<=ScheduleYear,0,SUMPRODUCT(CF47:CF53,$EB47:$EB53))))) -> 0 | CG46: 0 | CH46: 0 | CI46: 0 | CJ46: 0 | CK46: 0 | CL46: 0 | CM46: 0 | CN46: 0 | CO46: 0 | CP46: 0 | CQ46: 0 | CR46: 0 | CS46: 0 | CT46: 0 | CU46: 0 | CV46: 0 | CW46: 0 | CX46: 0 | CY46: 0 | CZ46: 0 | DA46: 0 | DB46: 0 | DC46: 0 | DD46: 0 | DE46: 0 | DF46: 0 | DG46: 0 | DH46: 0 | DI46: 0 | DJ46: 0 | DK46: 0 | DL46: =IF(ISTEXT($EB46),0,IF(AND(CostType=LOM,LOMComplete,DL$27<=ScheduleYear),SUMPRODUCT(DL47:DL53,$J47:$J53),IF(CostType=Bond,SUMPRODUCT($EB47:$EB53,DL47:DL53,$EA47:$EA53),IF(DL$27<=ScheduleYear,0,SUMPRODUCT(DL47:DL53,$EB47:$EB53))))) -> 0 | DM46: 0 | DN46: 0 | DO46: 0 | DP46: =IF(ISNUMBER(K46),SUM(T46:DO46)-K46,K46) -> Cost Type | EB46: =IF(ISERR(ED46),"Cost Type",IF(A46="X","Override",IF(AND(CostType=ARO,L46>ScheduleYear),0,IF(AND(ISTEXT(LocationFilter),ISERROR(EI46)),"Location",IF(AND(ISTEXT(PropertyFilter),ISERROR(EJ46)),"Property",IF(AND(ISTEXT(FacilityTypeFilter),ISERROR(EG46)),"Facility Type",IF(AND(ISTEXT(IDCodeFilter),ISERROR(EF46)),"ID Code",IF(AND(ISTEXT(PhaseFilter),ISERROR(EH46)),"Phase",J46)))))))) -> Cost Type | EC46: =IF(EE46="","Cost Type",IF(A46="X","Override",IF(AND(OtherCostType=ARO,L46>ScheduleYear),0,IF(AND(ISTEXT(LocationFilter),EI46=""),"Location",IF(AND(ISTEXT(PropertyFilter),EJ46=""),"Property",IF(AND(ISTEXT(FacilityTypeFilter),EG46=""),"Facility Type",IF(AND(ISTEXT(IDCodeFilter),EF46=""),"ID Code",IF(AND(ISTEXT(PhaseFilter),EH46=""),"Phase",J46)))))))) ->  | ED46: =SEARCH(CostType,C46) ->  | EE46: =SEARCH(OtherCostType,C46) ->  | EF46: =IF(AND(IDCodeFilterType="CONTAINS",NOT(ISERROR(SEARCH(IDCodeFilter,E46)))),1,IF(AND(IDCodeFilterType="NOT",ISERROR(SEARCH(IDCodeFilter,E46))),1,IF(AND(OR(IDCodeFilterType="EXACT",ISBLANK(IDCodeFilterType)),NOT(ISERROR(MATCH(IDCodeFilter,E46,0)))),1,$EK46))) ->  | EG46: =IF(AND(FacilityFilterType="CONTAINS",NOT(ISERROR(SEARCH(FacilityTypeFilter,F46)))),1,IF(AND(FacilityFilterType="NOT",ISERROR(SEARCH(FacilityTypeFilter,F46))),1,IF(AND(OR(FacilityFilterType="EXACT",ISBLANK(FacilityFilterType)),NOT(ISERROR(MATCH(FacilityTypeFilter,F46,0)))),1,$EK46))) ->  | EH46: =IF(AND(PhaseFilterType="CONTAINS",NOT(ISERROR(SEARCH(PhaseFilter,G46)))),1,IF(AND(PhaseFilterType="NOT",ISERROR(SEARCH(PhaseFilter,G46))),1,IF(AND(OR(PhaseFilterType="EXACT",ISBLANK(PhaseFilterType)),NOT(ISERROR(MATCH(PhaseFilter,G46,0)))),1,$EK46))) ->  | EI46: =IF(AND(LocationFilterType="CONTAINS",NOT(ISERROR(SEARCH(LocationFilter,H46)))),1,IF(AND(LocationFilterType="NOT",ISERROR(SEARCH(LocationFilter,H46))),1,IF(AND(OR(LocationFilterType="EXACT",ISBLANK(LocationFilterType)),NOT(ISERROR(MATCH(LocationFilter,H46,0)))),1,$EK46))) ->  | EJ46: =IF(AND(PropertyFilterType="CONTAINS",NOT(ISERROR(SEARCH(PropertyFilter,I46)))),1,IF(AND(PropertyFilterType="NOT",ISERROR(SEARCH(PropertyFilter,I46))),1,IF(AND(OR(PropertyFilterType="EXACT",ISBLANK(PropertyFilterType)),NOT(ISERROR(MATCH(PropertyFilter,I46,0)))),1,$EK46))) ->  | EK46: =MATCH("NOT",$EK$27,0) ->  | EL46: =IF(ISBLANK(INDEX(INDIRECT("_"&$A$45&"Table1"),B46+1,2)),"",MATCH(INDEX(INDIRECT("_"&$A$45&"Table1"),B46+1,5),Accounts,0)) ->  | EZ46: FALSE | FA46: 1
D47: Embankment Regrading | J47: =IF(INDEX(INDIRECT("_"&$A$45&"Table4"),B46+1,15)=0,0,INDEX(INDIRECT("_"&$A$45&"Table4"),B46+1,15)) -> 0 | K47: =IF(OR(J47="",K46="",ISTEXT(K46),J47=0),"",IF(OR(ISBLANK(M47),ISBLANK(N47)),"Enter Dates",IF(K46="Date Range","",IF(OR(AND(CostType=ARO,L46>ScheduleYear),AND(CostType=ARO,N47<=ScheduleYear)),"Date Range",IF(OR(AND(CostType=Bond,O47>ScheduleYear),AND(CostType=LOM,LOMComplete)),J47,J47-Q47))))) ->  | P47: =IF(K47="","",SUM(T47:DO47)) ->  | Q47: =IF(OR(AND(CostType=ARO,N47<=ScheduleYear),AND(CostType=LOM,LOMComplete)),J47*R47,R47*EB47) -> 0 | R47: =IF(CostType=Bond,SUMIFS(T47:DP47,T$27:DP$27,"<="&O47,T$27:DP$27,"<="&ScheduleYear),SUMIF(T$27:DP$27,"<="&ScheduleYear,T47:DP47)) -> 0 | EA47: =IF(OR(ISBLANK($O47),$O47>ScheduleYear),1,0) -> 1 | EB47: =IF(OR(J47="",EB46="",ISTEXT(EB46)),0,IF(OR(ISBLANK(M47),ISBLANK(N47)),0,IF(OR(AND(CostType=ARO,L46>ScheduleYear),AND(OR(CostType=ARO,AND(CostType=LOM,LOMComplete=TRUE)),N47<=ScheduleYear)),0,J47))) -> 0 | EC47: =IF(OR(J47="",EC46="",ISTEXT(EC46)),0,IF(OR(ISBLANK(M47),ISBLANK(N47)),0,IF(EC46="Date Range",0,IF(OR(AND(OtherCostType=ARO,L46>ScheduleYear),N47<=ScheduleYear),0,J47)))) ->  | EM47: Regrade | EN47: Regrade | EO47: =IF(ISNUMBER(K47),IF(INDEX(INDIRECT("_"&$A$45&"Table4"),B46+1,3)=0,0,INDEX(INDIRECT("_"&$A$45&"Table4"),B46+1,3)),0) -> 0 | EP47: =IF(Metric,"m3","cy") -> cy | EQ47: =INDEX(INDIRECT("_"&$A$45&"Table4"),B46+1,5) ->  | ES47: =IF(OR(NOT(ISNUMBER(K47)),K47=0),0,INDEX(INDIRECT("_"&$A$45&"Table4"),B46+1,12)) -> 0 | EZ47: TRUE
D48: Surface Regrading | J48: =IF(INDEX(INDIRECT("_"&$A$45&"Table5"),B46+1,15)=0,0,INDEX(INDIRECT("_"&$A$45&"Table5"),B46+1,15)) -> 0 | K48: =IF(OR(J48="",K46="",ISTEXT(K46),J48=0),"",IF(OR(ISBLANK(M48),ISBLANK(N48)),"Enter Dates",IF(K46="Date Range","",IF(OR(AND(CostType=ARO,L46>ScheduleYear),AND(CostType=ARO,N48<=ScheduleYear)),"Date Range",IF(OR(AND(CostType=Bond,O48>ScheduleYear),AND(CostType=LOM,LOMComplete)),J48,J48-Q48))))) ->  | Q48: 0 | R48: 0 | EA48: 1 | EB48: =IF(OR(J48="",EB46="",ISTEXT(EB46)),0,IF(OR(ISBLANK(M48),ISBLANK(N48)),0,IF(OR(AND(CostType=ARO,L46>ScheduleYear),AND(OR(CostType=ARO,AND(CostType=LOM,LOMComplete=TRUE)),N48<=ScheduleYear)),0,J48))) -> 0 | EC48: =IF(OR(J48="",EC46="",ISTEXT(EC46)),0,IF(OR(ISBLANK(M48),ISBLANK(N48)),0,IF(EC46="Date Range",0,IF(OR(AND(CostType=ARO,L46>ScheduleYear),N48<=ScheduleYear),0,J48)))) ->  | EM48: Regrade | EN48: Regrade | EO48: =IF(ISNUMBER(K48),IF(INDEX(INDIRECT("_"&$A$45&"Table5"),B46+1,3)=0,0,INDEX(INDIRECT("_"&$A$45&"Table5"),B46+1,3)),0) -> 0 | EP48: =IF(Metric,"m3","cy") -> cy | EQ48: =INDEX(INDIRECT("_"&$A$45&"Table5"),B46+1,5) ->  | ES48: =IF(OR(NOT(ISNUMBER(K48)),K48=0),0,INDEX(INDIRECT("_"&$A$45&"Table5"),B46+1,12)) -> 0 | EZ48: TRUE
D49: Cover 1 Placement | J49: =INDEX(INDIRECT("_"&$A$45&"Table6"),B46+1,25) -> 0 | K49: =IF(OR(J49="",K46="",ISTEXT(K46),J49=0),"",IF(OR(ISBLANK(M49),ISBLANK(N49)),"Enter Dates",IF(K46="Date Range","",IF(OR(AND(CostType=ARO,L46>ScheduleYear),AND(CostType=ARO,N49<=ScheduleYear)),"Date Range",IF(OR(AND(CostType=Bond,O49>ScheduleYear),AND(CostType=LOM,LOMComplete)),J49,J49-Q49))))) ->  | Q49: 0 | R49: 0 | EA49: 1 | EB49: =IF(OR(J49="",EB46="",ISTEXT(EB46)),0,IF(OR(ISBLANK(M49),ISBLANK(N49)),0,IF(OR(AND(CostType=ARO,L46>ScheduleYear),AND(OR(CostType=ARO,AND(CostType=LOM,LOMComplete=TRUE)),N49<=ScheduleYear)),0,J49))) -> 0 | EC49: =IF(OR(J49="",EC46="",ISTEXT(EC46)),0,IF(OR(ISBLANK(M49),ISBLANK(N49)),0,IF(EC46="Date Range",0,IF(OR(AND(CostType=ARO,L46>ScheduleYear),N49<=ScheduleYear),0,J49)))) ->  | EM49: Cover | EN49: Cover | EO49: =IF(ISNUMBER(K49),INDEX(INDIRECT("_"&$A$45&"Table6"),B46+1,4),0) -> 0 | EP49: =IF(Metric,"m3","cy") -> cy | EQ49: =INDEX(INDIRECT("_"&$A$45&"Table6"),B46+1,10) ->  | ER49: =IF(OR(NOT(ISNUMBER(K49)),K49=0),0,INDEX(INDIRECT("_"&$A$45&"Table6"),B46+1,12)) -> 0 | ES49: =IF(OR(NOT(ISNUMBER(K49)),K49=0),0,INDEX(INDIRECT("_"&$A$45&"Table6"),B46+1,9)) -> 0 | ET49: =INDEX(INDIRECT("_"&$A$45&"Table6"),B46+1,5) ->  | EU49: =IF(OR(NOT(ISNUMBER(K49)),K49=0),0,INDEX(INDIRECT("_"&$A$45&"Table6"),B46+1,7)) -> 0 | EV49: =IF(OR(NOT(ISNUMBER(K49)),K49=0),0,INDEX(INDIRECT("_"&$A$45&"Table6"),B46+1,9)) -> 0 | EZ49: TRUE
D50: Cover 2 Placement | J50: =INDEX(INDIRECT("_"&$A$45&"Table7"),B46+1,25) -> 0 | K50: =IF(OR(J50="",K46="",ISTEXT(K46),J50=0),"",IF(OR(ISBLANK(M50),ISBLANK(N50)),"Enter Dates",IF(K46="Date Range","",IF(OR(AND(CostType=ARO,L46>ScheduleYear),AND(CostType=ARO,N50<=ScheduleYear)),"Date Range",IF(OR(AND(CostType=Bond,O50>ScheduleYear),AND(CostType=LOM,LOMComplete)),J50,J50-Q50))))) ->  | Q50: 0 | R50: 0 | EA50: 1 | EB50: =IF(OR(J50="",EB46="",ISTEXT(EB46)),0,IF(OR(ISBLANK(M50),ISBLANK(N50)),0,IF(OR(AND(CostType=ARO,L46>ScheduleYear),AND(OR(CostType=ARO,AND(CostType=LOM,LOMComplete=TRUE)),N50<=ScheduleYear)),0,J50))) -> 0 | EC50: =IF(OR(J50="",EC46="",ISTEXT(EC46)),0,IF(OR(ISBLANK(M50),ISBLANK(N50)),0,IF(EC46="Date Range",0,IF(OR(AND(CostType=ARO,L46>ScheduleYear),N50<=ScheduleYear),0,J50)))) ->  | EM50: Cover | EN50: Cover | EO50: =IF(ISNUMBER(K50),INDEX(INDIRECT("_"&$A$45&"Table7"),B46+1,4),0) -> 0 | EP50: =IF(Metric,"m3","cy") -> cy | EQ50: =INDEX(INDIRECT("_"&$A$45&"Table7"),B46+1,10) ->  | ER50: =IF(OR(NOT(ISNUMBER(K50)),K50=0),0,INDEX(INDIRECT("_"&$A$45&"Table6"),B46+1,12)) -> 0 | ES50: =IF(OR(NOT(ISNUMBER(K50)),K50=0),0,INDEX(INDIRECT("_"&$A$45&"Table6"),B46+1,14)) -> 0 | ET50: =INDEX(INDIRECT("_"&$A$45&"Table7"),B46+1,5) ->  | EU50: =IF(OR(NOT(ISNUMBER(K50)),K50=0),0,INDEX(INDIRECT("_"&$A$45&"Table7"),B46+1,7)) -> 0 | EV50: =IF(OR(NOT(ISNUMBER(K50)),K50=0),0,INDEX(INDIRECT("_"&$A$45&"Table7"),B46+1,9)) -> 0 | EZ50: TRUE
D51: Growth Media Placement | J51: =INDEX(INDIRECT("_"&$A$45&"Table8"),B46+1,11) -> 0 | K51: =IF(OR(J51="",K46="",ISTEXT(K46),J51=0),"",IF(OR(ISBLANK(M51),ISBLANK(N51)),"Enter Dates",IF(K46="Date Range","",IF(OR(AND(CostType=ARO,L46>ScheduleYear),AND(CostType=ARO,N51<=ScheduleYear)),"Date Range",IF(OR(AND(CostType=Bond,O51>ScheduleYear),AND(CostType=LOM,LOMComplete)),J51,J51-Q51))))) ->  | Q51: 0 | R51: 0 | EA51: 1 | EB51: =IF(OR(J51="",EB46="",ISTEXT(EB46)),0,IF(OR(ISBLANK(M51),ISBLANK(N51)),0,IF(OR(AND(CostType=ARO,L46>ScheduleYear),AND(OR(CostType=ARO,AND(CostType=LOM,LOMComplete=TRUE)),N51<=ScheduleYear)),0,J51))) -> 0 | EC51: =IF(OR(J51="",EC46="",ISTEXT(EC46)),0,IF(OR(ISBLANK(M51),ISBLANK(N51)), 0,IF(EC46="Date Range",0,IF(OR(AND(CostType=ARO,L46>ScheduleYear),N51<=ScheduleYear),0,J51)))) ->  | EM51: GM | EN51: GM | EO51: =IF(ISNUMBER(K51),INDEX(INDIRECT("_"&$A$45&"Table8"),B46+1,3),0) -> 0 | EP51: =IF(Metric,"m3","cy") -> cy | EQ51: =INDEX(INDIRECT("_"&$A$45&"Table8"),B46+1,4) ->  | ER51: =IF(OR(NOT(ISNUMBER(K51)),K51=0),0,INDEX(INDIRECT("_"&$A$45&"Table8"),B46+1,6)) -> 0 | ES51: =IF(OR(NOT(ISNUMBER(K51)),K51=0),0,INDEX(INDIRECT("_"&$A$45&"Table8"),B46+1,6)) -> 0 | EZ51: TRUE
D52: Ripping/Scarifying | J52: =INDEX(INDIRECT("_"&$A$45&"Table9"),B46+1,14) -> 0 | K52: =IF(OR(J52="",K46="",ISTEXT(K46),J52=0),"",IF(OR(ISBLANK(M52),ISBLANK(N52)),"Enter Dates",IF(K46="Date Range","",IF(OR(AND(CostType=ARO,L46>ScheduleYear),AND(CostType=ARO,N52<=ScheduleYear)),"Date Range",IF(OR(AND(CostType=Bond,O52>ScheduleYear),AND(CostType=LOM,LOMComplete)),J52,J52-Q52))))) ->  | Q52: 0 | R52: 0 | EA52: 1 | EB52: =IF(OR(J52="",EB46="",ISTEXT(EB46)),0,IF(OR(ISBLANK(M52),ISBLANK(N52)),0,IF(OR(AND(CostType=ARO,L46>ScheduleYear),AND(OR(CostType=ARO,AND(CostType=LOM,LOMComplete=TRUE)),N52<=ScheduleYear)),0,J52))) -> 0 | EC52: =IF(OR(J52="",EC46="",ISTEXT(EC46)),0,IF(OR(ISBLANK(M52),ISBLANK(N52)), 0,IF(EC46="Date Range",0,IF(OR(AND(CostType=ARO,L46>ScheduleYear),N52<=ScheduleYear),0,J52)))) ->  | EM52: Rip | EN52: Rip | EO52: =IF(ISNUMBER(K52),INDEX(INDIRECT("_"&$A$45&"Table9"),B46+1,5),0) -> 0 | EP52: =IF(Metric,"ha","acres") -> acres | EQ52: =INDEX(INDIRECT("_"&$A$45&"Table9"),B46+1,9) ->  | ES52: =IF(OR(NOT(ISNUMBER(K52)),K52=0),0,INDEX(INDIRECT("_"&$A$45&"Table9"),B46+1,10)+INDEX(INDIRECT("_"&$A$45&"Table9"),B46+1,11)) -> 0 | EZ52: TRUE
D53: Revegetation | J53: =INDEX(INDIRECT("_"&$A$45&"Table9"),B46+1,18) -> 0 | K53: =IF(OR(J53="",K46="",ISTEXT(K46),J53=0),"",IF(OR(ISBLANK(M53),ISBLANK(N53)),"Enter Dates",IF(K46="Date Range","",IF(OR(AND(CostType=ARO,L46>ScheduleYear),AND(CostType=ARO,N53<=ScheduleYear)),"Date Range",IF(OR(AND(CostType=Bond,O53>ScheduleYear),AND(CostType=LOM,LOMComplete)),J53,J53-Q53))))) ->  | Q53: 0 | R53: 0 | EA53: 1 | EB53: =IF(OR(J53="",EB46="",ISTEXT(EB46)),0,IF(OR(ISBLANK(M53),ISBLANK(N53)),0,IF(OR(AND(CostType=ARO,L46>ScheduleYear),AND(OR(CostType=ARO,AND(CostType=LOM,LOMComplete=TRUE)),N53<=ScheduleYear)),0,J53))) -> 0 | EC53: =IF(OR(J53="",EC47="",ISTEXT(EC47)),0,IF(OR(ISBLANK(M53),ISBLANK(N53)), 0,IF(EC47="Date Range",0,IF(OR(AND(CostType=ARO,L46>ScheduleYear),N53<=ScheduleYear),0,J53)))) ->  | EM53: Reveg | EN53: Reveg | EO53: =IF(ISNUMBER(K53),INDEX(INDIRECT("_"&$A$45&"Table9"),B46+1,5),0) -> 0 | EP53: =IF(Metric,"ha","acres") -> acres | EZ53: TRUE
EZ54: FALSE
A55: Heaps | B55: HEAP LEACH FACILITIES | J55: =SumByColor(J56,J56:J64) -> 0 | K55: =SumByColor(K56,K56:K64) -> 0 | Q55: =SumByColor(Q56,Q56:Q64) -> 0 | T55: =SumByColor(T56,T56:T64) -> 0 | U55: 0 | V55: 0 | W55: 0 | X55: 0 | Y55: 0 | Z55: 0 | AA55: 0 | AB55: 0 | AC55: 0 | AD55: 0 | AE55: 0 | AF55: 0 | AG55: 0 | AH55: 0 | AI55: 0 | AJ55: 0 | AK55: 0 | AL55: 0 | AM55: 0 | AN55: 0 | AO55: 0 | AP55: 0 | AQ55: 0 | AR55: 0 | AS55: 0 | AT55: 0 | AU55: 0 | AV55: 0 | AW55: 0 | AX55: 0 | AY55: 0 | AZ55: =SumByColor(AZ56,AZ56:AZ64) -> 0 | BA55: 0 | BB55: 0 | BC55: 0 | BD55: 0 | BE55: 0 | BF55: 0 | BG55: 0 | BH55: 0 | BI55: 0 | BJ55: 0 | BK55: 0 | BL55: 0 | BM55: 0 | BN55: 0 | BO55: 0 | BP55: 0 | BQ55: 0 | BR55: 0 | BS55: 0 | BT55: 0 | BU55: 0 | BV55: 0 | BW55: 0 | BX55: 0 | BY55: 0 | BZ55: 0 | CA55: 0 | CB55: 0 | CC55: 0 | CD55: 0 | CE55: 0 | CF55: =SumByColor(CF56,CF56:CF64) -> 0 | CG55: 0 | CH55: 0 | CI55: 0 | CJ55: 0 | CK55: 0 | CL55: 0 | CM55: 0 | CN55: 0 | CO55: 0 | CP55: 0 | CQ55: 0 | CR55: 0 | CS55: 0 | CT55: 0 | CU55: 0 | CV55: 0 | CW55: 0 | CX55: 0 | CY55: 0 | CZ55: 0 | DA55: 0 | DB55: 0 | DC55: 0 | DD55: 0 | DE55: 0 | DF55: 0 | DG55: 0 | DH55: 0 | DI55: 0 | DJ55: 0 | DK55: 0 | DL55: =SumByColor(DL56,DL56:DL64) -> 0 | DM55: 0 | DN55: 0 | DO55: 0 | EB55: =SumByColor(EB56,EB56:EB64) -> 0 | EC55: =SumByColor(EC56,EC56:EC64) -> 0 | EZ55: FALSE
B56: =(ROW(B56) - ROW($B$55)-1)/INDEX(SheetRangeIndex,MATCH($A$55,TableNamesSorted,0),7) -> 0 | C56: =INDEX(INDIRECT("_"&$A$55&"Table1"),B56+1,9) -> 0 | D56: =INDEX(INDIRECT("_"&$A$55&"Table1"),B56+1,2) -> 0 | E56: =IF(ISBLANK(INDEX(INDIRECT("_"&$A$55&"Table1"),B56+1,3)),"",INDEX(INDIRECT("_"&$A$55&"Table1"),B56+1,3)) ->  | F56: =IF(ISERROR(EL56),"Facility Type",IF(ISBLANK(INDEX(INDIRECT("_"&$A$55&"Table1"),B56+1,5)),"",INDEX(INDIRECT("_"&$A$55&"Table1"),B56+1,5))) ->  | G56: =INDEX(INDIRECT("_"&$A$55&"Table1"),B56+1,6) -> 0 | H56: =INDEX(INDIRECT("_"&$A$55&"Table1"),B56+1,7) -> 0 | I56: =INDEX(INDIRECT("_"&$A$55&"Table1"),B56+1,8) -> 0 | J56: =SUM(J57:J63) -> 0 | K56: =IF(ISERR(ED56),"Cost Type",IF(A56="X","Override",IF(AND(CostType=ARO,L56>ScheduleYear),"Date Range",IF(AND(ISTEXT(LocationFilter),ISERROR(EI56)),"Location",IF(AND(ISTEXT(PropertyFilter),ISERROR(EJ56)),"Property",IF(AND(ISTEXT(FacilityTypeFilter),ISERROR(EG56)),"Facility Type",IF(AND(NOT(ISBLANK(IDCodeFilter)),ISERROR(EF56)),"ID Code",IF(AND(ISTEXT(PhaseFilter),ISERROR(EH56)),"Phase",IF(AND(CostType=LOM,LOMComplete),J56,SUM(T56:DO56)))))))))) -> Cost Type | L56: =INDEX(INDIRECT("_"&$A$55&"Table1"),B56+1,4) -> 0 | Q56: =SUM(Q57:Q63) -> 0 | T56: =IF(ISTEXT($EB56),0,IF(AND(CostType=LOM,LOMComplete,T$27<=ScheduleYear),SUMPRODUCT(T57:T63,$J57:$J63),IF(CostType=Bond,SUMPRODUCT($EB57:$EB63,T57:T63,$EA57:$EA63),IF(T$27<=ScheduleYear,0,SUMPRODUCT(T57:T63,$EB57:$EB63))))) -> 0 | U56: 0 | V56: 0 | W56: 0 | X56: 0 | Y56: 0 | Z56: 0 | AA56: 0 | AB56: 0 | AC56: 0 | AD56: 0 | AE56: 0 | AF56: 0 | AG56: 0 | AH56: 0 | AI56: 0 | AJ56: 0 | AK56: 0 | AL56: 0 | AM56: 0 | AN56: 0 | AO56: 0 | AP56: 0 | AQ56: 0 | AR56: 0 | AS56: 0 | AT56: 0 | AU56: 0 | AV56: 0 | AW56: 0 | AX56: 0 | AY56: 0 | AZ56: =IF(ISTEXT($EB56),0,IF(AND(CostType=LOM,LOMComplete,AZ$27<=ScheduleYear),SUMPRODUCT(AZ57:AZ63,$J57:$J63),IF(CostType=Bond,SUMPRODUCT($EB57:$EB63,AZ57:AZ63,$EA57:$EA63),IF(AZ$27<=ScheduleYear,0,SUMPRODUCT(AZ57:AZ63,$EB57:$EB63))))) -> 0 | BA56: 0 | BB56: 0 | BC56: 0 | BD56: 0 | BE56: 0 | BF56: 0 | BG56: 0 | BH56: 0 | BI56: 0 | BJ56: 0 | BK56: 0 | BL56: 0 | BM56: 0 | BN56: 0 | BO56: 0 | BP56: 0 | BQ56: 0 | BR56: 0 | BS56: 0 | BT56: 0 | BU56: 0 | BV56: 0 | BW56: 0 | BX56: 0 | BY56: 0 | BZ56: 0 | CA56: 0 | CB56: 0 | CC56: 0 | CD56: 0 | CE56: 0 | CF56: =IF(ISTEXT($EB56),0,IF(AND(CostType=LOM,LOMComplete,CF$27<=ScheduleYear),SUMPRODUCT(CF57:CF63,$J57:$J63),IF(CostType=Bond,SUMPRODUCT($EB57:$EB63,CF57:CF63,$EA57:$EA63),IF(CF$27<=ScheduleYear,0,SUMPRODUCT(CF57:CF63,$EB57:$EB63))))) -> 0 | CG56: 0 | CH56: 0 | CI56: 0 | CJ56: 0 | CK56: 0 | CL56: 0 | CM56: 0 | CN56: 0 | CO56: 0 | CP56: 0 | CQ56: 0 | CR56: 0 | CS56: 0 | CT56: 0 | CU56: 0 | CV56: 0 | CW56: 0 | CX56: 0 | CY56: 0 | CZ56: 0 | DA56: 0 | DB56: 0 | DC56: 0 | DD56: 0 | DE56: 0 | DF56: 0 | DG56: 0 | DH56: 0 | DI56: 0 | DJ56: 0 | DK56: 0 | DL56: =IF(ISTEXT($EB56),0,IF(AND(CostType=LOM,LOMComplete,DL$27<=ScheduleYear),SUMPRODUCT(DL57:DL63,$J57:$J63),IF(CostType=Bond,SUMPRODUCT($EB57:$EB63,DL57:DL63,$EA57:$EA63),IF(DL$27<=ScheduleYear,0,SUMPRODUCT(DL57:DL63,$EB57:$EB63))))) -> 0 | DM56: 0 | DN56: 0 | DO56: 0 | DP56: =IF(ISNUMBER(K56),SUM(T56:DO56)-K56,K56) -> Cost Type | EB56: =IF(ISERR(ED56),"Cost Type",IF(A56="X","Override",IF(AND(CostType=ARO,L56>ScheduleYear),0,IF(AND(ISTEXT(LocationFilter),ISERROR(EI56)),"Location",IF(AND(ISTEXT(PropertyFilter),ISERROR(EJ56)),"Property",IF(AND(ISTEXT(FacilityTypeFilter),ISERROR(EG56)),"Facility Type",IF(AND(ISTEXT(IDCodeFilter),ISERROR(EF56)),"ID Code",IF(AND(ISTEXT(PhaseFilter),ISERROR(EH56)),"Phase",J56)))))))) -> Cost Type | EC56: =IF(EE56="","Cost Type",IF(A56="X","Override",IF(AND(OtherCostType=ARO,L56>ScheduleYear),0,IF(AND(ISTEXT(LocationFilter),EI56=""),"Location",IF(AND(ISTEXT(PropertyFilter),EJ56=""),"Property",IF(AND(ISTEXT(FacilityTypeFilter),EG56=""),"Facility Type",IF(AND(ISTEXT(IDCodeFilter),EF56=""),"ID Code",IF(AND(ISTEXT(PhaseFilter),EH56=""),"Phase",J56)))))))) ->  | ED56: =SEARCH(CostType,C56) ->  | EE56: =SEARCH(OtherCostType,C56) ->  | EF56: =IF(AND(IDCodeFilterType="CONTAINS",NOT(ISERROR(SEARCH(IDCodeFilter,E56)))),1,IF(AND(IDCodeFilterType="NOT",ISERROR(SEARCH(IDCodeFilter,E56))),1,IF(AND(OR(IDCodeFilterType="EXACT",ISBLANK(IDCodeFilterType)),NOT(ISERROR(MATCH(IDCodeFilter,E56,0)))),1,$EK56))) ->  | EG56: =IF(AND(FacilityFilterType="CONTAINS",NOT(ISERROR(SEARCH(FacilityTypeFilter,F56)))),1,IF(AND(FacilityFilterType="NOT",ISERROR(SEARCH(FacilityTypeFilter,F56))),1,IF(AND(OR(FacilityFilterType="EXACT",ISBLANK(FacilityFilterType)),NOT(ISERROR(MATCH(FacilityTypeFilter,F56,0)))),1,$EK56))) ->  | EH56: =IF(AND(PhaseFilterType="CONTAINS",NOT(ISERROR(SEARCH(PhaseFilter,G56)))),1,IF(AND(PhaseFilterType="NOT",ISERROR(SEARCH(PhaseFilter,G56))),1,IF(AND(OR(PhaseFilterType="EXACT",ISBLANK(PhaseFilterType)),NOT(ISERROR(MATCH(PhaseFilter,G56,0)))),1,$EK56))) -> 1 | EI56: =IF(AND(LocationFilterType="CONTAINS",NOT(ISERROR(SEARCH(LocationFilter,H56)))),1,IF(AND(LocationFilterType="NOT",ISERROR(SEARCH(LocationFilter,H56))),1,IF(AND(OR(LocationFilterType="EXACT",ISBLANK(LocationFilterType)),NOT(ISERROR(MATCH(LocationFilter,H56,0)))),1,$EK56))) -> 1 | EJ56: =IF(AND(PropertyFilterType="CONTAINS",NOT(ISERROR(SEARCH(PropertyFilter,I56)))),1,IF(AND(PropertyFilterType="NOT",ISERROR(SEARCH(PropertyFilter,I56))),1,IF(AND(OR(PropertyFilterType="EXACT",ISBLANK(PropertyFilterType)),NOT(ISERROR(MATCH(PropertyFilter,I56,0)))),1,$EK56))) -> 1 | EK56: =MATCH("NOT",$EK$27,0) ->  | EL56: =IF(ISBLANK(INDEX(INDIRECT("_"&$A$55&"Table1"),B56+1,2)),"",MATCH(INDEX(INDIRECT("_"&$A$55&"Table1"),B56+1,5),Accounts,0)) ->  | EZ56: FALSE | FA56: 1
D57: Drainage Installation | J57: =IF(INDEX(INDIRECT("_"&$A$55&"Table5"),B56+1,16)=0,0,INDEX(INDIRECT("_"&$A$55&"Table5"),B56+1,16)) -> 0 | K57: =IF(OR(J57="",K56="",ISTEXT(K56),J57=0),"",IF(OR(ISBLANK(M57),ISBLANK(N57)),"Enter Dates",IF(K56="Date Range","",IF(OR(AND(CostType=ARO,L56>ScheduleYear),AND(CostType=ARO,N57<=ScheduleYear)),"Date Range",IF(OR(AND(CostType=Bond,O57>ScheduleYear),AND(CostType=LOM,LOMComplete)),J57,J57-Q57))))) ->  | P57: =IF(K57="","",SUM(T57:DO57)) ->  | Q57: =IF(OR(AND(CostType=ARO,N57<=ScheduleYear),AND(CostType=LOM,LOMComplete)),J57*R57,R57*EB57) -> 0 | R57: =IF(CostType=Bond,SUMIFS(T57:DP57,T$27:DP$27,"<="&O57,T$27:DP$27,"<="&ScheduleYear),SUMIF(T$27:DP$27,"<="&ScheduleYear,T57:DP57)) -> 0 | EA57: =IF(OR(ISBLANK($O57),$O57>ScheduleYear),1,0) -> 1 | EB57: =IF(OR(J57="",EB56="",ISTEXT(EB56)),0,IF(OR(ISBLANK(M57),ISBLANK(N57)),0,IF(OR(AND(CostType=ARO,L56>ScheduleYear),AND(OR(CostType=ARO,AND(CostType=LOM,LOMComplete=TRUE)),N57<=ScheduleYear)),0,J57))) -> 0 | EC57: =IF(OR(J57="",EC56="",ISTEXT(EC56)),0,IF(OR(ISBLANK(M57),ISBLANK(N57)),0,IF(EC56="Date Range",0,IF(OR(AND(OtherCostType=ARO,L56>ScheduleYear),N57<=ScheduleYear),0,J57)))) ->  | EM57: Backfill | EN57: Backfill | EO57: =IF(ISNUMBER(K57),IF(INDEX(INDIRECT("_"&$A$55&"Table5"),B56+1,3)=0,0,INDEX(INDIRECT("_"&$A$55&"Table5"),B56+1,3)),0) -> 0 | EP57: =IF(Metric,"m3","cy") -> cy | EQ57: =INDEX(INDIRECT("_"&$A$55&"Table5"),B56+1,4) ->  | ER57: =IF(OR(NOT(ISNUMBER(K57)),K57=0),0,INDEX(INDIRECT("_"&$A$55&"Table5"),B56+1,6)) -> 0 | ES57: =IF(OR(NOT(ISNUMBER(K57)),K57=0),0,INDEX(INDIRECT("_"&$A$55&"Table5"),B56+1,7)) -> 0 | EZ57: TRUE
D58: Regrading | J58: =IF(INDEX(INDIRECT("_"&$A$55&"Table6"),B56+1,15)=0,0,INDEX(INDIRECT("_"&$A$55&"Table6"),B56+1,15)) -> 0 | K58: =IF(OR(J58="",K56="",ISTEXT(K56),J58=0),"",IF(OR(ISBLANK(M58),ISBLANK(N58)),"Enter Dates",IF(K56="Date Range","",IF(OR(AND(CostType=ARO,L56>ScheduleYear),AND(CostType=ARO,N58<=ScheduleYear)),"Date Range",IF(OR(AND(CostType=Bond,O58>ScheduleYear),AND(CostType=LOM,LOMComplete)),J58,J58-Q58))))) ->  | Q58: 0 | R58: 0 | EA58: 1 | EB58: =IF(OR(J58="",EB56="",ISTEXT(EB56)),0,IF(OR(ISBLANK(M58),ISBLANK(N58)),0,IF(OR(AND(CostType=ARO,L56>ScheduleYear),AND(OR(CostType=ARO,AND(CostType=LOM,LOMComplete=TRUE)),N58<=ScheduleYear)),0,J58))) -> 0 | EC58: =IF(OR(J58="",EC56="",ISTEXT(EC56)),0,IF(OR(ISBLANK(M58),ISBLANK(N58)),0,IF(EC56="Date Range",0,IF(OR(AND(CostType=ARO,L56>ScheduleYear),N58<=ScheduleYear),0,J58)))) ->  | EM58: Regrade | EN58: Regrade | EO58: =IF(ISNUMBER(K58),IF(INDEX(INDIRECT("_"&$A$55&"Table6"),B56+1,3)=0,0,INDEX(INDIRECT("_"&$A$55&"Table6"),B56+1,3)),0) -> 0 | EP58: =IF(Metric,"m3","cy") -> cy | EQ58: =INDEX(INDIRECT("_"&$A$55&"Table6"),B56+1,5) ->  | ES58: =IF(OR(NOT(ISNUMBER(K58)),K58=0),0,INDEX(INDIRECT("_"&$A$55&"Table6"),B56+1,12)) -> 0 | EZ58: TRUE
D59: Cover 1 Placement | J59: =INDEX(INDIRECT("_"&$A$55&"Table7"),B56+1,25) -> 0 | K59: =IF(OR(J59="",K56="",ISTEXT(K56),J59=0),"",IF(OR(ISBLANK(M59),ISBLANK(N59)),"Enter Dates",IF(K56="Date Range","",IF(OR(AND(CostType=ARO,L56>ScheduleYear),AND(CostType=ARO,N59<=ScheduleYear)),"Date Range",IF(OR(AND(CostType=Bond,O59>ScheduleYear),AND(CostType=LOM,LOMComplete)),J59,J59-Q59))))) ->  | Q59: 0 | R59: 0 | EA59: 1 | EB59: =IF(OR(J59="",EB56="",ISTEXT(EB56)),0,IF(OR(ISBLANK(M59),ISBLANK(N59)),0,IF(OR(AND(CostType=ARO,L56>ScheduleYear),AND(OR(CostType=ARO,AND(CostType=LOM,LOMComplete=TRUE)),N59<=ScheduleYear)),0,J59))) -> 0 | EC59: =IF(OR(J59="",EC56="",ISTEXT(EC56)),0,IF(OR(ISBLANK(M59),ISBLANK(N59)),0,IF(EC56="Date Range",0,IF(OR(AND(CostType=ARO,L56>ScheduleYear),N59<=ScheduleYear),0,J59)))) ->  | EM59: Cover | EN59: Cover | EO59: =IF(ISNUMBER(K59),INDEX(INDIRECT("_"&$A$55&"Table7"),B56+1,4),0) -> 0 | EP59: =IF(Metric,"m3","cy") -> cy | EQ59: =INDEX(INDIRECT("_"&$A$55&"Table7"),B56+1,10) ->  | ER59: =IF(OR(NOT(ISNUMBER(K59)),K59=0),0,INDEX(INDIRECT("_"&$A$55&"Table7"),B56+1,12)) -> 0 | ES59: =IF(OR(NOT(ISNUMBER(K59)),K59=0),0,INDEX(INDIRECT("_"&$A$55&"Table7"),B56+1,14)) -> 0 | ET59: =INDEX(INDIRECT("_"&$A$55&"Table7"),B56+1,5) ->  | EU59: =IF(OR(NOT(ISNUMBER(K59)),K59=0),0,INDEX(INDIRECT("_"&$A$55&"Table7"),B56+1,7)) -> 0 | EV59: =IF(OR(NOT(ISNUMBER(K59)),K59=0),0,INDEX(INDIRECT("_"&$A$55&"Table7"),B56+1,9)) -> 0 | EZ59: TRUE
D60: Cover 2 Placement | J60: =INDEX(INDIRECT("_"&$A$55&"Table8"),B56+1,25) -> 0 | K60: =IF(OR(J60="",K56="",ISTEXT(K56),J60=0),"",IF(OR(ISBLANK(M60),ISBLANK(N60)),"Enter Dates",IF(K56="Date Range","",IF(OR(AND(CostType=ARO,L56>ScheduleYear),AND(CostType=ARO,N60<=ScheduleYear)),"Date Range",IF(OR(AND(CostType=Bond,O60>ScheduleYear),AND(CostType=LOM,LOMComplete)),J60,J60-Q60))))) ->  | Q60: 0 | R60: 0 | EA60: 1 | EB60: =IF(OR(J60="",EB56="",ISTEXT(EB56)),0,IF(OR(ISBLANK(M60),ISBLANK(N60)),0,IF(OR(AND(CostType=ARO,L56>ScheduleYear),AND(OR(CostType=ARO,AND(CostType=LOM,LOMComplete=TRUE)),N60<=ScheduleYear)),0,J60))) -> 0 | EC60: =IF(OR(J60="",EC56="",ISTEXT(EC56)),0,IF(OR(ISBLANK(M60),ISBLANK(N60)),0,IF(EC56="Date Range",0,IF(OR(AND(CostType=ARO,L56>ScheduleYear),N60<=ScheduleYear),0,J60)))) ->  | EM60: Cover | EN60: Cover | EO60: =IF(ISNUMBER(K60),INDEX(INDIRECT("_"&$A$55&"Table8"),B56+1,4),0) -> 0 | EP60: =IF(Metric,"m3","cy") -> cy | EQ60: =INDEX(INDIRECT("_"&$A$55&"Table8"),B56+1,10) ->  | ER60: =IF(OR(NOT(ISNUMBER(K60)),K60=0),0,INDEX(INDIRECT("_"&$A$55&"Table8"),B56+1,12)) -> 0 | ES60: =IF(OR(NOT(ISNUMBER(K60)),K60=0),0,INDEX(INDIRECT("_"&$A$55&"Table8"),B56+1,14)) -> 0 | ET60: =INDEX(INDIRECT("_"&$A$55&"Table8"),B56+1,5) ->  | EU60: =IF(OR(NOT(ISNUMBER(K60)),K60=0),0,INDEX(INDIRECT("_"&$A$55&"Table8"),B56+1,7)) -> 0 | EV60: =IF(OR(NOT(ISNUMBER(K60)),K60=0),0,INDEX(INDIRECT("_"&$A$55&"Table8"),B56+1,9)) -> 0 | EZ60: TRUE
D61: Growth Media Placement | J61: =INDEX(INDIRECT("_"&$A$55&"Table9"),B56+1,11) -> 0 | K61: =IF(OR(J61="",K56="",ISTEXT(K56),J61=0),"",IF(OR(ISBLANK(M61),ISBLANK(N61)),"Enter Dates",IF(K56="Date Range","",IF(OR(AND(CostType=ARO,L56>ScheduleYear),AND(CostType=ARO,N61<=ScheduleYear)),"Date Range",IF(OR(AND(CostType=Bond,O61>ScheduleYear),AND(CostType=LOM,LOMComplete)),J61,J61-Q61))))) ->  | Q61: 0 | R61: 0 | EA61: 1 | EB61: =IF(OR(J61="",EB56="",ISTEXT(EB56)),0,IF(OR(ISBLANK(M61),ISBLANK(N61)),0,IF(OR(AND(CostType=ARO,L56>ScheduleYear),AND(OR(CostType=ARO,AND(CostType=LOM,LOMComplete=TRUE)),N61<=ScheduleYear)),0,J61))) -> 0 | EC61: =IF(OR(J61="",EC56="",ISTEXT(EC56)),0,IF(OR(ISBLANK(M61),ISBLANK(N61)), 0,IF(EC56="Date Range",0,IF(OR(AND(CostType=ARO,L56>ScheduleYear),N61<=ScheduleYear),0,J61)))) ->  | EM61: GM | EN61: GM | EO61: =IF(ISNUMBER(K61),INDEX(INDIRECT("_"&$A$55&"Table9"),B56+1,3),0) -> 0 | EP61: =IF(Metric,"m3","cy") -> cy | EQ61: =INDEX(INDIRECT("_"&$A$55&"Table9"),B56+1,4) ->  | ER61: =IF(OR(NOT(ISNUMBER(K61)),K61=0),0,INDEX(INDIRECT("_"&$A$55&"Table9"),B56+1,6)) -> 0 | ES61: =IF(OR(NOT(ISNUMBER(K61)),K61=0),0,INDEX(INDIRECT("_"&$A$55&"Table9"),B56+1,8)) -> 0 | EZ61: TRUE
D62: Ripping/Scarifying | J62: =INDEX(INDIRECT("_"&$A$55&"Table10"),B56+1,13) -> 0 | K62: =IF(OR(J62="",K56="",ISTEXT(K56),J62=0),"",IF(OR(ISBLANK(M62),ISBLANK(N62)),"Enter Dates",IF(K56="Date Range","",IF(OR(AND(CostType=ARO,L56>ScheduleYear),AND(CostType=ARO,N62<=ScheduleYear)),"Date Range",IF(OR(AND(CostType=Bond,O62>ScheduleYear),AND(CostType=LOM,LOMComplete)),J62,J62-Q62))))) ->  | Q62: 0 | R62: 0 | EA62: 1 | EB62: =IF(OR(J62="",EB56="",ISTEXT(EB56)),0,IF(OR(ISBLANK(M62),ISBLANK(N62)),0,IF(OR(AND(CostType=ARO,L56>ScheduleYear),AND(OR(CostType=ARO,AND(CostType=LOM,LOMComplete=TRUE)),N62<=ScheduleYear)),0,J62))) -> 0 | EC62: =IF(OR(J62="",EC56="",ISTEXT(EC56)),0,IF(OR(ISBLANK(M62),ISBLANK(N62)), 0,IF(EC56="Date Range",0,IF(OR(AND(CostType=ARO,L56>ScheduleYear),N62<=ScheduleYear),0,J62)))) ->  | EM62: Rip | EN62: Rip | EO62: =IF(ISNUMBER(K62),INDEX(INDIRECT("_"&$A$55&"Table10"),B56+1,5),0) -> 0 | EP62: =IF(Metric,"ha","acres") -> acres | EQ62: =INDEX(INDIRECT("_"&$A$55&"Table10"),B56+1,8) ->  | ES62: =IF(OR(NOT(ISNUMBER(K62)),K62=0),0,INDEX(INDIRECT("_"&$A$55&"Table10"),B56+1,9)+INDEX(INDIRECT("_"&$A$55&"Table10"),B56+1,10)) -> 0 | EZ62: TRUE
D63: Revegetation | J63: =INDEX(INDIRECT("_"&$A$55&"Table10"),B56+1,17) -> 0 | K63: =IF(OR(J63="",K56="",ISTEXT(K56),J63=0),"",IF(OR(ISBLANK(M63),ISBLANK(N63)),"Enter Dates",IF(K56="Date Range","",IF(OR(AND(CostType=ARO,L56>ScheduleYear),AND(CostType=ARO,N63<=ScheduleYear)),"Date Range",IF(OR(AND(CostType=Bond,O63>ScheduleYear),AND(CostType=LOM,LOMComplete)),J63,J63-Q63))))) ->  | Q63: 0 | R63: 0 | EA63: 1 | EB63: =IF(OR(J63="",EB56="",ISTEXT(EB56)),0,IF(OR(ISBLANK(M63),ISBLANK(N63)),0,IF(OR(AND(CostType=ARO,L56>ScheduleYear),AND(OR(CostType=ARO,AND(CostType=LOM,LOMComplete=TRUE)),N63<=ScheduleYear)),0,J63))) -> 0 | EC63: =IF(OR(J63="",EC57="",ISTEXT(EC57)),0,IF(OR(ISBLANK(M63),ISBLANK(N63)), 0,IF(EC57="Date Range",0,IF(OR(AND(CostType=ARO,L56>ScheduleYear),N63<=ScheduleYear),0,J63)))) ->  | EM63: Reveg | EN63: Reveg | EO63: =IF(ISNUMBER(K63),INDEX(INDIRECT("_"&$A$55&"Table10"),B56+1,5),0) -> 0 | EP63: =IF(Metric,"ha","acres") -> acres | EZ63: TRUE
EZ64: FALSE
A65: Pits | B65: PITS | J65: =SumByColor(J66,J66:J69) -> 0 | K65: =SumByColor(K66,K66:K69) -> 0 | Q65: =SumByColor(Q66,Q66:Q69) -> 0 | T65: =SumByColor(T66,T66:T69) -> 0 | U65: 0 | V65: 0 | W65: 0 | X65: 0 | Y65: 0 | Z65: 0 | AA65: 0 | AB65: 0 | AC65: 0 | AD65: 0 | AE65: 0 | AF65: 0 | AG65: 0 | AH65: 0 | AI65: 0 | AJ65: 0 | AK65: 0 | AL65: 0 | AM65: 0 | AN65: 0 | AO65: 0 | AP65: 0 | AQ65: 0 | AR65: 0 | AS65: 0 | AT65: 0 | AU65: 0 | AV65: 0 | AW65: 0 | AX65: 0 | AY65: 0 | AZ65: =SumByColor(AZ66,AZ66:AZ69) -> 0 | BA65: 0 | BB65: 0 | BC65: 0 | BD65: 0 | BE65: 0 | BF65: 0 | BG65: 0 | BH65: 0 | BI65: 0 | BJ65: 0 | BK65: 0 | BL65: 0 | BM65: 0 | BN65: 0 | BO65: 0 | BP65: 0 | BQ65: 0 | BR65: 0 | BS65: 0 | BT65: 0 | BU65: 0 | BV65: 0 | BW65: 0 | BX65: 0 | BY65: 0 | BZ65: 0 | CA65: 0 | CB65: 0 | CC65: 0 | CD65: 0 | CE65: 0 | CF65: =SumByColor(CF66,CF66:CF69) -> 0 | CG65: 0 | CH65: 0 | CI65: 0 | CJ65: 0 | CK65: 0 | CL65: 0 | CM65: 0 | CN65: 0 | CO65: 0 | CP65: 0 | CQ65: 0 | CR65: 0 | CS65: 0 | CT65: 0 | CU65: 0 | CV65: 0 | CW65: 0 | CX65: 0 | CY65: 0 | CZ65: 0 | DA65: 0 | DB65: 0 | DC65: 0 | DD65: 0 | DE65: 0 | DF65: 0 | DG65: 0 | DH65: 0 | DI65: 0 | DJ65: 0 | DK65: 0 | DL65: =SumByColor(DL66,DL66:DL69) -> 0 | DM65: 0 | DN65: 0 | DO65: 0 | EB65: =SumByColor(EB66,EB66:EB69) -> 0 | EC65: =SumByColor(EC66,EC66:EC69) -> 0 | EZ65: FALSE
B66: =(ROW(B66) - ROW($A$65)-1)/INDEX(SheetRangeIndex,MATCH($A$65,TableNamesSorted,0),7) -> 0 | C66: =INDEX(INDIRECT("_"&$A$65&"Table1"),B66+1,9) -> 0 | D66: =INDEX(INDIRECT("_"&$A$65&"Table1"),B66+1,2) -> 0 | E66: =IF(ISBLANK(INDEX(INDIRECT("_"&$A$65&"Table1"),B66+1,3)),"",INDEX(INDIRECT("_"&$A$65&"Table1"),B66+1,3)) ->  | F66: =IF(ISERROR(EL66),"Facility Type",IF(ISBLANK(INDEX(INDIRECT("_"&$A$65&"Table1"),B66+1,5)),"",INDEX(INDIRECT("_"&$A$65&"Table1"),B66+1,5))) ->  | G66: =IF(ISBLANK(INDEX(INDIRECT("_"&$A$65&"Table1"),B66+1,6)),"",INDEX(INDIRECT("_"&$A$65&"Table1"),B66+1,6)) ->  | H66: =IF(ISBLANK(INDEX(INDIRECT("_"&$A$65&"Table1"),B66+1,7)),"",INDEX(INDIRECT("_"&$A$65&"Table1"),B66+1,7)) ->  | I66: =IF(ISBLANK(INDEX(INDIRECT("_"&$A$65&"Table1"),B66+1,8)),"",INDEX(INDIRECT("_"&$A$65&"Table1"),B66+1,8)) ->  | J66: =SUM(J67:J68) -> 0 | K66: =IF(ISERR(ED66),"Cost Type",IF(A66="X","Override",IF(AND(CostType=ARO,L66>ScheduleYear),"Date Range",IF(AND(ISTEXT(LocationFilter),ISERROR(EI66)),"Location",IF(AND(ISTEXT(PropertyFilter),ISERROR(EJ66)),"Property",IF(AND(ISTEXT(FacilityTypeFilter),ISERROR(EG66)),"Facility Type",IF(AND(NOT(ISBLANK(IDCodeFilter)),ISERROR(EF66)),"ID Code",IF(AND(ISTEXT(PhaseFilter),ISERROR(EH66)),"Phase",IF(AND(CostType=LOM,LOMComplete),J66,SUM(T66:DO66)))))))))) -> Cost Type | L66: =INDEX(INDIRECT("_"&$A$65&"Table1"),B66+1,4) -> 0 | Q66: =SUM(Q67:Q68) -> 0 | T66: =IF(ISTEXT($EB66),0,IF(AND(CostType=LOM,LOMComplete,T$27<=ScheduleYear),SUMPRODUCT(T67:T68,$J67:$J68),IF(CostType=Bond,SUMPRODUCT($EB67:$EB68,T67:T68,$EA67:$EA68),IF(T$27<=ScheduleYear,0,SUMPRODUCT(T67:T68,$EB67:$EB68))))) -> 0 | U66: 0 | V66: 0 | W66: 0 | X66: 0 | Y66: 0 | Z66: 0 | AA66: 0 | AB66: 0 | AC66: 0 | AD66: 0 | AE66: 0 | AF66: 0 | AG66: 0 | AH66: 0 | AI66: 0 | AJ66: 0 | AK66: 0 | AL66: 0 | AM66: 0 | AN66: 0 | AO66: 0 | AP66: 0 | AQ66: 0 | AR66: 0 | AS66: 0 | AT66: 0 | AU66: 0 | AV66: 0 | AW66: 0 | AX66: 0 | AY66: 0 | AZ66: =IF(ISTEXT($EB66),0,IF(AND(CostType=LOM,LOMComplete,AZ$27<=ScheduleYear),SUMPRODUCT(AZ67:AZ68,$J67:$J68),IF(CostType=Bond,SUMPRODUCT($EB67:$EB68,AZ67:AZ68,$EA67:$EA68),IF(AZ$27<=ScheduleYear,0,SUMPRODUCT(AZ67:AZ68,$EB67:$EB68))))) -> 0 | BA66: 0 | BB66: 0 | BC66: 0 | BD66: 0 | BE66: 0 | BF66: 0 | BG66: 0 | BH66: 0 | BI66: 0 | BJ66: 0 | BK66: 0 | BL66: 0 | BM66: 0 | BN66: 0 | BO66: 0 | BP66: 0 | BQ66: 0 | BR66: 0 | BS66: 0 | BT66: 0 | BU66: 0 | BV66: 0 | BW66: 0 | BX66: 0 | BY66: 0 | BZ66: 0 | CA66: 0 | CB66: 0 | CC66: 0 | CD66: 0 | CE66: 0 | CF66: =IF(ISTEXT($EB66),0,IF(AND(CostType=LOM,LOMComplete,CF$27<=ScheduleYear),SUMPRODUCT(CF67:CF68,$J67:$J68),IF(CostType=Bond,SUMPRODUCT($EB67:$EB68,CF67:CF68,$EA67:$EA68),IF(CF$27<=ScheduleYear,0,SUMPRODUCT(CF67:CF68,$EB67:$EB68))))) -> 0 | CG66: 0 | CH66: 0 | CI66: 0 | CJ66: 0 | CK66: 0 | CL66: 0 | CM66: 0 | CN66: 0 | CO66: 0 | CP66: 0 | CQ66: 0 | CR66: 0 | CS66: 0 | CT66: 0 | CU66: 0 | CV66: 0 | CW66: 0 | CX66: 0 | CY66: 0 | CZ66: 0 | DA66: 0 | DB66: 0 | DC66: 0 | DD66: 0 | DE66: 0 | DF66: 0 | DG66: 0 | DH66: 0 | DI66: 0 | DJ66: 0 | DK66: 0 | DL66: =IF(ISTEXT($EB66),0,IF(AND(CostType=LOM,LOMComplete,DL$27<=ScheduleYear),SUMPRODUCT(DL67:DL68,$J67:$J68),IF(CostType=Bond,SUMPRODUCT($EB67:$EB68,DL67:DL68,$EA67:$EA68),IF(DL$27<=ScheduleYear,0,SUMPRODUCT(DL67:DL68,$EB67:$EB68))))) -> 0 | DM66: 0 | DN66: 0 | DO66: 0 | DP66: =IF(ISNUMBER(K66),SUM(T66:DO66)-K66,K66) -> Cost Type | EB66: =IF(ISERR(ED66),"Cost Type",IF(A66="X","Override",IF(AND(CostType=ARO,L66>ScheduleYear),0,IF(AND(ISTEXT(LocationFilter),ISERROR(EI66)),"Location",IF(AND(ISTEXT(PropertyFilter),ISERROR(EJ66)),"Property",IF(AND(ISTEXT(FacilityTypeFilter),ISERROR(EG66)),"Facility Type",IF(AND(ISTEXT(IDCodeFilter),ISERROR(EF66)),"ID Code",IF(AND(ISTEXT(PhaseFilter),ISERROR(EH66)),"Phase",J66)))))))) -> Cost Type | EC66: =IF(EE66="","Cost Type",IF(A66="X","Override",IF(AND(OtherCostType=ARO,L66>ScheduleYear),0,IF(AND(ISTEXT(LocationFilter),EI66=""),"Location",IF(AND(ISTEXT(PropertyFilter),EJ66=""),"Property",IF(AND(ISTEXT(FacilityTypeFilter),EG66=""),"Facility Type",IF(AND(ISTEXT(IDCodeFilter),EF66=""),"ID Code",IF(AND(ISTEXT(PhaseFilter),EH66=""),"Phase",J66)))))))) ->  | ED66: =SEARCH(CostType,C66) ->  | EE66: =SEARCH(OtherCostType,C66) ->  | EF66: =IF(AND(IDCodeFilterType="CONTAINS",NOT(ISERROR(SEARCH(IDCodeFilter,E66)))),1,IF(AND(IDCodeFilterType="NOT",ISERROR(SEARCH(IDCodeFilter,E66))),1,IF(AND(OR(IDCodeFilterType="EXACT",ISBLANK(IDCodeFilterType)),NOT(ISERROR(MATCH(IDCodeFilter,E66,0)))),1,$EK66))) ->  | EG66: =IF(AND(FacilityFilterType="CONTAINS",NOT(ISERROR(SEARCH(FacilityTypeFilter,F66)))),1,IF(AND(FacilityFilterType="NOT",ISERROR(SEARCH(FacilityTypeFilter,F66))),1,IF(AND(OR(FacilityFilterType="EXACT",ISBLANK(FacilityFilterType)),NOT(ISERROR(MATCH(FacilityTypeFilter,F66,0)))),1,$EK66))) ->  | EH66: =IF(AND(PhaseFilterType="CONTAINS",NOT(ISERROR(SEARCH(PhaseFilter,G66)))),1,IF(AND(PhaseFilterType="NOT",ISERROR(SEARCH(PhaseFilter,G66))),1,IF(AND(OR(PhaseFilterType="EXACT",ISBLANK(PhaseFilterType)),NOT(ISERROR(MATCH(PhaseFilter,G66,0)))),1,$EK66))) ->  | EI66: =IF(AND(LocationFilterType="CONTAINS",NOT(ISERROR(SEARCH(LocationFilter,H66)))),1,IF(AND(LocationFilterType="NOT",ISERROR(SEARCH(LocationFilter,H66))),1,IF(AND(OR(LocationFilterType="EXACT",ISBLANK(LocationFilterType)),NOT(ISERROR(MATCH(LocationFilter,H66,0)))),1,$EK66))) ->  | EJ66: =IF(AND(PropertyFilterType="CONTAINS",NOT(ISERROR(SEARCH(PropertyFilter,I66)))),1,IF(AND(PropertyFilterType="NOT",ISERROR(SEARCH(PropertyFilter,I66))),1,IF(AND(OR(PropertyFilterType="EXACT",ISBLANK(PropertyFilterType)),NOT(ISERROR(MATCH(PropertyFilter,I66,0)))),1,$EK66))) ->  | EK66: =MATCH("NOT",$EK$27,0) ->  | EL66: =IF(ISBLANK(INDEX(INDIRECT("_"&$A$65&"Table1"),B66+1,2)),"",MATCH(INDEX(INDIRECT("_"&$A$65&"Table1"),B66+1,5),Accounts,0)) ->  | EZ66: FALSE | FA66: 1
D67: Berm Construction | J67: =INDEX(INDIRECT("_"&$A$65&"Table2"),B66+1,11) -> 0 | K67: =IF(OR(J67="",K66="",ISTEXT(K66),J67=0),"",IF(OR(ISBLANK(M67),ISBLANK(N67)),"Enter Dates",IF(K66="Date Range","",IF(OR(AND(CostType=ARO,L66>ScheduleYear),AND(CostType=ARO,N67<=ScheduleYear)),"Date Range",IF(OR(AND(CostType=Bond,O67>ScheduleYear),AND(CostType=LOM,LOMComplete)),J67,J67-Q67))))) ->  | P67: =IF(K67="","",SUM(T67:DO67)) ->  | Q67: =IF(OR(AND(CostType=ARO,N67<=ScheduleYear),AND(CostType=LOM,LOMComplete)),J67*R67,R67*EB67) -> 0 | R67: =IF(CostType=Bond,SUMIFS(T67:DP67,T$27:DP$27,"<="&O67,T$27:DP$27,"<="&ScheduleYear),SUMIF(T$27:DP$27,"<="&ScheduleYear,T67:DP67)) -> 0 | EA67: =IF(OR(ISBLANK($O67),$O67>ScheduleYear),1,0) -> 1 | EB67: =IF(OR(J67="",EB66="",ISTEXT(EB66)),0,IF(OR(ISBLANK(M67),ISBLANK(N67)),0,IF(OR(AND(CostType=ARO,L66>ScheduleYear),AND(OR(CostType=ARO,AND(CostType=LOM,LOMComplete=TRUE)),N67<=ScheduleYear)),0,J67))) -> 0 | EC67: =IF(OR(J67="",EC66="",ISTEXT(EC66)),0,IF(OR(ISBLANK(M67),ISBLANK(N67)),0,IF(EC66="Date Range",0,IF(OR(AND(OtherCostType=ARO,L66>ScheduleYear),N67<=ScheduleYear),0,J67)))) ->  | EM67: Backfill | EN67: Backfill | EO67: =IF(ISNUMBER(K67),IF(INDEX(INDIRECT("_"&$A$65&"Table2"),B66+1,3)=0,0,INDEX(INDIRECT("_"&$A$65&"Table2"),B66+1,3)),0) -> 0 | EP67: =IF(Metric,"m3","cy") -> cy | EQ67: =INDEX(INDIRECT("_"&$A$65&"Table2"),B66+1,4) ->  | ER67: =IF(OR(NOT(ISNUMBER(K67)),K67=0),0,INDEX(INDIRECT("_"&$A$65&"Table2"),B66+1,6)) -> 0 | ES67: =IF(OR(NOT(ISNUMBER(K67)),K67=0),0,INDEX(INDIRECT("_"&$A$65&"Table2"),B66+1,8)) -> 0 | EZ67: TRUE
D68: Berm Revegetation | J68: =INDEX(INDIRECT("_"&$A$65&"Table3"),B66+1,7) -> 0 | K68: =IF(OR(J68="",K66="",ISTEXT(K66),J68=0),"",IF(OR(ISBLANK(M68),ISBLANK(N68)),"Enter Dates",IF(K66="Date Range","",IF(OR(AND(CostType=ARO,L66>ScheduleYear),AND(CostType=ARO,N68<=ScheduleYear)),"Date Range",IF(OR(AND(CostType=Bond,O68>ScheduleYear),AND(CostType=LOM,LOMComplete)),J68,J68-Q68))))) ->  | P68: =IF(K68="","",SUM(T68:DO68)) ->  | Q68: =IF(OR(AND(CostType=ARO,N68<=ScheduleYear),AND(CostType=LOM,LOMComplete)),J68*R68,R68*EB68) -> 0 | R68: =IF(CostType=Bond,SUMIFS(T68:DP68,T$27:DP$27,"<="&O68,T$27:DP$27,"<="&ScheduleYear),SUMIF(T$27:DP$27,"<="&ScheduleYear,T68:DP68)) -> 0 | EA68: =IF(OR(ISBLANK($O68),$O68>ScheduleYear),1,0) -> 1 | EB68: =IF(OR(J68="",EB66="",ISTEXT(EB66)),0,IF(OR(ISBLANK(M68),ISBLANK(N68)),0,IF(OR(AND(CostType=ARO,L66>ScheduleYear),AND(OR(CostType=ARO,AND(CostType=LOM,LOMComplete=TRUE)),N68<=ScheduleYear)),0,J68))) -> 0 | EC68: =IF(OR(J68="",EC66="",ISTEXT(EC66)),0,IF(OR(ISBLANK(M68),ISBLANK(N68)),0,IF(EC66="Date Range",0,IF(OR(AND(CostType=ARO,L66>ScheduleYear),N68<=ScheduleYear),0,J68)))) ->  | EM68: Reveg | EN68: Reveg | EO68: =IF(ISNUMBER(K68),IF(INDEX(INDIRECT("_"&$A$65&"Table3"),B66+1,3)=0,0,INDEX(INDIRECT("_"&$A$65&"Table3"),B66+1,3)),0) -> 0 | EP68: =IF(Metric,"ha","acres") -> acres | EZ68: TRUE
EZ69: FALSE
A70: Quarry | B70: QUARRIES & BORROW PITS | J70: =SumByColor(J71,J71:J80) -> 0 | K70: =SumByColor(K71,K71:K80) -> 0 | Q70: =SumByColor(Q71,Q71:Q80) -> 0 | T70: =SumByColor(T71,T71:T80) -> 0 | U70: 0 | V70: 0 | W70: 0 | X70: 0 | Y70: 0 | Z70: 0 | AA70: 0 | AB70: 0 | AC70: 0 | AD70: 0 | AE70: 0 | AF70: 0 | AG70: 0 | AH70: 0 | AI70: 0 | AJ70: 0 | AK70: 0 | AL70: 0 | AM70: 0 | AN70: 0 | AO70: 0 | AP70: 0 | AQ70: 0 | AR70: 0 | AS70: 0 | AT70: 0 | AU70: 0 | AV70: 0 | AW70: 0 | AX70: 0 | AY70: 0 | AZ70: =SumByColor(AZ71,AZ71:AZ80) -> 0 | BA70: 0 | BB70: 0 | BC70: 0 | BD70: 0 | BE70: 0 | BF70: 0 | BG70: 0 | BH70: 0 | BI70: 0 | BJ70: 0 | BK70: 0 | BL70: 0 | BM70: 0 | BN70: 0 | BO70: 0 | BP70: 0 | BQ70: 0 | BR70: 0 | BS70: 0 | BT70: 0 | BU70: 0 | BV70: 0 | BW70: 0 | BX70: 0 | BY70: 0 | BZ70: 0 | CA70: 0 | CB70: 0 | CC70: 0 | CD70: 0 | CE70: 0 | CF70: =SumByColor(CF71,CF71:CF80) -> 0 | CG70: 0 | CH70: 0 | CI70: 0 | CJ70: 0 | CK70: 0 | CL70: 0 | CM70: 0 | CN70: 0 | CO70: 0 | CP70: 0 | CQ70: 0 | CR70: 0 | CS70: 0 | CT70: 0 | CU70: 0 | CV70: 0 | CW70: 0 | CX70: 0 | CY70: 0 | CZ70: 0 | DA70: 0 | DB70: 0 | DC70: 0 | DD70: 0 | DE70: 0 | DF70: 0 | DG70: 0 | DH70: 0 | DI70: 0 | DJ70: 0 | DK70: 0 | DL70: =SumByColor(DL71,DL71:DL80) -> 0 | DM70: 0 | DN70: 0 | DO70: 0 | EB70: =SumByColor(EB71,EB71:EB80) -> 0 | EC70: =SumByColor(EC71,EC71:EC80) -> 0 | EZ70: FALSE
B71: =(ROW(B71) - ROW($A$70)-1)/INDEX(SheetRangeIndex,MATCH($A$70,TableNamesSorted,0),7) -> 0 | C71: =INDEX(INDIRECT("_"&$A$70&"Table1"),B71+1,9) -> 0 | D71: =INDEX(INDIRECT("_"&$A$70&"Table1"),B71+1,2) -> 0 | E71: =IF(ISBLANK(INDEX(INDIRECT("_"&$A$70&"Table1"),B71+1,3)),"",INDEX(INDIRECT("_"&$A$70&"Table1"),B71+1,3)) ->  | F71: =IF(ISERROR(EL71),"Facility Type",IF(ISBLANK(INDEX(INDIRECT("_"&$A$70&"Table1"),B71+1,5)),"",INDEX(INDIRECT("_"&$A$70&"Table1"),B71+1,5))) ->  | G71: =IF(ISBLANK(INDEX(INDIRECT("_"&$A$70&"Table1"),B71+1,6)),"",INDEX(INDIRECT("_"&$A$70&"Table1"),B71+1,6)) ->  | H71: =IF(ISBLANK(INDEX(INDIRECT("_"&$A$70&"Table1"),B71+1,7)),"",INDEX(INDIRECT("_"&$A$70&"Table1"),B71+1,7)) ->  | I71: =IF(ISBLANK(INDEX(INDIRECT("_"&$A$70&"Table1"),B71+1,8)),"",INDEX(INDIRECT("_"&$A$70&"Table1"),B71+1,8)) ->  | J71: =SUM(J72:J79) -> 0 | K71: =IF(ISERR(ED71),"Cost Type",IF(A71="X","Override",IF(AND(CostType=ARO,L71>ScheduleYear),"Date Range",IF(AND(ISTEXT(LocationFilter),ISERROR(EI71)),"Location",IF(AND(ISTEXT(PropertyFilter),ISERROR(EJ71)),"Property",IF(AND(ISTEXT(FacilityTypeFilter),ISERROR(EG71)),"Facility Type",IF(AND(NOT(ISBLANK(IDCodeFilter)),ISERROR(EF71)),"ID Code",IF(AND(ISTEXT(PhaseFilter),ISERROR(EH71)),"Phase",IF(AND(CostType=LOM,LOMComplete),J71,SUM(T71:DO71)))))))))) -> Cost Type | L71: =INDEX(INDIRECT("_"&$A$70&"Table1"),B71+1,4) -> 0 | Q71: =SUM(Q72:Q79) -> 0 | T71: =IF(ISTEXT($EB71),0,IF(AND(CostType=LOM,LOMComplete,T$27<=ScheduleYear),SUMPRODUCT(T72:T79,$J72:$J79),IF(CostType=Bond,SUMPRODUCT($EB72:$EB79,T72:T79,$EA72:$EA79),IF(T$27<=ScheduleYear,0,SUMPRODUCT(T72:T79,$EB72:$EB79))))) -> 0 | U71: 0 | V71: 0 | W71: 0 | X71: 0 | Y71: 0 | Z71: 0 | AA71: 0 | AB71: 0 | AC71: 0 | AD71: 0 | AE71: 0 | AF71: 0 | AG71: 0 | AH71: 0 | AI71: 0 | AJ71: 0 | AK71: 0 | AL71: 0 | AM71: 0 | AN71: 0 | AO71: 0 | AP71: 0 | AQ71: 0 | AR71: 0 | AS71: 0 | AT71: 0 | AU71: 0 | AV71: 0 | AW71: 0 | AX71: 0 | AY71: 0 | AZ71: =IF(ISTEXT($EB71),0,IF(AND(CostType=LOM,LOMComplete,AZ$27<=ScheduleYear),SUMPRODUCT(AZ72:AZ79,$J72:$J79),IF(CostType=Bond,SUMPRODUCT($EB72:$EB79,AZ72:AZ79,$EA72:$EA79),IF(AZ$27<=ScheduleYear,0,SUMPRODUCT(AZ72:AZ79,$EB72:$EB79))))) -> 0 | BA71: 0 | BB71: 0 | BC71: 0 | BD71: 0 | BE71: 0 | BF71: 0 | BG71: 0 | BH71: 0 | BI71: 0 | BJ71: 0 | BK71: 0 | BL71: 0 | BM71: 0 | BN71: 0 | BO71: 0 | BP71: 0 | BQ71: 0 | BR71: 0 | BS71: 0 | BT71: 0 | BU71: 0 | BV71: 0 | BW71: 0 | BX71: 0 | BY71: 0 | BZ71: 0 | CA71: 0 | CB71: 0 | CC71: 0 | CD71: 0 | CE71: 0 | CF71: =IF(ISTEXT($EB71),0,IF(AND(CostType=LOM,LOMComplete,CF$27<=ScheduleYear),SUMPRODUCT(CF72:CF79,$J72:$J79),IF(CostType=Bond,SUMPRODUCT($EB72:$EB79,CF72:CF79,$EA72:$EA79),IF(CF$27<=ScheduleYear,0,SUMPRODUCT(CF72:CF79,$EB72:$EB79))))) -> 0 | CG71: 0 | CH71: 0 | CI71: 0 | CJ71: 0 | CK71: 0 | CL71: 0 | CM71: 0 | CN71: 0 | CO71: 0 | CP71: 0 | CQ71: 0 | CR71: 0 | CS71: 0 | CT71: 0 | CU71: 0 | CV71: 0 | CW71: 0 | CX71: 0 | CY71: 0 | CZ71: 0 | DA71: 0 | DB71: 0 | DC71: 0 | DD71: 0 | DE71: 0 | DF71: 0 | DG71: 0 | DH71: 0 | DI71: 0 | DJ71: 0 | DK71: 0 | DL71: =IF(ISTEXT($EB71),0,IF(AND(CostType=LOM,LOMComplete,DL$27<=ScheduleYear),SUMPRODUCT(DL72:DL79,$J72:$J79),IF(CostType=Bond,SUMPRODUCT($EB72:$EB79,DL72:DL79,$EA72:$EA79),IF(DL$27<=ScheduleYear,0,SUMPRODUCT(DL72:DL79,$EB72:$EB79))))) -> 0 | DM71: 0 | DN71: 0 | DO71: 0 | DP71: =IF(ISNUMBER(K71),SUM(T71:DO71)-K71,K71) -> Cost Type | EB71: =IF(ISERR(ED71),"Cost Type",IF(A71="X","Override",IF(AND(CostType=ARO,L71>ScheduleYear),0,IF(AND(ISTEXT(LocationFilter),ISERROR(EI71)),"Location",IF(AND(ISTEXT(PropertyFilter),ISERROR(EJ71)),"Property",IF(AND(ISTEXT(FacilityTypeFilter),ISERROR(EG71)),"Facility Type",IF(AND(ISTEXT(IDCodeFilter),ISERROR(EF71)),"ID Code",IF(AND(ISTEXT(PhaseFilter),ISERROR(EH71)),"Phase",J71)))))))) -> Cost Type | EC71: =IF(EE71="","Cost Type",IF(A71="X","Override",IF(AND(OtherCostType=ARO,L71>ScheduleYear),0,IF(AND(ISTEXT(LocationFilter),EI71=""),"Location",IF(AND(ISTEXT(PropertyFilter),EJ71=""),"Property",IF(AND(ISTEXT(FacilityTypeFilter),EG71=""),"Facility Type",IF(AND(ISTEXT(IDCodeFilter),EF71=""),"ID Code",IF(AND(ISTEXT(PhaseFilter),EH71=""),"Phase",J71)))))))) ->  | ED71: =SEARCH(CostType,C71) ->  | EE71: =SEARCH(OtherCostType,C71) ->  | EF71: =IF(AND(IDCodeFilterType="CONTAINS",NOT(ISERROR(SEARCH(IDCodeFilter,E71)))),1,IF(AND(IDCodeFilterType="NOT",ISERROR(SEARCH(IDCodeFilter,E71))),1,IF(AND(OR(IDCodeFilterType="EXACT",ISBLANK(IDCodeFilterType)),NOT(ISERROR(MATCH(IDCodeFilter,E71,0)))),1,$EK71))) ->  | EG71: =IF(AND(FacilityFilterType="CONTAINS",NOT(ISERROR(SEARCH(FacilityTypeFilter,F71)))),1,IF(AND(FacilityFilterType="NOT",ISERROR(SEARCH(FacilityTypeFilter,F71))),1,IF(AND(OR(FacilityFilterType="EXACT",ISBLANK(FacilityFilterType)),NOT(ISERROR(MATCH(FacilityTypeFilter,F71,0)))),1,$EK71))) ->  | EH71: =IF(AND(PhaseFilterType="CONTAINS",NOT(ISERROR(SEARCH(PhaseFilter,G71)))),1,IF(AND(PhaseFilterType="NOT",ISERROR(SEARCH(PhaseFilter,G71))),1,IF(AND(OR(PhaseFilterType="EXACT",ISBLANK(PhaseFilterType)),NOT(ISERROR(MATCH(PhaseFilter,G71,0)))),1,$EK71))) ->  | EI71: =IF(AND(LocationFilterType="CONTAINS",NOT(ISERROR(SEARCH(LocationFilter,H71)))),1,IF(AND(LocationFilterType="NOT",ISERROR(SEARCH(LocationFilter,H71))),1,IF(AND(OR(LocationFilterType="EXACT",ISBLANK(LocationFilterType)),NOT(ISERROR(MATCH(LocationFilter,H71,0)))),1,$EK71))) ->  | EJ71: =IF(AND(PropertyFilterType="CONTAINS",NOT(ISERROR(SEARCH(PropertyFilter,I71)))),1,IF(AND(PropertyFilterType="NOT",ISERROR(SEARCH(PropertyFilter,I71))),1,IF(AND(OR(PropertyFilterType="EXACT",ISBLANK(PropertyFilterType)),NOT(ISERROR(MATCH(PropertyFilter,I71,0)))),1,$EK71))) ->  | EK71: =MATCH("NOT",$EK$27,0) ->  | EL71: =IF(ISBLANK(INDEX(INDIRECT("_"&$A$70&"Table1"),B71+1,2)),"",MATCH(INDEX(INDIRECT("_"&$A$70&"Table1"),B71+1,5),Accounts,0)) ->  | EZ71: FALSE | FA71: 1
D72: Regrading | J72: =IF(INDEX(INDIRECT("_"&$A$70&"Table5"),B71+1,15)=0,0,INDEX(INDIRECT("_"&$A$70&"Table5"),B71+1,15)) -> 0 | K72: =IF(OR(J72="",K71="",ISTEXT(K71),J72=0),"",IF(OR(ISBLANK(M72),ISBLANK(N72)),"Enter Dates",IF(K71="Date Range","",IF(OR(AND(CostType=ARO,L71>ScheduleYear),AND(CostType=ARO,N72<=ScheduleYear)),"Date Range",IF(OR(AND(CostType=Bond,O72>ScheduleYear),AND(CostType=LOM,LOMComplete)),J72,J72-Q72))))) ->  | P72: =IF(K72="","",SUM(T72:DO72)) ->  | Q72: =IF(OR(AND(CostType=ARO,N72<=ScheduleYear),AND(CostType=LOM,LOMComplete)),J72*R72,R72*EB72) -> 0 | R72: =IF(CostType=Bond,SUMIFS(T72:DP72,T$27:DP$27,"<="&O72,T$27:DP$27,"<="&ScheduleYear),SUMIF(T$27:DP$27,"<="&ScheduleYear,T72:DP72)) -> 0 | EA72: =IF(OR(ISBLANK($O72),$O72>ScheduleYear),1,0) -> 1 | EB72: =IF(OR(J72="",EB71="",ISTEXT(EB71)),0,IF(OR(ISBLANK(M72),ISBLANK(N72)),0,IF(OR(AND(CostType=ARO,L71>ScheduleYear),AND(OR(CostType=ARO,AND(CostType=LOM,LOMComplete=TRUE)),N72<=ScheduleYear)),0,J72))) -> 0 | EC72: =IF(OR(J72="",EC71="",ISTEXT(EC71)),0,IF(OR(ISBLANK(M72),ISBLANK(N72)),0,IF(EC71="Date Range",0,IF(OR(AND(OtherCostType=ARO,L71>ScheduleYear),N72<=ScheduleYear),0,J72)))) ->  | EM72: Regrade | EN72: Regrade | EO72: =IF(ISNUMBER(K72),IF(INDEX(INDIRECT("_"&$A$70&"Table5"),B71+1,3)=0,0,INDEX(INDIRECT("_"&$A$70&"Table5"),B71+1,3)),0) -> 0 | EP72: =IF(Metric,"m3","cy") -> cy | EQ72: =INDEX(INDIRECT("_"&$A$70&"Table5"),B71+1,5) ->  | ES72: =IF(NOT(ISNUMBER(K72)),0,INDEX(INDIRECT("_"&$A$70&"Table5"),B71+1,12)) -> 0 | EZ72: TRUE
D73: Cover 1 Placement | J73: =INDEX(INDIRECT("_"&$A$70&"Table6"),B71+1,25) -> 0 | K73: =IF(OR(J73="",K71="",ISTEXT(K71),J73=0),"",IF(OR(ISBLANK(M73),ISBLANK(N73)),"Enter Dates",IF(K71="Date Range","",IF(OR(AND(CostType=ARO,L71>ScheduleYear),AND(CostType=ARO,N73<=ScheduleYear)),"Date Range",IF(OR(AND(CostType=Bond,O73>ScheduleYear),AND(CostType=LOM,LOMComplete)),J73,J73-Q73))))) ->  | Q73: 0 | R73: 0 | EA73: 1 | EB73: =IF(OR(J73="",EB71="",ISTEXT(EB71)),0,IF(OR(ISBLANK(M73),ISBLANK(N73)),0,IF(OR(AND(CostType=ARO,L71>ScheduleYear),AND(OR(CostType=ARO,AND(CostType=LOM,LOMComplete=TRUE)),N73<=ScheduleYear)),0,J73))) -> 0 | EC73: =IF(OR(J73="",EC71="",ISTEXT(EC71)),0,IF(OR(ISBLANK(M73),ISBLANK(N73)),0,IF(EC71="Date Range",0,IF(OR(AND(CostType=ARO,L71>ScheduleYear),N73<=ScheduleYear),0,J73)))) ->  | EM73: Cover | EN73: Cover | EO73: =IF(ISNUMBER(K73),INDEX(INDIRECT("_"&$A$70&"Table6"),B71+1,4),0) -> 0 | EP73: =IF(Metric,"m3","cy") -> cy | EQ73: =INDEX(INDIRECT("_"&$A$70&"Table6"),B71+1,10) ->  | ER73: =IF(OR(NOT(ISNUMBER(K73)),K73=0),0,INDEX(INDIRECT("_"&$A$70&"Table6"),B71+1,12)) -> 0 | ES73: =IF(OR(NOT(ISNUMBER(K73)),K73=0),0,INDEX(INDIRECT("_"&$A$70&"Table6"),B71+1,14)) -> 0 | ET73: =INDEX(INDIRECT("_"&$A$70&"Table6"),B71+1,5) ->  | EU73: =IF(OR(NOT(ISNUMBER(K73)),K73=0),0,INDEX(INDIRECT("_"&$A$70&"Table6"),B71+1,7)) -> 0 | EV73: =IF(OR(NOT(ISNUMBER(K73)),K73=0),0,INDEX(INDIRECT("_"&$A$70&"Table6"),B71+1,9)) -> 0 | EZ73: TRUE
D74: Cover 2 Placement | J74: =INDEX(INDIRECT("_"&$A$70&"Table7"),B71+1,25) -> 0 | K74: =IF(OR(J74="",K71="",ISTEXT(K71),J74=0),"",IF(OR(ISBLANK(M74),ISBLANK(N74)),"Enter Dates",IF(K71="Date Range","",IF(OR(AND(CostType=ARO,L71>ScheduleYear),AND(CostType=ARO,N74<=ScheduleYear)),"Date Range",IF(OR(AND(CostType=Bond,O74>ScheduleYear),AND(CostType=LOM,LOMComplete)),J74,J74-Q74))))) ->  | Q74: 0 | R74: 0 | EA74: 1 | EB74: =IF(OR(J74="",EB71="",ISTEXT(EB71)),0,IF(OR(ISBLANK(M74),ISBLANK(N74)),0,IF(OR(AND(CostType=ARO,L71>ScheduleYear),AND(OR(CostType=ARO,AND(CostType=LOM,LOMComplete=TRUE)),N74<=ScheduleYear)),0,J74))) -> 0 | EC74: =IF(OR(J74="",EC71="",ISTEXT(EC71)),0,IF(OR(ISBLANK(M74),ISBLANK(N74)),0,IF(EC71="Date Range",0,IF(OR(AND(CostType=ARO,L71>ScheduleYear),N74<=ScheduleYear),0,J74)))) ->  | EM74: Cover | EN74: Cover | EO74: =IF(ISNUMBER(K74),INDEX(INDIRECT("_"&$A$70&"Table7"),B71+1,4),0) -> 0 | EP74: =IF(Metric,"m3","cy") -> cy | EQ74: =INDEX(INDIRECT("_"&$A$70&"Table7"),B71+1,10) ->  | ER74: =IF(OR(NOT(ISNUMBER(K74)),K74=0),0,INDEX(INDIRECT("_"&$A$70&"Table7"),B71+1,12)) -> 0 | ES74: =IF(OR(NOT(ISNUMBER(K74)),K74=0),0,INDEX(INDIRECT("_"&$A$70&"Table7"),B71+1,14)) -> 0 | ET74: =INDEX(INDIRECT("_"&$A$70&"Table7"),B71+1,5) ->  | EU74: =IF(OR(NOT(ISNUMBER(K74)),K74=0),0,INDEX(INDIRECT("_"&$A$70&"Table7"),B71+1,7)) -> 0 | EV74: =IF(OR(NOT(ISNUMBER(K74)),K74=0),0,INDEX(INDIRECT("_"&$A$70&"Table7"),B71+1,9)) -> 0 | EZ74: TRUE
D75: Growth Media Placement | J75: =INDEX(INDIRECT("_"&$A$70&"Table8"),B71+1,11) -> 0 | K75: =IF(OR(J75="",K71="",ISTEXT(K71),J75=0),"",IF(OR(ISBLANK(M75),ISBLANK(N75)),"Enter Dates",IF(K71="Date Range","",IF(OR(AND(CostType=ARO,L71>ScheduleYear),AND(CostType=ARO,N75<=ScheduleYear)),"Date Range",IF(OR(AND(CostType=Bond,O75>ScheduleYear),AND(CostType=LOM,LOMComplete)),J75,J75-Q75))))) ->  | Q75: 0 | R75: 0 | EA75: 1 | EB75: =IF(OR(J75="",EB71="",ISTEXT(EB71)),0,IF(OR(ISBLANK(M75),ISBLANK(N75)),0,IF(OR(AND(CostType=ARO,L71>ScheduleYear),AND(OR(CostType=ARO,AND(CostType=LOM,LOMComplete=TRUE)),N75<=ScheduleYear)),0,J75))) -> 0 | EC75: =IF(OR(J75="",EC71="",ISTEXT(EC71)),0,IF(OR(ISBLANK(M75),ISBLANK(N75)),0,IF(EC71="Date Range",0,IF(OR(AND(CostType=ARO,L71>ScheduleYear),N75<=ScheduleYear),0,J75)))) ->  | EM75: GM | EN75: GM | EO75: =IF(ISNUMBER(K75),INDEX(INDIRECT("_"&$A$70&"Table8"),B71+1,3),0) -> 0 | EP75: =IF(Metric,"m3","cy") -> cy | EQ75: =INDEX(INDIRECT("_"&$A$70&"Table8"),B71+1,4) ->  | ER75: =IF(OR(NOT(ISNUMBER(K75)),K75=0),0,INDEX(INDIRECT("_"&$A$70&"Table8"),B71+1,7)) -> 0 | ES75: =IF(OR(NOT(ISNUMBER(K75)),K75=0),0,INDEX(INDIRECT("_"&$A$70&"Table8"),B71+1,8)) -> 0 | EZ75: TRUE
D76: Ripping/Scarifying | J76: =INDEX(INDIRECT("_"&$A$70&"Table9"),B71+1,13) -> 0 | K76: =IF(OR(J76="",K71="",ISTEXT(K71),J76=0),"",IF(OR(ISBLANK(M76),ISBLANK(N76)),"Enter Dates",IF(K71="Date Range","",IF(OR(AND(CostType=ARO,L71>ScheduleYear),AND(CostType=ARO,N76<=ScheduleYear)),"Date Range",IF(OR(AND(CostType=Bond,O76>ScheduleYear),AND(CostType=LOM,LOMComplete)),J76,J76-Q76))))) ->  | Q76: 0 | R76: 0 | EA76: 1 | EB76: =IF(OR(J76="",EB71="",ISTEXT(EB71)),0,IF(OR(ISBLANK(M76),ISBLANK(N76)),0,IF(OR(AND(CostType=ARO,L71>ScheduleYear),AND(OR(CostType=ARO,AND(CostType=LOM,LOMComplete=TRUE)),N76<=ScheduleYear)),0,J76))) -> 0 | EC76: =IF(OR(J76="",EC71="",ISTEXT(EC71)),0,IF(OR(ISBLANK(M76),ISBLANK(N76)), 0,IF(EC71="Date Range",0,IF(OR(AND(CostType=ARO,L71>ScheduleYear),N76<=ScheduleYear),0,J76)))) ->  | EM76: Rip | EN76: Rip | EO76: =IF(ISNUMBER(K76),INDEX(INDIRECT("_"&$A$70&"Table9"),B71+1,5),0) -> 0 | EP76: =IF(Metric,"ha","acres") -> acres | EQ76: =INDEX(INDIRECT("_"&$A$70&"Table9"),B71+1,8) ->  | ES76: =IF(OR(NOT(ISNUMBER(K76)),K76=0),0,INDEX(INDIRECT("_"&$A$70&"Table9"),B71+1,10)) -> 0 | EZ76: TRUE
D77: Revegetation | J77: =INDEX(INDIRECT("_"&$A$70&"Table9"),B71+1,17) -> 0 | K77: =IF(OR(J77="",K71="",ISTEXT(K71),J77=0),"",IF(OR(ISBLANK(M77),ISBLANK(N77)),"Enter Dates",IF(K71="Date Range","",IF(OR(AND(CostType=ARO,L71>ScheduleYear),AND(CostType=ARO,N77<=ScheduleYear)),"Date Range",IF(OR(AND(CostType=Bond,O77>ScheduleYear),AND(CostType=LOM,LOMComplete)),J77,J77-Q77))))) ->  | Q77: 0 | R77: 0 | EA77: 1 | EB77: =IF(OR(J77="",EB71="",ISTEXT(EB71)),0,IF(OR(ISBLANK(M77),ISBLANK(N77)),0,IF(OR(AND(CostType=ARO,L71>ScheduleYear),AND(OR(CostType=ARO,AND(CostType=LOM,LOMComplete=TRUE)),N77<=ScheduleYear)),0,J77))) -> 0 | EC77: =IF(OR(J77="",EC71="",ISTEXT(EC71)),0,IF(OR(ISBLANK(M77),ISBLANK(N77)), 0,IF(EC71="Date Range",0,IF(OR(AND(CostType=ARO,L71>ScheduleYear),N77<=ScheduleYear),0,J77)))) ->  | EM77: Reveg | EN77: Reveg | EO77: =IF(ISNUMBER(K77),INDEX(INDIRECT("_"&$A$70&"Table9"),B71+1,5),0) -> 0 | EP77: =IF(Metric,"ha","acres") -> acres | EZ77: TRUE
D78: Berm Construction | J78: =INDEX(INDIRECT("_"&$A$70&"Table10"),B71+1,11) -> 0 | K78: =IF(OR(J78="",K71="",ISTEXT(K71),J78=0),"",IF(OR(ISBLANK(M78),ISBLANK(N78)),"Enter Dates",IF(K71="Date Range","",IF(OR(AND(CostType=ARO,L71>ScheduleYear),AND(CostType=ARO,N78<=ScheduleYear)),"Date Range",IF(OR(AND(CostType=Bond,O78>ScheduleYear),AND(CostType=LOM,LOMComplete)),J78,J78-Q78))))) ->  | Q78: 0 | R78: 0 | EA78: 1 | EB78: =IF(OR(J78="",EB71="",ISTEXT(EB71)),0,IF(OR(ISBLANK(M78),ISBLANK(N78)),0,IF(OR(AND(CostType=ARO,L71>ScheduleYear),AND(OR(CostType=ARO,AND(CostType=LOM,LOMComplete=TRUE)),N78<=ScheduleYear)),0,J78))) -> 0 | EC78: =IF(OR(J78="",EC72="",ISTEXT(EC72)),0,IF(OR(ISBLANK(M78),ISBLANK(N78)), 0,IF(EC72="Date Range",0,IF(OR(AND(CostType=ARO,L71>ScheduleYear),N78<=ScheduleYear),0,J78)))) ->  | EM78: Backfill | EN78: Backfill | EO78: =IF(ISNUMBER(K78),IF(INDEX(INDIRECT("_"&$A$70&"Table10"),B71+1,3)=0,0,INDEX(INDIRECT("_"&$A$70&"Table10"),B71+1,3)),0) -> 0 | EP78: =IF(Metric,"m3","cy") -> cy | EQ78: =INDEX(INDIRECT("_"&$A$70&"Table10"),B71+1,4) ->  | ER78: =IF(OR(NOT(ISNUMBER(K78)),K78=0),0,INDEX(INDIRECT("_"&$A$70&"Table10"),B74+1,6)) -> 0 | ES78: =IF(OR(NOT(ISNUMBER(K78)),K78=0),0,INDEX(INDIRECT("_"&$A$70&"Table10"),B74+1,8)) -> 0 | EZ78: TRUE
D79: Berm Revegetation | J79: =INDEX(INDIRECT("_"&$A$70&"Table11"),B71+1,7) -> 0 | K79: =IF(OR(J79="",K71="",ISTEXT(K71),J79=0),"",IF(OR(ISBLANK(M79),ISBLANK(N79)),"Enter Dates",IF(K71="Date Range","",IF(OR(AND(CostType=ARO,L71>ScheduleYear),AND(CostType=ARO,N79<=ScheduleYear)),"Date Range",IF(OR(AND(CostType=Bond,O79>ScheduleYear),AND(CostType=LOM,LOMComplete)),J79,J79-Q79))))) ->  | Q79: 0 | R79: 0 | EA79: 1 | EB79: =IF(OR(J79="",EB71="",ISTEXT(EB71)),0,IF(OR(ISBLANK(M79),ISBLANK(N79)),0,IF(OR(AND(CostType=ARO,L71>ScheduleYear),AND(OR(CostType=ARO,AND(CostType=LOM,LOMComplete=TRUE)),N79<=ScheduleYear)),0,J79))) -> 0 | EC79: =IF(OR(J79="",EC73="",ISTEXT(EC73)),0,IF(OR(ISBLANK(M79),ISBLANK(N79)), 0,IF(EC73="Date Range",0,IF(OR(AND(CostType=ARO,L71>ScheduleYear),N79<=ScheduleYear),0,J79)))) ->  | EM79: Reveg | EN79: Reveg | EO79: =IF(ISNUMBER(K79),IF(INDEX(INDIRECT("_"&$A$70&"Table11"),B71+1,3)=0,0,INDEX(INDIRECT("_"&$A$70&"Table11"),B71+1,3)),0) -> 0 | EP79: =IF(Metric,"ha","acres") -> acres | EZ79: TRUE
EZ80: FALSE
A81: Adits | B81: PORTALS, DECLINES & ADITS | J81: =SumByColor(J82,J82:J84) -> 0 | K81: =SumByColor(K82,K82:K84) -> 0 | Q81: =SumByColor(Q82,Q82:Q84) -> 0 | T81: =SumByColor(T82,T82:T84) -> 0 | U81: 0 | V81: 0 | W81: 0 | X81: 0 | Y81: 0 | Z81: 0 | AA81: 0 | AB81: 0 | AC81: 0 | AD81: 0 | AE81: 0 | AF81: 0 | AG81: 0 | AH81: 0 | AI81: 0 | AJ81: 0 | AK81: 0 | AL81: 0 | AM81: 0 | AN81: 0 | AO81: 0 | AP81: 0 | AQ81: 0 | AR81: 0 | AS81: 0 | AT81: 0 | AU81: 0 | AV81: 0 | AW81: 0 | AX81: 0 | AY81: 0 | AZ81: =SumByColor(AZ82,AZ82:AZ84) -> 0 | BA81: 0 | BB81: 0 | BC81: 0 | BD81: 0 | BE81: 0 | BF81: 0 | BG81: 0 | BH81: 0 | BI81: 0 | BJ81: 0 | BK81: 0 | BL81: 0 | BM81: 0 | BN81: 0 | BO81: 0 | BP81: 0 | BQ81: 0 | BR81: 0 | BS81: 0 | BT81: 0 | BU81: 0 | BV81: 0 | BW81: 0 | BX81: 0 | BY81: 0 | BZ81: 0 | CA81: 0 | CB81: 0 | CC81: 0 | CD81: 0 | CE81: 0 | CF81: =SumByColor(CF82,CF82:CF84) -> 0 | CG81: 0 | CH81: 0 | CI81: 0 | CJ81: 0 | CK81: 0 | CL81: 0 | CM81: 0 | CN81: 0 | CO81: 0 | CP81: 0 | CQ81: 0 | CR81: 0 | CS81: 0 | CT81: 0 | CU81: 0 | CV81: 0 | CW81: 0 | CX81: 0 | CY81: 0 | CZ81: 0 | DA81: 0 | DB81: 0 | DC81: 0 | DD81: 0 | DE81: 0 | DF81: 0 | DG81: 0 | DH81: 0 | DI81: 0 | DJ81: 0 | DK81: 0 | DL81: =SumByColor(DL82,DL82:DL84) -> 0 | DM81: 0 | DN81: 0 | DO81: 0 | EB81: =SumByColor(EB82,EB82:EB84) -> 0 | EC81: =SumByColor(EC82,EC82:EC84) -> 0 | EZ81: FALSE
B82: =(ROW(B82) - ROW($A$81)-1)/INDEX(SheetRangeIndex,MATCH($A$81,TableNamesSorted,0),7) -> 0 | C82: =INDEX(INDIRECT("_"&$A$81&"Table1"),B82+1,9) -> 0 | D82: =INDEX(INDIRECT("_"&$A$81&"Table1"),B82+1,2) -> 0 | E82: =IF(ISBLANK(INDEX(INDIRECT("_"&$A$81&"Table1"),B82+1,3)),"",INDEX(INDIRECT("_"&$A$81&"Table1"),B82+1,3)) ->  | F82: =IF(ISERROR(EL82),"Facility Type",IF(ISBLANK(INDEX(INDIRECT("_"&$A$81&"Table1"),B82+1,5)),"",INDEX(INDIRECT("_"&$A$81&"Table1"),B82+1,5))) ->  | G82: =IF(ISBLANK(INDEX(INDIRECT("_"&$A$81&"Table1"),B82+1,6)),"",INDEX(INDIRECT("_"&$A$81&"Table1"),B82+1,6)) ->  | H82: =IF(ISBLANK(INDEX(INDIRECT("_"&$A$81&"Table1"),B82+1,7)),"",INDEX(INDIRECT("_"&$A$81&"Table1"),B82+1,7)) ->  | I82: =IF(ISBLANK(INDEX(INDIRECT("_"&$A$81&"Table1"),B82+1,8)),"",INDEX(INDIRECT("_"&$A$81&"Table1"),B82+1,8)) ->  | J82: =SUM(J83:J83) -> 0 | K82: =IF(ISERR(ED82),"Cost Type",IF(A82="X","Override",IF(AND(CostType=ARO,L82>ScheduleYear),"Date Range",IF(AND(ISTEXT(LocationFilter),ISERROR(EI82)),"Location",IF(AND(ISTEXT(PropertyFilter),ISERROR(EJ82)),"Property",IF(AND(ISTEXT(FacilityTypeFilter),ISERROR(EG82)),"Facility Type",IF(AND(NOT(ISBLANK(IDCodeFilter)),ISERROR(EF82)),"ID Code",IF(AND(ISTEXT(PhaseFilter),ISERROR(EH82)),"Phase",IF(AND(CostType=LOM,LOMComplete),J82,SUM(T82:DO82)))))))))) -> Cost Type | L82: =INDEX(INDIRECT("_"&$A$81&"Table1"),B82+1,4) -> 0 | Q82: =SUM(Q83) -> 0 | T82: =IF(ISTEXT($EB82),0,IF(AND(CostType=LOM,LOMComplete,T$27<=ScheduleYear),T83*$J83,IF(CostType=Bond,$EB83*T83*$EA83,IF(T$27<=ScheduleYear,0,T83*$EB83)))) -> 0 | U82: 0 | V82: 0 | W82: 0 | X82: 0 | Y82: 0 | Z82: 0 | AA82: 0 | AB82: 0 | AC82: 0 | AD82: 0 | AE82: 0 | AF82: 0 | AG82: 0 | AH82: 0 | AI82: 0 | AJ82: 0 | AK82: 0 | AL82: 0 | AM82: 0 | AN82: 0 | AO82: 0 | AP82: 0 | AQ82: 0 | AR82: 0 | AS82: 0 | AT82: 0 | AU82: 0 | AV82: 0 | AW82: 0 | AX82: 0 | AY82: 0 | AZ82: =IF(ISTEXT($EB82),0,IF(AND(CostType=LOM,LOMComplete,AZ$27<=ScheduleYear),AZ83*$J83,IF(CostType=Bond,$EB83*AZ83*$EA83,IF(AZ$27<=ScheduleYear,0,AZ83*$EB83)))) -> 0 | BA82: 0 | BB82: 0 | BC82: 0 | BD82: 0 | BE82: 0 | BF82: 0 | BG82: 0 | BH82: 0 | BI82: 0 | BJ82: 0 | BK82: 0 | BL82: 0 | BM82: 0 | BN82: 0 | BO82: 0 | BP82: 0 | BQ82: 0 | BR82: 0 | BS82: 0 | BT82: 0 | BU82: 0 | BV82: 0 | BW82: 0 | BX82: 0 | BY82: 0 | BZ82: 0 | CA82: 0 | CB82: 0 | CC82: 0 | CD82: 0 | CE82: 0 | CF82: =IF(ISTEXT($EB82),0,IF(AND(CostType=LOM,LOMComplete,CF$27<=ScheduleYear),CF83*$J83,IF(CostType=Bond,$EB83*CF83*$EA83,IF(CF$27<=ScheduleYear,0,CF83*$EB83)))) -> 0 | CG82: 0 | CH82: 0 | CI82: 0 | CJ82: 0 | CK82: 0 | CL82: 0 | CM82: 0 | CN82: 0 | CO82: 0 | CP82: 0 | CQ82: 0 | CR82: 0 | CS82: 0 | CT82: 0 | CU82: 0 | CV82: 0 | CW82: 0 | CX82: 0 | CY82: 0 | CZ82: 0 | DA82: 0 | DB82: 0 | DC82: 0 | DD82: 0 | DE82: 0 | DF82: 0 | DG82: 0 | DH82: 0 | DI82: 0 | DJ82: 0 | DK82: 0 | DL82: =IF(ISTEXT($EB82),0,IF(AND(CostType=LOM,LOMComplete,DL$27<=ScheduleYear),DL83*$J83,IF(CostType=Bond,$EB83*DL83*$EA83,IF(DL$27<=ScheduleYear,0,DL83*$EB83)))) -> 0 | DM82: 0 | DN82: 0 | DO82: 0 | DP82: =IF(ISNUMBER(K82),SUM(T82:DO82)-K82,K82) -> Cost Type | EB82: =IF(ISERR(ED82),"Cost Type",IF(A82="X","Override",IF(AND(CostType=ARO,L82>ScheduleYear),0,IF(AND(ISTEXT(LocationFilter),ISERROR(EI82)),"Location",IF(AND(ISTEXT(PropertyFilter),ISERROR(EJ82)),"Property",IF(AND(ISTEXT(FacilityTypeFilter),ISERROR(EG82)),"Facility Type",IF(AND(ISTEXT(IDCodeFilter),ISERROR(EF82)),"ID Code",IF(AND(ISTEXT(PhaseFilter),ISERROR(EH82)),"Phase",J82)))))))) -> Cost Type | EC82: =IF(EE82="","Cost Type",IF(A82="X","Override",IF(AND(OtherCostType=ARO,L82>ScheduleYear),0,IF(AND(ISTEXT(LocationFilter),EI82=""),"Location",IF(AND(ISTEXT(PropertyFilter),EJ82=""),"Property",IF(AND(ISTEXT(FacilityTypeFilter),EG82=""),"Facility Type",IF(AND(ISTEXT(IDCodeFilter),EF82=""),"ID Code",IF(AND(ISTEXT(PhaseFilter),EH82=""),"Phase",J82)))))))) ->  | ED82: =SEARCH(CostType,C82) ->  | EE82: =SEARCH(OtherCostType,C82) ->  | EF82: =IF(AND(IDCodeFilterType="CONTAINS",NOT(ISERROR(SEARCH(IDCodeFilter,E82)))),1,IF(AND(IDCodeFilterType="NOT",ISERROR(SEARCH(IDCodeFilter,E82))),1,IF(AND(OR(IDCodeFilterType="EXACT",ISBLANK(IDCodeFilterType)),NOT(ISERROR(MATCH(IDCodeFilter,E82,0)))),1,$EK82))) ->  | EG82: =IF(AND(FacilityFilterType="CONTAINS",NOT(ISERROR(SEARCH(FacilityTypeFilter,F82)))),1,IF(AND(FacilityFilterType="NOT",ISERROR(SEARCH(FacilityTypeFilter,F82))),1,IF(AND(OR(FacilityFilterType="EXACT",ISBLANK(FacilityFilterType)),NOT(ISERROR(MATCH(FacilityTypeFilter,F82,0)))),1,$EK82))) ->  | EH82: =IF(AND(PhaseFilterType="CONTAINS",NOT(ISERROR(SEARCH(PhaseFilter,G82)))),1,IF(AND(PhaseFilterType="NOT",ISERROR(SEARCH(PhaseFilter,G82))),1,IF(AND(OR(PhaseFilterType="EXACT",ISBLANK(PhaseFilterType)),NOT(ISERROR(MATCH(PhaseFilter,G82,0)))),1,$EK82))) ->  | EI82: =IF(AND(LocationFilterType="CONTAINS",NOT(ISERROR(SEARCH(LocationFilter,H82)))),1,IF(AND(LocationFilterType="NOT",ISERROR(SEARCH(LocationFilter,H82))),1,IF(AND(OR(LocationFilterType="EXACT",ISBLANK(LocationFilterType)),NOT(ISERROR(MATCH(LocationFilter,H82,0)))),1,$EK82))) ->  | EJ82: =IF(AND(PropertyFilterType="CONTAINS",NOT(ISERROR(SEARCH(PropertyFilter,I82)))),1,IF(AND(PropertyFilterType="NOT",ISERROR(SEARCH(PropertyFilter,I82))),1,IF(AND(OR(PropertyFilterType="EXACT",ISBLANK(PropertyFilterType)),NOT(ISERROR(MATCH(PropertyFilter,I82,0)))),1,$EK82))) ->  | EK82: =MATCH("NOT",$EK$27,0) ->  | EL82: =IF(ISBLANK(INDEX(INDIRECT("_"&$A$81&"Table1"),B82+1,2)),"",MATCH(INDEX(INDIRECT("_"&$A$81&"Table1"),B82+1,5),Accounts,0)) ->  | EZ82: FALSE | FA82: 1
D83: Plugging | J83: =INDEX(INDIRECT("_"&$A$81&"Table2"),B82+1,24) -> 0 | K83: =IF(OR(J83="",K82="",ISTEXT(K82),J83=0),"",IF(OR(ISBLANK(M83),ISBLANK(N83)),"Enter Dates",IF(K82="Date Range","",IF(OR(AND(CostType=ARO,L82>ScheduleYear),AND(CostType=ARO,N83<=ScheduleYear)),"Date Range",IF(OR(AND(CostType=Bond,O83>ScheduleYear),AND(CostType=LOM,LOMComplete)),J83,J83-Q83))))) ->  | P83: =IF(ISTEXT(K83),"",SUM(T83:DO83)) ->  | Q83: =IF(OR(AND(CostType=ARO,N83<=ScheduleYear),AND(CostType=LOM,LOMComplete)),J83*R83,R83*EB83) -> 0 | R83: =IF(CostType=Bond,SUMIFS(T83:DP83,T$27:DP$27,"<="&O83,T$27:DP$27,"<="&ScheduleYear),SUMIF(T$27:DP$27,"<="&ScheduleYear,T83:DP83)) -> 0 | EA83: =IF(OR(ISBLANK($O83),$O83>ScheduleYear),1,0) -> 1 | EB83: =IF(OR(J83="",EB82="",ISTEXT(EB82)),0,IF(OR(ISBLANK(M83),ISBLANK(N83)),0,IF(OR(AND(CostType=ARO,L82>ScheduleYear),AND(OR(CostType=ARO,AND(CostType=LOM,LOMComplete=TRUE)),N83<=ScheduleYear)),0,J83))) -> 0 | EC83: =IF(OR(J83="",EC82="",ISTEXT(EC82)),0,IF(OR(ISBLANK(M83),ISBLANK(N83)),0,IF(EC82="Date Range",0,IF(OR(AND(OtherCostType=ARO,L82>ScheduleYear),N83<=ScheduleYear),0,J83)))) ->  | EM83: Backfill | EN83: Backfill | EO83: =IF(ISNUMBER(K83),IF(INDEX(INDIRECT("_"&$A$81&"Table2"),B82+1,4)=0,"",INDEX(INDIRECT("_"&$A$81&"Table2"),B82+1,4)),"") ->  | EP83: =IF(Metric,"m3","cy") -> cy | EQ83: =INDEX(INDIRECT("_"&$A$81&"Table2"),B82+1,5) ->  | ES83: =IF(OR(NOT(ISNUMBER(K83)),K83=0),0,INDEX(INDIRECT("_"&$A$81&"Table2"),B82+1,8)) -> 0 | EZ83: TRUE
EZ84: FALSE
A85: Shafts | B85: SHAFTS | J85: =SumByColor(J86,J86:J88) -> 0 | K85: =SumByColor(K86,K86:K88) -> 0 | Q85: =SumByColor(Q86,Q86:Q88) -> 0 | T85: =SumByColor(T86,T86:T88) -> 0 | U85: 0 | V85: 0 | W85: 0 | X85: 0 | Y85: 0 | Z85: 0 | AA85: 0 | AB85: 0 | AC85: 0 | AD85: 0 | AE85: 0 | AF85: 0 | AG85: 0 | AH85: 0 | AI85: 0 | AJ85: 0 | AK85: 0 | AL85: 0 | AM85: 0 | AN85: 0 | AO85: 0 | AP85: 0 | AQ85: 0 | AR85: 0 | AS85: 0 | AT85: 0 | AU85: 0 | AV85: 0 | AW85: 0 | AX85: 0 | AY85: 0 | AZ85: =SumByColor(AZ86,AZ86:AZ88) -> 0 | BA85: 0 | BB85: 0 | BC85: 0 | BD85: 0 | BE85: 0 | BF85: 0 | BG85: 0 | BH85: 0 | BI85: 0 | BJ85: 0 | BK85: 0 | BL85: 0 | BM85: 0 | BN85: 0 | BO85: 0 | BP85: 0 | BQ85: 0 | BR85: 0 | BS85: 0 | BT85: 0 | BU85: 0 | BV85: 0 | BW85: 0 | BX85: 0 | BY85: 0 | BZ85: 0 | CA85: 0 | CB85: 0 | CC85: 0 | CD85: 0 | CE85: 0 | CF85: =SumByColor(CF86,CF86:CF88) -> 0 | CG85: 0 | CH85: 0 | CI85: 0 | CJ85: 0 | CK85: 0 | CL85: 0 | CM85: 0 | CN85: 0 | CO85: 0 | CP85: 0 | CQ85: 0 | CR85: 0 | CS85: 0 | CT85: 0 | CU85: 0 | CV85: 0 | CW85: 0 | CX85: 0 | CY85: 0 | CZ85: 0 | DA85: 0 | DB85: 0 | DC85: 0 | DD85: 0 | DE85: 0 | DF85: 0 | DG85: 0 | DH85: 0 | DI85: 0 | DJ85: 0 | DK85: 0 | DL85: =SumByColor(DL86,DL86:DL88) -> 0 | DM85: 0 | DN85: 0 | DO85: 0 | EB85: =SumByColor(EB86,EB86:EB88) -> 0 | EC85: =SumByColor(EC86,EC86:EC88) -> 0 | EZ85: FALSE
B86: =(ROW(B86) - ROW($A$85)-1)/INDEX(SheetRangeIndex,MATCH($A$85,TableNamesSorted,0),7) -> 0 | C86: =INDEX(INDIRECT("_"&$A$85&"Table1"),B86+1,9) -> 0 | D86: =INDEX(INDIRECT("_"&$A$85&"Table1"),B86+1,2) -> 0 | E86: =IF(ISBLANK(INDEX(INDIRECT("_"&$A$85&"Table1"),B86+1,3)),"",INDEX(INDIRECT("_"&$A$85&"Table1"),B86+1,3)) ->  | F86: =IF(ISERROR(EL86),"Facility Type",IF(ISBLANK(INDEX(INDIRECT("_"&$A$85&"Table1"),B86+1,5)),"",INDEX(INDIRECT("_"&$A$85&"Table1"),B86+1,5))) ->  | G86: =IF(ISBLANK(INDEX(INDIRECT("_"&$A$85&"Table1"),B86+1,6)),"",INDEX(INDIRECT("_"&$A$85&"Table1"),B86+1,6)) ->  | H86: =IF(ISBLANK(INDEX(INDIRECT("_"&$A$85&"Table1"),B86+1,7)),"",INDEX(INDIRECT("_"&$A$85&"Table1"),B86+1,7)) ->  | I86: =IF(ISBLANK(INDEX(INDIRECT("_"&$A$85&"Table1"),B86+1,8)),"",INDEX(INDIRECT("_"&$A$85&"Table1"),B86+1,8)) ->  | J86: =SUM(J87:J87) -> 0 | K86: =IF(ISERR(ED86),"Cost Type",IF(A86="X","Override",IF(AND(CostType=ARO,L86>ScheduleYear),"Date Range",IF(AND(ISTEXT(LocationFilter),ISERROR(EI86)),"Location",IF(AND(ISTEXT(PropertyFilter),ISERROR(EJ86)),"Property",IF(AND(ISTEXT(FacilityTypeFilter),ISERROR(EG86)),"Facility Type",IF(AND(NOT(ISBLANK(IDCodeFilter)),ISERROR(EF86)),"ID Code",IF(AND(ISTEXT(PhaseFilter),ISERROR(EH86)),"Phase",IF(AND(CostType=LOM,LOMComplete),J86,SUM(T86:DO86)))))))))) -> Cost Type | L86: =INDEX(INDIRECT("_"&$A$85&"Table1"),B86+1,4) -> 0 | Q86: =SUM(Q87) -> 0 | T86: =IF(ISTEXT($EB86),0,IF(AND(CostType=LOM,LOMComplete,T$27<=ScheduleYear),T87*$J87,IF(CostType=Bond,$EB87*T87*$EA87,IF(T$27<=ScheduleYear,0,T87*$EB87)))) -> 0 | U86: 0 | V86: 0 | W86: 0 | X86: 0 | Y86: 0 | Z86: 0 | AA86: 0 | AB86: 0 | AC86: 0 | AD86: 0 | AE86: 0 | AF86: 0 | AG86: 0 | AH86: 0 | AI86: 0 | AJ86: 0 | AK86: 0 | AL86: 0 | AM86: 0 | AN86: 0 | AO86: 0 | AP86: 0 | AQ86: 0 | AR86: 0 | AS86: 0 | AT86: 0 | AU86: 0 | AV86: 0 | AW86: 0 | AX86: 0 | AY86: 0 | AZ86: =IF(ISTEXT($EB86),0,IF(AND(CostType=LOM,LOMComplete,AZ$27<=ScheduleYear),AZ87*$J87,IF(CostType=Bond,$EB87*AZ87*$EA87,IF(AZ$27<=ScheduleYear,0,AZ87*$EB87)))) -> 0 | BA86: 0 | BB86: 0 | BC86: 0 | BD86: 0 | BE86: 0 | BF86: 0 | BG86: 0 | BH86: 0 | BI86: 0 | BJ86: 0 | BK86: 0 | BL86: 0 | BM86: 0 | BN86: 0 | BO86: 0 | BP86: 0 | BQ86: 0 | BR86: 0 | BS86: 0 | BT86: 0 | BU86: 0 | BV86: 0 | BW86: 0 | BX86: 0 | BY86: 0 | BZ86: 0 | CA86: 0 | CB86: 0 | CC86: 0 | CD86: 0 | CE86: 0 | CF86: =IF(ISTEXT($EB86),0,IF(AND(CostType=LOM,LOMComplete,CF$27<=ScheduleYear),CF87*$J87,IF(CostType=Bond,$EB87*CF87*$EA87,IF(CF$27<=ScheduleYear,0,CF87*$EB87)))) -> 0 | CG86: 0 | CH86: 0 | CI86: 0 | CJ86: 0 | CK86: 0 | CL86: 0 | CM86: 0 | CN86: 0 | CO86: 0 | CP86: 0 | CQ86: 0 | CR86: 0 | CS86: 0 | CT86: 0 | CU86: 0 | CV86: 0 | CW86: 0 | CX86: 0 | CY86: 0 | CZ86: 0 | DA86: 0 | DB86: 0 | DC86: 0 | DD86: 0 | DE86: 0 | DF86: 0 | DG86: 0 | DH86: 0 | DI86: 0 | DJ86: 0 | DK86: 0 | DL86: =IF(ISTEXT($EB86),0,IF(AND(CostType=LOM,LOMComplete,DL$27<=ScheduleYear),DL87*$J87,IF(CostType=Bond,$EB87*DL87*$EA87,IF(DL$27<=ScheduleYear,0,DL87*$EB87)))) -> 0 | DM86: 0 | DN86: 0 | DO86: 0 | DP86: =IF(ISNUMBER(K86),SUM(T86:DO86)-K86,K86) -> Cost Type | EB86: =IF(ISERR(ED86),"Cost Type",IF(A86="X","Override",IF(AND(CostType=ARO,L86>ScheduleYear),0,IF(AND(ISTEXT(LocationFilter),ISERROR(EI86)),"Location",IF(AND(ISTEXT(PropertyFilter),ISERROR(EJ86)),"Property",IF(AND(ISTEXT(FacilityTypeFilter),ISERROR(EG86)),"Facility Type",IF(AND(ISTEXT(IDCodeFilter),ISERROR(EF86)),"ID Code",IF(AND(ISTEXT(PhaseFilter),ISERROR(EH86)),"Phase",J86)))))))) -> Cost Type | EC86: =IF(EE86="","Cost Type",IF(A86="X","Override",IF(AND(OtherCostType=ARO,L86>ScheduleYear),0,IF(AND(ISTEXT(LocationFilter),EI86=""),"Location",IF(AND(ISTEXT(PropertyFilter),EJ86=""),"Property",IF(AND(ISTEXT(FacilityTypeFilter),EG86=""),"Facility Type",IF(AND(ISTEXT(IDCodeFilter),EF86=""),"ID Code",IF(AND(ISTEXT(PhaseFilter),EH86=""),"Phase",J86)))))))) ->  | ED86: =SEARCH(CostType,C86) ->  | EE86: =SEARCH(OtherCostType,C86) ->  | EF86: =IF(AND(IDCodeFilterType="CONTAINS",NOT(ISERROR(SEARCH(IDCodeFilter,E86)))),1,IF(AND(IDCodeFilterType="NOT",ISERROR(SEARCH(IDCodeFilter,E86))),1,IF(AND(OR(IDCodeFilterType="EXACT",ISBLANK(IDCodeFilterType)),NOT(ISERROR(MATCH(IDCodeFilter,E86,0)))),1,$EK86))) ->  | EG86: =IF(AND(FacilityFilterType="CONTAINS",NOT(ISERROR(SEARCH(FacilityTypeFilter,F86)))),1,IF(AND(FacilityFilterType="NOT",ISERROR(SEARCH(FacilityTypeFilter,F86))),1,IF(AND(OR(FacilityFilterType="EXACT",ISBLANK(FacilityFilterType)),NOT(ISERROR(MATCH(FacilityTypeFilter,F86,0)))),1,$EK86))) ->  | EH86: =IF(AND(PhaseFilterType="CONTAINS",NOT(ISERROR(SEARCH(PhaseFilter,G86)))),1,IF(AND(PhaseFilterType="NOT",ISERROR(SEARCH(PhaseFilter,G86))),1,IF(AND(OR(PhaseFilterType="EXACT",ISBLANK(PhaseFilterType)),NOT(ISERROR(MATCH(PhaseFilter,G86,0)))),1,$EK86))) ->  | EI86: =IF(AND(LocationFilterType="CONTAINS",NOT(ISERROR(SEARCH(LocationFilter,H86)))),1,IF(AND(LocationFilterType="NOT",ISERROR(SEARCH(LocationFilter,H86))),1,IF(AND(OR(LocationFilterType="EXACT",ISBLANK(LocationFilterType)),NOT(ISERROR(MATCH(LocationFilter,H86,0)))),1,$EK86))) ->  | EJ86: =IF(AND(PropertyFilterType="CONTAINS",NOT(ISERROR(SEARCH(PropertyFilter,I86)))),1,IF(AND(PropertyFilterType="NOT",ISERROR(SEARCH(PropertyFilter,I86))),1,IF(AND(OR(PropertyFilterType="EXACT",ISBLANK(PropertyFilterType)),NOT(ISERROR(MATCH(PropertyFilter,I86,0)))),1,$EK86))) ->  | EK86: =MATCH("NOT",$EK$27,0) ->  | EL86: =IF(ISBLANK(INDEX(INDIRECT("_"&$A$85&"Table1"),B86+1,2)),"",MATCH(INDEX(INDIRECT("_"&$A$85&"Table1"),B86+1,5),Accounts,0)) ->  | EZ86: FALSE | FA86: 1
D87: Cap/Backfill/Cover | J87: =INDEX(INDIRECT("_"&$A$85&"Table2"),B86+1,20) -> 0 | K87: =IF(OR(J87="",K86="",ISTEXT(K86),J87=0),"",IF(OR(ISBLANK(M87),ISBLANK(N87)),"Enter Dates",IF(K86="Date Range","",IF(OR(AND(CostType=ARO,L86>ScheduleYear),AND(CostType=ARO,N87<=ScheduleYear)),"Date Range",IF(OR(AND(CostType=Bond,O87>ScheduleYear),AND(CostType=LOM,LOMComplete)),J87,J87-Q87))))) ->  | P87: =IF(ISTEXT(K87),"",SUM(T87:DO87)) ->  | Q87: =IF(OR(AND(CostType=ARO,N87<=ScheduleYear),AND(CostType=LOM,LOMComplete)),J87*R87,R87*EB87) -> 0 | R87: =IF(CostType=Bond,SUMIFS(T87:DP87,T$27:DP$27,"<="&O87,T$27:DP$27,"<="&ScheduleYear),SUMIF(T$27:DP$27,"<="&ScheduleYear,T87:DP87)) -> 0 | EA87: =IF(OR(ISBLANK($O87),$O87>ScheduleYear),1,0) -> 1 | EB87: =IF(OR(J87="",EB86="",ISTEXT(EB86)),0,IF(OR(ISBLANK(M87),ISBLANK(N87)),0,IF(OR(AND(CostType=ARO,L86>ScheduleYear),AND(OR(CostType=ARO,AND(CostType=LOM,LOMComplete=TRUE)),N87<=ScheduleYear)),0,J87))) -> 0 | EC87: =IF(OR(J87="",EC86="",ISTEXT(EC86)),0,IF(OR(ISBLANK(M87),ISBLANK(N87)),0,IF(EC86="Date Range",0,IF(OR(AND(OtherCostType=ARO,L86>ScheduleYear),N87<=ScheduleYear),0,J87)))) ->  | EM87: Backfill | EN87: Backfill | EO87: =IF(ISNUMBER(K87),IF(INDEX(INDIRECT("_"&$A$85&"Table2"),B86+1,4)=0,"",INDEX(INDIRECT("_"&$A$85&"Table2"),B86+1,4)),"") ->  | EP87: =IF(Metric,"m3","cy") -> cy | EQ87: =INDEX(INDIRECT("_"&$A$85&"Table2"),B86+1,5) ->  | ER87: =IF(OR(NOT(ISNUMBER(K87)),K87=0),0,INDEX(INDIRECT("_"&$A$85&"Table2"),B86+1,8)) -> 0 | ES87: =IF(OR(NOT(ISNUMBER(K87)),K87=0),0,INDEX(INDIRECT("_"&$A$85&"Table2"),B86+1,9)) -> 0 | EZ87: TRUE
EZ88: FALSE
A89: Roads | B89: ROADS | J89: =SumByColor(J90,J90:J95) -> 0 | K89: =SumByColor(K90,K90:K95) -> 0 | Q89: =SumByColor(Q90,Q90:Q95) -> 0 | T89: =SumByColor(T90,T90:T95) -> 0 | U89: 0 | V89: 0 | W89: 0 | X89: 0 | Y89: 0 | Z89: 0 | AA89: 0 | AB89: 0 | AC89: 0 | AD89: 0 | AE89: 0 | AF89: 0 | AG89: 0 | AH89: 0 | AI89: 0 | AJ89: 0 | AK89: 0 | AL89: 0 | AM89: 0 | AN89: 0 | AO89: 0 | AP89: 0 | AQ89: 0 | AR89: 0 | AS89: 0 | AT89: 0 | AU89: 0 | AV89: 0 | AW89: 0 | AX89: 0 | AY89: 0 | AZ89: =SumByColor(AZ90,AZ90:AZ95) -> 0 | BA89: 0 | BB89: 0 | BC89: 0 | BD89: 0 | BE89: 0 | BF89: 0 | BG89: 0 | BH89: 0 | BI89: 0 | BJ89: 0 | BK89: 0 | BL89: 0 | BM89: 0 | BN89: 0 | BO89: 0 | BP89: 0 | BQ89: 0 | BR89: 0 | BS89: 0 | BT89: 0 | BU89: 0 | BV89: 0 | BW89: 0 | BX89: 0 | BY89: 0 | BZ89: 0 | CA89: 0 | CB89: 0 | CC89: 0 | CD89: 0 | CE89: 0 | CF89: =SumByColor(CF90,CF90:CF95) -> 0 | CG89: 0 | CH89: 0 | CI89: 0 | CJ89: 0 | CK89: 0 | CL89: 0 | CM89: 0 | CN89: 0 | CO89: 0 | CP89: 0 | CQ89: 0 | CR89: 0 | CS89: 0 | CT89: 0 | CU89: 0 | CV89: 0 | CW89: 0 | CX89: 0 | CY89: 0 | CZ89: 0 | DA89: 0 | DB89: 0 | DC89: 0 | DD89: 0 | DE89: 0 | DF89: 0 | DG89: 0 | DH89: 0 | DI89: 0 | DJ89: 0 | DK89: 0 | DL89: =SumByColor(DL90,DL90:DL95) -> 0 | DM89: 0 | DN89: 0 | DO89: 0 | EB89: =SumByColor(EB90,EB90:EB95) -> 0 | EC89: =SumByColor(EC90,EC90:EC95) -> 0 | EZ89: FALSE
B90: =(ROW(B90) - ROW($A$89)-1)/INDEX(SheetRangeIndex,MATCH($A$89,TableNamesSorted,0),7) -> 0 | C90: =INDEX(INDIRECT("_"&$A$89&"Table1"),B90+1,9) -> 0 | D90: =INDEX(INDIRECT("_"&$A$89&"Table1"),B90+1,2) -> 0 | E90: =IF(ISBLANK(INDEX(INDIRECT("_"&$A$89&"Table1"),B90+1,3)),"",INDEX(INDIRECT("_"&$A$89&"Table1"),B90+1,3)) ->  | F90: =IF(ISERROR(EL90),"Facility Type",IF(ISBLANK(INDEX(INDIRECT("_"&$A$89&"Table1"),B90+1,5)),"",INDEX(INDIRECT("_"&$A$89&"Table1"),B90+1,5))) ->  | G90: =IF(ISBLANK(INDEX(INDIRECT("_"&$A$89&"Table1"),B90+1,6)),"",INDEX(INDIRECT("_"&$A$89&"Table1"),B90+1,6)) ->  | H90: =IF(ISBLANK(INDEX(INDIRECT("_"&$A$89&"Table1"),B90+1,7)),"",INDEX(INDIRECT("_"&$A$89&"Table1"),B90+1,7)) ->  | I90: =IF(ISBLANK(INDEX(INDIRECT("_"&$A$89&"Table1"),B90+1,8)),"",INDEX(INDIRECT("_"&$A$89&"Table1"),B90+1,8)) ->  | J90: =SUM(J91:J94) -> 0 | K90: =IF(ISERR(ED90),"Cost Type",IF(A90="X","Override",IF(AND(CostType=ARO,L90>ScheduleYear),"Date Range",IF(AND(ISTEXT(LocationFilter),ISERROR(EI90)),"Location",IF(AND(ISTEXT(PropertyFilter),ISERROR(EJ90)),"Property",IF(AND(ISTEXT(FacilityTypeFilter),ISERROR(EG90)),"Facility Type",IF(AND(NOT(ISBLANK(IDCodeFilter)),ISERROR(EF90)),"ID Code",IF(AND(ISTEXT(PhaseFilter),ISERROR(EH90)),"Phase",IF(AND(CostType=LOM,LOMComplete),J90,SUM(T90:DO90)))))))))) -> Cost Type | L90: =INDEX(INDIRECT("_"&$A$89&"Table1"),B90+1,4) -> 0 | Q90: =SUM(Q91:Q94) -> 0 | T90: =IF(ISTEXT($EB90),0,IF(AND(CostType=LOM,LOMComplete,T$27<=ScheduleYear),SUMPRODUCT(T91:T94,$J91:$J94),IF(CostType=Bond,SUMPRODUCT($EB91:$EB94,T91:T94,$EA91:$EA94),IF(T$27<=ScheduleYear,0,SUMPRODUCT(T91:T94,$EB91:$EB94))))) -> 0 | U90: 0 | V90: 0 | W90: 0 | X90: 0 | Y90: 0 | Z90: 0 | AA90: 0 | AB90: 0 | AC90: 0 | AD90: 0 | AE90: 0 | AF90: 0 | AG90: 0 | AH90: 0 | AI90: 0 | AJ90: 0 | AK90: 0 | AL90: 0 | AM90: 0 | AN90: 0 | AO90: 0 | AP90: 0 | AQ90: 0 | AR90: 0 | AS90: 0 | AT90: 0 | AU90: 0 | AV90: 0 | AW90: 0 | AX90: 0 | AY90: 0 | AZ90: =IF(ISTEXT($EB90),0,IF(AND(CostType=LOM,LOMComplete,AZ$27<=ScheduleYear),SUMPRODUCT(AZ91:AZ94,$J91:$J94),IF(CostType=Bond,SUMPRODUCT($EB91:$EB94,AZ91:AZ94,$EA91:$EA94),IF(AZ$27<=ScheduleYear,0,SUMPRODUCT(AZ91:AZ94,$EB91:$EB94))))) -> 0 | BA90: 0 | BB90: 0 | BC90: 0 | BD90: 0 | BE90: 0 | BF90: 0 | BG90: 0 | BH90: 0 | BI90: 0 | BJ90: 0 | BK90: 0 | BL90: 0 | BM90: 0 | BN90: 0 | BO90: 0 | BP90: 0 | BQ90: 0 | BR90: 0 | BS90: 0 | BT90: 0 | BU90: 0 | BV90: 0 | BW90: 0 | BX90: 0 | BY90: 0 | BZ90: 0 | CA90: 0 | CB90: 0 | CC90: 0 | CD90: 0 | CE90: 0 | CF90: =IF(ISTEXT($EB90),0,IF(AND(CostType=LOM,LOMComplete,CF$27<=ScheduleYear),SUMPRODUCT(CF91:CF94,$J91:$J94),IF(CostType=Bond,SUMPRODUCT($EB91:$EB94,CF91:CF94,$EA91:$EA94),IF(CF$27<=ScheduleYear,0,SUMPRODUCT(CF91:CF94,$EB91:$EB94))))) -> 0 | CG90: 0 | CH90: 0 | CI90: 0 | CJ90: 0 | CK90: 0 | CL90: 0 | CM90: 0 | CN90: 0 | CO90: 0 | CP90: 0 | CQ90: 0 | CR90: 0 | CS90: 0 | CT90: 0 | CU90: 0 | CV90: 0 | CW90: 0 | CX90: 0 | CY90: 0 | CZ90: 0 | DA90: 0 | DB90: 0 | DC90: 0 | DD90: 0 | DE90: 0 | DF90: 0 | DG90: 0 | DH90: 0 | DI90: 0 | DJ90: 0 | DK90: 0 | DL90: =IF(ISTEXT($EB90),0,IF(AND(CostType=LOM,LOMComplete,DL$27<=ScheduleYear),SUMPRODUCT(DL91:DL94,$J91:$J94),IF(CostType=Bond,SUMPRODUCT($EB91:$EB94,DL91:DL94,$EA91:$EA94),IF(DL$27<=ScheduleYear,0,SUMPRODUCT(DL91:DL94,$EB91:$EB94))))) -> 0 | DM90: 0 | DN90: 0 | DO90: 0 | DP90: =IF(ISNUMBER(K90),SUM(T90:DO90)-K90,K90) -> Cost Type | EB90: =IF(ISERR(ED90),"Cost Type",IF(A90="X","Override",IF(AND(CostType=ARO,L90>ScheduleYear),0,IF(AND(ISTEXT(LocationFilter),ISERROR(EI90)),"Location",IF(AND(ISTEXT(PropertyFilter),ISERROR(EJ90)),"Property",IF(AND(ISTEXT(FacilityTypeFilter),ISERROR(EG90)),"Facility Type",IF(AND(ISTEXT(IDCodeFilter),ISERROR(EF90)),"ID Code",IF(AND(ISTEXT(PhaseFilter),ISERROR(EH90)),"Phase",J90)))))))) -> Cost Type | EC90: =IF(EE90="","Cost Type",IF(A90="X","Override",IF(AND(OtherCostType=ARO,L90>ScheduleYear),0,IF(AND(ISTEXT(LocationFilter),EI90=""),"Location",IF(AND(ISTEXT(PropertyFilter),EJ90=""),"Property",IF(AND(ISTEXT(FacilityTypeFilter),EG90=""),"Facility Type",IF(AND(ISTEXT(IDCodeFilter),EF90=""),"ID Code",IF(AND(ISTEXT(PhaseFilter),EH90=""),"Phase",J90)))))))) ->  | ED90: =SEARCH(CostType,C90) ->  | EE90: =SEARCH(OtherCostType,C90) ->  | EF90: =IF(AND(IDCodeFilterType="CONTAINS",NOT(ISERROR(SEARCH(IDCodeFilter,E90)))),1,IF(AND(IDCodeFilterType="NOT",ISERROR(SEARCH(IDCodeFilter,E90))),1,IF(AND(OR(IDCodeFilterType="EXACT",ISBLANK(IDCodeFilterType)),NOT(ISERROR(MATCH(IDCodeFilter,E90,0)))),1,$EK90))) ->  | EG90: =IF(AND(FacilityFilterType="CONTAINS",NOT(ISERROR(SEARCH(FacilityTypeFilter,F90)))),1,IF(AND(FacilityFilterType="NOT",ISERROR(SEARCH(FacilityTypeFilter,F90))),1,IF(AND(OR(FacilityFilterType="EXACT",ISBLANK(FacilityFilterType)),NOT(ISERROR(MATCH(FacilityTypeFilter,F90,0)))),1,$EK90))) ->  | EH90: =IF(AND(PhaseFilterType="CONTAINS",NOT(ISERROR(SEARCH(PhaseFilter,G90)))),1,IF(AND(PhaseFilterType="NOT",ISERROR(SEARCH(PhaseFilter,G90))),1,IF(AND(OR(PhaseFilterType="EXACT",ISBLANK(PhaseFilterType)),NOT(ISERROR(MATCH(PhaseFilter,G90,0)))),1,$EK90))) ->  | EI90: =IF(AND(LocationFilterType="CONTAINS",NOT(ISERROR(SEARCH(LocationFilter,H90)))),1,IF(AND(LocationFilterType="NOT",ISERROR(SEARCH(LocationFilter,H90))),1,IF(AND(OR(LocationFilterType="EXACT",ISBLANK(LocationFilterType)),NOT(ISERROR(MATCH(LocationFilter,H90,0)))),1,$EK90))) ->  | EJ90: =IF(AND(PropertyFilterType="CONTAINS",NOT(ISERROR(SEARCH(PropertyFilter,I90)))),1,IF(AND(PropertyFilterType="NOT",ISERROR(SEARCH(PropertyFilter,I90))),1,IF(AND(OR(PropertyFilterType="EXACT",ISBLANK(PropertyFilterType)),NOT(ISERROR(MATCH(PropertyFilter,I90,0)))),1,$EK90))) ->  | EK90: =MATCH("NOT",$EK$27,0) ->  | EL90: =IF(ISBLANK(INDEX(INDIRECT("_"&$A$89&"Table1"),B90+1,2)),"",MATCH(INDEX(INDIRECT("_"&$A$89&"Table1"),B90+1,5),Accounts,0)) ->  | EZ90: FALSE | FA90: 1
D91: Regrading | J91: =IF(INDEX(INDIRECT("_"&$A$89&"Table4"),B90+1,10)=0,0,INDEX(INDIRECT("_"&$A$89&"Table4"),B90+1,10)) -> 0 | K91: =IF(OR(J91="",K90="",ISTEXT(K90),J91=0),"",IF(OR(ISBLANK(M91),ISBLANK(N91)),"Enter Dates",IF(K90="Date Range","",IF(OR(AND(CostType=ARO,L90>ScheduleYear),AND(CostType=ARO,N91<=ScheduleYear)),"Date Range",IF(OR(AND(CostType=Bond,O91>ScheduleYear),AND(CostType=LOM,LOMComplete)),J91,J91-Q91))))) ->  | P91: =IF(K91="","",SUM(T91:DO91)) ->  | Q91: =IF(OR(AND(CostType=ARO,N91<=ScheduleYear),AND(CostType=LOM,LOMComplete)),J91*R91,R91*EB91) -> 0 | R91: =IF(CostType=Bond,SUMIFS(T91:DP91,T$27:DP$27,"<="&O91,T$27:DP$27,"<="&ScheduleYear),SUMIF(T$27:DP$27,"<="&ScheduleYear,T91:DP91)) -> 0 | EA91: =IF(OR(ISBLANK($O91),$O91>ScheduleYear),1,0) -> 1 | EB91: =IF(OR(J91="",EB90="",ISTEXT(EB90)),0,IF(OR(ISBLANK(M91),ISBLANK(N91)),0,IF(OR(AND(CostType=ARO,L90>ScheduleYear),AND(OR(CostType=ARO,AND(CostType=LOM,LOMComplete=TRUE)),N91<=ScheduleYear)),0,J91))) -> 0 | EC91: =IF(OR(J91="",EC90="",ISTEXT(EC90)),0,IF(OR(ISBLANK(M91),ISBLANK(N91)),0,IF(EC90="Date Range",0,IF(OR(AND(OtherCostType=ARO,L90>ScheduleYear),N91<=ScheduleYear),0,J91)))) ->  | EM91: Regrade | EN91: Regrade | EO91: =IF(ISNUMBER(K91),IF(INDEX(INDIRECT("_"&$A$89&"Table4"),B90+1,3)=0,0,INDEX(INDIRECT("_"&$A$89&"Table4"),B90+1,3)),0) -> 0 | EP91: =IF(Metric,"m3","cy") -> cy | EQ91: =INDEX(INDIRECT("_"&$A$89&"Table4"),B90+1,4) ->  | ER91: =IF(OR(NOT(ISNUMBER(K91)),K91=0),0,INDEX(INDIRECT("_"&$A$89&"Table4"),B90+1,5)) -> 0 | ES91: =IF(OR(NOT(ISNUMBER(K91)),K91=0),0,INDEX(INDIRECT("_"&$A$89&"Table4"),B90+1,6)) -> 0 | EZ91: TRUE
D92: Growth Media Placement | J92: =INDEX(INDIRECT("_"&$A$89&"Table5"),B90+1,11) -> 0 | K92: =IF(OR(J92="",K90="",ISTEXT(K90),J92=0),"",IF(OR(ISBLANK(M92),ISBLANK(N92)),"Enter Dates",IF(K90="Date Range","",IF(OR(AND(CostType=ARO,L90>ScheduleYear),AND(CostType=ARO,N92<=ScheduleYear)),"Date Range",IF(OR(AND(CostType=Bond,O92>ScheduleYear),AND(CostType=LOM,LOMComplete)),J92,J92-Q92))))) ->  | P92: =IF(K92="","",SUM(T92:DO92)) ->  | Q92: =IF(OR(AND(CostType=ARO,N92<=ScheduleYear),AND(CostType=LOM,LOMComplete)),J92*R92,R92*EB92) -> 0 | R92: =IF(CostType=Bond,SUMIFS(T92:DP92,T$27:DP$27,"<="&O92,T$27:DP$27,"<="&ScheduleYear),SUMIF(T$27:DP$27,"<="&ScheduleYear,T92:DP92)) -> 0 | EA92: =IF(OR(ISBLANK($O92),$O92>ScheduleYear),1,0) -> 1 | EB92: =IF(OR(J92="",EB90="",ISTEXT(EB90)),0,IF(OR(ISBLANK(M92),ISBLANK(N92)),0,IF(OR(AND(CostType=ARO,L90>ScheduleYear),AND(OR(CostType=ARO,AND(CostType=LOM,LOMComplete=TRUE)),N92<=ScheduleYear)),0,J92))) -> 0 | EC92: =IF(OR(J92="",EC90="",ISTEXT(EC90)),0,IF(OR(ISBLANK(M92),ISBLANK(N92)),0,IF(EC90="Date Range",0,IF(OR(AND(CostType=ARO,L90>ScheduleYear),N92<=ScheduleYear),0,J92)))) ->  | EM92: GM | EN92: GM | EO92: =IF(ISNUMBER(K92),INDEX(INDIRECT("_"&$A$89&"Table5"),B90+1,3),0) -> 0 | EP92: =IF(Metric,"m3","cy") -> cy | EQ92: =INDEX(INDIRECT("_"&$A$89&"Table5"),B90+1,4) ->  | ER92: =IF(OR(NOT(ISNUMBER(K92)),K92=0),0,INDEX(INDIRECT("_"&$A$89&"Table5"),B90+1,7)) -> 0 | ES92: =IF(OR(NOT(ISNUMBER(K92)),K92=0),0,INDEX(INDIRECT("_"&$A$89&"Table5"),B90+1,8)) -> 0 | EZ92: TRUE
D93: Ripping/Scarifying | J93: =INDEX(INDIRECT("_"&$A$89&"Table6"),B90+1,9) -> 0 | K93: =IF(OR(J93="",K90="",ISTEXT(K90),J93=0),"",IF(OR(ISBLANK(M93),ISBLANK(N93)),"Enter Dates",IF(K90="Date Range","",IF(OR(AND(CostType=ARO,L90>ScheduleYear),AND(CostType=ARO,N93<=ScheduleYear)),"Date Range",IF(OR(AND(CostType=Bond,O93>ScheduleYear),AND(CostType=LOM,LOMComplete)),J93,J93-Q93))))) ->  | P93: =IF(K93="","",SUM(T93:DO93)) ->  | Q93: =IF(OR(AND(CostType=ARO,N93<=ScheduleYear),AND(CostType=LOM,LOMComplete)),J93*R93,R93*EB93) -> 0 | R93: =IF(CostType=Bond,SUMIFS(T93:DP93,T$27:DP$27,"<="&O93,T$27:DP$27,"<="&ScheduleYear),SUMIF(T$27:DP$27,"<="&ScheduleYear,T93:DP93)) -> 0 | EA93: =IF(OR(ISBLANK($O93),$O93>ScheduleYear),1,0) -> 1 | EB93: =IF(OR(J93="",EB90="",ISTEXT(EB90)),0,IF(OR(ISBLANK(M93),ISBLANK(N93)),0,IF(OR(AND(CostType=ARO,L90>ScheduleYear),AND(OR(CostType=ARO,AND(CostType=LOM,LOMComplete=TRUE)),N93<=ScheduleYear)),0,J93))) -> 0 | EC93: =IF(OR(J93="",EC90="",ISTEXT(EC90)),0,IF(OR(ISBLANK(M93),ISBLANK(N93)),0,IF(EC90="Date Range",0,IF(OR(AND(CostType=ARO,L90>ScheduleYear),N93<=ScheduleYear),0,J93)))) ->  | EM93: Rip | EN93: Rip | EO93: =IF(ISNUMBER(K93),INDEX(INDIRECT("_"&$A$89&"Table6"),B90+1,3),0) -> 0 | EP93: =IF(Metric,"ha","acres") -> acres | EQ93: =INDEX(INDIRECT("_"&$A$89&"Table6"),B90+1,5) ->  | ES93: =IF(OR(NOT(ISNUMBER(K93)),K93=0),0,INDEX(INDIRECT("_"&$A$89&"Table6"),B90+1,6)) -> 0 | EZ93: TRUE
D94: Revegetation | J94: =INDEX(INDIRECT("_"&$A$89&"Table6"),B90+1,13) -> 0 | K94: =IF(OR(J94="",K90="",ISTEXT(K90),J94=0),"",IF(OR(ISBLANK(M94),ISBLANK(N94)),"Enter Dates",IF(K90="Date Range","",IF(OR(AND(CostType=ARO,L90>ScheduleYear),AND(CostType=ARO,N94<=ScheduleYear)),"Date Range",IF(OR(AND(CostType=Bond,O94>ScheduleYear),AND(CostType=LOM,LOMComplete)),J94,J94-Q94))))) ->  | P94: =IF(K94="","",SUM(T94:DO94)) ->  | Q94: =IF(OR(AND(CostType=ARO,N94<=ScheduleYear),AND(CostType=LOM,LOMComplete)),J94*R94,R94*EB94) -> 0 | R94: =IF(CostType=Bond,SUMIFS(T94:DP94,T$27:DP$27,"<="&O94,T$27:DP$27,"<="&ScheduleYear),SUMIF(T$27:DP$27,"<="&ScheduleYear,T94:DP94)) -> 0 | EA94: =IF(OR(ISBLANK($O94),$O94>ScheduleYear),1,0) -> 1 | EB94: =IF(OR(J94="",EB90="",ISTEXT(EB90)),0,IF(OR(ISBLANK(M94),ISBLANK(N94)),0,IF(OR(AND(CostType=ARO,L90>ScheduleYear),AND(OR(CostType=ARO,AND(CostType=LOM,LOMComplete=TRUE)),N94<=ScheduleYear)),0,J94))) -> 0 | EC94: =IF(OR(J94="",EC90="",ISTEXT(EC90)),0,IF(OR(ISBLANK(M94),ISBLANK(N94)),0,IF(EC90="Date Range",0,IF(OR(AND(CostType=ARO,L90>ScheduleYear),N94<=ScheduleYear),0,J94)))) ->  | EM94: Reveg | EN94: Reveg | EO94: =IF(ISNUMBER(K94),INDEX(INDIRECT("_"&$A$89&"Table6"),B90+1,3),0) -> 0 | EP94: =IF(Metric,"ha","acres") -> acres | EZ94: TRUE
EZ95: FALSE
A96: Ponds | B96: PROCESS PONDS | J96: =SumByColor(J97,J97:J153) -> 26142 | K96: =SumByColor(K97,K97:K153) -> 26142 | Q96: =SumByColor(Q97,Q97:Q153) -> 0 | T96: =SumByColor(T97,T97:T153) -> 0 | U96: 0 | V96: 0 | W96: 0 | X96: 26142 | Y96: 0 | Z96: 0 | AA96: 0 | AB96: 0 | AC96: 0 | AD96: 0 | AE96: 0 | AF96: 0 | AG96: 0 | AH96: 0 | AI96: 0 | AJ96: 0 | AK96: 0 | AL96: 0 | AM96: 0 | AN96: 0 | AO96: 0 | AP96: 0 | AQ96: 0 | AR96: 0 | AS96: 0 | AT96: 0 | AU96: 0 | AV96: 0 | AW96: 0 | AX96: 0 | AY96: 0 | AZ96: =SumByColor(AZ97,AZ97:AZ153) -> 0 | BA96: 0 | BB96: 0 | BC96: 0 | BD96: 0 | BE96: 0 | BF96: 0 | BG96: 0 | BH96: 0 | BI96: 0 | BJ96: 0 | BK96: 0 | BL96: 0 | BM96: 0 | BN96: 0 | BO96: 0 | BP96: 0 | BQ96: 0 | BR96: 0 | BS96: 0 | BT96: 0 | BU96: 0 | BV96: 0 | BW96: 0 | BX96: 0 | BY96: 0 | BZ96: 0 | CA96: 0 | CB96: 0 | CC96: 0 | CD96: 0 | CE96: 0 | CF96: =SumByColor(CF97,CF97:CF153) -> 0 | CG96: 0 | CH96: 0 | CI96: 0 | CJ96: 0 | CK96: 0 | CL96: 0 | CM96: 0 | CN96: 0 | CO96: 0 | CP96: 0 | CQ96: 0 | CR96: 0 | CS96: 0 | CT96: 0 | CU96: 0 | CV96: 0 | CW96: 0 | CX96: 0 | CY96: 0 | CZ96: 0 | DA96: 0 | DB96: 0 | DC96: 0 | DD96: 0 | DE96: 0 | DF96: 0 | DG96: 0 | DH96: 0 | DI96: 0 | DJ96: 0 | DK96: 0 | DL96: =SumByColor(DL97,DL97:DL153) -> 0 | DM96: 0 | DN96: 0 | DO96: 0 | EB96: =SumByColor(EB97,EB97:EB153) -> 26142 | EC96: =SumByColor(EC97,EC97:EC153) -> 0 | EZ96: FALSE
B97: =(ROW(B97) - ROW($A$96)-1)/INDEX(SheetRangeIndex,MATCH($A$96,TableNamesSorted,0),7) -> 0 | C97: =INDEX(INDIRECT("_"&$A$96&"Table1"),B97+1,9) -> 0 | D97: =INDEX(INDIRECT("_"&$A$96&"Table1"),B97+1,2) -> 0 | E97: =IF(ISBLANK(INDEX(INDIRECT("_"&INDEX(SheetRangeIndex,MATCH($A$96,TableNamesSorted,0),3)&"Table1"),B97+1,3)),"",INDEX(INDIRECT("_"&INDEX(SheetRangeIndex,MATCH($A$96,TableNamesSorted,0),3)&"Table1"),B97+1,3)) ->  | F97: =IF(ISERROR(EL97),"Facility Type",IF(ISBLANK(INDEX(INDIRECT("_"&$A$96&"Table1"),B97+1,5)),"",INDEX(INDIRECT("_"&$A$96&"Table1"),B97+1,5))) ->  | G97: =IF(ISBLANK(INDEX(INDIRECT("_"&$A$96&"Table1"),B97+1,6)),"",INDEX(INDIRECT("_"&$A$96&"Table1"),B97+1,6)) ->  | H97: =IF(ISBLANK(INDEX(INDIRECT("_"&$A$96&"Table1"),B97+1,7)),"",INDEX(INDIRECT("_"&$A$96&"Table1"),B97+1,7)) ->  | I97: =IF(ISBLANK(INDEX(INDIRECT("_"&$A$96&"Table1"),B97+1,8)),"",INDEX(INDIRECT("_"&$A$96&"Table1"),B97+1,8)) ->  | J97: =SUM(J98:J104) -> 0 | K97: =IF(ISERR(ED97),"Cost Type",IF(A97="X","Override",IF(AND(CostType=ARO,L97>ScheduleYear),"Date Range",IF(AND(ISTEXT(LocationFilter),ISERROR(EI97)),"Location",IF(AND(ISTEXT(PropertyFilter),ISERROR(EJ97)),"Property",IF(AND(ISTEXT(FacilityTypeFilter),ISERROR(EG97)),"Facility Type",IF(AND(NOT(ISBLANK(IDCodeFilter)),ISERROR(EF97)),"ID Code",IF(AND(ISTEXT(PhaseFilter),ISERROR(EH97)),"Phase",IF(AND(CostType=LOM,LOMComplete),J97,SUM(T97:DO97)))))))))) -> Cost Type | L97: =INDEX(INDIRECT("_"&$A$96&"Table1"),B97+1,4) -> 0 | Q97: =SUM(Q98:Q104) -> 0 | T97: =IF(ISTEXT($EB97),0,IF(AND(CostType=LOM,LOMComplete,T$27<=ScheduleYear),SUMPRODUCT(T98:T104,$J98:$J104),IF(CostType=Bond,SUMPRODUCT($EB98:$EB104,T98:T104,$EA98:$EA104),IF(T$27<=ScheduleYear,0,SUMPRODUCT(T98:T104,$EB98:$EB104))))) -> 0 | U97: 0 | V97: 0 | W97: 0 | X97: 0 | Y97: 0 | Z97: 0 | AA97: 0 | AB97: 0 | AC97: 0 | AD97: 0 | AE97: 0 | AF97: 0 | AG97: 0 | AH97: 0 | AI97: 0 | AJ97: 0 | AK97: 0 | AL97: 0 | AM97: 0 | AN97: 0 | AO97: 0 | AP97: 0 | AQ97: 0 | AR97: 0 | AS97: 0 | AT97: 0 | AU97: 0 | AV97: 0 | AW97: 0 | AX97: 0 | AY97: 0 | AZ97: =IF(ISTEXT($EB97),0,IF(AND(CostType=LOM,LOMComplete,AZ$27<=ScheduleYear),SUMPRODUCT(AZ98:AZ104,$J98:$J104),IF(CostType=Bond,SUMPRODUCT($EB98:$EB104,AZ98:AZ104,$EA98:$EA104),IF(AZ$27<=ScheduleYear,0,SUMPRODUCT(AZ98:AZ104,$EB98:$EB104))))) -> 0 | BA97: 0 | BB97: 0 | BC97: 0 | BD97: 0 | BE97: 0 | BF97: 0 | BG97: 0 | BH97: 0 | BI97: 0 | BJ97: 0 | BK97: 0 | BL97: 0 | BM97: 0 | BN97: 0 | BO97: 0 | BP97: 0 | BQ97: 0 | BR97: 0 | BS97: 0 | BT97: 0 | BU97: 0 | BV97: 0 | BW97: 0 | BX97: 0 | BY97: 0 | BZ97: 0 | CA97: 0 | CB97: 0 | CC97: 0 | CD97: 0 | CE97: 0 | CF97: =IF(ISTEXT($EB97),0,IF(AND(CostType=LOM,LOMComplete,CF$27<=ScheduleYear),SUMPRODUCT(CF98:CF104,$J98:$J104),IF(CostType=Bond,SUMPRODUCT($EB98:$EB104,CF98:CF104,$EA98:$EA104),IF(CF$27<=ScheduleYear,0,SUMPRODUCT(CF98:CF104,$EB98:$EB104))))) -> 0 | CG97: 0 | CH97: 0 | CI97: 0 | CJ97: 0 | CK97: 0 | CL97: 0 | CM97: 0 | CN97: 0 | CO97: 0 | CP97: 0 | CQ97: 0 | CR97: 0 | CS97: 0 | CT97: 0 | CU97: 0 | CV97: 0 | CW97: 0 | CX97: 0 | CY97: 0 | CZ97: 0 | DA97: 0 | DB97: 0 | DC97: 0 | DD97: 0 | DE97: 0 | DF97: 0 | DG97: 0 | DH97: 0 | DI97: 0 | DJ97: 0 | DK97: 0 | DL97: =IF(ISTEXT($EB97),0,IF(AND(CostType=LOM,LOMComplete,DL$27<=ScheduleYear),SUMPRODUCT(DL98:DL104,$J98:$J104),IF(CostType=Bond,SUMPRODUCT($EB98:$EB104,DL98:DL104,$EA98:$EA104),IF(DL$27<=ScheduleYear,0,SUMPRODUCT(DL98:DL104,$EB98:$EB104))))) -> 0 | DM97: 0 | DN97: 0 | DO97: 0 | DP97: =IF(ISNUMBER(K97),SUM(T97:DO97)-K97,K97) -> Cost Type | EB97: =IF(ISERR(ED97),"Cost Type",IF(A97="X","Override",IF(AND(CostType=ARO,L97>ScheduleYear),0,IF(AND(ISTEXT(LocationFilter),ISERROR(EI97)),"Location",IF(AND(ISTEXT(PropertyFilter),ISERROR(EJ97)),"Property",IF(AND(ISTEXT(FacilityTypeFilter),ISERROR(EG97)),"Facility Type",IF(AND(ISTEXT(IDCodeFilter),ISERROR(EF97)),"ID Code",IF(AND(ISTEXT(PhaseFilter),ISERROR(EH97)),"Phase",J97)))))))) -> Cost Type | EC97: =IF(EE97="","Cost Type",IF(A97="X","Override",IF(AND(OtherCostType=ARO,L97>ScheduleYear),0,IF(AND(ISTEXT(LocationFilter),EI97=""),"Location",IF(AND(ISTEXT(PropertyFilter),EJ97=""),"Property",IF(AND(ISTEXT(FacilityTypeFilter),EG97=""),"Facility Type",IF(AND(ISTEXT(IDCodeFilter),EF97=""),"ID Code",IF(AND(ISTEXT(PhaseFilter),EH97=""),"Phase",J97)))))))) ->  | ED97: =SEARCH(CostType,C97) ->  | EE97: =SEARCH(OtherCostType,C97) ->  | EF97: =IF(AND(IDCodeFilterType="CONTAINS",NOT(ISERROR(SEARCH(IDCodeFilter,E97)))),1,IF(AND(IDCodeFilterType="NOT",ISERROR(SEARCH(IDCodeFilter,E97))),1,IF(AND(OR(IDCodeFilterType="EXACT",ISBLANK(IDCodeFilterType)),NOT(ISERROR(MATCH(IDCodeFilter,E97,0)))),1,$EK97))) ->  | EG97: =IF(AND(FacilityFilterType="CONTAINS",NOT(ISERROR(SEARCH(FacilityTypeFilter,F97)))),1,IF(AND(FacilityFilterType="NOT",ISERROR(SEARCH(FacilityTypeFilter,F97))),1,IF(AND(OR(FacilityFilterType="EXACT",ISBLANK(FacilityFilterType)),NOT(ISERROR(MATCH(FacilityTypeFilter,F97,0)))),1,$EK97))) ->  | EH97: =IF(AND(PhaseFilterType="CONTAINS",NOT(ISERROR(SEARCH(PhaseFilter,G97)))),1,IF(AND(PhaseFilterType="NOT",ISERROR(SEARCH(PhaseFilter,G97))),1,IF(AND(OR(PhaseFilterType="EXACT",ISBLANK(PhaseFilterType)),NOT(ISERROR(MATCH(PhaseFilter,G97,0)))),1,$EK97))) ->  | EI97: =IF(AND(LocationFilterType="CONTAINS",NOT(ISERROR(SEARCH(LocationFilter,H97)))),1,IF(AND(LocationFilterType="NOT",ISERROR(SEARCH(LocationFilter,H97))),1,IF(AND(OR(LocationFilterType="EXACT",ISBLANK(LocationFilterType)),NOT(ISERROR(MATCH(LocationFilter,H97,0)))),1,$EK97))) ->  | EJ97: =IF(AND(PropertyFilterType="CONTAINS",NOT(ISERROR(SEARCH(PropertyFilter,I97)))),1,IF(AND(PropertyFilterType="NOT",ISERROR(SEARCH(PropertyFilter,I97))),1,IF(AND(OR(PropertyFilterType="EXACT",ISBLANK(PropertyFilterType)),NOT(ISERROR(MATCH(PropertyFilter,I97,0)))),1,$EK97))) ->  | EK97: =MATCH("NOT",$EK$27,0) ->  | EL97: =IF(ISBLANK(INDEX(INDIRECT("_"&$A$96&"Table1"),B97+1,2)),"",MATCH(INDEX(INDIRECT("_"&$A$96&"Table1"),B97+1,5),Accounts,0)) ->  | EZ97: FALSE | FA97: 1
D98: Liner Cutting and Folding | J98: =IF(INDEX(INDIRECT("_"&$A$96&"Table5"),B97+1,6)=0,0,INDEX(INDIRECT("_"&$A$96&"Table5"),B97+1,6)) -> 0 | K98: =IF(OR(J98="",K97="",ISTEXT(K97),J98=0),"",IF(OR(ISBLANK(M98),ISBLANK(N98)),"Enter Dates",IF(K97="Date Range","",IF(OR(AND(CostType=ARO,L97>ScheduleYear),AND(CostType=ARO,N98<=ScheduleYear)),"Date Range",IF(OR(AND(CostType=Bond,O98>ScheduleYear),AND(CostType=LOM,LOMComplete)),J98,J98-Q98))))) ->  | P98: =IF(K98="","",SUM(T98:DO98)) ->  | Q98: =IF(OR(AND(CostType=ARO,N98<=ScheduleYear),AND(CostType=LOM,LOMComplete)),J98*R98,R98*EB98) -> 0 | R98: =IF(CostType=Bond,SUMIFS(T98:DP98,T$27:DP$27,"<="&O98,T$27:DP$27,"<="&ScheduleYear),SUMIF(T$27:DP$27,"<="&ScheduleYear,T98:DP98)) -> 0 | EA98: =IF(OR(ISBLANK($O98),$O98>ScheduleYear),1,0) -> 1 | EB98: =IF(OR(J98="",EB97="",ISTEXT(EB97)),0,IF(OR(ISBLANK(M98),ISBLANK(N98)),0,IF(OR(AND(CostType=ARO,L97>ScheduleYear),AND(OR(CostType=ARO,AND(CostType=LOM,LOMComplete=TRUE)),N98<=ScheduleYear)),0,J98))) -> 0 | EC98: =IF(OR(J98="",EC97="",ISTEXT(EC97)),0,IF(OR(ISBLANK(M98),ISBLANK(N98)),0,IF(EC97="Date Range",0,IF(OR(AND(OtherCostType=ARO,L97>ScheduleYear),N98<=ScheduleYear),0,J98)))) ->  | EM98: Liner | EN98: Liner | EO98: =IF(ISNUMBER(K98),IF(INDEX(INDIRECT("_"&$A$96&"Table5"),B97+1,3)=0,0,INDEX(INDIRECT("_"&$A$96&"Table5"),B97+1,3)),0) -> 0 | EP98: =IF(Metric,"m3","cy") -> cy | EQ98: =LinerExcavator -> 325F | ES98: =IF(OR(NOT(ISNUMBER(K98)),K98=0),0,INDEX(INDIRECT("_"&$A$96&"Table4"),B97+1,3)) -> 0 | EZ98: TRUE
D99: Backfill/Cover 1 Placement | J99: =INDEX(INDIRECT("_"&$A$96&"Table6"),B97+1,25) -> 0 | K99: =IF(OR(J99="",K97="",ISTEXT(K97),J99=0),"",IF(OR(ISBLANK(M99),ISBLANK(N99)),"Enter Dates",IF(K97="Date Range","",IF(OR(AND(CostType=ARO,L97>ScheduleYear),AND(CostType=ARO,N99<=ScheduleYear)),"Date Range",IF(OR(AND(CostType=Bond,O99>ScheduleYear),AND(CostType=LOM,LOMComplete)),J99,J99-Q99))))) ->  | Q99: 0 | R99: 0 | EA99: 1 | EB99: =IF(OR(J99="",EB97="",ISTEXT(EB97)),0,IF(OR(ISBLANK(M99),ISBLANK(N99)),0,IF(OR(AND(CostType=ARO,L97>ScheduleYear),AND(OR(CostType=ARO,AND(CostType=LOM,LOMComplete=TRUE)),N99<=ScheduleYear)),0,J99))) -> 0 | EC99: =IF(OR(J99="",EC97="",ISTEXT(EC97)),0,IF(OR(ISBLANK(M99),ISBLANK(N99)),0,IF(EC97="Date Range",0,IF(OR(AND(CostType=ARO,L97>ScheduleYear),N99<=ScheduleYear),0,J99)))) ->  | EM99: Backfill | EN99: Backfill | EO99: =IF(ISNUMBER(K99),INDEX(INDIRECT("_"&$A$96&"Table6"),B97+1,4),0) -> 0 | EP99: =IF(Metric,"m3","cy") -> cy | EQ99: =INDEX(INDIRECT("_"&$A$96&"Table6"),B97+1,10) ->  | ER99: =IF(OR(NOT(ISNUMBER(K99)),K99=0),0,INDEX(INDIRECT("_"&$A$96&"Table6"),B97+1,12)) -> 0 | ES99: =IF(OR(NOT(ISNUMBER(K99)),K99=0),0,INDEX(INDIRECT("_"&$A$96&"Table6"),B97+1,14)) -> 0 | ET99: =INDEX(INDIRECT("_"&$A$96&"Table6"),B97+1,5) ->  | EU99: =IF(OR(NOT(ISNUMBER(K99)),K99=0),0,INDEX(INDIRECT("_"&$A$96&"Table6"),B97+1,7)) -> 0 | EV99: =IF(OR(NOT(ISNUMBER(K99)),K99=0),0,INDEX(INDIRECT("_"&$A$96&"Table6"),B97+1,9)) -> 0 | EZ99: TRUE
D100: Backfill/Cover 2 Placement | J100: =INDEX(INDIRECT("_"&$A$96&"Table7"),B97+1,25) -> 0 | K100: =IF(OR(J100="",K97="",ISTEXT(K97),J100=0),"",IF(OR(ISBLANK(M100),ISBLANK(N100)),"Enter Dates",IF(K97="Date Range","",IF(OR(AND(CostType=ARO,L97>ScheduleYear),AND(CostType=ARO,N100<=ScheduleYear)),"Date Range",IF(OR(AND(CostType=Bond,O100>ScheduleYear),AND(CostType=LOM,LOMComplete)),J100,J100-Q100))))) ->  | Q100: 0 | R100: 0 | EA100: 1 | EB100: =IF(OR(J100="",EB97="",ISTEXT(EB97)),0,IF(OR(ISBLANK(M100),ISBLANK(N100)),0,IF(OR(AND(CostType=ARO,L97>ScheduleYear),AND(OR(CostType=ARO,AND(CostType=LOM,LOMComplete=TRUE)),N100<=ScheduleYear)),0,J100))) -> 0 | EC100: =IF(OR(J100="",EC97="",ISTEXT(EC97)),0,IF(OR(ISBLANK(M100),ISBLANK(N100)),0,IF(EC97="Date Range",0,IF(OR(AND(CostType=ARO,L97>ScheduleYear),N100<=ScheduleYear),0,J100)))) ->  | EM100: Backfill | EN100: Backfill | EO100: =IF(ISNUMBER(K100),INDEX(INDIRECT("_"&$A$96&"Table7"),B97+1,4),0) -> 0 | EP100: =IF(Metric,"m3","cy") -> cy | EQ100: =INDEX(INDIRECT("_"&$A$96&"Table7"),B97+1,10) ->  | ER100: =IF(OR(NOT(ISNUMBER(K100)),K100=0),0,INDEX(INDIRECT("_"&$A$96&"Table7"),B97+1,12)) -> 0 | ES100: =IF(OR(NOT(ISNUMBER(K100)),K100=0),0,INDEX(INDIRECT("_"&$A$96&"Table7"),B97+1,14)) -> 0 | ET100: =INDEX(INDIRECT("_"&$A$96&"Table7"),B97+1,5) ->  | EU100: =IF(OR(NOT(ISNUMBER(K100)),K100=0),0,INDEX(INDIRECT("_"&$A$96&"Table7"),B97+1,7)) -> 0 | EV100: =IF(OR(NOT(ISNUMBER(K100)),K100=0),0,INDEX(INDIRECT("_"&$A$96&"Table7"),B97+1,9)) -> 0 | EZ100: TRUE
D101: Growth Media Placement | J101: =INDEX(INDIRECT("_"&$A$96&"Table8"),B97+1,11) -> 0 | K101: =IF(OR(J101="",K97="",ISTEXT(K97),J101=0),"",IF(OR(ISBLANK(M101),ISBLANK(N101)),"Enter Dates",IF(K97="Date Range","",IF(OR(AND(CostType=ARO,L97>ScheduleYear),AND(CostType=ARO,N101<=ScheduleYear)),"Date Range",IF(OR(AND(CostType=Bond,O101>ScheduleYear),AND(CostType=LOM,LOMComplete)),J101,J101-Q101))))) ->  | Q101: 0 | R101: 0 | EA101: 1 | EB101: =IF(OR(J101="",EB97="",ISTEXT(EB97)),0,IF(OR(ISBLANK(M101),ISBLANK(N101)),0,IF(OR(AND(CostType=ARO,L97>ScheduleYear),AND(OR(CostType=ARO,AND(CostType=LOM,LOMComplete=TRUE)),N101<=ScheduleYear)),0,J101))) -> 0 | EC101: =IF(OR(J101="",EC97="",ISTEXT(EC97)),0,IF(OR(ISBLANK(M101),ISBLANK(N101)),0,IF(EC97="Date Range",0,IF(OR(AND(CostType=ARO,L97>ScheduleYear),N101<=ScheduleYear),0,J101)))) ->  | EM101: GM | EN101: GM | EO101: =IF(ISNUMBER(K101),INDEX(INDIRECT("_"&$A$96&"Table8"),B97+1,3),0) -> 0 | EP101: =IF(Metric,"m3","cy") -> cy | EQ101: =INDEX(INDIRECT("_"&$A$96&"Table8"),B97+1,4) ->  | ER101: =IF(OR(NOT(ISNUMBER(K101)),K101=0),0,INDEX(INDIRECT("_"&$A$96&"Table8"),B97+1,6)) -> 0 | ES101: =IF(OR(NOT(ISNUMBER(K101)),K101=0),0,INDEX(INDIRECT("_"&$A$96&"Table8"),B97+1,8)) -> 0 | EZ101: TRUE
D102: Revegetation | J102: =INDEX(INDIRECT("_"&$A$96&"Table9"),B97+1,7) -> 0 | K102: =IF(OR(J102="",K97="",ISTEXT(K97),J102=0),"",IF(OR(ISBLANK(M102),ISBLANK(N102)),"Enter Dates",IF(K97="Date Range","",IF(OR(AND(CostType=ARO,L97>ScheduleYear),AND(CostType=ARO,N102<=ScheduleYear)),"Date Range",IF(OR(AND(CostType=Bond,O102>ScheduleYear),AND(CostType=LOM,LOMComplete)),J102,J102-Q102))))) ->  | Q102: 0 | R102: 0 | EA102: 1 | EB102: =IF(OR(J102="",EB97="",ISTEXT(EB97)),0,IF(OR(ISBLANK(M102),ISBLANK(N102)),0,IF(OR(AND(CostType=ARO,L97>ScheduleYear),AND(OR(CostType=ARO,AND(CostType=LOM,LOMComplete=TRUE)),N102<=ScheduleYear)),0,J102))) -> 0 | EC102: =IF(OR(J102="",EC97="",ISTEXT(EC97)),0,IF(OR(ISBLANK(M102),ISBLANK(N102)), 0,IF(EC97="Date Range",0,IF(OR(AND(CostType=ARO,L97>ScheduleYear),N102<=ScheduleYear),0,J102)))) ->  | EM102: Reveg | EN102: Reveg | EO102: =IF(ISNUMBER(K102),INDEX(INDIRECT("_"&$A$96&"Table9"),B97+1,3),0) -> 0 | EP102: =IF(Metric,"ha","acres") -> acres | EZ102: TRUE
D103: E-Cell/ET-Cell Liner | J103: =INDEX(INDIRECT("_"&$A$96&"Table10"),B97+1,15) -> 0 | K103: =IF(OR(J103="",K97="",ISTEXT(K97),J103=0),"",IF(OR(ISBLANK(M103),ISBLANK(N103)),"Enter Dates",IF(K97="Date Range","",IF(OR(AND(CostType=ARO,L97>ScheduleYear),AND(CostType=ARO,N103<=ScheduleYear)),"Date Range",IF(OR(AND(CostType=Bond,O103>ScheduleYear),AND(CostType=LOM,LOMComplete)),J103,J103-Q103))))) ->  | Q103: 0 | R103: 0 | EA103: 1 | EB103: =IF(OR(J103="",EB97="",ISTEXT(EB97)),0,IF(OR(ISBLANK(M103),ISBLANK(N103)),0,IF(OR(AND(CostType=ARO,L97>ScheduleYear),AND(OR(CostType=ARO,AND(CostType=LOM,LOMComplete=TRUE)),N103<=ScheduleYear)),0,J103))) -> 0 | EC103: =IF(OR(J103="",EC97="",ISTEXT(EC97)),0,IF(OR(ISBLANK(M103),ISBLANK(N103)), 0,IF(EC97="Date Range",0,IF(OR(AND(CostType=ARO,L97>ScheduleYear),N103<=ScheduleYear),0,J103)))) ->  | EM103: Liner | EN103: Liner | EO103: =IF(ISNUMBER(K103),INDEX(INDIRECT("_"&$A$96&"Table10"),B97+1,3)+INDEX(INDIRECT("_"&$A$96&"Table10"),B97+1,8),0) -> 0 | EP103: =IF(Metric,"m2","f2") -> f2 | EZ103: TRUE
D104: E-Cell/ET-Cell Piping | J104: =INDEX(INDIRECT("_"&$A$96&"Table11"),B97+1,20) -> 0 | K104: =IF(OR(J104="",K97="",ISTEXT(K97),J104=0),"",IF(OR(ISBLANK(M104),ISBLANK(N104)),"Enter Dates",IF(K97="Date Range","",IF(OR(AND(CostType=ARO,L97>ScheduleYear),AND(CostType=ARO,N104<=ScheduleYear)),"Date Range",IF(OR(AND(CostType=Bond,O104>ScheduleYear),AND(CostType=LOM,LOMComplete)),J104,J104-Q104))))) ->  | Q104: 0 | R104: 0 | EA104: 1 | EB104: =IF(OR(J104="",EB97="",ISTEXT(EB97)),0,IF(OR(ISBLANK(M104),ISBLANK(N104)),0,IF(OR(AND(CostType=ARO,L97>ScheduleYear),AND(OR(CostType=ARO,AND(CostType=LOM,LOMComplete=TRUE)),N104<=ScheduleYear)),0,J104))) -> 0 | EC104: =IF(OR(J104="",EC98="",ISTEXT(EC98)),0,IF(OR(ISBLANK(M104),ISBLANK(N104)), 0,IF(EC98="Date Range",0,IF(OR(AND(CostType=ARO,L97>ScheduleYear),N104<=ScheduleYear),0,J104)))) ->  | EM104: Pipe | EN104: Pipe | EO104: =IF(ISNUMBER(K104),INDEX(INDIRECT("_"&$A$96&"Table11"),B97+1,3)+INDEX(INDIRECT("_"&$A$96&"Table11"),B97+1,8)+INDEX(INDIRECT("_"&$A$96&"Table11"),B97+1,13),0) -> 0 | EP104: =IF(Metric,"m","ft") -> ft | EZ104: TRUE
B105: =(ROW(B105) - ROW($A$96)-1)/INDEX(SheetRangeIndex,MATCH($A$96,TableNamesSorted,0),7) -> 1 | C105: =INDEX(INDIRECT("_"&$A$96&"Table1"),B105+1,9) -> FA | D105: =INDEX(INDIRECT("_"&$A$96&"Table1"),B105+1,2) -> Residue Pond A | E105: =IF(ISBLANK(INDEX(INDIRECT("_"&INDEX(SheetRangeIndex,MATCH($A$96,TableNamesSorted,0),3)&"Table1"),B105+1,3)),"",INDEX(INDIRECT("_"&INDEX(SheetRangeIndex,MATCH($A$96,TableNamesSorted,0),3)&"Table1"),B105+1,3)) ->  | F105: =IF(ISERROR(EL105),"Facility Type",IF(ISBLANK(INDEX(INDIRECT("_"&$A$96&"Table1"),B105+1,5)),"",INDEX(INDIRECT("_"&$A$96&"Table1"),B105+1,5))) -> Other Site Facilities | G105: =IF(ISBLANK(INDEX(INDIRECT("_"&$A$96&"Table1"),B105+1,6)),"",INDEX(INDIRECT("_"&$A$96&"Table1"),B105+1,6)) -> Closure | H105: =IF(ISBLANK(INDEX(INDIRECT("_"&$A$96&"Table1"),B105+1,7)),"",INDEX(INDIRECT("_"&$A$96&"Table1"),B105+1,7)) -> Ponds | I105: =IF(ISBLANK(INDEX(INDIRECT("_"&$A$96&"Table1"),B105+1,8)),"",INDEX(INDIRECT("_"&$A$96&"Table1"),B105+1,8)) -> Public Land | J105: =SUM(J106:J112) -> 3972 | K105: =IF(ISERR(ED105),"Cost Type",IF(A105="X","Override",IF(AND(CostType=ARO,L105>ScheduleYear),"Date Range",IF(AND(ISTEXT(LocationFilter),ISERROR(EI105)),"Location",IF(AND(ISTEXT(PropertyFilter),ISERROR(EJ105)),"Property",IF(AND(ISTEXT(FacilityTypeFilter),ISERROR(EG105)),"Facility Type",IF(AND(NOT(ISBLANK(IDCodeFilter)),ISERROR(EF105)),"ID Code",IF(AND(ISTEXT(PhaseFilter),ISERROR(EH105)),"Phase",IF(AND(CostType=LOM,LOMComplete),J105,SUM(T105:DO105)))))))))) -> 3972 | L105: =INDEX(INDIRECT("_"&$A$96&"Table1"),B105+1,4) -> 2000 | Q105: =SUM(Q106:Q112) -> 0 | T105: =IF(ISTEXT($EB105),0,IF(AND(CostType=LOM,LOMComplete,T$27<=ScheduleYear),SUMPRODUCT(T106:T112,$J106:$J112),IF(CostType=Bond,SUMPRODUCT($EB106:$EB112,T106:T112,$EA106:$EA112),IF(T$27<=ScheduleYear,0,SUMPRODUCT(T106:T112,$EB106:$EB112))))) -> 0 | U105: 0 | V105: 0 | W105: 0 | X105: 3972 | Y105: 0 | Z105: 0 | AA105: 0 | AB105: 0 | AC105: 0 | AD105: 0 | AE105: 0 | AF105: 0 | AG105: 0 | AH105: 0 | AI105: 0 | AJ105: 0 | AK105: 0 | AL105: 0 | AM105: 0 | AN105: 0 | AO105: 0 | AP105: 0 | AQ105: 0 | AR105: 0 | AS105: 0 | AT105: 0 | AU105: 0 | AV105: 0 | AW105: 0 | AX105: 0 | AY105: 0 | AZ105: 0 | BA105: 0 | BB105: 0 | BC105: 0 | BD105: 0 | BE105: 0 | BF105: 0 | BG105: 0 | BH105: 0 | BI105: 0 | BJ105: 0 | BK105: 0 | BL105: 0 | BM105: 0 | BN105: 0 | BO105: 0 | BP105: 0 | BQ105: 0 | BR105: 0 | BS105: 0 | BT105: 0 | BU105: 0 | BV105: 0 | BW105: 0 | BX105: 0 | BY105: 0 | BZ105: 0 | CA105: 0 | CB105: 0 | CC105: 0 | CD105: 0 | CE105: 0 | CF105: =IF(ISTEXT($EB105),0,IF(AND(CostType=LOM,LOMComplete,CF$27<=ScheduleYear),SUMPRODUCT(CF106:CF112,$J106:$J112),IF(CostType=Bond,SUMPRODUCT($EB106:$EB112,CF106:CF112,$EA106:$EA112),IF(CF$27<=ScheduleYear,0,SUMPRODUCT(CF106:CF112,$EB106:$EB112))))) -> 0 | CG105: 0 | CH105: 0 | CI105: 0 | CJ105: 0 | CK105: 0 | CL105: 0 | CM105: 0 | CN105: 0 | CO105: 0 | CP105: 0 | CQ105: 0 | CR105: 0 | CS105: 0 | CT105: 0 | CU105: 0 | CV105: 0 | CW105: 0 | CX105: 0 | CY105: 0 | CZ105: 0 | DA105: 0 | DB105: 0 | DC105: 0 | DD105: 0 | DE105: 0 | DF105: 0 | DG105: 0 | DH105: 0 | DI105: 0 | DJ105: 0 | DK105: 0 | DL105: 0 | DM105: 0 | DN105: 0 | DO105: 0 | DP105: =IF(ISNUMBER(K105),SUM(T105:DO105)-K105,K105) -> 0 | EB105: =IF(ISERR(ED105),"Cost Type",IF(A105="X","Override",IF(AND(CostType=ARO,L105>ScheduleYear),0,IF(AND(ISTEXT(LocationFilter),ISERROR(EI105)),"Location",IF(AND(ISTEXT(PropertyFilter),ISERROR(EJ105)),"Property",IF(AND(ISTEXT(FacilityTypeFilter),ISERROR(EG105)),"Facility Type",IF(AND(ISTEXT(IDCodeFilter),ISERROR(EF105)),"ID Code",IF(AND(ISTEXT(PhaseFilter),ISERROR(EH105)),"Phase",J105)))))))) -> 3972 | EC105: =IF(EE105="","Cost Type",IF(A105="X","Override",IF(AND(OtherCostType=ARO,L105>ScheduleYear),0,IF(AND(ISTEXT(LocationFilter),EI105=""),"Location",IF(AND(ISTEXT(PropertyFilter),EJ105=""),"Property",IF(AND(ISTEXT(FacilityTypeFilter),EG105=""),"Facility Type",IF(AND(ISTEXT(IDCodeFilter),EF105=""),"ID Code",IF(AND(ISTEXT(PhaseFilter),EH105=""),"Phase",J105)))))))) ->  | ED105: =SEARCH(CostType,C105) -> 1 | EE105: =SEARCH(OtherCostType,C105) ->  | EF105: =IF(AND(IDCodeFilterType="CONTAINS",NOT(ISERROR(SEARCH(IDCodeFilter,E105)))),1,IF(AND(IDCodeFilterType="NOT",ISERROR(SEARCH(IDCodeFilter,E105))),1,IF(AND(OR(IDCodeFilterType="EXACT",ISBLANK(IDCodeFilterType)),NOT(ISERROR(MATCH(IDCodeFilter,E105,0)))),1,$EK105))) ->  | EG105: =IF(AND(FacilityFilterType="CONTAINS",NOT(ISERROR(SEARCH(FacilityTypeFilter,F105)))),1,IF(AND(FacilityFilterType="NOT",ISERROR(SEARCH(FacilityTypeFilter,F105))),1,IF(AND(OR(FacilityFilterType="EXACT",ISBLANK(FacilityFilterType)),NOT(ISERROR(MATCH(FacilityTypeFilter,F105,0)))),1,$EK105))) ->  | EH105: =IF(AND(PhaseFilterType="CONTAINS",NOT(ISERROR(SEARCH(PhaseFilter,G105)))),1,IF(AND(PhaseFilterType="NOT",ISERROR(SEARCH(PhaseFilter,G105))),1,IF(AND(OR(PhaseFilterType="EXACT",ISBLANK(PhaseFilterType)),NOT(ISERROR(MATCH(PhaseFilter,G105,0)))),1,$EK105))) ->  | EI105: =IF(AND(LocationFilterType="CONTAINS",NOT(ISERROR(SEARCH(LocationFilter,H105)))),1,IF(AND(LocationFilterType="NOT",ISERROR(SEARCH(LocationFilter,H105))),1,IF(AND(OR(LocationFilterType="EXACT",ISBLANK(LocationFilterType)),NOT(ISERROR(MATCH(LocationFilter,H105,0)))),1,$EK105))) ->  | EJ105: =IF(AND(PropertyFilterType="CONTAINS",NOT(ISERROR(SEARCH(PropertyFilter,I105)))),1,IF(AND(PropertyFilterType="NOT",ISERROR(SEARCH(PropertyFilter,I105))),1,IF(AND(OR(PropertyFilterType="EXACT",ISBLANK(PropertyFilterType)),NOT(ISERROR(MATCH(PropertyFilter,I105,0)))),1,$EK105))) ->  | EK105: =MATCH("NOT",$EK$27,0) ->  | EL105: =IF(ISBLANK(INDEX(INDIRECT("_"&$A$96&"Table1"),B105+1,2)),"",MATCH(INDEX(INDIRECT("_"&$A$96&"Table1"),B105+1,5),Accounts,0)) -> 5 | EZ105: FALSE | FA105: 1
D106: Liner Cutting and Folding | J106: =IF(INDEX(INDIRECT("_"&$A$96&"Table5"),B105+1,6)=0,0,INDEX(INDIRECT("_"&$A$96&"Table5"),B105+1,6)) -> 915 | K106: =IF(OR(J106="",K105="",ISTEXT(K105),J106=0),"",IF(OR(ISBLANK(M106),ISBLANK(N106)),"Enter Dates",IF(K105="Date Range","",IF(OR(AND(CostType=ARO,L105>ScheduleYear),AND(CostType=ARO,N106<=ScheduleYear)),"Date Range",IF(OR(AND(CostType=Bond,O106>ScheduleYear),AND(CostType=LOM,LOMComplete)),J106,J106-Q106))))) -> 915 | M106: 2023 | N106: 2025 | P106: =IF(K106="","",SUM(T106:DO106)) -> 1 | Q106: =IF(OR(AND(CostType=ARO,N106<=ScheduleYear),AND(CostType=LOM,LOMComplete)),J106*R106,R106*EB106) -> 0 | R106: =IF(CostType=Bond,SUMIFS(T106:DP106,T$27:DP$27,"<="&O106,T$27:DP$27,"<="&ScheduleYear),SUMIF(T$27:DP$27,"<="&ScheduleYear,T106:DP106)) -> 0 | X106: 1 | EA106: 1 | EB106: =IF(OR(J106="",EB105="",ISTEXT(EB105)),0,IF(OR(ISBLANK(M106),ISBLANK(N106)),0,IF(OR(AND(CostType=ARO,L105>ScheduleYear),AND(OR(CostType=ARO,AND(CostType=LOM,LOMComplete=TRUE)),N106<=ScheduleYear)),0,J106))) -> 915 | EC106: =IF(OR(J106="",EC105="",ISTEXT(EC105)),0,IF(OR(ISBLANK(M106),ISBLANK(N106)),0,IF(EC105="Date Range",0,IF(OR(AND(OtherCostType=ARO,L105>ScheduleYear),N106<=ScheduleYear),0,J106)))) ->  | EM106: Liner | EN106: Liner | EO106: =IF(ISNUMBER(K106),IF(INDEX(INDIRECT("_"&$A$96&"Table5"),B105+1,3)=0,0,INDEX(INDIRECT("_"&$A$96&"Table5"),B105+1,3)),0) -> 4 | EP106: =IF(Metric,"m3","cy") -> cy | EQ106: =LinerExcavator -> 325F | ES106: =IF(OR(NOT(ISNUMBER(K106)),K106=0),0,INDEX(INDIRECT("_"&$A$96&"Table4"),B105+1,3)) -> 0 | EZ106: TRUE
D107: Backfill/Cover 1 Placement | J107: =INDEX(INDIRECT("_"&$A$96&"Table6"),B105+1,25) -> 895 | K107: =IF(OR(J107="",K105="",ISTEXT(K105),J107=0),"",IF(OR(ISBLANK(M107),ISBLANK(N107)),"Enter Dates",IF(K105="Date Range","",IF(OR(AND(CostType=ARO,L105>ScheduleYear),AND(CostType=ARO,N107<=ScheduleYear)),"Date Range",IF(OR(AND(CostType=Bond,O107>ScheduleYear),AND(CostType=LOM,LOMComplete)),J107,J107-Q107))))) -> 895 | M107: 2023 | N107: 2025 | P107: 1 | Q107: 0 | R107: 0 | X107: 1 | EA107: 1 | EB107: =IF(OR(J107="",EB105="",ISTEXT(EB105)),0,IF(OR(ISBLANK(M107),ISBLANK(N107)),0,IF(OR(AND(CostType=ARO,L105>ScheduleYear),AND(OR(CostType=ARO,AND(CostType=LOM,LOMComplete=TRUE)),N107<=ScheduleYear)),0,J107))) -> 895 | EC107: =IF(OR(J107="",EC105="",ISTEXT(EC105)),0,IF(OR(ISBLANK(M107),ISBLANK(N107)),0,IF(EC105="Date Range",0,IF(OR(AND(CostType=ARO,L105>ScheduleYear),N107<=ScheduleYear),0,J107)))) ->  | EM107: Backfill | EN107: Backfill | EO107: =IF(ISNUMBER(K107),INDEX(INDIRECT("_"&$A$96&"Table6"),B105+1,4),0) -> 385 | EP107: =IF(Metric,"m3","cy") -> cy | EQ107: =INDEX(INDIRECT("_"&$A$96&"Table6"),B105+1,10) -> 725C2/966M/D6T | ER107: =IF(OR(NOT(ISNUMBER(K107)),K107=0),0,INDEX(INDIRECT("_"&$A$96&"Table6"),B105+1,12)) -> 3 | ES107: =IF(OR(NOT(ISNUMBER(K107)),K107=0),0,INDEX(INDIRECT("_"&$A$96&"Table6"),B105+1,14)) -> 1 | ET107: =INDEX(INDIRECT("_"&$A$96&"Table6"),B105+1,5) ->  | EU107: =IF(OR(NOT(ISNUMBER(K107)),K107=0),0,INDEX(INDIRECT("_"&$A$96&"Table6"),B105+1,7)) ->  | EV107: =IF(OR(NOT(ISNUMBER(K107)),K107=0),0,INDEX(INDIRECT("_"&$A$96&"Table6"),B105+1,9)) -> 0 | EZ107: TRUE
D108: Backfill/Cover 2 Placement | J108: =INDEX(INDIRECT("_"&$A$96&"Table7"),B105+1,25) -> 0 | K108: =IF(OR(J108="",K105="",ISTEXT(K105),J108=0),"",IF(OR(ISBLANK(M108),ISBLANK(N108)),"Enter Dates",IF(K105="Date Range","",IF(OR(AND(CostType=ARO,L105>ScheduleYear),AND(CostType=ARO,N108<=ScheduleYear)),"Date Range",IF(OR(AND(CostType=Bond,O108>ScheduleYear),AND(CostType=LOM,LOMComplete)),J108,J108-Q108))))) ->  | M108: 2023 | N108: 2025 | Q108: 0 | R108: 0 | X108: 1 | EA108: 1 | EB108: =IF(OR(J108="",EB105="",ISTEXT(EB105)),0,IF(OR(ISBLANK(M108),ISBLANK(N108)),0,IF(OR(AND(CostType=ARO,L105>ScheduleYear),AND(OR(CostType=ARO,AND(CostType=LOM,LOMComplete=TRUE)),N108<=ScheduleYear)),0,J108))) -> 0 | EC108: =IF(OR(J108="",EC105="",ISTEXT(EC105)),0,IF(OR(ISBLANK(M108),ISBLANK(N108)),0,IF(EC105="Date Range",0,IF(OR(AND(CostType=ARO,L105>ScheduleYear),N108<=ScheduleYear),0,J108)))) ->  | EM108: Backfill | EN108: Backfill | EO108: =IF(ISNUMBER(K108),INDEX(INDIRECT("_"&$A$96&"Table7"),B105+1,4),0) -> 0 | EP108: =IF(Metric,"m3","cy") -> cy | EQ108: =INDEX(INDIRECT("_"&$A$96&"Table7"),B105+1,10) ->  | ER108: =IF(OR(NOT(ISNUMBER(K108)),K108=0),0,INDEX(INDIRECT("_"&$A$96&"Table7"),B105+1,12)) -> 0 | ES108: =IF(OR(NOT(ISNUMBER(K108)),K108=0),0,INDEX(INDIRECT("_"&$A$96&"Table7"),B105+1,14)) -> 0 | ET108: =INDEX(INDIRECT("_"&$A$96&"Table7"),B105+1,5) ->  | EU108: =IF(OR(NOT(ISNUMBER(K108)),K108=0),0,INDEX(INDIRECT("_"&$A$96&"Table7"),B105+1,7)) -> 0 | EV108: =IF(OR(NOT(ISNUMBER(K108)),K108=0),0,INDEX(INDIRECT("_"&$A$96&"Table7"),B105+1,9)) -> 0 | EZ108: TRUE
D109: Growth Media Placement | J109: =INDEX(INDIRECT("_"&$A$96&"Table8"),B105+1,11) -> 1791 | K109: =IF(OR(J109="",K105="",ISTEXT(K105),J109=0),"",IF(OR(ISBLANK(M109),ISBLANK(N109)),"Enter Dates",IF(K105="Date Range","",IF(OR(AND(CostType=ARO,L105>ScheduleYear),AND(CostType=ARO,N109<=ScheduleYear)),"Date Range",IF(OR(AND(CostType=Bond,O109>ScheduleYear),AND(CostType=LOM,LOMComplete)),J109,J109-Q109))))) -> 1791 | M109: 2023 | N109: 2025 | P109: 1 | Q109: 0 | R109: 0 | X109: 1 | EA109: 1 | EB109: =IF(OR(J109="",EB105="",ISTEXT(EB105)),0,IF(OR(ISBLANK(M109),ISBLANK(N109)),0,IF(OR(AND(CostType=ARO,L105>ScheduleYear),AND(OR(CostType=ARO,AND(CostType=LOM,LOMComplete=TRUE)),N109<=ScheduleYear)),0,J109))) -> 1791 | EC109: =IF(OR(J109="",EC105="",ISTEXT(EC105)),0,IF(OR(ISBLANK(M109),ISBLANK(N109)),0,IF(EC105="Date Range",0,IF(OR(AND(CostType=ARO,L105>ScheduleYear),N109<=ScheduleYear),0,J109)))) ->  | EM109: GM | EN109: GM | EO109: =IF(ISNUMBER(K109),INDEX(INDIRECT("_"&$A$96&"Table8"),B105+1,3),0) -> 630 | EP109: =IF(Metric,"m3","cy") -> cy | EQ109: =INDEX(INDIRECT("_"&$A$96&"Table8"),B105+1,4) -> 725C2/966M/D6T | ER109: =IF(OR(NOT(ISNUMBER(K109)),K109=0),0,INDEX(INDIRECT("_"&$A$96&"Table8"),B105+1,6)) -> 3 | ES109: =IF(OR(NOT(ISNUMBER(K109)),K109=0),0,INDEX(INDIRECT("_"&$A$96&"Table8"),B105+1,8)) -> 2 | EZ109: TRUE
D110: Revegetation | J110: =INDEX(INDIRECT("_"&$A$96&"Table9"),B105+1,7) -> 371 | K110: =IF(OR(J110="",K105="",ISTEXT(K105),J110=0),"",IF(OR(ISBLANK(M110),ISBLANK(N110)),"Enter Dates",IF(K105="Date Range","",IF(OR(AND(CostType=ARO,L105>ScheduleYear),AND(CostType=ARO,N110<=ScheduleYear)),"Date Range",IF(OR(AND(CostType=Bond,O110>ScheduleYear),AND(CostType=LOM,LOMComplete)),J110,J110-Q110))))) -> 371 | M110: 2023 | N110: 2025 | P110: 1 | Q110: 0 | R110: 0 | X110: 1 | EA110: 1 | EB110: =IF(OR(J110="",EB105="",ISTEXT(EB105)),0,IF(OR(ISBLANK(M110),ISBLANK(N110)),0,IF(OR(AND(CostType=ARO,L105>ScheduleYear),AND(OR(CostType=ARO,AND(CostType=LOM,LOMComplete=TRUE)),N110<=ScheduleYear)),0,J110))) -> 371 | EC110: =IF(OR(J110="",EC105="",ISTEXT(EC105)),0,IF(OR(ISBLANK(M110),ISBLANK(N110)), 0,IF(EC105="Date Range",0,IF(OR(AND(CostType=ARO,L105>ScheduleYear),N110<=ScheduleYear),0,J110)))) ->  | EM110: Reveg | EN110: Reveg | EO110: =IF(ISNUMBER(K110),INDEX(INDIRECT("_"&$A$96&"Table9"),B105+1,3),0) -> 0.4 | EP110: =IF(Metric,"ha","acres") -> acres | EZ110: TRUE
D111: E-Cell/ET-Cell Liner | J111: =INDEX(INDIRECT("_"&$A$96&"Table10"),B105+1,15) -> 0 | K111: =IF(OR(J111="",K105="",ISTEXT(K105),J111=0),"",IF(OR(ISBLANK(M111),ISBLANK(N111)),"Enter Dates",IF(K105="Date Range","",IF(OR(AND(CostType=ARO,L105>ScheduleYear),AND(CostType=ARO,N111<=ScheduleYear)),"Date Range",IF(OR(AND(CostType=Bond,O111>ScheduleYear),AND(CostType=LOM,LOMComplete)),J111,J111-Q111))))) ->  | M111: 2023 | N111: 2025 | Q111: 0 | R111: 0 | X111: 1 | EA111: 1 | EB111: =IF(OR(J111="",EB105="",ISTEXT(EB105)),0,IF(OR(ISBLANK(M111),ISBLANK(N111)),0,IF(OR(AND(CostType=ARO,L105>ScheduleYear),AND(OR(CostType=ARO,AND(CostType=LOM,LOMComplete=TRUE)),N111<=ScheduleYear)),0,J111))) -> 0 | EC111: =IF(OR(J111="",EC105="",ISTEXT(EC105)),0,IF(OR(ISBLANK(M111),ISBLANK(N111)), 0,IF(EC105="Date Range",0,IF(OR(AND(CostType=ARO,L105>ScheduleYear),N111<=ScheduleYear),0,J111)))) ->  | EM111: Liner | EN111: Liner | EO111: =IF(ISNUMBER(K111),INDEX(INDIRECT("_"&$A$96&"Table10"),B105+1,3)+INDEX(INDIRECT("_"&$A$96&"Table10"),B105+1,8),0) -> 0 | EP111: =IF(Metric,"m2","f2") -> f2 | EZ111: TRUE
D112: E-Cell/ET-Cell Piping | J112: =INDEX(INDIRECT("_"&$A$96&"Table11"),B105+1,20) -> 0 | K112: =IF(OR(J112="",K105="",ISTEXT(K105),J112=0),"",IF(OR(ISBLANK(M112),ISBLANK(N112)),"Enter Dates",IF(K105="Date Range","",IF(OR(AND(CostType=ARO,L105>ScheduleYear),AND(CostType=ARO,N112<=ScheduleYear)),"Date Range",IF(OR(AND(CostType=Bond,O112>ScheduleYear),AND(CostType=LOM,LOMComplete)),J112,J112-Q112))))) ->  | M112: 2023 | N112: 2025 | Q112: 0 | R112: 0 | X112: 1 | EA112: 1 | EB112: =IF(OR(J112="",EB105="",ISTEXT(EB105)),0,IF(OR(ISBLANK(M112),ISBLANK(N112)),0,IF(OR(AND(CostType=ARO,L105>ScheduleYear),AND(OR(CostType=ARO,AND(CostType=LOM,LOMComplete=TRUE)),N112<=ScheduleYear)),0,J112))) -> 0 | EC112: =IF(OR(J112="",EC106="",ISTEXT(EC106)),0,IF(OR(ISBLANK(M112),ISBLANK(N112)), 0,IF(EC106="Date Range",0,IF(OR(AND(CostType=ARO,L105>ScheduleYear),N112<=ScheduleYear),0,J112)))) ->  | EM112: Pipe | EN112: Pipe | EO112: =IF(ISNUMBER(K112),INDEX(INDIRECT("_"&$A$96&"Table11"),B105+1,3)+INDEX(INDIRECT("_"&$A$96&"Table11"),B105+1,8)+INDEX(INDIRECT("_"&$A$96&"Table11"),B105+1,13),0) -> 0 | EP112: =IF(Metric,"m","ft") -> ft | EZ112: TRUE
B113: =(ROW(B113) - ROW($A$96)-1)/INDEX(SheetRangeIndex,MATCH($A$96,TableNamesSorted,0),7) -> 2 | C113: =INDEX(INDIRECT("_"&$A$96&"Table1"),B113+1,9) -> FA | D113: =INDEX(INDIRECT("_"&$A$96&"Table1"),B113+1,2) -> Residue Pond B | E113: =IF(ISBLANK(INDEX(INDIRECT("_"&INDEX(SheetRangeIndex,MATCH($A$96,TableNamesSorted,0),3)&"Table1"),B113+1,3)),"",INDEX(INDIRECT("_"&INDEX(SheetRangeIndex,MATCH($A$96,TableNamesSorted,0),3)&"Table1"),B113+1,3)) ->  | F113: =IF(ISERROR(EL113),"Facility Type",IF(ISBLANK(INDEX(INDIRECT("_"&$A$96&"Table1"),B113+1,5)),"",INDEX(INDIRECT("_"&$A$96&"Table1"),B113+1,5))) -> Other Site Facilities | G113: =IF(ISBLANK(INDEX(INDIRECT("_"&$A$96&"Table1"),B113+1,6)),"",INDEX(INDIRECT("_"&$A$96&"Table1"),B113+1,6)) -> Closure | H113: =IF(ISBLANK(INDEX(INDIRECT("_"&$A$96&"Table1"),B113+1,7)),"",INDEX(INDIRECT("_"&$A$96&"Table1"),B113+1,7)) -> Ponds | I113: =IF(ISBLANK(INDEX(INDIRECT("_"&$A$96&"Table1"),B113+1,8)),"",INDEX(INDIRECT("_"&$A$96&"Table1"),B113+1,8)) -> Public Land | J113: =SUM(J114:J120) -> 3486 | K113: =IF(ISERR(ED113),"Cost Type",IF(A113="X","Override",IF(AND(CostType=ARO,L113>ScheduleYear),"Date Range",IF(AND(ISTEXT(LocationFilter),ISERROR(EI113)),"Location",IF(AND(ISTEXT(PropertyFilter),ISERROR(EJ113)),"Property",IF(AND(ISTEXT(FacilityTypeFilter),ISERROR(EG113)),"Facility Type",IF(AND(NOT(ISBLANK(IDCodeFilter)),ISERROR(EF113)),"ID Code",IF(AND(ISTEXT(PhaseFilter),ISERROR(EH113)),"Phase",IF(AND(CostType=LOM,LOMComplete),J113,SUM(T113:DO113)))))))))) -> 3486 | L113: =INDEX(INDIRECT("_"&$A$96&"Table1"),B113+1,4) -> 2000 | Q113: =SUM(Q114:Q120) -> 0 | T113: =IF(ISTEXT($EB113),0,IF(AND(CostType=LOM,LOMComplete,T$27<=ScheduleYear),SUMPRODUCT(T114:T120,$J114:$J120),IF(CostType=Bond,SUMPRODUCT($EB114:$EB120,T114:T120,$EA114:$EA120),IF(T$27<=ScheduleYear,0,SUMPRODUCT(T114:T120,$EB114:$EB120))))) -> 0 | U113: 0 | V113: 0 | W113: 0 | X113: 3486 | Y113: 0 | Z113: 0 | AA113: 0 | AB113: 0 | AC113: 0 | AD113: 0 | AE113: 0 | AF113: 0 | AG113: 0 | AH113: 0 | AI113: 0 | AJ113: 0 | AK113: 0 | AL113: 0 | AM113: 0 | AN113: 0 | AO113: 0 | AP113: 0 | AQ113: 0 | AR113: 0 | AS113: 0 | AT113: 0 | AU113: 0 | AV113: 0 | AW113: 0 | AX113: 0 | AY113: 0 | AZ113: 0 | BA113: 0 | BB113: 0 | BC113: 0 | BD113: 0 | BE113: 0 | BF113: 0 | BG113: 0 | BH113: 0 | BI113: 0 | BJ113: 0 | BK113: 0 | BL113: 0 | BM113: 0 | BN113: 0 | BO113: 0 | BP113: 0 | BQ113: 0 | BR113: 0 | BS113: 0 | BT113: 0 | BU113: 0 | BV113: 0 | BW113: 0 | BX113: 0 | BY113: 0 | BZ113: 0 | CA113: 0 | CB113: 0 | CC113: 0 | CD113: 0 | CE113: 0 | CF113: =IF(ISTEXT($EB113),0,IF(AND(CostType=LOM,LOMComplete,CF$27<=ScheduleYear),SUMPRODUCT(CF114:CF120,$J114:$J120),IF(CostType=Bond,SUMPRODUCT($EB114:$EB120,CF114:CF120,$EA114:$EA120),IF(CF$27<=ScheduleYear,0,SUMPRODUCT(CF114:CF120,$EB114:$EB120))))) -> 0 | CG113: 0 | CH113: 0 | CI113: 0 | CJ113: 0 | CK113: 0 | CL113: 0 | CM113: 0 | CN113: 0 | CO113: 0 | CP113: 0 | CQ113: 0 | CR113: 0 | CS113: 0 | CT113: 0 | CU113: 0 | CV113: 0 | CW113: 0 | CX113: 0 | CY113: 0 | CZ113: 0 | DA113: 0 | DB113: 0 | DC113: 0 | DD113: 0 | DE113: 0 | DF113: 0 | DG113: 0 | DH113: 0 | DI113: 0 | DJ113: 0 | DK113: 0 | DL113: 0 | DM113: 0 | DN113: 0 | DO113: 0 | DP113: =IF(ISNUMBER(K113),SUM(T113:DO113)-K113,K113) -> 0 | EB113: =IF(ISERR(ED113),"Cost Type",IF(A113="X","Override",IF(AND(CostType=ARO,L113>ScheduleYear),0,IF(AND(ISTEXT(LocationFilter),ISERROR(EI113)),"Location",IF(AND(ISTEXT(PropertyFilter),ISERROR(EJ113)),"Property",IF(AND(ISTEXT(FacilityTypeFilter),ISERROR(EG113)),"Facility Type",IF(AND(ISTEXT(IDCodeFilter),ISERROR(EF113)),"ID Code",IF(AND(ISTEXT(PhaseFilter),ISERROR(EH113)),"Phase",J113)))))))) -> 3486 | EC113: =IF(EE113="","Cost Type",IF(A113="X","Override",IF(AND(OtherCostType=ARO,L113>ScheduleYear),0,IF(AND(ISTEXT(LocationFilter),EI113=""),"Location",IF(AND(ISTEXT(PropertyFilter),EJ113=""),"Property",IF(AND(ISTEXT(FacilityTypeFilter),EG113=""),"Facility Type",IF(AND(ISTEXT(IDCodeFilter),EF113=""),"ID Code",IF(AND(ISTEXT(PhaseFilter),EH113=""),"Phase",J113)))))))) ->  | ED113: =SEARCH(CostType,C113) -> 1 | EE113: =SEARCH(OtherCostType,C113) ->  | EF113: =IF(AND(IDCodeFilterType="CONTAINS",NOT(ISERROR(SEARCH(IDCodeFilter,E113)))),1,IF(AND(IDCodeFilterType="NOT",ISERROR(SEARCH(IDCodeFilter,E113))),1,IF(AND(OR(IDCodeFilterType="EXACT",ISBLANK(IDCodeFilterType)),NOT(ISERROR(MATCH(IDCodeFilter,E113,0)))),1,$EK113))) ->  | EG113: =IF(AND(FacilityFilterType="CONTAINS",NOT(ISERROR(SEARCH(FacilityTypeFilter,F113)))),1,IF(AND(FacilityFilterType="NOT",ISERROR(SEARCH(FacilityTypeFilter,F113))),1,IF(AND(OR(FacilityFilterType="EXACT",ISBLANK(FacilityFilterType)),NOT(ISERROR(MATCH(FacilityTypeFilter,F113,0)))),1,$EK113))) ->  | EH113: =IF(AND(PhaseFilterType="CONTAINS",NOT(ISERROR(SEARCH(PhaseFilter,G113)))),1,IF(AND(PhaseFilterType="NOT",ISERROR(SEARCH(PhaseFilter,G113))),1,IF(AND(OR(PhaseFilterType="EXACT",ISBLANK(PhaseFilterType)),NOT(ISERROR(MATCH(PhaseFilter,G113,0)))),1,$EK113))) ->  | EI113: =IF(AND(LocationFilterType="CONTAINS",NOT(ISERROR(SEARCH(LocationFilter,H113)))),1,IF(AND(LocationFilterType="NOT",ISERROR(SEARCH(LocationFilter,H113))),1,IF(AND(OR(LocationFilterType="EXACT",ISBLANK(LocationFilterType)),NOT(ISERROR(MATCH(LocationFilter,H113,0)))),1,$EK113))) ->  | EJ113: =IF(AND(PropertyFilterType="CONTAINS",NOT(ISERROR(SEARCH(PropertyFilter,I113)))),1,IF(AND(PropertyFilterType="NOT",ISERROR(SEARCH(PropertyFilter,I113))),1,IF(AND(OR(PropertyFilterType="EXACT",ISBLANK(PropertyFilterType)),NOT(ISERROR(MATCH(PropertyFilter,I113,0)))),1,$EK113))) ->  | EK113: =MATCH("NOT",$EK$27,0) ->  | EL113: =IF(ISBLANK(INDEX(INDIRECT("_"&$A$96&"Table1"),B113+1,2)),"",MATCH(INDEX(INDIRECT("_"&$A$96&"Table1"),B113+1,5),Accounts,0)) -> 5 | EZ113: FALSE | FA113: 1
D114: Liner Cutting and Folding | J114: =IF(INDEX(INDIRECT("_"&$A$96&"Table5"),B113+1,6)=0,0,INDEX(INDIRECT("_"&$A$96&"Table5"),B113+1,6)) -> 1373 | K114: =IF(OR(J114="",K113="",ISTEXT(K113),J114=0),"",IF(OR(ISBLANK(M114),ISBLANK(N114)),"Enter Dates",IF(K113="Date Range","",IF(OR(AND(CostType=ARO,L113>ScheduleYear),AND(CostType=ARO,N114<=ScheduleYear)),"Date Range",IF(OR(AND(CostType=Bond,O114>ScheduleYear),AND(CostType=LOM,LOMComplete)),J114,J114-Q114))))) -> 1373 | M114: 2023 | N114: 2025 | P114: =IF(K114="","",SUM(T114:DO114)) -> 1 | Q114: =IF(OR(AND(CostType=ARO,N114<=ScheduleYear),AND(CostType=LOM,LOMComplete)),J114*R114,R114*EB114) -> 0 | R114: =IF(CostType=Bond,SUMIFS(T114:DP114,T$27:DP$27,"<="&O114,T$27:DP$27,"<="&ScheduleYear),SUMIF(T$27:DP$27,"<="&ScheduleYear,T114:DP114)) -> 0 | X114: 1 | EA114: 1 | EB114: =IF(OR(J114="",EB113="",ISTEXT(EB113)),0,IF(OR(ISBLANK(M114),ISBLANK(N114)),0,IF(OR(AND(CostType=ARO,L113>ScheduleYear),AND(OR(CostType=ARO,AND(CostType=LOM,LOMComplete=TRUE)),N114<=ScheduleYear)),0,J114))) -> 1373 | EC114: =IF(OR(J114="",EC113="",ISTEXT(EC113)),0,IF(OR(ISBLANK(M114),ISBLANK(N114)),0,IF(EC113="Date Range",0,IF(OR(AND(OtherCostType=ARO,L113>ScheduleYear),N114<=ScheduleYear),0,J114)))) ->  | EM114: Liner | EN114: Liner | EO114: =IF(ISNUMBER(K114),IF(INDEX(INDIRECT("_"&$A$96&"Table5"),B113+1,3)=0,0,INDEX(INDIRECT("_"&$A$96&"Table5"),B113+1,3)),0) -> 6 | EP114: =IF(Metric,"m3","cy") -> cy | EQ114: =LinerExcavator -> 325F | ES114: =IF(OR(NOT(ISNUMBER(K114)),K114=0),0,INDEX(INDIRECT("_"&$A$96&"Table4"),B113+1,3)) -> 0 | EZ114: TRUE
D115: Backfill/Cover 1 Placement | J115: =INDEX(INDIRECT("_"&$A$96&"Table6"),B113+1,25) -> 895 | K115: =IF(OR(J115="",K113="",ISTEXT(K113),J115=0),"",IF(OR(ISBLANK(M115),ISBLANK(N115)),"Enter Dates",IF(K113="Date Range","",IF(OR(AND(CostType=ARO,L113>ScheduleYear),AND(CostType=ARO,N115<=ScheduleYear)),"Date Range",IF(OR(AND(CostType=Bond,O115>ScheduleYear),AND(CostType=LOM,LOMComplete)),J115,J115-Q115))))) -> 895 | M115: 2023 | N115: 2025 | P115: 1 | Q115: 0 | R115: 0 | X115: 1 | EA115: 1 | EB115: =IF(OR(J115="",EB113="",ISTEXT(EB113)),0,IF(OR(ISBLANK(M115),ISBLANK(N115)),0,IF(OR(AND(CostType=ARO,L113>ScheduleYear),AND(OR(CostType=ARO,AND(CostType=LOM,LOMComplete=TRUE)),N115<=ScheduleYear)),0,J115))) -> 895 | EC115: =IF(OR(J115="",EC113="",ISTEXT(EC113)),0,IF(OR(ISBLANK(M115),ISBLANK(N115)),0,IF(EC113="Date Range",0,IF(OR(AND(CostType=ARO,L113>ScheduleYear),N115<=ScheduleYear),0,J115)))) ->  | EM115: Backfill | EN115: Backfill | EO115: =IF(ISNUMBER(K115),INDEX(INDIRECT("_"&$A$96&"Table6"),B113+1,4),0) -> 203 | EP115: =IF(Metric,"m3","cy") -> cy | EQ115: =INDEX(INDIRECT("_"&$A$96&"Table6"),B113+1,10) -> 725C2/966M/D6T | ER115: =IF(OR(NOT(ISNUMBER(K115)),K115=0),0,INDEX(INDIRECT("_"&$A$96&"Table6"),B113+1,12)) -> 3 | ES115: =IF(OR(NOT(ISNUMBER(K115)),K115=0),0,INDEX(INDIRECT("_"&$A$96&"Table6"),B113+1,14)) -> 1 | ET115: =INDEX(INDIRECT("_"&$A$96&"Table6"),B113+1,5) ->  | EU115: =IF(OR(NOT(ISNUMBER(K115)),K115=0),0,INDEX(INDIRECT("_"&$A$96&"Table6"),B113+1,7)) ->  | EV115: =IF(OR(NOT(ISNUMBER(K115)),K115=0),0,INDEX(INDIRECT("_"&$A$96&"Table6"),B113+1,9)) -> 0 | EZ115: TRUE
D116: Backfill/Cover 2 Placement | J116: =INDEX(INDIRECT("_"&$A$96&"Table7"),B113+1,25) -> 0 | K116: =IF(OR(J116="",K113="",ISTEXT(K113),J116=0),"",IF(OR(ISBLANK(M116),ISBLANK(N116)),"Enter Dates",IF(K113="Date Range","",IF(OR(AND(CostType=ARO,L113>ScheduleYear),AND(CostType=ARO,N116<=ScheduleYear)),"Date Range",IF(OR(AND(CostType=Bond,O116>ScheduleYear),AND(CostType=LOM,LOMComplete)),J116,J116-Q116))))) ->  | M116: 2023 | N116: 2025 | Q116: 0 | R116: 0 | X116: 1 | EA116: 1 | EB116: =IF(OR(J116="",EB113="",ISTEXT(EB113)),0,IF(OR(ISBLANK(M116),ISBLANK(N116)),0,IF(OR(AND(CostType=ARO,L113>ScheduleYear),AND(OR(CostType=ARO,AND(CostType=LOM,LOMComplete=TRUE)),N116<=ScheduleYear)),0,J116))) -> 0 | EC116: =IF(OR(J116="",EC113="",ISTEXT(EC113)),0,IF(OR(ISBLANK(M116),ISBLANK(N116)),0,IF(EC113="Date Range",0,IF(OR(AND(CostType=ARO,L113>ScheduleYear),N116<=ScheduleYear),0,J116)))) ->  | EM116: Backfill | EN116: Backfill | EO116: =IF(ISNUMBER(K116),INDEX(INDIRECT("_"&$A$96&"Table7"),B113+1,4),0) -> 0 | EP116: =IF(Metric,"m3","cy") -> cy | EQ116: =INDEX(INDIRECT("_"&$A$96&"Table7"),B113+1,10) ->  | ER116: =IF(OR(NOT(ISNUMBER(K116)),K116=0),0,INDEX(INDIRECT("_"&$A$96&"Table7"),B113+1,12)) -> 0 | ES116: =IF(OR(NOT(ISNUMBER(K116)),K116=0),0,INDEX(INDIRECT("_"&$A$96&"Table7"),B113+1,14)) -> 0 | ET116: =INDEX(INDIRECT("_"&$A$96&"Table7"),B113+1,5) ->  | EU116: =IF(OR(NOT(ISNUMBER(K116)),K116=0),0,INDEX(INDIRECT("_"&$A$96&"Table7"),B113+1,7)) -> 0 | EV116: =IF(OR(NOT(ISNUMBER(K116)),K116=0),0,INDEX(INDIRECT("_"&$A$96&"Table7"),B113+1,9)) -> 0 | EZ116: TRUE
D117: Growth Media Placement | J117: =INDEX(INDIRECT("_"&$A$96&"Table8"),B113+1,11) -> 895 | K117: =IF(OR(J117="",K113="",ISTEXT(K113),J117=0),"",IF(OR(ISBLANK(M117),ISBLANK(N117)),"Enter Dates",IF(K113="Date Range","",IF(OR(AND(CostType=ARO,L113>ScheduleYear),AND(CostType=ARO,N117<=ScheduleYear)),"Date Range",IF(OR(AND(CostType=Bond,O117>ScheduleYear),AND(CostType=LOM,LOMComplete)),J117,J117-Q117))))) -> 895 | M117: 2023 | N117: 2025 | P117: 1 | Q117: 0 | R117: 0 | X117: 1 | EA117: 1 | EB117: =IF(OR(J117="",EB113="",ISTEXT(EB113)),0,IF(OR(ISBLANK(M117),ISBLANK(N117)),0,IF(OR(AND(CostType=ARO,L113>ScheduleYear),AND(OR(CostType=ARO,AND(CostType=LOM,LOMComplete=TRUE)),N117<=ScheduleYear)),0,J117))) -> 895 | EC117: =IF(OR(J117="",EC113="",ISTEXT(EC113)),0,IF(OR(ISBLANK(M117),ISBLANK(N117)),0,IF(EC113="Date Range",0,IF(OR(AND(CostType=ARO,L113>ScheduleYear),N117<=ScheduleYear),0,J117)))) ->  | EM117: GM | EN117: GM | EO117: =IF(ISNUMBER(K117),INDEX(INDIRECT("_"&$A$96&"Table8"),B113+1,3),0) -> 355 | EP117: =IF(Metric,"m3","cy") -> cy | EQ117: =INDEX(INDIRECT("_"&$A$96&"Table8"),B113+1,4) -> 725C2/966M/D6T | ER117: =IF(OR(NOT(ISNUMBER(K117)),K117=0),0,INDEX(INDIRECT("_"&$A$96&"Table8"),B113+1,6)) -> 3 | ES117: =IF(OR(NOT(ISNUMBER(K117)),K117=0),0,INDEX(INDIRECT("_"&$A$96&"Table8"),B113+1,8)) -> 1 | EZ117: TRUE
D118: Revegetation | J118: =INDEX(INDIRECT("_"&$A$96&"Table9"),B113+1,7) -> 323 | K118: =IF(OR(J118="",K113="",ISTEXT(K113),J118=0),"",IF(OR(ISBLANK(M118),ISBLANK(N118)),"Enter Dates",IF(K113="Date Range","",IF(OR(AND(CostType=ARO,L113>ScheduleYear),AND(CostType=ARO,N118<=ScheduleYear)),"Date Range",IF(OR(AND(CostType=Bond,O118>ScheduleYear),AND(CostType=LOM,LOMComplete)),J118,J118-Q118))))) -> 323 | M118: 2023 | N118: 2025 | P118: 1 | Q118: 0 | R118: 0 | X118: 1 | EA118: 1 | EB118: =IF(OR(J118="",EB113="",ISTEXT(EB113)),0,IF(OR(ISBLANK(M118),ISBLANK(N118)),0,IF(OR(AND(CostType=ARO,L113>ScheduleYear),AND(OR(CostType=ARO,AND(CostType=LOM,LOMComplete=TRUE)),N118<=ScheduleYear)),0,J118))) -> 323 | EC118: =IF(OR(J118="",EC113="",ISTEXT(EC113)),0,IF(OR(ISBLANK(M118),ISBLANK(N118)), 0,IF(EC113="Date Range",0,IF(OR(AND(CostType=ARO,L113>ScheduleYear),N118<=ScheduleYear),0,J118)))) ->  | EM118: Reveg | EN118: Reveg | EO118: =IF(ISNUMBER(K118),INDEX(INDIRECT("_"&$A$96&"Table9"),B113+1,3),0) -> 0.2 | EP118: =IF(Metric,"ha","acres") -> acres | EZ118: TRUE
D119: E-Cell/ET-Cell Liner | J119: =INDEX(INDIRECT("_"&$A$96&"Table10"),B113+1,15) -> 0 | K119: =IF(OR(J119="",K113="",ISTEXT(K113),J119=0),"",IF(OR(ISBLANK(M119),ISBLANK(N119)),"Enter Dates",IF(K113="Date Range","",IF(OR(AND(CostType=ARO,L113>ScheduleYear),AND(CostType=ARO,N119<=ScheduleYear)),"Date Range",IF(OR(AND(CostType=Bond,O119>ScheduleYear),AND(CostType=LOM,LOMComplete)),J119,J119-Q119))))) ->  | M119: 2023 | N119: 2025 | Q119: 0 | R119: 0 | X119: 1 | EA119: 1 | EB119: =IF(OR(J119="",EB113="",ISTEXT(EB113)),0,IF(OR(ISBLANK(M119),ISBLANK(N119)),0,IF(OR(AND(CostType=ARO,L113>ScheduleYear),AND(OR(CostType=ARO,AND(CostType=LOM,LOMComplete=TRUE)),N119<=ScheduleYear)),0,J119))) -> 0 | EC119: =IF(OR(J119="",EC113="",ISTEXT(EC113)),0,IF(OR(ISBLANK(M119),ISBLANK(N119)), 0,IF(EC113="Date Range",0,IF(OR(AND(CostType=ARO,L113>ScheduleYear),N119<=ScheduleYear),0,J119)))) ->  | EM119: Liner | EN119: Liner | EO119: =IF(ISNUMBER(K119),INDEX(INDIRECT("_"&$A$96&"Table10"),B113+1,3)+INDEX(INDIRECT("_"&$A$96&"Table10"),B113+1,8),0) -> 0 | EP119: =IF(Metric,"m2","f2") -> f2 | EZ119: TRUE
D120: E-Cell/ET-Cell Piping | J120: =INDEX(INDIRECT("_"&$A$96&"Table11"),B113+1,20) -> 0 | K120: =IF(OR(J120="",K113="",ISTEXT(K113),J120=0),"",IF(OR(ISBLANK(M120),ISBLANK(N120)),"Enter Dates",IF(K113="Date Range","",IF(OR(AND(CostType=ARO,L113>ScheduleYear),AND(CostType=ARO,N120<=ScheduleYear)),"Date Range",IF(OR(AND(CostType=Bond,O120>ScheduleYear),AND(CostType=LOM,LOMComplete)),J120,J120-Q120))))) ->  | M120: 2023 | N120: 2025 | Q120: 0 | R120: 0 | X120: 1 | EA120: 1 | EB120: =IF(OR(J120="",EB113="",ISTEXT(EB113)),0,IF(OR(ISBLANK(M120),ISBLANK(N120)),0,IF(OR(AND(CostType=ARO,L113>ScheduleYear),AND(OR(CostType=ARO,AND(CostType=LOM,LOMComplete=TRUE)),N120<=ScheduleYear)),0,J120))) -> 0 | EC120: =IF(OR(J120="",EC114="",ISTEXT(EC114)),0,IF(OR(ISBLANK(M120),ISBLANK(N120)), 0,IF(EC114="Date Range",0,IF(OR(AND(CostType=ARO,L113>ScheduleYear),N120<=ScheduleYear),0,J120)))) ->  | EM120: Pipe | EN120: Pipe | EO120: =IF(ISNUMBER(K120),INDEX(INDIRECT("_"&$A$96&"Table11"),B113+1,3)+INDEX(INDIRECT("_"&$A$96&"Table11"),B113+1,8)+INDEX(INDIRECT("_"&$A$96&"Table11"),B113+1,13),0) -> 0 | EP120: =IF(Metric,"m","ft") -> ft | EZ120: TRUE
B121: =(ROW(B121) - ROW($A$96)-1)/INDEX(SheetRangeIndex,MATCH($A$96,TableNamesSorted,0),7) -> 3 | C121: =INDEX(INDIRECT("_"&$A$96&"Table1"),B121+1,9) -> FA | D121: =INDEX(INDIRECT("_"&$A$96&"Table1"),B121+1,2) -> ARD Lime Treatment Pond A | E121: =IF(ISBLANK(INDEX(INDIRECT("_"&INDEX(SheetRangeIndex,MATCH($A$96,TableNamesSorted,0),3)&"Table1"),B121+1,3)),"",INDEX(INDIRECT("_"&INDEX(SheetRangeIndex,MATCH($A$96,TableNamesSorted,0),3)&"Table1"),B121+1,3)) ->  | F121: =IF(ISERROR(EL121),"Facility Type",IF(ISBLANK(INDEX(INDIRECT("_"&$A$96&"Table1"),B121+1,5)),"",INDEX(INDIRECT("_"&$A$96&"Table1"),B121+1,5))) -> Other Site Facilities | G121: =IF(ISBLANK(INDEX(INDIRECT("_"&$A$96&"Table1"),B121+1,6)),"",INDEX(INDIRECT("_"&$A$96&"Table1"),B121+1,6)) -> Closure | H121: =IF(ISBLANK(INDEX(INDIRECT("_"&$A$96&"Table1"),B121+1,7)),"",INDEX(INDIRECT("_"&$A$96&"Table1"),B121+1,7)) -> Ponds | I121: =IF(ISBLANK(INDEX(INDIRECT("_"&$A$96&"Table1"),B121+1,8)),"",INDEX(INDIRECT("_"&$A$96&"Table1"),B121+1,8)) -> Public Land | J121: =SUM(J122:J128) -> 3510 | K121: =IF(ISERR(ED121),"Cost Type",IF(A121="X","Override",IF(AND(CostType=ARO,L121>ScheduleYear),"Date Range",IF(AND(ISTEXT(LocationFilter),ISERROR(EI121)),"Location",IF(AND(ISTEXT(PropertyFilter),ISERROR(EJ121)),"Property",IF(AND(ISTEXT(FacilityTypeFilter),ISERROR(EG121)),"Facility Type",IF(AND(NOT(ISBLANK(IDCodeFilter)),ISERROR(EF121)),"ID Code",IF(AND(ISTEXT(PhaseFilter),ISERROR(EH121)),"Phase",IF(AND(CostType=LOM,LOMComplete),J121,SUM(T121:DO121)))))))))) -> 3510 | L121: =INDEX(INDIRECT("_"&$A$96&"Table1"),B121+1,4) -> 2000 | Q121: =SUM(Q122:Q128) -> 0 | T121: =IF(ISTEXT($EB121),0,IF(AND(CostType=LOM,LOMComplete,T$27<=ScheduleYear),SUMPRODUCT(T122:T128,$J122:$J128),IF(CostType=Bond,SUMPRODUCT($EB122:$EB128,T122:T128,$EA122:$EA128),IF(T$27<=ScheduleYear,0,SUMPRODUCT(T122:T128,$EB122:$EB128))))) -> 0 | U121: 0 | V121: 0 | W121: 0 | X121: 3510 | Y121: 0 | Z121: 0 | AA121: 0 | AB121: 0 | AC121: 0 | AD121: 0 | AE121: 0 | AF121: 0 | AG121: 0 | AH121: 0 | AI121: 0 | AJ121: 0 | AK121: 0 | AL121: 0 | AM121: 0 | AN121: 0 | AO121: 0 | AP121: 0 | AQ121: 0 | AR121: 0 | AS121: 0 | AT121: 0 | AU121: 0 | AV121: 0 | AW121: 0 | AX121: 0 | AY121: 0 | AZ121: 0 | BA121: 0 | BB121: 0 | BC121: 0 | BD121: 0 | BE121: 0 | BF121: 0 | BG121: 0 | BH121: 0 | BI121: 0 | BJ121: 0 | BK121: 0 | BL121: 0 | BM121: 0 | BN121: 0 | BO121: 0 | BP121: 0 | BQ121: 0 | BR121: 0 | BS121: 0 | BT121: 0 | BU121: 0 | BV121: 0 | BW121: 0 | BX121: 0 | BY121: 0 | BZ121: 0 | CA121: 0 | CB121: 0 | CC121: 0 | CD121: 0 | CE121: 0 | CF121: =IF(ISTEXT($EB121),0,IF(AND(CostType=LOM,LOMComplete,CF$27<=ScheduleYear),SUMPRODUCT(CF122:CF128,$J122:$J128),IF(CostType=Bond,SUMPRODUCT($EB122:$EB128,CF122:CF128,$EA122:$EA128),IF(CF$27<=ScheduleYear,0,SUMPRODUCT(CF122:CF128,$EB122:$EB128))))) -> 0 | CG121: 0 | CH121: 0 | CI121: 0 | CJ121: 0 | CK121: 0 | CL121: 0 | CM121: 0 | CN121: 0 | CO121: 0 | CP121: 0 | CQ121: 0 | CR121: 0 | CS121: 0 | CT121: 0 | CU121: 0 | CV121: 0 | CW121: 0 | CX121: 0 | CY121: 0 | CZ121: 0 | DA121: 0 | DB121: 0 | DC121: 0 | DD121: 0 | DE121: 0 | DF121: 0 | DG121: 0 | DH121: 0 | DI121: 0 | DJ121: 0 | DK121: 0 | DL121: 0 | DM121: 0 | DN121: 0 | DO121: 0 | DP121: =IF(ISNUMBER(K121),SUM(T121:DO121)-K121,K121) -> 0 | EB121: =IF(ISERR(ED121),"Cost Type",IF(A121="X","Override",IF(AND(CostType=ARO,L121>ScheduleYear),0,IF(AND(ISTEXT(LocationFilter),ISERROR(EI121)),"Location",IF(AND(ISTEXT(PropertyFilter),ISERROR(EJ121)),"Property",IF(AND(ISTEXT(FacilityTypeFilter),ISERROR(EG121)),"Facility Type",IF(AND(ISTEXT(IDCodeFilter),ISERROR(EF121)),"ID Code",IF(AND(ISTEXT(PhaseFilter),ISERROR(EH121)),"Phase",J121)))))))) -> 3510 | EC121: =IF(EE121="","Cost Type",IF(A121="X","Override",IF(AND(OtherCostType=ARO,L121>ScheduleYear),0,IF(AND(ISTEXT(LocationFilter),EI121=""),"Location",IF(AND(ISTEXT(PropertyFilter),EJ121=""),"Property",IF(AND(ISTEXT(FacilityTypeFilter),EG121=""),"Facility Type",IF(AND(ISTEXT(IDCodeFilter),EF121=""),"ID Code",IF(AND(ISTEXT(PhaseFilter),EH121=""),"Phase",J121)))))))) ->  | ED121: =SEARCH(CostType,C121) -> 1 | EE121: =SEARCH(OtherCostType,C121) ->  | EF121: =IF(AND(IDCodeFilterType="CONTAINS",NOT(ISERROR(SEARCH(IDCodeFilter,E121)))),1,IF(AND(IDCodeFilterType="NOT",ISERROR(SEARCH(IDCodeFilter,E121))),1,IF(AND(OR(IDCodeFilterType="EXACT",ISBLANK(IDCodeFilterType)),NOT(ISERROR(MATCH(IDCodeFilter,E121,0)))),1,$EK121))) ->  | EG121: =IF(AND(FacilityFilterType="CONTAINS",NOT(ISERROR(SEARCH(FacilityTypeFilter,F121)))),1,IF(AND(FacilityFilterType="NOT",ISERROR(SEARCH(FacilityTypeFilter,F121))),1,IF(AND(OR(FacilityFilterType="EXACT",ISBLANK(FacilityFilterType)),NOT(ISERROR(MATCH(FacilityTypeFilter,F121,0)))),1,$EK121))) ->  | EH121: =IF(AND(PhaseFilterType="CONTAINS",NOT(ISERROR(SEARCH(PhaseFilter,G121)))),1,IF(AND(PhaseFilterType="NOT",ISERROR(SEARCH(PhaseFilter,G121))),1,IF(AND(OR(PhaseFilterType="EXACT",ISBLANK(PhaseFilterType)),NOT(ISERROR(MATCH(PhaseFilter,G121,0)))),1,$EK121))) ->  | EI121: =IF(AND(LocationFilterType="CONTAINS",NOT(ISERROR(SEARCH(LocationFilter,H121)))),1,IF(AND(LocationFilterType="NOT",ISERROR(SEARCH(LocationFilter,H121))),1,IF(AND(OR(LocationFilterType="EXACT",ISBLANK(LocationFilterType)),NOT(ISERROR(MATCH(LocationFilter,H121,0)))),1,$EK121))) ->  | EJ121: =IF(AND(PropertyFilterType="CONTAINS",NOT(ISERROR(SEARCH(PropertyFilter,I121)))),1,IF(AND(PropertyFilterType="NOT",ISERROR(SEARCH(PropertyFilter,I121))),1,IF(AND(OR(PropertyFilterType="EXACT",ISBLANK(PropertyFilterType)),NOT(ISERROR(MATCH(PropertyFilter,I121,0)))),1,$EK121))) ->  | EK121: =MATCH("NOT",$EK$27,0) ->  | EL121: =IF(ISBLANK(INDEX(INDIRECT("_"&$A$96&"Table1"),B121+1,2)),"",MATCH(INDEX(INDIRECT("_"&$A$96&"Table1"),B121+1,5),Accounts,0)) -> 5 | EZ121: FALSE | FA121: 1
D122: Liner Cutting and Folding | J122: =IF(INDEX(INDIRECT("_"&$A$96&"Table5"),B121+1,6)=0,0,INDEX(INDIRECT("_"&$A$96&"Table5"),B121+1,6)) -> 1373 | K122: =IF(OR(J122="",K121="",ISTEXT(K121),J122=0),"",IF(OR(ISBLANK(M122),ISBLANK(N122)),"Enter Dates",IF(K121="Date Range","",IF(OR(AND(CostType=ARO,L121>ScheduleYear),AND(CostType=ARO,N122<=ScheduleYear)),"Date Range",IF(OR(AND(CostType=Bond,O122>ScheduleYear),AND(CostType=LOM,LOMComplete)),J122,J122-Q122))))) -> 1373 | M122: 2023 | N122: 2025 | P122: =IF(K122="","",SUM(T122:DO122)) -> 1 | Q122: =IF(OR(AND(CostType=ARO,N122<=ScheduleYear),AND(CostType=LOM,LOMComplete)),J122*R122,R122*EB122) -> 0 | R122: =IF(CostType=Bond,SUMIFS(T122:DP122,T$27:DP$27,"<="&O122,T$27:DP$27,"<="&ScheduleYear),SUMIF(T$27:DP$27,"<="&ScheduleYear,T122:DP122)) -> 0 | X122: 1 | EA122: 1 | EB122: =IF(OR(J122="",EB121="",ISTEXT(EB121)),0,IF(OR(ISBLANK(M122),ISBLANK(N122)),0,IF(OR(AND(CostType=ARO,L121>ScheduleYear),AND(OR(CostType=ARO,AND(CostType=LOM,LOMComplete=TRUE)),N122<=ScheduleYear)),0,J122))) -> 1373 | EC122: =IF(OR(J122="",EC121="",ISTEXT(EC121)),0,IF(OR(ISBLANK(M122),ISBLANK(N122)),0,IF(EC121="Date Range",0,IF(OR(AND(OtherCostType=ARO,L121>ScheduleYear),N122<=ScheduleYear),0,J122)))) ->  | EM122: Liner | EN122: Liner | EO122: =IF(ISNUMBER(K122),IF(INDEX(INDIRECT("_"&$A$96&"Table5"),B121+1,3)=0,0,INDEX(INDIRECT("_"&$A$96&"Table5"),B121+1,3)),0) -> 6 | EP122: =IF(Metric,"m3","cy") -> cy | EQ122: =LinerExcavator -> 325F | ES122: =IF(OR(NOT(ISNUMBER(K122)),K122=0),0,INDEX(INDIRECT("_"&$A$96&"Table4"),B121+1,3)) -> 0 | EZ122: TRUE
D123: Backfill/Cover 1 Placement | J123: =INDEX(INDIRECT("_"&$A$96&"Table6"),B121+1,25) -> 895 | K123: =IF(OR(J123="",K121="",ISTEXT(K121),J123=0),"",IF(OR(ISBLANK(M123),ISBLANK(N123)),"Enter Dates",IF(K121="Date Range","",IF(OR(AND(CostType=ARO,L121>ScheduleYear),AND(CostType=ARO,N123<=ScheduleYear)),"Date Range",IF(OR(AND(CostType=Bond,O123>ScheduleYear),AND(CostType=LOM,LOMComplete)),J123,J123-Q123))))) -> 895 | M123: 2023 | N123: 2025 | P123: 1 | Q123: 0 | R123: 0 | X123: 1 | EA123: 1 | EB123: =IF(OR(J123="",EB121="",ISTEXT(EB121)),0,IF(OR(ISBLANK(M123),ISBLANK(N123)),0,IF(OR(AND(CostType=ARO,L121>ScheduleYear),AND(OR(CostType=ARO,AND(CostType=LOM,LOMComplete=TRUE)),N123<=ScheduleYear)),0,J123))) -> 895 | EC123: =IF(OR(J123="",EC121="",ISTEXT(EC121)),0,IF(OR(ISBLANK(M123),ISBLANK(N123)),0,IF(EC121="Date Range",0,IF(OR(AND(CostType=ARO,L121>ScheduleYear),N123<=ScheduleYear),0,J123)))) ->  | EM123: Backfill | EN123: Backfill | EO123: =IF(ISNUMBER(K123),INDEX(INDIRECT("_"&$A$96&"Table6"),B121+1,4),0) -> 209 | EP123: =IF(Metric,"m3","cy") -> cy | EQ123: =INDEX(INDIRECT("_"&$A$96&"Table6"),B121+1,10) -> 725C2/966M/D6T | ER123: =IF(OR(NOT(ISNUMBER(K123)),K123=0),0,INDEX(INDIRECT("_"&$A$96&"Table6"),B121+1,12)) -> 3 | ES123: =IF(OR(NOT(ISNUMBER(K123)),K123=0),0,INDEX(INDIRECT("_"&$A$96&"Table6"),B121+1,14)) -> 1 | ET123: =INDEX(INDIRECT("_"&$A$96&"Table6"),B121+1,5) ->  | EU123: =IF(OR(NOT(ISNUMBER(K123)),K123=0),0,INDEX(INDIRECT("_"&$A$96&"Table6"),B121+1,7)) ->  | EV123: =IF(OR(NOT(ISNUMBER(K123)),K123=0),0,INDEX(INDIRECT("_"&$A$96&"Table6"),B121+1,9)) -> 0 | EZ123: TRUE
D124: Backfill/Cover 2 Placement | J124: =INDEX(INDIRECT("_"&$A$96&"Table7"),B121+1,25) -> 0 | K124: =IF(OR(J124="",K121="",ISTEXT(K121),J124=0),"",IF(OR(ISBLANK(M124),ISBLANK(N124)),"Enter Dates",IF(K121="Date Range","",IF(OR(AND(CostType=ARO,L121>ScheduleYear),AND(CostType=ARO,N124<=ScheduleYear)),"Date Range",IF(OR(AND(CostType=Bond,O124>ScheduleYear),AND(CostType=LOM,LOMComplete)),J124,J124-Q124))))) ->  | M124: 2023 | N124: 2025 | Q124: 0 | R124: 0 | X124: 1 | EA124: 1 | EB124: =IF(OR(J124="",EB121="",ISTEXT(EB121)),0,IF(OR(ISBLANK(M124),ISBLANK(N124)),0,IF(OR(AND(CostType=ARO,L121>ScheduleYear),AND(OR(CostType=ARO,AND(CostType=LOM,LOMComplete=TRUE)),N124<=ScheduleYear)),0,J124))) -> 0 | EC124: =IF(OR(J124="",EC121="",ISTEXT(EC121)),0,IF(OR(ISBLANK(M124),ISBLANK(N124)),0,IF(EC121="Date Range",0,IF(OR(AND(CostType=ARO,L121>ScheduleYear),N124<=ScheduleYear),0,J124)))) ->  | EM124: Backfill | EN124: Backfill | EO124: =IF(ISNUMBER(K124),INDEX(INDIRECT("_"&$A$96&"Table7"),B121+1,4),0) -> 0 | EP124: =IF(Metric,"m3","cy") -> cy | EQ124: =INDEX(INDIRECT("_"&$A$96&"Table7"),B121+1,10) ->  | ER124: =IF(OR(NOT(ISNUMBER(K124)),K124=0),0,INDEX(INDIRECT("_"&$A$96&"Table7"),B121+1,12)) -> 0 | ES124: =IF(OR(NOT(ISNUMBER(K124)),K124=0),0,INDEX(INDIRECT("_"&$A$96&"Table7"),B121+1,14)) -> 0 | ET124: =INDEX(INDIRECT("_"&$A$96&"Table7"),B121+1,5) ->  | EU124: =IF(OR(NOT(ISNUMBER(K124)),K124=0),0,INDEX(INDIRECT("_"&$A$96&"Table7"),B121+1,7)) -> 0 | EV124: =IF(OR(NOT(ISNUMBER(K124)),K124=0),0,INDEX(INDIRECT("_"&$A$96&"Table7"),B121+1,9)) -> 0 | EZ124: TRUE
D125: Growth Media Placement | J125: =INDEX(INDIRECT("_"&$A$96&"Table8"),B121+1,11) -> 895 | K125: =IF(OR(J125="",K121="",ISTEXT(K121),J125=0),"",IF(OR(ISBLANK(M125),ISBLANK(N125)),"Enter Dates",IF(K121="Date Range","",IF(OR(AND(CostType=ARO,L121>ScheduleYear),AND(CostType=ARO,N125<=ScheduleYear)),"Date Range",IF(OR(AND(CostType=Bond,O125>ScheduleYear),AND(CostType=LOM,LOMComplete)),J125,J125-Q125))))) -> 895 | M125: 2023 | N125: 2025 | P125: 1 | Q125: 0 | R125: 0 | X125: 1 | EA125: 1 | EB125: =IF(OR(J125="",EB121="",ISTEXT(EB121)),0,IF(OR(ISBLANK(M125),ISBLANK(N125)),0,IF(OR(AND(CostType=ARO,L121>ScheduleYear),AND(OR(CostType=ARO,AND(CostType=LOM,LOMComplete=TRUE)),N125<=ScheduleYear)),0,J125))) -> 895 | EC125: =IF(OR(J125="",EC121="",ISTEXT(EC121)),0,IF(OR(ISBLANK(M125),ISBLANK(N125)),0,IF(EC121="Date Range",0,IF(OR(AND(CostType=ARO,L121>ScheduleYear),N125<=ScheduleYear),0,J125)))) ->  | EM125: GM | EN125: GM | EO125: =IF(ISNUMBER(K125),INDEX(INDIRECT("_"&$A$96&"Table8"),B121+1,3),0) -> 452 | EP125: =IF(Metric,"m3","cy") -> cy | EQ125: =INDEX(INDIRECT("_"&$A$96&"Table8"),B121+1,4) -> 725C2/966M/D6T | ER125: =IF(OR(NOT(ISNUMBER(K125)),K125=0),0,INDEX(INDIRECT("_"&$A$96&"Table8"),B121+1,6)) -> 3 | ES125: =IF(OR(NOT(ISNUMBER(K125)),K125=0),0,INDEX(INDIRECT("_"&$A$96&"Table8"),B121+1,8)) -> 1 | EZ125: TRUE
D126: Revegetation | J126: =INDEX(INDIRECT("_"&$A$96&"Table9"),B121+1,7) -> 347 | K126: =IF(OR(J126="",K121="",ISTEXT(K121),J126=0),"",IF(OR(ISBLANK(M126),ISBLANK(N126)),"Enter Dates",IF(K121="Date Range","",IF(OR(AND(CostType=ARO,L121>ScheduleYear),AND(CostType=ARO,N126<=ScheduleYear)),"Date Range",IF(OR(AND(CostType=Bond,O126>ScheduleYear),AND(CostType=LOM,LOMComplete)),J126,J126-Q126))))) -> 347 | M126: 2023 | N126: 2025 | P126: 1 | Q126: 0 | R126: 0 | X126: 1 | EA126: 1 | EB126: =IF(OR(J126="",EB121="",ISTEXT(EB121)),0,IF(OR(ISBLANK(M126),ISBLANK(N126)),0,IF(OR(AND(CostType=ARO,L121>ScheduleYear),AND(OR(CostType=ARO,AND(CostType=LOM,LOMComplete=TRUE)),N126<=ScheduleYear)),0,J126))) -> 347 | EC126: =IF(OR(J126="",EC121="",ISTEXT(EC121)),0,IF(OR(ISBLANK(M126),ISBLANK(N126)), 0,IF(EC121="Date Range",0,IF(OR(AND(CostType=ARO,L121>ScheduleYear),N126<=ScheduleYear),0,J126)))) ->  | EM126: Reveg | EN126: Reveg | EO126: =IF(ISNUMBER(K126),INDEX(INDIRECT("_"&$A$96&"Table9"),B121+1,3),0) -> 0.3 | EP126: =IF(Metric,"ha","acres") -> acres | EZ126: TRUE
D127: E-Cell/ET-Cell Liner | J127: =INDEX(INDIRECT("_"&$A$96&"Table10"),B121+1,15) -> 0 | K127: =IF(OR(J127="",K121="",ISTEXT(K121),J127=0),"",IF(OR(ISBLANK(M127),ISBLANK(N127)),"Enter Dates",IF(K121="Date Range","",IF(OR(AND(CostType=ARO,L121>ScheduleYear),AND(CostType=ARO,N127<=ScheduleYear)),"Date Range",IF(OR(AND(CostType=Bond,O127>ScheduleYear),AND(CostType=LOM,LOMComplete)),J127,J127-Q127))))) ->  | M127: 2023 | N127: 2025 | Q127: 0 | R127: 0 | X127: 1 | EA127: 1 | EB127: =IF(OR(J127="",EB121="",ISTEXT(EB121)),0,IF(OR(ISBLANK(M127),ISBLANK(N127)),0,IF(OR(AND(CostType=ARO,L121>ScheduleYear),AND(OR(CostType=ARO,AND(CostType=LOM,LOMComplete=TRUE)),N127<=ScheduleYear)),0,J127))) -> 0 | EC127: =IF(OR(J127="",EC121="",ISTEXT(EC121)),0,IF(OR(ISBLANK(M127),ISBLANK(N127)), 0,IF(EC121="Date Range",0,IF(OR(AND(CostType=ARO,L121>ScheduleYear),N127<=ScheduleYear),0,J127)))) ->  | EM127: Liner | EN127: Liner | EO127: =IF(ISNUMBER(K127),INDEX(INDIRECT("_"&$A$96&"Table10"),B121+1,3)+INDEX(INDIRECT("_"&$A$96&"Table10"),B121+1,8),0) -> 0 | EP127: =IF(Metric,"m2","f2") -> f2 | EZ127: TRUE
D128: E-Cell/ET-Cell Piping | J128: =INDEX(INDIRECT("_"&$A$96&"Table11"),B121+1,20) -> 0 | K128: =IF(OR(J128="",K121="",ISTEXT(K121),J128=0),"",IF(OR(ISBLANK(M128),ISBLANK(N128)),"Enter Dates",IF(K121="Date Range","",IF(OR(AND(CostType=ARO,L121>ScheduleYear),AND(CostType=ARO,N128<=ScheduleYear)),"Date Range",IF(OR(AND(CostType=Bond,O128>ScheduleYear),AND(CostType=LOM,LOMComplete)),J128,J128-Q128))))) ->  | M128: 2023 | N128: 2025 | Q128: 0 | R128: 0 | X128: 1 | EA128: 1 | EB128: =IF(OR(J128="",EB121="",ISTEXT(EB121)),0,IF(OR(ISBLANK(M128),ISBLANK(N128)),0,IF(OR(AND(CostType=ARO,L121>ScheduleYear),AND(OR(CostType=ARO,AND(CostType=LOM,LOMComplete=TRUE)),N128<=ScheduleYear)),0,J128))) -> 0 | EC128: =IF(OR(J128="",EC122="",ISTEXT(EC122)),0,IF(OR(ISBLANK(M128),ISBLANK(N128)), 0,IF(EC122="Date Range",0,IF(OR(AND(CostType=ARO,L121>ScheduleYear),N128<=ScheduleYear),0,J128)))) ->  | EM128: Pipe | EN128: Pipe | EO128: =IF(ISNUMBER(K128),INDEX(INDIRECT("_"&$A$96&"Table11"),B121+1,3)+INDEX(INDIRECT("_"&$A$96&"Table11"),B121+1,8)+INDEX(INDIRECT("_"&$A$96&"Table11"),B121+1,13),0) -> 0 | EP128: =IF(Metric,"m","ft") -> ft | EZ128: TRUE
B129: =(ROW(B129) - ROW($A$96)-1)/INDEX(SheetRangeIndex,MATCH($A$96,TableNamesSorted,0),7) -> 4 | C129: =INDEX(INDIRECT("_"&$A$96&"Table1"),B129+1,9) -> FA | D129: =INDEX(INDIRECT("_"&$A$96&"Table1"),B129+1,2) -> ARD Lime Treatment Pond B | E129: =IF(ISBLANK(INDEX(INDIRECT("_"&INDEX(SheetRangeIndex,MATCH($A$96,TableNamesSorted,0),3)&"Table1"),B129+1,3)),"",INDEX(INDIRECT("_"&INDEX(SheetRangeIndex,MATCH($A$96,TableNamesSorted,0),3)&"Table1"),B129+1,3)) ->  | F129: =IF(ISERROR(EL129),"Facility Type",IF(ISBLANK(INDEX(INDIRECT("_"&$A$96&"Table1"),B129+1,5)),"",INDEX(INDIRECT("_"&$A$96&"Table1"),B129+1,5))) -> Other Site Facilities | G129: =IF(ISBLANK(INDEX(INDIRECT("_"&$A$96&"Table1"),B129+1,6)),"",INDEX(INDIRECT("_"&$A$96&"Table1"),B129+1,6)) -> Closure | H129: =IF(ISBLANK(INDEX(INDIRECT("_"&$A$96&"Table1"),B129+1,7)),"",INDEX(INDIRECT("_"&$A$96&"Table1"),B129+1,7)) -> Ponds | I129: =IF(ISBLANK(INDEX(INDIRECT("_"&$A$96&"Table1"),B129+1,8)),"",INDEX(INDIRECT("_"&$A$96&"Table1"),B129+1,8)) -> Public Land | J129: =SUM(J130:J136) -> 3510 | K129: =IF(ISERR(ED129),"Cost Type",IF(A129="X","Override",IF(AND(CostType=ARO,L129>ScheduleYear),"Date Range",IF(AND(ISTEXT(LocationFilter),ISERROR(EI129)),"Location",IF(AND(ISTEXT(PropertyFilter),ISERROR(EJ129)),"Property",IF(AND(ISTEXT(FacilityTypeFilter),ISERROR(EG129)),"Facility Type",IF(AND(NOT(ISBLANK(IDCodeFilter)),ISERROR(EF129)),"ID Code",IF(AND(ISTEXT(PhaseFilter),ISERROR(EH129)),"Phase",IF(AND(CostType=LOM,LOMComplete),J129,SUM(T129:DO129)))))))))) -> 3510 | L129: =INDEX(INDIRECT("_"&$A$96&"Table1"),B129+1,4) -> 2000 | Q129: =SUM(Q130:Q136) -> 0 | T129: =IF(ISTEXT($EB129),0,IF(AND(CostType=LOM,LOMComplete,T$27<=ScheduleYear),SUMPRODUCT(T130:T136,$J130:$J136),IF(CostType=Bond,SUMPRODUCT($EB130:$EB136,T130:T136,$EA130:$EA136),IF(T$27<=ScheduleYear,0,SUMPRODUCT(T130:T136,$EB130:$EB136))))) -> 0 | U129: 0 | V129: 0 | W129: 0 | X129: 3510 | Y129: 0 | Z129: 0 | AA129: 0 | AB129: 0 | AC129: 0 | AD129: 0 | AE129: 0 | AF129: 0 | AG129: 0 | AH129: 0 | AI129: 0 | AJ129: 0 | AK129: 0 | AL129: 0 | AM129: 0 | AN129: 0 | AO129: 0 | AP129: 0 | AQ129: 0 | AR129: 0 | AS129: 0 | AT129: 0 | AU129: 0 | AV129: 0 | AW129: 0 | AX129: 0 | AY129: 0 | AZ129: 0 | BA129: 0 | BB129: 0 | BC129: 0 | BD129: 0 | BE129: 0 | BF129: 0 | BG129: 0 | BH129: 0 | BI129: 0 | BJ129: 0 | BK129: 0 | BL129: 0 | BM129: 0 | BN129: 0 | BO129: 0 | BP129: 0 | BQ129: 0 | BR129: 0 | BS129: 0 | BT129: 0 | BU129: 0 | BV129: 0 | BW129: 0 | BX129: 0 | BY129: 0 | BZ129: 0 | CA129: 0 | CB129: 0 | CC129: 0 | CD129: 0 | CE129: 0 | CF129: =IF(ISTEXT($EB129),0,IF(AND(CostType=LOM,LOMComplete,CF$27<=ScheduleYear),SUMPRODUCT(CF130:CF136,$J130:$J136),IF(CostType=Bond,SUMPRODUCT($EB130:$EB136,CF130:CF136,$EA130:$EA136),IF(CF$27<=ScheduleYear,0,SUMPRODUCT(CF130:CF136,$EB130:$EB136))))) -> 0 | CG129: 0 | CH129: 0 | CI129: 0 | CJ129: 0 | CK129: 0 | CL129: 0 | CM129: 0 | CN129: 0 | CO129: 0 | CP129: 0 | CQ129: 0 | CR129: 0 | CS129: 0 | CT129: 0 | CU129: 0 | CV129: 0 | CW129: 0 | CX129: 0 | CY129: 0 | CZ129: 0 | DA129: 0 | DB129: 0 | DC129: 0 | DD129: 0 | DE129: 0 | DF129: 0 | DG129: 0 | DH129: 0 | DI129: 0 | DJ129: 0 | DK129: 0 | DL129: 0 | DM129: 0 | DN129: 0 | DO129: 0 | DP129: =IF(ISNUMBER(K129),SUM(T129:DO129)-K129,K129) -> 0 | EB129: =IF(ISERR(ED129),"Cost Type",IF(A129="X","Override",IF(AND(CostType=ARO,L129>ScheduleYear),0,IF(AND(ISTEXT(LocationFilter),ISERROR(EI129)),"Location",IF(AND(ISTEXT(PropertyFilter),ISERROR(EJ129)),"Property",IF(AND(ISTEXT(FacilityTypeFilter),ISERROR(EG129)),"Facility Type",IF(AND(ISTEXT(IDCodeFilter),ISERROR(EF129)),"ID Code",IF(AND(ISTEXT(PhaseFilter),ISERROR(EH129)),"Phase",J129)))))))) -> 3510 | EC129: =IF(EE129="","Cost Type",IF(A129="X","Override",IF(AND(OtherCostType=ARO,L129>ScheduleYear),0,IF(AND(ISTEXT(LocationFilter),EI129=""),"Location",IF(AND(ISTEXT(PropertyFilter),EJ129=""),"Property",IF(AND(ISTEXT(FacilityTypeFilter),EG129=""),"Facility Type",IF(AND(ISTEXT(IDCodeFilter),EF129=""),"ID Code",IF(AND(ISTEXT(PhaseFilter),EH129=""),"Phase",J129)))))))) ->  | ED129: =SEARCH(CostType,C129) -> 1 | EE129: =SEARCH(OtherCostType,C129) ->  | EF129: =IF(AND(IDCodeFilterType="CONTAINS",NOT(ISERROR(SEARCH(IDCodeFilter,E129)))),1,IF(AND(IDCodeFilterType="NOT",ISERROR(SEARCH(IDCodeFilter,E129))),1,IF(AND(OR(IDCodeFilterType="EXACT",ISBLANK(IDCodeFilterType)),NOT(ISERROR(MATCH(IDCodeFilter,E129,0)))),1,$EK129))) ->  | EG129: =IF(AND(FacilityFilterType="CONTAINS",NOT(ISERROR(SEARCH(FacilityTypeFilter,F129)))),1,IF(AND(FacilityFilterType="NOT",ISERROR(SEARCH(FacilityTypeFilter,F129))),1,IF(AND(OR(FacilityFilterType="EXACT",ISBLANK(FacilityFilterType)),NOT(ISERROR(MATCH(FacilityTypeFilter,F129,0)))),1,$EK129))) ->  | EH129: =IF(AND(PhaseFilterType="CONTAINS",NOT(ISERROR(SEARCH(PhaseFilter,G129)))),1,IF(AND(PhaseFilterType="NOT",ISERROR(SEARCH(PhaseFilter,G129))),1,IF(AND(OR(PhaseFilterType="EXACT",ISBLANK(PhaseFilterType)),NOT(ISERROR(MATCH(PhaseFilter,G129,0)))),1,$EK129))) ->  | EI129: =IF(AND(LocationFilterType="CONTAINS",NOT(ISERROR(SEARCH(LocationFilter,H129)))),1,IF(AND(LocationFilterType="NOT",ISERROR(SEARCH(LocationFilter,H129))),1,IF(AND(OR(LocationFilterType="EXACT",ISBLANK(LocationFilterType)),NOT(ISERROR(MATCH(LocationFilter,H129,0)))),1,$EK129))) ->  | EJ129: =IF(AND(PropertyFilterType="CONTAINS",NOT(ISERROR(SEARCH(PropertyFilter,I129)))),1,IF(AND(PropertyFilterType="NOT",ISERROR(SEARCH(PropertyFilter,I129))),1,IF(AND(OR(PropertyFilterType="EXACT",ISBLANK(PropertyFilterType)),NOT(ISERROR(MATCH(PropertyFilter,I129,0)))),1,$EK129))) ->  | EK129: =MATCH("NOT",$EK$27,0) ->  | EL129: =IF(ISBLANK(INDEX(INDIRECT("_"&$A$96&"Table1"),B129+1,2)),"",MATCH(INDEX(INDIRECT("_"&$A$96&"Table1"),B129+1,5),Accounts,0)) -> 5 | EZ129: FALSE | FA129: 1
D130: Liner Cutting and Folding | J130: =IF(INDEX(INDIRECT("_"&$A$96&"Table5"),B129+1,6)=0,0,INDEX(INDIRECT("_"&$A$96&"Table5"),B129+1,6)) -> 1373 | K130: =IF(OR(J130="",K129="",ISTEXT(K129),J130=0),"",IF(OR(ISBLANK(M130),ISBLANK(N130)),"Enter Dates",IF(K129="Date Range","",IF(OR(AND(CostType=ARO,L129>ScheduleYear),AND(CostType=ARO,N130<=ScheduleYear)),"Date Range",IF(OR(AND(CostType=Bond,O130>ScheduleYear),AND(CostType=LOM,LOMComplete)),J130,J130-Q130))))) -> 1373 | M130: 2023 | N130: 2025 | P130: =IF(K130="","",SUM(T130:DO130)) -> 1 | Q130: =IF(OR(AND(CostType=ARO,N130<=ScheduleYear),AND(CostType=LOM,LOMComplete)),J130*R130,R130*EB130) -> 0 | R130: =IF(CostType=Bond,SUMIFS(T130:DP130,T$27:DP$27,"<="&O130,T$27:DP$27,"<="&ScheduleYear),SUMIF(T$27:DP$27,"<="&ScheduleYear,T130:DP130)) -> 0 | X130: 1 | EA130: 1 | EB130: =IF(OR(J130="",EB129="",ISTEXT(EB129)),0,IF(OR(ISBLANK(M130),ISBLANK(N130)),0,IF(OR(AND(CostType=ARO,L129>ScheduleYear),AND(OR(CostType=ARO,AND(CostType=LOM,LOMComplete=TRUE)),N130<=ScheduleYear)),0,J130))) -> 1373 | EC130: =IF(OR(J130="",EC129="",ISTEXT(EC129)),0,IF(OR(ISBLANK(M130),ISBLANK(N130)),0,IF(EC129="Date Range",0,IF(OR(AND(OtherCostType=ARO,L129>ScheduleYear),N130<=ScheduleYear),0,J130)))) ->  | EM130: Liner | EN130: Liner | EO130: =IF(ISNUMBER(K130),IF(INDEX(INDIRECT("_"&$A$96&"Table5"),B129+1,3)=0,0,INDEX(INDIRECT("_"&$A$96&"Table5"),B129+1,3)),0) -> 6 | EP130: =IF(Metric,"m3","cy") -> cy | EQ130: =LinerExcavator -> 325F | ES130: =IF(OR(NOT(ISNUMBER(K130)),K130=0),0,INDEX(INDIRECT("_"&$A$96&"Table4"),B129+1,3)) -> 0 | EZ130: TRUE
D131: Backfill/Cover 1 Placement | J131: =INDEX(INDIRECT("_"&$A$96&"Table6"),B129+1,25) -> 895 | K131: =IF(OR(J131="",K129="",ISTEXT(K129),J131=0),"",IF(OR(ISBLANK(M131),ISBLANK(N131)),"Enter Dates",IF(K129="Date Range","",IF(OR(AND(CostType=ARO,L129>ScheduleYear),AND(CostType=ARO,N131<=ScheduleYear)),"Date Range",IF(OR(AND(CostType=Bond,O131>ScheduleYear),AND(CostType=LOM,LOMComplete)),J131,J131-Q131))))) -> 895 | M131: 2023 | N131: 2025 | P131: 1 | Q131: 0 | R131: 0 | X131: 1 | EA131: 1 | EB131: =IF(OR(J131="",EB129="",ISTEXT(EB129)),0,IF(OR(ISBLANK(M131),ISBLANK(N131)),0,IF(OR(AND(CostType=ARO,L129>ScheduleYear),AND(OR(CostType=ARO,AND(CostType=LOM,LOMComplete=TRUE)),N131<=ScheduleYear)),0,J131))) -> 895 | EC131: =IF(OR(J131="",EC129="",ISTEXT(EC129)),0,IF(OR(ISBLANK(M131),ISBLANK(N131)),0,IF(EC129="Date Range",0,IF(OR(AND(CostType=ARO,L129>ScheduleYear),N131<=ScheduleYear),0,J131)))) ->  | EM131: Backfill | EN131: Backfill | EO131: =IF(ISNUMBER(K131),INDEX(INDIRECT("_"&$A$96&"Table6"),B129+1,4),0) -> 209 | EP131: =IF(Metric,"m3","cy") -> cy | EQ131: =INDEX(INDIRECT("_"&$A$96&"Table6"),B129+1,10) -> 725C2/966M/D6T | ER131: =IF(OR(NOT(ISNUMBER(K131)),K131=0),0,INDEX(INDIRECT("_"&$A$96&"Table6"),B129+1,12)) -> 3 | ES131: =IF(OR(NOT(ISNUMBER(K131)),K131=0),0,INDEX(INDIRECT("_"&$A$96&"Table6"),B129+1,14)) -> 1 | ET131: =INDEX(INDIRECT("_"&$A$96&"Table6"),B129+1,5) ->  | EU131: =IF(OR(NOT(ISNUMBER(K131)),K131=0),0,INDEX(INDIRECT("_"&$A$96&"Table6"),B129+1,7)) ->  | EV131: =IF(OR(NOT(ISNUMBER(K131)),K131=0),0,INDEX(INDIRECT("_"&$A$96&"Table6"),B129+1,9)) -> 0 | EZ131: TRUE
D132: Backfill/Cover 2 Placement | J132: =INDEX(INDIRECT("_"&$A$96&"Table7"),B129+1,25) -> 0 | K132: =IF(OR(J132="",K129="",ISTEXT(K129),J132=0),"",IF(OR(ISBLANK(M132),ISBLANK(N132)),"Enter Dates",IF(K129="Date Range","",IF(OR(AND(CostType=ARO,L129>ScheduleYear),AND(CostType=ARO,N132<=ScheduleYear)),"Date Range",IF(OR(AND(CostType=Bond,O132>ScheduleYear),AND(CostType=LOM,LOMComplete)),J132,J132-Q132))))) ->  | M132: 2023 | N132: 2025 | Q132: 0 | R132: 0 | X132: 1 | EA132: 1 | EB132: =IF(OR(J132="",EB129="",ISTEXT(EB129)),0,IF(OR(ISBLANK(M132),ISBLANK(N132)),0,IF(OR(AND(CostType=ARO,L129>ScheduleYear),AND(OR(CostType=ARO,AND(CostType=LOM,LOMComplete=TRUE)),N132<=ScheduleYear)),0,J132))) -> 0 | EC132: =IF(OR(J132="",EC129="",ISTEXT(EC129)),0,IF(OR(ISBLANK(M132),ISBLANK(N132)),0,IF(EC129="Date Range",0,IF(OR(AND(CostType=ARO,L129>ScheduleYear),N132<=ScheduleYear),0,J132)))) ->  | EM132: Backfill | EN132: Backfill | EO132: =IF(ISNUMBER(K132),INDEX(INDIRECT("_"&$A$96&"Table7"),B129+1,4),0) -> 0 | EP132: =IF(Metric,"m3","cy") -> cy | EQ132: =INDEX(INDIRECT("_"&$A$96&"Table7"),B129+1,10) ->  | ER132: =IF(OR(NOT(ISNUMBER(K132)),K132=0),0,INDEX(INDIRECT("_"&$A$96&"Table7"),B129+1,12)) -> 0 | ES132: =IF(OR(NOT(ISNUMBER(K132)),K132=0),0,INDEX(INDIRECT("_"&$A$96&"Table7"),B129+1,14)) -> 0 | ET132: =INDEX(INDIRECT("_"&$A$96&"Table7"),B129+1,5) ->  | EU132: =IF(OR(NOT(ISNUMBER(K132)),K132=0),0,INDEX(INDIRECT("_"&$A$96&"Table7"),B129+1,7)) -> 0 | EV132: =IF(OR(NOT(ISNUMBER(K132)),K132=0),0,INDEX(INDIRECT("_"&$A$96&"Table7"),B129+1,9)) -> 0 | EZ132: TRUE
D133: Growth Media Placement | J133: =INDEX(INDIRECT("_"&$A$96&"Table8"),B129+1,11) -> 895 | K133: =IF(OR(J133="",K129="",ISTEXT(K129),J133=0),"",IF(OR(ISBLANK(M133),ISBLANK(N133)),"Enter Dates",IF(K129="Date Range","",IF(OR(AND(CostType=ARO,L129>ScheduleYear),AND(CostType=ARO,N133<=ScheduleYear)),"Date Range",IF(OR(AND(CostType=Bond,O133>ScheduleYear),AND(CostType=LOM,LOMComplete)),J133,J133-Q133))))) -> 895 | M133: 2023 | N133: 2025 | P133: 1 | Q133: 0 | R133: 0 | X133: 1 | EA133: 1 | EB133: =IF(OR(J133="",EB129="",ISTEXT(EB129)),0,IF(OR(ISBLANK(M133),ISBLANK(N133)),0,IF(OR(AND(CostType=ARO,L129>ScheduleYear),AND(OR(CostType=ARO,AND(CostType=LOM,LOMComplete=TRUE)),N133<=ScheduleYear)),0,J133))) -> 895 | EC133: =IF(OR(J133="",EC129="",ISTEXT(EC129)),0,IF(OR(ISBLANK(M133),ISBLANK(N133)),0,IF(EC129="Date Range",0,IF(OR(AND(CostType=ARO,L129>ScheduleYear),N133<=ScheduleYear),0,J133)))) ->  | EM133: GM | EN133: GM | EO133: =IF(ISNUMBER(K133),INDEX(INDIRECT("_"&$A$96&"Table8"),B129+1,3),0) -> 452 | EP133: =IF(Metric,"m3","cy") -> cy | EQ133: =INDEX(INDIRECT("_"&$A$96&"Table8"),B129+1,4) -> 725C2/966M/D6T | ER133: =IF(OR(NOT(ISNUMBER(K133)),K133=0),0,INDEX(INDIRECT("_"&$A$96&"Table8"),B129+1,6)) -> 3 | ES133: =IF(OR(NOT(ISNUMBER(K133)),K133=0),0,INDEX(INDIRECT("_"&$A$96&"Table8"),B129+1,8)) -> 1 | EZ133: TRUE
D134: Revegetation | J134: =INDEX(INDIRECT("_"&$A$96&"Table9"),B129+1,7) -> 347 | K134: =IF(OR(J134="",K129="",ISTEXT(K129),J134=0),"",IF(OR(ISBLANK(M134),ISBLANK(N134)),"Enter Dates",IF(K129="Date Range","",IF(OR(AND(CostType=ARO,L129>ScheduleYear),AND(CostType=ARO,N134<=ScheduleYear)),"Date Range",IF(OR(AND(CostType=Bond,O134>ScheduleYear),AND(CostType=LOM,LOMComplete)),J134,J134-Q134))))) -> 347 | M134: 2023 | N134: 2025 | P134: 1 | Q134: 0 | R134: 0 | X134: 1 | EA134: 1 | EB134: =IF(OR(J134="",EB129="",ISTEXT(EB129)),0,IF(OR(ISBLANK(M134),ISBLANK(N134)),0,IF(OR(AND(CostType=ARO,L129>ScheduleYear),AND(OR(CostType=ARO,AND(CostType=LOM,LOMComplete=TRUE)),N134<=ScheduleYear)),0,J134))) -> 347 | EC134: =IF(OR(J134="",EC129="",ISTEXT(EC129)),0,IF(OR(ISBLANK(M134),ISBLANK(N134)), 0,IF(EC129="Date Range",0,IF(OR(AND(CostType=ARO,L129>ScheduleYear),N134<=ScheduleYear),0,J134)))) ->  | EM134: Reveg | EN134: Reveg | EO134: =IF(ISNUMBER(K134),INDEX(INDIRECT("_"&$A$96&"Table9"),B129+1,3),0) -> 0.3 | EP134: =IF(Metric,"ha","acres") -> acres | EZ134: TRUE
D135: E-Cell/ET-Cell Liner | J135: =INDEX(INDIRECT("_"&$A$96&"Table10"),B129+1,15) -> 0 | K135: =IF(OR(J135="",K129="",ISTEXT(K129),J135=0),"",IF(OR(ISBLANK(M135),ISBLANK(N135)),"Enter Dates",IF(K129="Date Range","",IF(OR(AND(CostType=ARO,L129>ScheduleYear),AND(CostType=ARO,N135<=ScheduleYear)),"Date Range",IF(OR(AND(CostType=Bond,O135>ScheduleYear),AND(CostType=LOM,LOMComplete)),J135,J135-Q135))))) ->  | M135: 2023 | N135: 2025 | Q135: 0 | R135: 0 | X135: 1 | EA135: 1 | EB135: =IF(OR(J135="",EB129="",ISTEXT(EB129)),0,IF(OR(ISBLANK(M135),ISBLANK(N135)),0,IF(OR(AND(CostType=ARO,L129>ScheduleYear),AND(OR(CostType=ARO,AND(CostType=LOM,LOMComplete=TRUE)),N135<=ScheduleYear)),0,J135))) -> 0 | EC135: =IF(OR(J135="",EC129="",ISTEXT(EC129)),0,IF(OR(ISBLANK(M135),ISBLANK(N135)), 0,IF(EC129="Date Range",0,IF(OR(AND(CostType=ARO,L129>ScheduleYear),N135<=ScheduleYear),0,J135)))) ->  | EM135: Liner | EN135: Liner | EO135: =IF(ISNUMBER(K135),INDEX(INDIRECT("_"&$A$96&"Table10"),B129+1,3)+INDEX(INDIRECT("_"&$A$96&"Table10"),B129+1,8),0) -> 0 | EP135: =IF(Metric,"m2","f2") -> f2 | EZ135: TRUE
D136: E-Cell/ET-Cell Piping | J136: =INDEX(INDIRECT("_"&$A$96&"Table11"),B129+1,20) -> 0 | K136: =IF(OR(J136="",K129="",ISTEXT(K129),J136=0),"",IF(OR(ISBLANK(M136),ISBLANK(N136)),"Enter Dates",IF(K129="Date Range","",IF(OR(AND(CostType=ARO,L129>ScheduleYear),AND(CostType=ARO,N136<=ScheduleYear)),"Date Range",IF(OR(AND(CostType=Bond,O136>ScheduleYear),AND(CostType=LOM,LOMComplete)),J136,J136-Q136))))) ->  | M136: 2023 | N136: 2025 | Q136: 0 | R136: 0 | X136: 1 | EA136: 1 | EB136: =IF(OR(J136="",EB129="",ISTEXT(EB129)),0,IF(OR(ISBLANK(M136),ISBLANK(N136)),0,IF(OR(AND(CostType=ARO,L129>ScheduleYear),AND(OR(CostType=ARO,AND(CostType=LOM,LOMComplete=TRUE)),N136<=ScheduleYear)),0,J136))) -> 0 | EC136: =IF(OR(J136="",EC130="",ISTEXT(EC130)),0,IF(OR(ISBLANK(M136),ISBLANK(N136)), 0,IF(EC130="Date Range",0,IF(OR(AND(CostType=ARO,L129>ScheduleYear),N136<=ScheduleYear),0,J136)))) ->  | EM136: Pipe | EN136: Pipe | EO136: =IF(ISNUMBER(K136),INDEX(INDIRECT("_"&$A$96&"Table11"),B129+1,3)+INDEX(INDIRECT("_"&$A$96&"Table11"),B129+1,8)+INDEX(INDIRECT("_"&$A$96&"Table11"),B129+1,13),0) -> 0 | EP136: =IF(Metric,"m","ft") -> ft | EZ136: TRUE
B137: =(ROW(B137) - ROW($A$96)-1)/INDEX(SheetRangeIndex,MATCH($A$96,TableNamesSorted,0),7) -> 5 | C137: =INDEX(INDIRECT("_"&$A$96&"Table1"),B137+1,9) -> FA | D137: =INDEX(INDIRECT("_"&$A$96&"Table1"),B137+1,2) -> ARD Lime Treatment Evaporation Pond A | E137: =IF(ISBLANK(INDEX(INDIRECT("_"&INDEX(SheetRangeIndex,MATCH($A$96,TableNamesSorted,0),3)&"Table1"),B137+1,3)),"",INDEX(INDIRECT("_"&INDEX(SheetRangeIndex,MATCH($A$96,TableNamesSorted,0),3)&"Table1"),B137+1,3)) ->  | F137: =IF(ISERROR(EL137),"Facility Type",IF(ISBLANK(INDEX(INDIRECT("_"&$A$96&"Table1"),B137+1,5)),"",INDEX(INDIRECT("_"&$A$96&"Table1"),B137+1,5))) -> Other Site Facilities | G137: =IF(ISBLANK(INDEX(INDIRECT("_"&$A$96&"Table1"),B137+1,6)),"",INDEX(INDIRECT("_"&$A$96&"Table1"),B137+1,6)) -> Closure | H137: =IF(ISBLANK(INDEX(INDIRECT("_"&$A$96&"Table1"),B137+1,7)),"",INDEX(INDIRECT("_"&$A$96&"Table1"),B137+1,7)) -> Ponds | I137: =IF(ISBLANK(INDEX(INDIRECT("_"&$A$96&"Table1"),B137+1,8)),"",INDEX(INDIRECT("_"&$A$96&"Table1"),B137+1,8)) -> Public Land | J137: =SUM(J138:J144) -> 4912 | K137: =IF(ISERR(ED137),"Cost Type",IF(A137="X","Override",IF(AND(CostType=ARO,L137>ScheduleYear),"Date Range",IF(AND(ISTEXT(LocationFilter),ISERROR(EI137)),"Location",IF(AND(ISTEXT(PropertyFilter),ISERROR(EJ137)),"Property",IF(AND(ISTEXT(FacilityTypeFilter),ISERROR(EG137)),"Facility Type",IF(AND(NOT(ISBLANK(IDCodeFilter)),ISERROR(EF137)),"ID Code",IF(AND(ISTEXT(PhaseFilter),ISERROR(EH137)),"Phase",IF(AND(CostType=LOM,LOMComplete),J137,SUM(T137:DO137)))))))))) -> 4912 | L137: =INDEX(INDIRECT("_"&$A$96&"Table1"),B137+1,4) -> 2000 | Q137: =SUM(Q138:Q144) -> 0 | T137: =IF(ISTEXT($EB137),0,IF(AND(CostType=LOM,LOMComplete,T$27<=ScheduleYear),SUMPRODUCT(T138:T144,$J138:$J144),IF(CostType=Bond,SUMPRODUCT($EB138:$EB144,T138:T144,$EA138:$EA144),IF(T$27<=ScheduleYear,0,SUMPRODUCT(T138:T144,$EB138:$EB144))))) -> 0 | U137: 0 | V137: 0 | W137: 0 | X137: 4912 | Y137: 0 | Z137: 0 | AA137: 0 | AB137: 0 | AC137: 0 | AD137: 0 | AE137: 0 | AF137: 0 | AG137: 0 | AH137: 0 | AI137: 0 | AJ137: 0 | AK137: 0 | AL137: 0 | AM137: 0 | AN137: 0 | AO137: 0 | AP137: 0 | AQ137: 0 | AR137: 0 | AS137: 0 | AT137: 0 | AU137: 0 | AV137: 0 | AW137: 0 | AX137: 0 | AY137: 0 | AZ137: 0 | BA137: 0 | BB137: 0 | BC137: 0 | BD137: 0 | BE137: 0 | BF137: 0 | BG137: 0 | BH137: 0 | BI137: 0 | BJ137: 0 | BK137: 0 | BL137: 0 | BM137: 0 | BN137: 0 | BO137: 0 | BP137: 0 | BQ137: 0 | BR137: 0 | BS137: 0 | BT137: 0 | BU137: 0 | BV137: 0 | BW137: 0 | BX137: 0 | BY137: 0 | BZ137: 0 | CA137: 0 | CB137: 0 | CC137: 0 | CD137: 0 | CE137: 0 | CF137: =IF(ISTEXT($EB137),0,IF(AND(CostType=LOM,LOMComplete,CF$27<=ScheduleYear),SUMPRODUCT(CF138:CF144,$J138:$J144),IF(CostType=Bond,SUMPRODUCT($EB138:$EB144,CF138:CF144,$EA138:$EA144),IF(CF$27<=ScheduleYear,0,SUMPRODUCT(CF138:CF144,$EB138:$EB144))))) -> 0 | CG137: 0 | CH137: 0 | CI137: 0 | CJ137: 0 | CK137: 0 | CL137: 0 | CM137: 0 | CN137: 0 | CO137: 0 | CP137: 0 | CQ137: 0 | CR137: 0 | CS137: 0 | CT137: 0 | CU137: 0 | CV137: 0 | CW137: 0 | CX137: 0 | CY137: 0 | CZ137: 0 | DA137: 0 | DB137: 0 | DC137: 0 | DD137: 0 | DE137: 0 | DF137: 0 | DG137: 0 | DH137: 0 | DI137: 0 | DJ137: 0 | DK137: 0 | DL137: 0 | DM137: 0 | DN137: 0 | DO137: 0 | DP137: =IF(ISNUMBER(K137),SUM(T137:DO137)-K137,K137) -> 0 | EB137: =IF(ISERR(ED137),"Cost Type",IF(A137="X","Override",IF(AND(CostType=ARO,L137>ScheduleYear),0,IF(AND(ISTEXT(LocationFilter),ISERROR(EI137)),"Location",IF(AND(ISTEXT(PropertyFilter),ISERROR(EJ137)),"Property",IF(AND(ISTEXT(FacilityTypeFilter),ISERROR(EG137)),"Facility Type",IF(AND(ISTEXT(IDCodeFilter),ISERROR(EF137)),"ID Code",IF(AND(ISTEXT(PhaseFilter),ISERROR(EH137)),"Phase",J137)))))))) -> 4912 | EC137: =IF(EE137="","Cost Type",IF(A137="X","Override",IF(AND(OtherCostType=ARO,L137>ScheduleYear),0,IF(AND(ISTEXT(LocationFilter),EI137=""),"Location",IF(AND(ISTEXT(PropertyFilter),EJ137=""),"Property",IF(AND(ISTEXT(FacilityTypeFilter),EG137=""),"Facility Type",IF(AND(ISTEXT(IDCodeFilter),EF137=""),"ID Code",IF(AND(ISTEXT(PhaseFilter),EH137=""),"Phase",J137)))))))) ->  | ED137: =SEARCH(CostType,C137) -> 1 | EE137: =SEARCH(OtherCostType,C137) ->  | EF137: =IF(AND(IDCodeFilterType="CONTAINS",NOT(ISERROR(SEARCH(IDCodeFilter,E137)))),1,IF(AND(IDCodeFilterType="NOT",ISERROR(SEARCH(IDCodeFilter,E137))),1,IF(AND(OR(IDCodeFilterType="EXACT",ISBLANK(IDCodeFilterType)),NOT(ISERROR(MATCH(IDCodeFilter,E137,0)))),1,$EK137))) ->  | EG137: =IF(AND(FacilityFilterType="CONTAINS",NOT(ISERROR(SEARCH(FacilityTypeFilter,F137)))),1,IF(AND(FacilityFilterType="NOT",ISERROR(SEARCH(FacilityTypeFilter,F137))),1,IF(AND(OR(FacilityFilterType="EXACT",ISBLANK(FacilityFilterType)),NOT(ISERROR(MATCH(FacilityTypeFilter,F137,0)))),1,$EK137))) ->  | EH137: =IF(AND(PhaseFilterType="CONTAINS",NOT(ISERROR(SEARCH(PhaseFilter,G137)))),1,IF(AND(PhaseFilterType="NOT",ISERROR(SEARCH(PhaseFilter,G137))),1,IF(AND(OR(PhaseFilterType="EXACT",ISBLANK(PhaseFilterType)),NOT(ISERROR(MATCH(PhaseFilter,G137,0)))),1,$EK137))) ->  | EI137: =IF(AND(LocationFilterType="CONTAINS",NOT(ISERROR(SEARCH(LocationFilter,H137)))),1,IF(AND(LocationFilterType="NOT",ISERROR(SEARCH(LocationFilter,H137))),1,IF(AND(OR(LocationFilterType="EXACT",ISBLANK(LocationFilterType)),NOT(ISERROR(MATCH(LocationFilter,H137,0)))),1,$EK137))) ->  | EJ137: =IF(AND(PropertyFilterType="CONTAINS",NOT(ISERROR(SEARCH(PropertyFilter,I137)))),1,IF(AND(PropertyFilterType="NOT",ISERROR(SEARCH(PropertyFilter,I137))),1,IF(AND(OR(PropertyFilterType="EXACT",ISBLANK(PropertyFilterType)),NOT(ISERROR(MATCH(PropertyFilter,I137,0)))),1,$EK137))) ->  | EK137: =MATCH("NOT",$EK$27,0) ->  | EL137: =IF(ISBLANK(INDEX(INDIRECT("_"&$A$96&"Table1"),B137+1,2)),"",MATCH(INDEX(INDIRECT("_"&$A$96&"Table1"),B137+1,5),Accounts,0)) -> 5 | EZ137: FALSE | FA137: 1
D138: Liner Cutting and Folding | J138: =IF(INDEX(INDIRECT("_"&$A$96&"Table5"),B137+1,6)=0,0,INDEX(INDIRECT("_"&$A$96&"Table5"),B137+1,6)) -> 1830 | K138: =IF(OR(J138="",K137="",ISTEXT(K137),J138=0),"",IF(OR(ISBLANK(M138),ISBLANK(N138)),"Enter Dates",IF(K137="Date Range","",IF(OR(AND(CostType=ARO,L137>ScheduleYear),AND(CostType=ARO,N138<=ScheduleYear)),"Date Range",IF(OR(AND(CostType=Bond,O138>ScheduleYear),AND(CostType=LOM,LOMComplete)),J138,J138-Q138))))) -> 1830 | M138: 2023 | N138: 2025 | P138: =IF(K138="","",SUM(T138:DO138)) -> 1 | Q138: =IF(OR(AND(CostType=ARO,N138<=ScheduleYear),AND(CostType=LOM,LOMComplete)),J138*R138,R138*EB138) -> 0 | R138: =IF(CostType=Bond,SUMIFS(T138:DP138,T$27:DP$27,"<="&O138,T$27:DP$27,"<="&ScheduleYear),SUMIF(T$27:DP$27,"<="&ScheduleYear,T138:DP138)) -> 0 | X138: 1 | EA138: 1 | EB138: =IF(OR(J138="",EB137="",ISTEXT(EB137)),0,IF(OR(ISBLANK(M138),ISBLANK(N138)),0,IF(OR(AND(CostType=ARO,L137>ScheduleYear),AND(OR(CostType=ARO,AND(CostType=LOM,LOMComplete=TRUE)),N138<=ScheduleYear)),0,J138))) -> 1830 | EC138: =IF(OR(J138="",EC137="",ISTEXT(EC137)),0,IF(OR(ISBLANK(M138),ISBLANK(N138)),0,IF(EC137="Date Range",0,IF(OR(AND(OtherCostType=ARO,L137>ScheduleYear),N138<=ScheduleYear),0,J138)))) ->  | EM138: Liner | EN138: Liner | EO138: =IF(ISNUMBER(K138),IF(INDEX(INDIRECT("_"&$A$96&"Table5"),B137+1,3)=0,0,INDEX(INDIRECT("_"&$A$96&"Table5"),B137+1,3)),0) -> 8 | EP138: =IF(Metric,"m3","cy") -> cy | EQ138: =LinerExcavator -> 325F | ES138: =IF(OR(NOT(ISNUMBER(K138)),K138=0),0,INDEX(INDIRECT("_"&$A$96&"Table4"),B137+1,3)) -> 0 | EZ138: TRUE
D139: Backfill/Cover 1 Placement | J139: =INDEX(INDIRECT("_"&$A$96&"Table6"),B137+1,25) -> 895 | K139: =IF(OR(J139="",K137="",ISTEXT(K137),J139=0),"",IF(OR(ISBLANK(M139),ISBLANK(N139)),"Enter Dates",IF(K137="Date Range","",IF(OR(AND(CostType=ARO,L137>ScheduleYear),AND(CostType=ARO,N139<=ScheduleYear)),"Date Range",IF(OR(AND(CostType=Bond,O139>ScheduleYear),AND(CostType=LOM,LOMComplete)),J139,J139-Q139))))) -> 895 | M139: 2023 | N139: 2025 | P139: 1 | Q139: 0 | R139: 0 | X139: 1 | EA139: 1 | EB139: =IF(OR(J139="",EB137="",ISTEXT(EB137)),0,IF(OR(ISBLANK(M139),ISBLANK(N139)),0,IF(OR(AND(CostType=ARO,L137>ScheduleYear),AND(OR(CostType=ARO,AND(CostType=LOM,LOMComplete=TRUE)),N139<=ScheduleYear)),0,J139))) -> 895 | EC139: =IF(OR(J139="",EC137="",ISTEXT(EC137)),0,IF(OR(ISBLANK(M139),ISBLANK(N139)),0,IF(EC137="Date Range",0,IF(OR(AND(CostType=ARO,L137>ScheduleYear),N139<=ScheduleYear),0,J139)))) ->  | EM139: Backfill | EN139: Backfill | EO139: =IF(ISNUMBER(K139),INDEX(INDIRECT("_"&$A$96&"Table6"),B137+1,4),0) -> 503 | EP139: =IF(Metric,"m3","cy") -> cy | EQ139: =INDEX(INDIRECT("_"&$A$96&"Table6"),B137+1,10) -> 725C2/966M/D6T | ER139: =IF(OR(NOT(ISNUMBER(K139)),K139=0),0,INDEX(INDIRECT("_"&$A$96&"Table6"),B137+1,12)) -> 3 | ES139: =IF(OR(NOT(ISNUMBER(K139)),K139=0),0,INDEX(INDIRECT("_"&$A$96&"Table6"),B137+1,14)) -> 1 | ET139: =INDEX(INDIRECT("_"&$A$96&"Table6"),B137+1,5) ->  | EU139: =IF(OR(NOT(ISNUMBER(K139)),K139=0),0,INDEX(INDIRECT("_"&$A$96&"Table6"),B137+1,7)) ->  | EV139: =IF(OR(NOT(ISNUMBER(K139)),K139=0),0,INDEX(INDIRECT("_"&$A$96&"Table6"),B137+1,9)) -> 0 | EZ139: TRUE
D140: Backfill/Cover 2 Placement | J140: =INDEX(INDIRECT("_"&$A$96&"Table7"),B137+1,25) -> 0 | K140: =IF(OR(J140="",K137="",ISTEXT(K137),J140=0),"",IF(OR(ISBLANK(M140),ISBLANK(N140)),"Enter Dates",IF(K137="Date Range","",IF(OR(AND(CostType=ARO,L137>ScheduleYear),AND(CostType=ARO,N140<=ScheduleYear)),"Date Range",IF(OR(AND(CostType=Bond,O140>ScheduleYear),AND(CostType=LOM,LOMComplete)),J140,J140-Q140))))) ->  | M140: 2023 | N140: 2025 | Q140: 0 | R140: 0 | X140: 1 | EA140: 1 | EB140: =IF(OR(J140="",EB137="",ISTEXT(EB137)),0,IF(OR(ISBLANK(M140),ISBLANK(N140)),0,IF(OR(AND(CostType=ARO,L137>ScheduleYear),AND(OR(CostType=ARO,AND(CostType=LOM,LOMComplete=TRUE)),N140<=ScheduleYear)),0,J140))) -> 0 | EC140: =IF(OR(J140="",EC137="",ISTEXT(EC137)),0,IF(OR(ISBLANK(M140),ISBLANK(N140)),0,IF(EC137="Date Range",0,IF(OR(AND(CostType=ARO,L137>ScheduleYear),N140<=ScheduleYear),0,J140)))) ->  | EM140: Backfill | EN140: Backfill | EO140: =IF(ISNUMBER(K140),INDEX(INDIRECT("_"&$A$96&"Table7"),B137+1,4),0) -> 0 | EP140: =IF(Metric,"m3","cy") -> cy | EQ140: =INDEX(INDIRECT("_"&$A$96&"Table7"),B137+1,10) ->  | ER140: =IF(OR(NOT(ISNUMBER(K140)),K140=0),0,INDEX(INDIRECT("_"&$A$96&"Table7"),B137+1,12)) -> 0 | ES140: =IF(OR(NOT(ISNUMBER(K140)),K140=0),0,INDEX(INDIRECT("_"&$A$96&"Table7"),B137+1,14)) -> 0 | ET140: =INDEX(INDIRECT("_"&$A$96&"Table7"),B137+1,5) ->  | EU140: =IF(OR(NOT(ISNUMBER(K140)),K140=0),0,INDEX(INDIRECT("_"&$A$96&"Table7"),B137+1,7)) -> 0 | EV140: =IF(OR(NOT(ISNUMBER(K140)),K140=0),0,INDEX(INDIRECT("_"&$A$96&"Table7"),B137+1,9)) -> 0 | EZ140: TRUE
D141: Growth Media Placement | J141: =INDEX(INDIRECT("_"&$A$96&"Table8"),B137+1,11) -> 1791 | K141: =IF(OR(J141="",K137="",ISTEXT(K137),J141=0),"",IF(OR(ISBLANK(M141),ISBLANK(N141)),"Enter Dates",IF(K137="Date Range","",IF(OR(AND(CostType=ARO,L137>ScheduleYear),AND(CostType=ARO,N141<=ScheduleYear)),"Date Range",IF(OR(AND(CostType=Bond,O141>ScheduleYear),AND(CostType=LOM,LOMComplete)),J141,J141-Q141))))) -> 1791 | M141: 2023 | N141: 2025 | P141: 1 | Q141: 0 | R141: 0 | X141: 1 | EA141: 1 | EB141: =IF(OR(J141="",EB137="",ISTEXT(EB137)),0,IF(OR(ISBLANK(M141),ISBLANK(N141)),0,IF(OR(AND(CostType=ARO,L137>ScheduleYear),AND(OR(CostType=ARO,AND(CostType=LOM,LOMComplete=TRUE)),N141<=ScheduleYear)),0,J141))) -> 1791 | EC141: =IF(OR(J141="",EC137="",ISTEXT(EC137)),0,IF(OR(ISBLANK(M141),ISBLANK(N141)),0,IF(EC137="Date Range",0,IF(OR(AND(CostType=ARO,L137>ScheduleYear),N141<=ScheduleYear),0,J141)))) ->  | EM141: GM | EN141: GM | EO141: =IF(ISNUMBER(K141),INDEX(INDIRECT("_"&$A$96&"Table8"),B137+1,3),0) -> 824 | EP141: =IF(Metric,"m3","cy") -> cy | EQ141: =INDEX(INDIRECT("_"&$A$96&"Table8"),B137+1,4) -> 725C2/966M/D6T | ER141: =IF(OR(NOT(ISNUMBER(K141)),K141=0),0,INDEX(INDIRECT("_"&$A$96&"Table8"),B137+1,6)) -> 3 | ES141: =IF(OR(NOT(ISNUMBER(K141)),K141=0),0,INDEX(INDIRECT("_"&$A$96&"Table8"),B137+1,8)) -> 2 | EZ141: TRUE
D142: Revegetation | J142: =INDEX(INDIRECT("_"&$A$96&"Table9"),B137+1,7) -> 396 | K142: =IF(OR(J142="",K137="",ISTEXT(K137),J142=0),"",IF(OR(ISBLANK(M142),ISBLANK(N142)),"Enter Dates",IF(K137="Date Range","",IF(OR(AND(CostType=ARO,L137>ScheduleYear),AND(CostType=ARO,N142<=ScheduleYear)),"Date Range",IF(OR(AND(CostType=Bond,O142>ScheduleYear),AND(CostType=LOM,LOMComplete)),J142,J142-Q142))))) -> 396 | M142: 2023 | N142: 2025 | P142: 1 | Q142: 0 | R142: 0 | X142: 1 | EA142: 1 | EB142: =IF(OR(J142="",EB137="",ISTEXT(EB137)),0,IF(OR(ISBLANK(M142),ISBLANK(N142)),0,IF(OR(AND(CostType=ARO,L137>ScheduleYear),AND(OR(CostType=ARO,AND(CostType=LOM,LOMComplete=TRUE)),N142<=ScheduleYear)),0,J142))) -> 396 | EC142: =IF(OR(J142="",EC137="",ISTEXT(EC137)),0,IF(OR(ISBLANK(M142),ISBLANK(N142)), 0,IF(EC137="Date Range",0,IF(OR(AND(CostType=ARO,L137>ScheduleYear),N142<=ScheduleYear),0,J142)))) ->  | EM142: Reveg | EN142: Reveg | EO142: =IF(ISNUMBER(K142),INDEX(INDIRECT("_"&$A$96&"Table9"),B137+1,3),0) -> 0.5 | EP142: =IF(Metric,"ha","acres") -> acres | EZ142: TRUE
D143: E-Cell/ET-Cell Liner | J143: =INDEX(INDIRECT("_"&$A$96&"Table10"),B137+1,15) -> 0 | K143: =IF(OR(J143="",K137="",ISTEXT(K137),J143=0),"",IF(OR(ISBLANK(M143),ISBLANK(N143)),"Enter Dates",IF(K137="Date Range","",IF(OR(AND(CostType=ARO,L137>ScheduleYear),AND(CostType=ARO,N143<=ScheduleYear)),"Date Range",IF(OR(AND(CostType=Bond,O143>ScheduleYear),AND(CostType=LOM,LOMComplete)),J143,J143-Q143))))) ->  | M143: 2023 | N143: 2025 | Q143: 0 | R143: 0 | X143: 1 | EA143: 1 | EB143: =IF(OR(J143="",EB137="",ISTEXT(EB137)),0,IF(OR(ISBLANK(M143),ISBLANK(N143)),0,IF(OR(AND(CostType=ARO,L137>ScheduleYear),AND(OR(CostType=ARO,AND(CostType=LOM,LOMComplete=TRUE)),N143<=ScheduleYear)),0,J143))) -> 0 | EC143: =IF(OR(J143="",EC137="",ISTEXT(EC137)),0,IF(OR(ISBLANK(M143),ISBLANK(N143)), 0,IF(EC137="Date Range",0,IF(OR(AND(CostType=ARO,L137>ScheduleYear),N143<=ScheduleYear),0,J143)))) ->  | EM143: Liner | EN143: Liner | EO143: =IF(ISNUMBER(K143),INDEX(INDIRECT("_"&$A$96&"Table10"),B137+1,3)+INDEX(INDIRECT("_"&$A$96&"Table10"),B137+1,8),0) -> 0 | EP143: =IF(Metric,"m2","f2") -> f2 | EZ143: TRUE
D144: E-Cell/ET-Cell Piping | J144: =INDEX(INDIRECT("_"&$A$96&"Table11"),B137+1,20) -> 0 | K144: =IF(OR(J144="",K137="",ISTEXT(K137),J144=0),"",IF(OR(ISBLANK(M144),ISBLANK(N144)),"Enter Dates",IF(K137="Date Range","",IF(OR(AND(CostType=ARO,L137>ScheduleYear),AND(CostType=ARO,N144<=ScheduleYear)),"Date Range",IF(OR(AND(CostType=Bond,O144>ScheduleYear),AND(CostType=LOM,LOMComplete)),J144,J144-Q144))))) ->  | M144: 2023 | N144: 2025 | Q144: 0 | R144: 0 | X144: 1 | EA144: 1 | EB144: =IF(OR(J144="",EB137="",ISTEXT(EB137)),0,IF(OR(ISBLANK(M144),ISBLANK(N144)),0,IF(OR(AND(CostType=ARO,L137>ScheduleYear),AND(OR(CostType=ARO,AND(CostType=LOM,LOMComplete=TRUE)),N144<=ScheduleYear)),0,J144))) -> 0 | EC144: =IF(OR(J144="",EC138="",ISTEXT(EC138)),0,IF(OR(ISBLANK(M144),ISBLANK(N144)), 0,IF(EC138="Date Range",0,IF(OR(AND(CostType=ARO,L137>ScheduleYear),N144<=ScheduleYear),0,J144)))) ->  | EM144: Pipe | EN144: Pipe | EO144: =IF(ISNUMBER(K144),INDEX(INDIRECT("_"&$A$96&"Table11"),B137+1,3)+INDEX(INDIRECT("_"&$A$96&"Table11"),B137+1,8)+INDEX(INDIRECT("_"&$A$96&"Table11"),B137+1,13),0) -> 0 | EP144: =IF(Metric,"m","ft") -> ft | EZ144: TRUE
B145: =(ROW(B145) - ROW($A$96)-1)/INDEX(SheetRangeIndex,MATCH($A$96,TableNamesSorted,0),7) -> 6 | C145: =INDEX(INDIRECT("_"&$A$96&"Table1"),B145+1,9) -> FA | D145: =INDEX(INDIRECT("_"&$A$96&"Table1"),B145+1,2) -> ARD Lime Treatment Evaporation Pond B | E145: =IF(ISBLANK(INDEX(INDIRECT("_"&INDEX(SheetRangeIndex,MATCH($A$96,TableNamesSorted,0),3)&"Table1"),B145+1,3)),"",INDEX(INDIRECT("_"&INDEX(SheetRangeIndex,MATCH($A$96,TableNamesSorted,0),3)&"Table1"),B145+1,3)) ->  | F145: =IF(ISERROR(EL145),"Facility Type",IF(ISBLANK(INDEX(INDIRECT("_"&$A$96&"Table1"),B145+1,5)),"",INDEX(INDIRECT("_"&$A$96&"Table1"),B145+1,5))) -> Other Site Facilities | G145: =IF(ISBLANK(INDEX(INDIRECT("_"&$A$96&"Table1"),B145+1,6)),"",INDEX(INDIRECT("_"&$A$96&"Table1"),B145+1,6)) -> Closure | H145: =IF(ISBLANK(INDEX(INDIRECT("_"&$A$96&"Table1"),B145+1,7)),"",INDEX(INDIRECT("_"&$A$96&"Table1"),B145+1,7)) -> Ponds | I145: =IF(ISBLANK(INDEX(INDIRECT("_"&$A$96&"Table1"),B145+1,8)),"",INDEX(INDIRECT("_"&$A$96&"Table1"),B145+1,8)) -> Public Land | J145: =SUM(J146:J152) -> 6752 | K145: =IF(ISERR(ED145),"Cost Type",IF(A145="X","Override",IF(AND(CostType=ARO,L145>ScheduleYear),"Date Range",IF(AND(ISTEXT(LocationFilter),ISERROR(EI145)),"Location",IF(AND(ISTEXT(PropertyFilter),ISERROR(EJ145)),"Property",IF(AND(ISTEXT(FacilityTypeFilter),ISERROR(EG145)),"Facility Type",IF(AND(NOT(ISBLANK(IDCodeFilter)),ISERROR(EF145)),"ID Code",IF(AND(ISTEXT(PhaseFilter),ISERROR(EH145)),"Phase",IF(AND(CostType=LOM,LOMComplete),J145,SUM(T145:DO145)))))))))) -> 6752 | L145: =INDEX(INDIRECT("_"&$A$96&"Table1"),B145+1,4) -> 2000 | Q145: =SUM(Q146:Q152) -> 0 | T145: =IF(ISTEXT($EB145),0,IF(AND(CostType=LOM,LOMComplete,T$27<=ScheduleYear),SUMPRODUCT(T146:T152,$J146:$J152),IF(CostType=Bond,SUMPRODUCT($EB146:$EB152,T146:T152,$EA146:$EA152),IF(T$27<=ScheduleYear,0,SUMPRODUCT(T146:T152,$EB146:$EB152))))) -> 0 | U145: 0 | V145: 0 | W145: 0 | X145: 6752 | Y145: 0 | Z145: 0 | AA145: 0 | AB145: 0 | AC145: 0 | AD145: 0 | AE145: 0 | AF145: 0 | AG145: 0 | AH145: 0 | AI145: 0 | AJ145: 0 | AK145: 0 | AL145: 0 | AM145: 0 | AN145: 0 | AO145: 0 | AP145: 0 | AQ145: 0 | AR145: 0 | AS145: 0 | AT145: 0 | AU145: 0 | AV145: 0 | AW145: 0 | AX145: 0 | AY145: 0 | AZ145: 0 | BA145: 0 | BB145: 0 | BC145: 0 | BD145: 0 | BE145: 0 | BF145: 0 | BG145: 0 | BH145: 0 | BI145: 0 | BJ145: 0 | BK145: 0 | BL145: 0 | BM145: 0 | BN145: 0 | BO145: 0 | BP145: 0 | BQ145: 0 | BR145: 0 | BS145: 0 | BT145: 0 | BU145: 0 | BV145: 0 | BW145: 0 | BX145: 0 | BY145: 0 | BZ145: 0 | CA145: 0 | CB145: 0 | CC145: 0 | CD145: 0 | CE145: 0 | CF145: =IF(ISTEXT($EB145),0,IF(AND(CostType=LOM,LOMComplete,CF$27<=ScheduleYear),SUMPRODUCT(CF146:CF152,$J146:$J152),IF(CostType=Bond,SUMPRODUCT($EB146:$EB152,CF146:CF152,$EA146:$EA152),IF(CF$27<=ScheduleYear,0,SUMPRODUCT(CF146:CF152,$EB146:$EB152))))) -> 0 | CG145: 0 | CH145: 0 | CI145: 0 | CJ145: 0 | CK145: 0 | CL145: 0 | CM145: 0 | CN145: 0 | CO145: 0 | CP145: 0 | CQ145: 0 | CR145: 0 | CS145: 0 | CT145: 0 | CU145: 0 | CV145: 0 | CW145: 0 | CX145: 0 | CY145: 0 | CZ145: 0 | DA145: 0 | DB145: 0 | DC145: 0 | DD145: 0 | DE145: 0 | DF145: 0 | DG145: 0 | DH145: 0 | DI145: 0 | DJ145: 0 | DK145: 0 | DL145: 0 | DM145: 0 | DN145: 0 | DO145: 0 | DP145: =IF(ISNUMBER(K145),SUM(T145:DO145)-K145,K145) -> 0 | EB145: =IF(ISERR(ED145),"Cost Type",IF(A145="X","Override",IF(AND(CostType=ARO,L145>ScheduleYear),0,IF(AND(ISTEXT(LocationFilter),ISERROR(EI145)),"Location",IF(AND(ISTEXT(PropertyFilter),ISERROR(EJ145)),"Property",IF(AND(ISTEXT(FacilityTypeFilter),ISERROR(EG145)),"Facility Type",IF(AND(ISTEXT(IDCodeFilter),ISERROR(EF145)),"ID Code",IF(AND(ISTEXT(PhaseFilter),ISERROR(EH145)),"Phase",J145)))))))) -> 6752 | EC145: =IF(EE145="","Cost Type",IF(A145="X","Override",IF(AND(OtherCostType=ARO,L145>ScheduleYear),0,IF(AND(ISTEXT(LocationFilter),EI145=""),"Location",IF(AND(ISTEXT(PropertyFilter),EJ145=""),"Property",IF(AND(ISTEXT(FacilityTypeFilter),EG145=""),"Facility Type",IF(AND(ISTEXT(IDCodeFilter),EF145=""),"ID Code",IF(AND(ISTEXT(PhaseFilter),EH145=""),"Phase",J145)))))))) ->  | ED145: =SEARCH(CostType,C145) -> 1 | EE145: =SEARCH(OtherCostType,C145) ->  | EF145: =IF(AND(IDCodeFilterType="CONTAINS",NOT(ISERROR(SEARCH(IDCodeFilter,E145)))),1,IF(AND(IDCodeFilterType="NOT",ISERROR(SEARCH(IDCodeFilter,E145))),1,IF(AND(OR(IDCodeFilterType="EXACT",ISBLANK(IDCodeFilterType)),NOT(ISERROR(MATCH(IDCodeFilter,E145,0)))),1,$EK145))) ->  | EG145: =IF(AND(FacilityFilterType="CONTAINS",NOT(ISERROR(SEARCH(FacilityTypeFilter,F145)))),1,IF(AND(FacilityFilterType="NOT",ISERROR(SEARCH(FacilityTypeFilter,F145))),1,IF(AND(OR(FacilityFilterType="EXACT",ISBLANK(FacilityFilterType)),NOT(ISERROR(MATCH(FacilityTypeFilter,F145,0)))),1,$EK145))) ->  | EH145: =IF(AND(PhaseFilterType="CONTAINS",NOT(ISERROR(SEARCH(PhaseFilter,G145)))),1,IF(AND(PhaseFilterType="NOT",ISERROR(SEARCH(PhaseFilter,G145))),1,IF(AND(OR(PhaseFilterType="EXACT",ISBLANK(PhaseFilterType)),NOT(ISERROR(MATCH(PhaseFilter,G145,0)))),1,$EK145))) ->  | EI145: =IF(AND(LocationFilterType="CONTAINS",NOT(ISERROR(SEARCH(LocationFilter,H145)))),1,IF(AND(LocationFilterType="NOT",ISERROR(SEARCH(LocationFilter,H145))),1,IF(AND(OR(LocationFilterType="EXACT",ISBLANK(LocationFilterType)),NOT(ISERROR(MATCH(LocationFilter,H145,0)))),1,$EK145))) ->  | EJ145: =IF(AND(PropertyFilterType="CONTAINS",NOT(ISERROR(SEARCH(PropertyFilter,I145)))),1,IF(AND(PropertyFilterType="NOT",ISERROR(SEARCH(PropertyFilter,I145))),1,IF(AND(OR(PropertyFilterType="EXACT",ISBLANK(PropertyFilterType)),NOT(ISERROR(MATCH(PropertyFilter,I145,0)))),1,$EK145))) ->  | EK145: =MATCH("NOT",$EK$27,0) ->  | EL145: =IF(ISBLANK(INDEX(INDIRECT("_"&$A$96&"Table1"),B145+1,2)),"",MATCH(INDEX(INDIRECT("_"&$A$96&"Table1"),B145+1,5),Accounts,0)) -> 5 | EZ145: FALSE | FA145: 1
D146: Liner Cutting and Folding | J146: =IF(INDEX(INDIRECT("_"&$A$96&"Table5"),B145+1,6)=0,0,INDEX(INDIRECT("_"&$A$96&"Table5"),B145+1,6)) -> 1830 | K146: =IF(OR(J146="",K145="",ISTEXT(K145),J146=0),"",IF(OR(ISBLANK(M146),ISBLANK(N146)),"Enter Dates",IF(K145="Date Range","",IF(OR(AND(CostType=ARO,L145>ScheduleYear),AND(CostType=ARO,N146<=ScheduleYear)),"Date Range",IF(OR(AND(CostType=Bond,O146>ScheduleYear),AND(CostType=LOM,LOMComplete)),J146,J146-Q146))))) -> 1830 | M146: 2023 | N146: 2025 | P146: =IF(K146="","",SUM(T146:DO146)) -> 1 | Q146: =IF(OR(AND(CostType=ARO,N146<=ScheduleYear),AND(CostType=LOM,LOMComplete)),J146*R146,R146*EB146) -> 0 | R146: =IF(CostType=Bond,SUMIFS(T146:DP146,T$27:DP$27,"<="&O146,T$27:DP$27,"<="&ScheduleYear),SUMIF(T$27:DP$27,"<="&ScheduleYear,T146:DP146)) -> 0 | X146: 1 | EA146: 1 | EB146: =IF(OR(J146="",EB145="",ISTEXT(EB145)),0,IF(OR(ISBLANK(M146),ISBLANK(N146)),0,IF(OR(AND(CostType=ARO,L145>ScheduleYear),AND(OR(CostType=ARO,AND(CostType=LOM,LOMComplete=TRUE)),N146<=ScheduleYear)),0,J146))) -> 1830 | EC146: =IF(OR(J146="",EC145="",ISTEXT(EC145)),0,IF(OR(ISBLANK(M146),ISBLANK(N146)),0,IF(EC145="Date Range",0,IF(OR(AND(OtherCostType=ARO,L145>ScheduleYear),N146<=ScheduleYear),0,J146)))) ->  | EM146: Liner | EN146: Liner | EO146: =IF(ISNUMBER(K146),IF(INDEX(INDIRECT("_"&$A$96&"Table5"),B145+1,3)=0,0,INDEX(INDIRECT("_"&$A$96&"Table5"),B145+1,3)),0) -> 8 | EP146: =IF(Metric,"m3","cy") -> cy | EQ146: =LinerExcavator -> 325F | ES146: =IF(OR(NOT(ISNUMBER(K146)),K146=0),0,INDEX(INDIRECT("_"&$A$96&"Table4"),B145+1,3)) -> 0 | EZ146: TRUE
D147: Backfill/Cover 1 Placement | J147: =INDEX(INDIRECT("_"&$A$96&"Table6"),B145+1,25) -> 1791 | K147: =IF(OR(J147="",K145="",ISTEXT(K145),J147=0),"",IF(OR(ISBLANK(M147),ISBLANK(N147)),"Enter Dates",IF(K145="Date Range","",IF(OR(AND(CostType=ARO,L145>ScheduleYear),AND(CostType=ARO,N147<=ScheduleYear)),"Date Range",IF(OR(AND(CostType=Bond,O147>ScheduleYear),AND(CostType=LOM,LOMComplete)),J147,J147-Q147))))) -> 1791 | M147: 2023 | N147: 2025 | P147: 1 | Q147: 0 | R147: 0 | X147: 1 | EA147: 1 | EB147: =IF(OR(J147="",EB145="",ISTEXT(EB145)),0,IF(OR(ISBLANK(M147),ISBLANK(N147)),0,IF(OR(AND(CostType=ARO,L145>ScheduleYear),AND(OR(CostType=ARO,AND(CostType=LOM,LOMComplete=TRUE)),N147<=ScheduleYear)),0,J147))) -> 1791 | EC147: =IF(OR(J147="",EC145="",ISTEXT(EC145)),0,IF(OR(ISBLANK(M147),ISBLANK(N147)),0,IF(EC145="Date Range",0,IF(OR(AND(CostType=ARO,L145>ScheduleYear),N147<=ScheduleYear),0,J147)))) ->  | EM147: Backfill | EN147: Backfill | EO147: =IF(ISNUMBER(K147),INDEX(INDIRECT("_"&$A$96&"Table6"),B145+1,4),0) -> 718 | EP147: =IF(Metric,"m3","cy") -> cy | EQ147: =INDEX(INDIRECT("_"&$A$96&"Table6"),B145+1,10) -> 725C2/966M/D6T | ER147: =IF(OR(NOT(ISNUMBER(K147)),K147=0),0,INDEX(INDIRECT("_"&$A$96&"Table6"),B145+1,12)) -> 3 | ES147: =IF(OR(NOT(ISNUMBER(K147)),K147=0),0,INDEX(INDIRECT("_"&$A$96&"Table6"),B145+1,14)) -> 2 | ET147: =INDEX(INDIRECT("_"&$A$96&"Table6"),B145+1,5) ->  | EU147: =IF(OR(NOT(ISNUMBER(K147)),K147=0),0,INDEX(INDIRECT("_"&$A$96&"Table6"),B145+1,7)) ->  | EV147: =IF(OR(NOT(ISNUMBER(K147)),K147=0),0,INDEX(INDIRECT("_"&$A$96&"Table6"),B145+1,9)) -> 0 | EZ147: TRUE
D148: Backfill/Cover 2 Placement | J148: =INDEX(INDIRECT("_"&$A$96&"Table7"),B145+1,25) -> 0 | K148: =IF(OR(J148="",K145="",ISTEXT(K145),J148=0),"",IF(OR(ISBLANK(M148),ISBLANK(N148)),"Enter Dates",IF(K145="Date Range","",IF(OR(AND(CostType=ARO,L145>ScheduleYear),AND(CostType=ARO,N148<=ScheduleYear)),"Date Range",IF(OR(AND(CostType=Bond,O148>ScheduleYear),AND(CostType=LOM,LOMComplete)),J148,J148-Q148))))) ->  | M148: 2023 | N148: 2025 | Q148: 0 | R148: 0 | X148: 1 | EA148: 1 | EB148: =IF(OR(J148="",EB145="",ISTEXT(EB145)),0,IF(OR(ISBLANK(M148),ISBLANK(N148)),0,IF(OR(AND(CostType=ARO,L145>ScheduleYear),AND(OR(CostType=ARO,AND(CostType=LOM,LOMComplete=TRUE)),N148<=ScheduleYear)),0,J148))) -> 0 | EC148: =IF(OR(J148="",EC145="",ISTEXT(EC145)),0,IF(OR(ISBLANK(M148),ISBLANK(N148)),0,IF(EC145="Date Range",0,IF(OR(AND(CostType=ARO,L145>ScheduleYear),N148<=ScheduleYear),0,J148)))) ->  | EM148: Backfill | EN148: Backfill | EO148: =IF(ISNUMBER(K148),INDEX(INDIRECT("_"&$A$96&"Table7"),B145+1,4),0) -> 0 | EP148: =IF(Metric,"m3","cy") -> cy | EQ148: =INDEX(INDIRECT("_"&$A$96&"Table7"),B145+1,10) ->  | ER148: =IF(OR(NOT(ISNUMBER(K148)),K148=0),0,INDEX(INDIRECT("_"&$A$96&"Table7"),B145+1,12)) -> 0 | ES148: =IF(OR(NOT(ISNUMBER(K148)),K148=0),0,INDEX(INDIRECT("_"&$A$96&"Table7"),B145+1,14)) -> 0 | ET148: =INDEX(INDIRECT("_"&$A$96&"Table7"),B145+1,5) ->  | EU148: =IF(OR(NOT(ISNUMBER(K148)),K148=0),0,INDEX(INDIRECT("_"&$A$96&"Table7"),B145+1,7)) -> 0 | EV148: =IF(OR(NOT(ISNUMBER(K148)),K148=0),0,INDEX(INDIRECT("_"&$A$96&"Table7"),B145+1,9)) -> 0 | EZ148: TRUE
D149: Growth Media Placement | J149: =INDEX(INDIRECT("_"&$A$96&"Table8"),B145+1,11) -> 2687 | K149: =IF(OR(J149="",K145="",ISTEXT(K145),J149=0),"",IF(OR(ISBLANK(M149),ISBLANK(N149)),"Enter Dates",IF(K145="Date Range","",IF(OR(AND(CostType=ARO,L145>ScheduleYear),AND(CostType=ARO,N149<=ScheduleYear)),"Date Range",IF(OR(AND(CostType=Bond,O149>ScheduleYear),AND(CostType=LOM,LOMComplete)),J149,J149-Q149))))) -> 2687 | M149: 2023 | N149: 2025 | P149: 1 | Q149: 0 | R149: 0 | X149: 1 | EA149: 1 | EB149: =IF(OR(J149="",EB145="",ISTEXT(EB145)),0,IF(OR(ISBLANK(M149),ISBLANK(N149)),0,IF(OR(AND(CostType=ARO,L145>ScheduleYear),AND(OR(CostType=ARO,AND(CostType=LOM,LOMComplete=TRUE)),N149<=ScheduleYear)),0,J149))) -> 2687 | EC149: =IF(OR(J149="",EC145="",ISTEXT(EC145)),0,IF(OR(ISBLANK(M149),ISBLANK(N149)),0,IF(EC145="Date Range",0,IF(OR(AND(CostType=ARO,L145>ScheduleYear),N149<=ScheduleYear),0,J149)))) ->  | EM149: GM | EN149: GM | EO149: =IF(ISNUMBER(K149),INDEX(INDIRECT("_"&$A$96&"Table8"),B145+1,3),0) -> 1131 | EP149: =IF(Metric,"m3","cy") -> cy | EQ149: =INDEX(INDIRECT("_"&$A$96&"Table8"),B145+1,4) -> 725C2/966M/D6T | ER149: =IF(OR(NOT(ISNUMBER(K149)),K149=0),0,INDEX(INDIRECT("_"&$A$96&"Table8"),B145+1,6)) -> 3 | ES149: =IF(OR(NOT(ISNUMBER(K149)),K149=0),0,INDEX(INDIRECT("_"&$A$96&"Table8"),B145+1,8)) -> 3 | EZ149: TRUE
D150: Revegetation | J150: =INDEX(INDIRECT("_"&$A$96&"Table9"),B145+1,7) -> 444 | K150: =IF(OR(J150="",K145="",ISTEXT(K145),J150=0),"",IF(OR(ISBLANK(M150),ISBLANK(N150)),"Enter Dates",IF(K145="Date Range","",IF(OR(AND(CostType=ARO,L145>ScheduleYear),AND(CostType=ARO,N150<=ScheduleYear)),"Date Range",IF(OR(AND(CostType=Bond,O150>ScheduleYear),AND(CostType=LOM,LOMComplete)),J150,J150-Q150))))) -> 444 | M150: 2023 | N150: 2025 | P150: 1 | Q150: 0 | R150: 0 | X150: 1 | EA150: 1 | EB150: =IF(OR(J150="",EB145="",ISTEXT(EB145)),0,IF(OR(ISBLANK(M150),ISBLANK(N150)),0,IF(OR(AND(CostType=ARO,L145>ScheduleYear),AND(OR(CostType=ARO,AND(CostType=LOM,LOMComplete=TRUE)),N150<=ScheduleYear)),0,J150))) -> 444 | EC150: =IF(OR(J150="",EC145="",ISTEXT(EC145)),0,IF(OR(ISBLANK(M150),ISBLANK(N150)), 0,IF(EC145="Date Range",0,IF(OR(AND(CostType=ARO,L145>ScheduleYear),N150<=ScheduleYear),0,J150)))) ->  | EM150: Reveg | EN150: Reveg | EO150: =IF(ISNUMBER(K150),INDEX(INDIRECT("_"&$A$96&"Table9"),B145+1,3),0) -> 0.7 | EP150: =IF(Metric,"ha","acres") -> acres | EZ150: TRUE
D151: E-Cell/ET-Cell Liner | J151: =INDEX(INDIRECT("_"&$A$96&"Table10"),B145+1,15) -> 0 | K151: =IF(OR(J151="",K145="",ISTEXT(K145),J151=0),"",IF(OR(ISBLANK(M151),ISBLANK(N151)),"Enter Dates",IF(K145="Date Range","",IF(OR(AND(CostType=ARO,L145>ScheduleYear),AND(CostType=ARO,N151<=ScheduleYear)),"Date Range",IF(OR(AND(CostType=Bond,O151>ScheduleYear),AND(CostType=LOM,LOMComplete)),J151,J151-Q151))))) ->  | M151: 2023 | N151: 2025 | Q151: 0 | R151: 0 | X151: 1 | EA151: 1 | EB151: =IF(OR(J151="",EB145="",ISTEXT(EB145)),0,IF(OR(ISBLANK(M151),ISBLANK(N151)),0,IF(OR(AND(CostType=ARO,L145>ScheduleYear),AND(OR(CostType=ARO,AND(CostType=LOM,LOMComplete=TRUE)),N151<=ScheduleYear)),0,J151))) -> 0 | EC151: =IF(OR(J151="",EC145="",ISTEXT(EC145)),0,IF(OR(ISBLANK(M151),ISBLANK(N151)), 0,IF(EC145="Date Range",0,IF(OR(AND(CostType=ARO,L145>ScheduleYear),N151<=ScheduleYear),0,J151)))) ->  | EM151: Liner | EN151: Liner | EO151: =IF(ISNUMBER(K151),INDEX(INDIRECT("_"&$A$96&"Table10"),B145+1,3)+INDEX(INDIRECT("_"&$A$96&"Table10"),B145+1,8),0) -> 0 | EP151: =IF(Metric,"m2","f2") -> f2 | EZ151: TRUE
D152: E-Cell/ET-Cell Piping | J152: =INDEX(INDIRECT("_"&$A$96&"Table11"),B145+1,20) -> 0 | K152: =IF(OR(J152="",K145="",ISTEXT(K145),J152=0),"",IF(OR(ISBLANK(M152),ISBLANK(N152)),"Enter Dates",IF(K145="Date Range","",IF(OR(AND(CostType=ARO,L145>ScheduleYear),AND(CostType=ARO,N152<=ScheduleYear)),"Date Range",IF(OR(AND(CostType=Bond,O152>ScheduleYear),AND(CostType=LOM,LOMComplete)),J152,J152-Q152))))) ->  | M152: 2023 | N152: 2025 | Q152: 0 | R152: 0 | X152: 1 | EA152: 1 | EB152: =IF(OR(J152="",EB145="",ISTEXT(EB145)),0,IF(OR(ISBLANK(M152),ISBLANK(N152)),0,IF(OR(AND(CostType=ARO,L145>ScheduleYear),AND(OR(CostType=ARO,AND(CostType=LOM,LOMComplete=TRUE)),N152<=ScheduleYear)),0,J152))) -> 0 | EC152: =IF(OR(J152="",EC146="",ISTEXT(EC146)),0,IF(OR(ISBLANK(M152),ISBLANK(N152)), 0,IF(EC146="Date Range",0,IF(OR(AND(CostType=ARO,L145>ScheduleYear),N152<=ScheduleYear),0,J152)))) ->  | EM152: Pipe | EN152: Pipe | EO152: =IF(ISNUMBER(K152),INDEX(INDIRECT("_"&$A$96&"Table11"),B145+1,3)+INDEX(INDIRECT("_"&$A$96&"Table11"),B145+1,8)+INDEX(INDIRECT("_"&$A$96&"Table11"),B145+1,13),0) -> 0 | EP152: =IF(Metric,"m","ft") -> ft | EZ152: TRUE
EZ153: FALSE
A154: Yards | B154: YARDS | J154: =SumByColor(J155,J155:J176) -> 0 | K154: =SumByColor(K155,K155:K176) -> 0 | Q154: =SumByColor(Q155,Q155:Q176) -> 0 | T154: =SumByColor(T155,T155:T176) -> 0 | U154: 0 | V154: 0 | W154: 0 | X154: 0 | Y154: 0 | Z154: 0 | AA154: 0 | AB154: 0 | AC154: 0 | AD154: 0 | AE154: 0 | AF154: 0 | AG154: 0 | AH154: 0 | AI154: 0 | AJ154: 0 | AK154: 0 | AL154: 0 | AM154: 0 | AN154: 0 | AO154: 0 | AP154: 0 | AQ154: 0 | AR154: 0 | AS154: 0 | AT154: 0 | AU154: 0 | AV154: 0 | AW154: 0 | AX154: 0 | AY154: 0 | AZ154: =SumByColor(AZ155,AZ155:AZ176) -> 0 | BA154: 0 | BB154: 0 | BC154: 0 | BD154: 0 | BE154: 0 | BF154: 0 | BG154: 0 | BH154: 0 | BI154: 0 | BJ154: 0 | BK154: 0 | BL154: 0 | BM154: 0 | BN154: 0 | BO154: 0 | BP154: 0 | BQ154: 0 | BR154: 0 | BS154: 0 | BT154: 0 | BU154: 0 | BV154: 0 | BW154: 0 | BX154: 0 | BY154: 0 | BZ154: 0 | CA154: 0 | CB154: 0 | CC154: 0 | CD154: 0 | CE154: 0 | CF154: =SumByColor(CF155,CF155:CF176) -> 0 | CG154: 0 | CH154: 0 | CI154: 0 | CJ154: 0 | CK154: 0 | CL154: 0 | CM154: 0 | CN154: 0 | CO154: 0 | CP154: 0 | CQ154: 0 | CR154: 0 | CS154: 0 | CT154: 0 | CU154: 0 | CV154: 0 | CW154: 0 | CX154: 0 | CY154: 0 | CZ154: 0 | DA154: 0 | DB154: 0 | DC154: 0 | DD154: 0 | DE154: 0 | DF154: 0 | DG154: 0 | DH154: 0 | DI154: 0 | DJ154: 0 | DK154: 0 | DL154: =SumByColor(DL155,DL155:DL176) -> 0 | DM154: 0 | DN154: 0 | DO154: 0 | EB154: =SumByColor(EB155,EB155:EB176) -> 0 | EC154: =SumByColor(EC155,EC155:EC176) -> 0 | EZ154: FALSE
B155: =(ROW(B155) - ROW($A$154)-1)/INDEX(SheetRangeIndex,MATCH($A$154,TableNamesSorted,0),7) -> 0 | C155: =INDEX(INDIRECT("_"&$A$154&"Table1"),B155+1,9) -> 0 | D155: =INDEX(INDIRECT("_"&$A$154&"Table1"),B155+1,2) -> 0 | E155: =IF(ISBLANK(INDEX(INDIRECT("_"&$A$154&"Table1"),B155+1,3)),"",INDEX(INDIRECT("_"&$A$154&"Table1"),B155+1,3)) ->  | F155: =IF(ISERROR(EL155),"Facility Type",IF(ISBLANK(INDEX(INDIRECT("_"&$A$154&"Table1"),B155+1,5)),"",INDEX(INDIRECT("_"&$A$154&"Table1"),B155+1,5))) ->  | G155: =IF(ISBLANK(INDEX(INDIRECT("_"&$A$154&"Table1"),B155+1,6)),"",INDEX(INDIRECT("_"&$A$154&"Table1"),B155+1,6)) ->  | H155: =IF(ISBLANK(INDEX(INDIRECT("_"&$A$154&"Table1"),B155+1,7)),"",INDEX(INDIRECT("_"&$A$154&"Table1"),B155+1,7)) ->  | I155: =IF(ISBLANK(INDEX(INDIRECT("_"&$A$154&"Table1"),B155+1,8)),"",INDEX(INDIRECT("_"&$A$154&"Table1"),B155+1,8)) ->  | J155: =SUM(J156:J161) -> 0 | K155: =IF(ISERR(ED155),"Cost Type",IF(A155="X","Override",IF(AND(CostType=ARO,L155>ScheduleYear),"Date Range",IF(AND(ISTEXT(LocationFilter),ISERROR(EI155)),"Location",IF(AND(ISTEXT(PropertyFilter),ISERROR(EJ155)),"Property",IF(AND(ISTEXT(FacilityTypeFilter),ISERROR(EG155)),"Facility Type",IF(AND(NOT(ISBLANK(IDCodeFilter)),ISERROR(EF155)),"ID Code",IF(AND(ISTEXT(PhaseFilter),ISERROR(EH155)),"Phase",IF(AND(CostType=LOM,LOMComplete),J155,SUM(T155:DO155)))))))))) -> Cost Type | L155: =INDEX(INDIRECT("_"&$A$154&"Table1"),B155+1,4) -> 0 | Q155: =SUM(Q156:Q161) -> 0 | T155: =IF(ISTEXT($EB155),0,IF(AND(CostType=LOM,LOMComplete,T$27<=ScheduleYear),SUMPRODUCT(T156:T161,$J156:$J161),IF(CostType=Bond,SUMPRODUCT($EB156:$EB161,T156:T161,$EA156:$EA161),IF(T$27<=ScheduleYear,0,SUMPRODUCT(T156:T161,$EB156:$EB161))))) -> 0 | U155: 0 | V155: 0 | W155: 0 | X155: 0 | Y155: 0 | Z155: 0 | AA155: 0 | AB155: 0 | AC155: 0 | AD155: 0 | AE155: 0 | AF155: 0 | AG155: 0 | AH155: 0 | AI155: 0 | AJ155: 0 | AK155: 0 | AL155: 0 | AM155: 0 | AN155: 0 | AO155: 0 | AP155: 0 | AQ155: 0 | AR155: 0 | AS155: 0 | AT155: 0 | AU155: 0 | AV155: 0 | AW155: 0 | AX155: 0 | AY155: 0 | AZ155: =IF(ISTEXT($EB155),0,IF(AND(CostType=LOM,LOMComplete,AZ$27<=ScheduleYear),SUMPRODUCT(AZ156:AZ161,$J156:$J161),IF(CostType=Bond,SUMPRODUCT($EB156:$EB161,AZ156:AZ161,$EA156:$EA161),IF(AZ$27<=ScheduleYear,0,SUMPRODUCT(AZ156:AZ161,$EB156:$EB161))))) -> 0 | BA155: 0 | BB155: 0 | BC155: 0 | BD155: 0 | BE155: 0 | BF155: 0 | BG155: 0 | BH155: 0 | BI155: 0 | BJ155: 0 | BK155: 0 | BL155: 0 | BM155: 0 | BN155: 0 | BO155: 0 | BP155: 0 | BQ155: 0 | BR155: 0 | BS155: 0 | BT155: 0 | BU155: 0 | BV155: 0 | BW155: 0 | BX155: 0 | BY155: 0 | BZ155: 0 | CA155: 0 | CB155: 0 | CC155: 0 | CD155: 0 | CE155: 0 | CF155: =IF(ISTEXT($EB155),0,IF(AND(CostType=LOM,LOMComplete,CF$27<=ScheduleYear),SUMPRODUCT(CF156:CF161,$J156:$J161),IF(CostType=Bond,SUMPRODUCT($EB156:$EB161,CF156:CF161,$EA156:$EA161),IF(CF$27<=ScheduleYear,0,SUMPRODUCT(CF156:CF161,$EB156:$EB161))))) -> 0 | CG155: 0 | CH155: 0 | CI155: 0 | CJ155: 0 | CK155: 0 | CL155: 0 | CM155: 0 | CN155: 0 | CO155: 0 | CP155: 0 | CQ155: 0 | CR155: 0 | CS155: 0 | CT155: 0 | CU155: 0 | CV155: 0 | CW155: 0 | CX155: 0 | CY155: 0 | CZ155: 0 | DA155: 0 | DB155: 0 | DC155: 0 | DD155: 0 | DE155: 0 | DF155: 0 | DG155: 0 | DH155: 0 | DI155: 0 | DJ155: 0 | DK155: 0 | DL155: =IF(ISTEXT($EB155),0,IF(AND(CostType=LOM,LOMComplete,DL$27<=ScheduleYear),SUMPRODUCT(DL156:DL161,$J156:$J161),IF(CostType=Bond,SUMPRODUCT($EB156:$EB161,DL156:DL161,$EA156:$EA161),IF(DL$27<=ScheduleYear,0,SUMPRODUCT(DL156:DL161,$EB156:$EB161))))) -> 0 | DM155: 0 | DN155: 0 | DO155: 0 | DP155: =IF(ISNUMBER(K155),SUM(T155:DO155)-K155,K155) -> Cost Type | EB155: =IF(ISERR(ED155),"Cost Type",IF(A155="X","Override",IF(AND(CostType=ARO,L155>ScheduleYear),0,IF(AND(ISTEXT(LocationFilter),ISERROR(EI155)),"Location",IF(AND(ISTEXT(PropertyFilter),ISERROR(EJ155)),"Property",IF(AND(ISTEXT(FacilityTypeFilter),ISERROR(EG155)),"Facility Type",IF(AND(ISTEXT(IDCodeFilter),ISERROR(EF155)),"ID Code",IF(AND(ISTEXT(PhaseFilter),ISERROR(EH155)),"Phase",J155)))))))) -> Cost Type | EC155: =IF(EE155="","Cost Type",IF(A155="X","Override",IF(AND(OtherCostType=ARO,L155>ScheduleYear),0,IF(AND(ISTEXT(LocationFilter),EI155=""),"Location",IF(AND(ISTEXT(PropertyFilter),EJ155=""),"Property",IF(AND(ISTEXT(FacilityTypeFilter),EG155=""),"Facility Type",IF(AND(ISTEXT(IDCodeFilter),EF155=""),"ID Code",IF(AND(ISTEXT(PhaseFilter),EH155=""),"Phase",J155)))))))) ->  | ED155: =SEARCH(CostType,C155) ->  | EE155: =SEARCH(OtherCostType,C155) ->  | EF155: =IF(AND(IDCodeFilterType="CONTAINS",NOT(ISERROR(SEARCH(IDCodeFilter,E155)))),1,IF(AND(IDCodeFilterType="NOT",ISERROR(SEARCH(IDCodeFilter,E155))),1,IF(AND(OR(IDCodeFilterType="EXACT",ISBLANK(IDCodeFilterType)),NOT(ISERROR(MATCH(IDCodeFilter,E155,0)))),1,$EK155))) ->  | EG155: =IF(AND(FacilityFilterType="CONTAINS",NOT(ISERROR(SEARCH(FacilityTypeFilter,F155)))),1,IF(AND(FacilityFilterType="NOT",ISERROR(SEARCH(FacilityTypeFilter,F155))),1,IF(AND(OR(FacilityFilterType="EXACT",ISBLANK(FacilityFilterType)),NOT(ISERROR(MATCH(FacilityTypeFilter,F155,0)))),1,$EK155))) ->  | EH155: =IF(AND(PhaseFilterType="CONTAINS",NOT(ISERROR(SEARCH(PhaseFilter,G155)))),1,IF(AND(PhaseFilterType="NOT",ISERROR(SEARCH(PhaseFilter,G155))),1,IF(AND(OR(PhaseFilterType="EXACT",ISBLANK(PhaseFilterType)),NOT(ISERROR(MATCH(PhaseFilter,G155,0)))),1,$EK155))) ->  | EI155: =IF(AND(LocationFilterType="CONTAINS",NOT(ISERROR(SEARCH(LocationFilter,H155)))),1,IF(AND(LocationFilterType="NOT",ISERROR(SEARCH(LocationFilter,H155))),1,IF(AND(OR(LocationFilterType="EXACT",ISBLANK(LocationFilterType)),NOT(ISERROR(MATCH(LocationFilter,H155,0)))),1,$EK155))) ->  | EJ155: =IF(AND(PropertyFilterType="CONTAINS",NOT(ISERROR(SEARCH(PropertyFilter,I155)))),1,IF(AND(PropertyFilterType="NOT",ISERROR(SEARCH(PropertyFilter,I155))),1,IF(AND(OR(PropertyFilterType="EXACT",ISBLANK(PropertyFilterType)),NOT(ISERROR(MATCH(PropertyFilter,I155,0)))),1,$EK155))) ->  | EK155: =MATCH("NOT",$EK$27,0) ->  | EL155: =IF(ISBLANK(INDEX(INDIRECT("_"&$A$154&"Table1"),B155+1,2)),"",MATCH(INDEX(INDIRECT("_"&$A$154&"Table1"),B155+1,5),Accounts,0)) ->  | EZ155: FALSE | FA155: 1
D156: Regrading | J156: =IF(INDEX(INDIRECT("_"&$A$154&"Table4"),B155+1,14)=0,0,INDEX(INDIRECT("_"&$A$154&"Table4"),B155+1,14)) -> 0 | K156: =IF(OR(J156="",K155="",ISTEXT(K155),J156=0),"",IF(OR(ISBLANK(M156),ISBLANK(N156)),"Enter Dates",IF(K155="Date Range","",IF(OR(AND(CostType=ARO,L155>ScheduleYear),AND(CostType=ARO,N156<=ScheduleYear)),"Date Range",IF(OR(AND(CostType=Bond,O156>ScheduleYear),AND(CostType=LOM,LOMComplete)),J156,J156-Q156))))) ->  | P156: =IF(K156="","",SUM(T156:DO156)) ->  | Q156: =IF(OR(AND(CostType=ARO,N156<=ScheduleYear),AND(CostType=LOM,LOMComplete)),J156*R156,R156*EB156) -> 0 | R156: =IF(CostType=Bond,SUMIFS(T156:DP156,T$27:DP$27,"<="&O156,T$27:DP$27,"<="&ScheduleYear),SUMIF(T$27:DP$27,"<="&ScheduleYear,T156:DP156)) -> 0 | EA156: =IF(OR(ISBLANK($O156),$O156>ScheduleYear),1,0) -> 1 | EB156: =IF(OR(J156="",EB155="",ISTEXT(EB155)),0,IF(OR(ISBLANK(M156),ISBLANK(N156)),0,IF(OR(AND(CostType=ARO,L155>ScheduleYear),AND(OR(CostType=ARO,AND(CostType=LOM,LOMComplete=TRUE)),N156<=ScheduleYear)),0,J156))) -> 0 | EC156: =IF(OR(J156="",EC155="",ISTEXT(EC155)),0,IF(OR(ISBLANK(M156),ISBLANK(N156)),0,IF(EC155="Date Range",0,IF(OR(AND(OtherCostType=ARO,L155>ScheduleYear),N156<=ScheduleYear),0,J156)))) ->  | EM156: Regrade | EN156: Regrade | EO156: =IF(ISNUMBER(K156),IF(INDEX(INDIRECT("_"&$A$154&"Table4"),B155+1,3)=0,0,INDEX(INDIRECT("_"&$A$154&"Table4"),B155+1,3)),0) -> 0 | EP156: =IF(Metric,"m3","cy") -> cy | EQ156: =INDEX(INDIRECT("_"&$A$154&"Table4"),B155+1,5) ->  | ES156: =IF(OR(NOT(ISNUMBER(K156)),K156=0),0,INDEX(INDIRECT("_"&$A$154&"Table4"),B155+1,11)) -> 0 | EZ156: TRUE
D157: Cover 1 Placement | J157: =INDEX(INDIRECT("_"&$A$154&"Table5"),B155+1,25) -> 0 | K157: =IF(OR(J157="",K155="",ISTEXT(K155),J157=0),"",IF(OR(ISBLANK(M157),ISBLANK(N157)),"Enter Dates",IF(K155="Date Range","",IF(OR(AND(CostType=ARO,L155>ScheduleYear),AND(CostType=ARO,N157<=ScheduleYear)),"Date Range",IF(OR(AND(CostType=Bond,O157>ScheduleYear),AND(CostType=LOM,LOMComplete)),J157,J157-Q157))))) ->  | Q157: 0 | R157: 0 | EA157: 1 | EB157: =IF(OR(J157="",EB155="",ISTEXT(EB155)),0,IF(OR(ISBLANK(M157),ISBLANK(N157)),0,IF(OR(AND(CostType=ARO,L155>ScheduleYear),AND(OR(CostType=ARO,AND(CostType=LOM,LOMComplete=TRUE)),N157<=ScheduleYear)),0,J157))) -> 0 | EC157: =IF(OR(J157="",EC155="",ISTEXT(EC155)),0,IF(OR(ISBLANK(M157),ISBLANK(N157)),0,IF(EC155="Date Range",0,IF(OR(AND(CostType=ARO,L155>ScheduleYear),N157<=ScheduleYear),0,J157)))) ->  | EM157: Cover | EN157: Cover | EO157: =IF(ISNUMBER(K157),INDEX(INDIRECT("_"&$A$154&"Table5"),B155+1,4),0) -> 0 | EP157: =IF(Metric,"m3","cy") -> cy | EQ157: =INDEX(INDIRECT("_"&$A$154&"Table5"),B155+1,10) ->  | ER157: =IF(OR(NOT(ISNUMBER(K157)),K157=0),0,INDEX(INDIRECT("_"&$A$154&"Table5"),B155+1,12)) -> 0 | ES157: =IF(OR(NOT(ISNUMBER(K157)),K157=0),0,INDEX(INDIRECT("_"&$A$154&"Table5"),B155+1,14)) -> 0 | ET157: =INDEX(INDIRECT("_"&$A$154&"Table5"),B155+1,5) ->  | EU157: =IF(OR(NOT(ISNUMBER(K157)),K157=0),0,INDEX(INDIRECT("_"&$A$154&"Table5"),B155+1,7)) -> 0 | EV157: =IF(OR(NOT(ISNUMBER(K157)),K157=0),0,INDEX(INDIRECT("_"&$A$154&"Table5"),B155+1,9)) -> 0 | EZ157: TRUE
D158: Cover 2 Placement | J158: =INDEX(INDIRECT("_"&$A$154&"Table6"),B155+1,25) -> 0 | K158: =IF(OR(J158="",K155="",ISTEXT(K155),J158=0),"",IF(OR(ISBLANK(M158),ISBLANK(N158)),"Enter Dates",IF(K155="Date Range","",IF(OR(AND(CostType=ARO,L155>ScheduleYear),AND(CostType=ARO,N158<=ScheduleYear)),"Date Range",IF(OR(AND(CostType=Bond,O158>ScheduleYear),AND(CostType=LOM,LOMComplete)),J158,J158-Q158))))) ->  | Q158: 0 | R158: 0 | EA158: 1 | EB158: =IF(OR(J158="",EB155="",ISTEXT(EB155)),0,IF(OR(ISBLANK(M158),ISBLANK(N158)),0,IF(OR(AND(CostType=ARO,L155>ScheduleYear),AND(OR(CostType=ARO,AND(CostType=LOM,LOMComplete=TRUE)),N158<=ScheduleYear)),0,J158))) -> 0 | EC158: =IF(OR(J158="",EC155="",ISTEXT(EC155)),0,IF(OR(ISBLANK(M158),ISBLANK(N158)),0,IF(EC155="Date Range",0,IF(OR(AND(CostType=ARO,L155>ScheduleYear),N158<=ScheduleYear),0,J158)))) ->  | EM158: Cover | EN158: Cover | EO158: =IF(ISNUMBER(K158),INDEX(INDIRECT("_"&$A$154&"Table6"),B155+1,4),0) -> 0 | EP158: =IF(Metric,"m3","cy") -> cy | EQ158: =INDEX(INDIRECT("_"&$A$154&"Table6"),B155+1,10) ->  | ER158: =IF(OR(NOT(ISNUMBER(K158)),K158=0),0,INDEX(INDIRECT("_"&$A$154&"Table6"),B155+1,12)) -> 0 | ES158: =IF(OR(NOT(ISNUMBER(K158)),K158=0),0,INDEX(INDIRECT("_"&$A$154&"Table6"),B155+1,14)) -> 0 | ET158: =INDEX(INDIRECT("_"&$A$154&"Table6"),B155+1,5) ->  | EU158: =IF(OR(NOT(ISNUMBER(K158)),K158=0),0,INDEX(INDIRECT("_"&$A$154&"Table6"),B155+1,7)) -> 0 | EV158: =IF(OR(NOT(ISNUMBER(K158)),K158=0),0,INDEX(INDIRECT("_"&$A$154&"Table6"),B155+1,9)) -> 0 | EZ158: TRUE
D159: Growth Media Placement | J159: =INDEX(INDIRECT("_"&$A$154&"Table7"),B155+1,11) -> 0 | K159: =IF(OR(J159="",K155="",ISTEXT(K155),J159=0),"",IF(OR(ISBLANK(M159),ISBLANK(N159)),"Enter Dates",IF(K155="Date Range","",IF(OR(AND(CostType=ARO,L155>ScheduleYear),AND(CostType=ARO,N159<=ScheduleYear)),"Date Range",IF(OR(AND(CostType=Bond,O159>ScheduleYear),AND(CostType=LOM,LOMComplete)),J159,J159-Q159))))) ->  | Q159: 0 | R159: 0 | EA159: 1 | EB159: =IF(OR(J159="",EB155="",ISTEXT(EB155)),0,IF(OR(ISBLANK(M159),ISBLANK(N159)),0,IF(OR(AND(CostType=ARO,L155>ScheduleYear),AND(OR(CostType=ARO,AND(CostType=LOM,LOMComplete=TRUE)),N159<=ScheduleYear)),0,J159))) -> 0 | EC159: =IF(OR(J159="",EC155="",ISTEXT(EC155)),0,IF(OR(ISBLANK(M159),ISBLANK(N159)),0,IF(EC155="Date Range",0,IF(OR(AND(CostType=ARO,L155>ScheduleYear),N159<=ScheduleYear),0,J159)))) ->  | EM159: GM | EN159: GM | EO159: =IF(ISNUMBER(K159),INDEX(INDIRECT("_"&$A$154&"Table7"),B155+1,3),0) -> 0 | EP159: =IF(Metric,"m3","cy") -> cy | EQ159: =INDEX(INDIRECT("_"&$A$154&"Table7"),B155+1,4) ->  | ER159: =IF(OR(NOT(ISNUMBER(K159)),K159=0),0,INDEX(INDIRECT("_"&$A$154&"Table7"),B155+1,6)) -> 0 | ES159: =IF(OR(NOT(ISNUMBER(K159)),K159=0),0,INDEX(INDIRECT("_"&$A$154&"Table7"),B155+1,8)) -> 0 | EZ159: TRUE
D160: Ripping/Scarifying | J160: =INDEX(INDIRECT("_"&$A$154&"Table8"),B155+1,9) -> 0 | K160: =IF(OR(J160="",K155="",ISTEXT(K155),J160=0),"",IF(OR(ISBLANK(M160),ISBLANK(N160)),"Enter Dates",IF(K155="Date Range","",IF(OR(AND(CostType=ARO,L155>ScheduleYear),AND(CostType=ARO,N160<=ScheduleYear)),"Date Range",IF(OR(AND(CostType=Bond,O160>ScheduleYear),AND(CostType=LOM,LOMComplete)),J160,J160-Q160))))) ->  | Q160: 0 | R160: 0 | EA160: 1 | EB160: =IF(OR(J160="",EB155="",ISTEXT(EB155)),0,IF(OR(ISBLANK(M160),ISBLANK(N160)),0,IF(OR(AND(CostType=ARO,L155>ScheduleYear),AND(OR(CostType=ARO,AND(CostType=LOM,LOMComplete=TRUE)),N160<=ScheduleYear)),0,J160))) -> 0 | EC160: =IF(OR(J160="",EC155="",ISTEXT(EC155)),0,IF(OR(ISBLANK(M160),ISBLANK(N160)), 0,IF(EC155="Date Range",0,IF(OR(AND(CostType=ARO,L155>ScheduleYear),N160<=ScheduleYear),0,J160)))) ->  | EM160: Rip | EN160: Rip | EO160: =IF(ISNUMBER(K160),INDEX(INDIRECT("_"&$A$154&"Table8"),B155+1,3),0) -> 0 | EP160: =IF(Metric,"ha","acres") -> acres | EQ160: =INDEX(INDIRECT("_"&$A$154&"Table8"),B155+1,5) ->  | ES160: =IF(OR(NOT(ISNUMBER(K160)),K160=0),0,INDEX(INDIRECT("_"&$A$154&"Table8"),B155+1,6)) -> 0 | EZ160: TRUE
D161: Revegetation | J161: =INDEX(INDIRECT("_"&$A$154&"Table8"),B155+1,13) -> 0 | K161: =IF(OR(J161="",K155="",ISTEXT(K155),J161=0),"",IF(OR(ISBLANK(M161),ISBLANK(N161)),"Enter Dates",IF(K155="Date Range","",IF(OR(AND(CostType=ARO,L155>ScheduleYear),AND(CostType=ARO,N161<=ScheduleYear)),"Date Range",IF(OR(AND(CostType=Bond,O161>ScheduleYear),AND(CostType=LOM,LOMComplete)),J161,J161-Q161))))) ->  | Q161: 0 | R161: 0 | EA161: 1 | EB161: =IF(OR(J161="",EB155="",ISTEXT(EB155)),0,IF(OR(ISBLANK(M161),ISBLANK(N161)),0,IF(OR(AND(CostType=ARO,L155>ScheduleYear),AND(OR(CostType=ARO,AND(CostType=LOM,LOMComplete=TRUE)),N161<=ScheduleYear)),0,J161))) -> 0 | EC161: =IF(OR(J161="",EC155="",ISTEXT(EC155)),0,IF(OR(ISBLANK(M161),ISBLANK(N161)), 0,IF(EC155="Date Range",0,IF(OR(AND(CostType=ARO,L155>ScheduleYear),N161<=ScheduleYear),0,J161)))) ->  | EM161: Reveg | EN161: Reveg | EO161: =IF(ISNUMBER(K161),INDEX(INDIRECT("_"&$A$154&"Table8"),B155+1,3),0) -> 0 | EP161: =IF(Metric,"ha","acres") -> acres | EZ161: TRUE
B162: =(ROW(B162) - ROW($A$154)-1)/INDEX(SheetRangeIndex,MATCH($A$154,TableNamesSorted,0),7) -> 1 | C162: =INDEX(INDIRECT("_"&$A$154&"Table1"),B162+1,9) -> 0 | D162: =INDEX(INDIRECT("_"&$A$154&"Table1"),B162+1,2) -> 0 | E162: =IF(ISBLANK(INDEX(INDIRECT("_"&$A$154&"Table1"),B162+1,3)),"",INDEX(INDIRECT("_"&$A$154&"Table1"),B162+1,3)) ->  | F162: =IF(ISERROR(EL162),"Facility Type",IF(ISBLANK(INDEX(INDIRECT("_"&$A$154&"Table1"),B162+1,5)),"",INDEX(INDIRECT("_"&$A$154&"Table1"),B162+1,5))) ->  | G162: =IF(ISBLANK(INDEX(INDIRECT("_"&$A$154&"Table1"),B162+1,6)),"",INDEX(INDIRECT("_"&$A$154&"Table1"),B162+1,6)) ->  | H162: =IF(ISBLANK(INDEX(INDIRECT("_"&$A$154&"Table1"),B162+1,7)),"",INDEX(INDIRECT("_"&$A$154&"Table1"),B162+1,7)) ->  | I162: =IF(ISBLANK(INDEX(INDIRECT("_"&$A$154&"Table1"),B162+1,8)),"",INDEX(INDIRECT("_"&$A$154&"Table1"),B162+1,8)) ->  | J162: =SUM(J163:J168) -> 0 | K162: =IF(ISERR(ED162),"Cost Type",IF(A162="X","Override",IF(AND(CostType=ARO,L162>ScheduleYear),"Date Range",IF(AND(ISTEXT(LocationFilter),ISERROR(EI162)),"Location",IF(AND(ISTEXT(PropertyFilter),ISERROR(EJ162)),"Property",IF(AND(ISTEXT(FacilityTypeFilter),ISERROR(EG162)),"Facility Type",IF(AND(NOT(ISBLANK(IDCodeFilter)),ISERROR(EF162)),"ID Code",IF(AND(ISTEXT(PhaseFilter),ISERROR(EH162)),"Phase",IF(AND(CostType=LOM,LOMComplete),J162,SUM(T162:DO162)))))))))) -> Cost Type | L162: =INDEX(INDIRECT("_"&$A$154&"Table1"),B162+1,4) -> 0 | Q162: =SUM(Q163:Q168) -> 0 | T162: =IF(ISTEXT($EB162),0,IF(AND(CostType=LOM,LOMComplete,T$27<=ScheduleYear),SUMPRODUCT(T163:T168,$J163:$J168),IF(CostType=Bond,SUMPRODUCT($EB163:$EB168,T163:T168,$EA163:$EA168),IF(T$27<=ScheduleYear,0,SUMPRODUCT(T163:T168,$EB163:$EB168))))) -> 0 | U162: 0 | V162: 0 | W162: 0 | X162: 0 | Y162: 0 | Z162: 0 | AA162: 0 | AB162: 0 | AC162: 0 | AD162: 0 | AE162: 0 | AF162: 0 | AG162: 0 | AH162: 0 | AI162: 0 | AJ162: 0 | AK162: 0 | AL162: 0 | AM162: 0 | AN162: 0 | AO162: 0 | AP162: 0 | AQ162: 0 | AR162: 0 | AS162: 0 | AT162: 0 | AU162: 0 | AV162: 0 | AW162: 0 | AX162: 0 | AY162: 0 | AZ162: 0 | BA162: 0 | BB162: 0 | BC162: 0 | BD162: 0 | BE162: 0 | BF162: 0 | BG162: 0 | BH162: 0 | BI162: 0 | BJ162: 0 | BK162: 0 | BL162: 0 | BM162: 0 | BN162: 0 | BO162: 0 | BP162: 0 | BQ162: 0 | BR162: 0 | BS162: 0 | BT162: 0 | BU162: 0 | BV162: 0 | BW162: 0 | BX162: 0 | BY162: 0 | BZ162: 0 | CA162: 0 | CB162: 0 | CC162: 0 | CD162: 0 | CE162: 0 | CF162: =IF(ISTEXT($EB162),0,IF(AND(CostType=LOM,LOMComplete,CF$27<=ScheduleYear),SUMPRODUCT(CF163:CF168,$J163:$J168),IF(CostType=Bond,SUMPRODUCT($EB163:$EB168,CF163:CF168,$EA163:$EA168),IF(CF$27<=ScheduleYear,0,SUMPRODUCT(CF163:CF168,$EB163:$EB168))))) -> 0 | CG162: 0 | CH162: 0 | CI162: 0 | CJ162: 0 | CK162: 0 | CL162: 0 | CM162: 0 | CN162: 0 | CO162: 0 | CP162: 0 | CQ162: 0 | CR162: 0 | CS162: 0 | CT162: 0 | CU162: 0 | CV162: 0 | CW162: 0 | CX162: 0 | CY162: 0 | CZ162: 0 | DA162: 0 | DB162: 0 | DC162: 0 | DD162: 0 | DE162: 0 | DF162: 0 | DG162: 0 | DH162: 0 | DI162: 0 | DJ162: 0 | DK162: 0 | DL162: 0 | DM162: 0 | DN162: 0 | DO162: 0 | DP162: =IF(ISNUMBER(K162),SUM(T162:DO162)-K162,K162) -> Cost Type | EB162: =IF(ISERR(ED162),"Cost Type",IF(A162="X","Override",IF(AND(CostType=ARO,L162>ScheduleYear),0,IF(AND(ISTEXT(LocationFilter),ISERROR(EI162)),"Location",IF(AND(ISTEXT(PropertyFilter),ISERROR(EJ162)),"Property",IF(AND(ISTEXT(FacilityTypeFilter),ISERROR(EG162)),"Facility Type",IF(AND(ISTEXT(IDCodeFilter),ISERROR(EF162)),"ID Code",IF(AND(ISTEXT(PhaseFilter),ISERROR(EH162)),"Phase",J162)))))))) -> Cost Type | EC162: =IF(EE162="","Cost Type",IF(A162="X","Override",IF(AND(OtherCostType=ARO,L162>ScheduleYear),0,IF(AND(ISTEXT(LocationFilter),EI162=""),"Location",IF(AND(ISTEXT(PropertyFilter),EJ162=""),"Property",IF(AND(ISTEXT(FacilityTypeFilter),EG162=""),"Facility Type",IF(AND(ISTEXT(IDCodeFilter),EF162=""),"ID Code",IF(AND(ISTEXT(PhaseFilter),EH162=""),"Phase",J162)))))))) ->  | ED162: =SEARCH(CostType,C162) ->  | EE162: =SEARCH(OtherCostType,C162) ->  | EF162: =IF(AND(IDCodeFilterType="CONTAINS",NOT(ISERROR(SEARCH(IDCodeFilter,E162)))),1,IF(AND(IDCodeFilterType="NOT",ISERROR(SEARCH(IDCodeFilter,E162))),1,IF(AND(OR(IDCodeFilterType="EXACT",ISBLANK(IDCodeFilterType)),NOT(ISERROR(MATCH(IDCodeFilter,E162,0)))),1,$EK162))) ->  | EG162: =IF(AND(FacilityFilterType="CONTAINS",NOT(ISERROR(SEARCH(FacilityTypeFilter,F162)))),1,IF(AND(FacilityFilterType="NOT",ISERROR(SEARCH(FacilityTypeFilter,F162))),1,IF(AND(OR(FacilityFilterType="EXACT",ISBLANK(FacilityFilterType)),NOT(ISERROR(MATCH(FacilityTypeFilter,F162,0)))),1,$EK162))) ->  | EH162: =IF(AND(PhaseFilterType="CONTAINS",NOT(ISERROR(SEARCH(PhaseFilter,G162)))),1,IF(AND(PhaseFilterType="NOT",ISERROR(SEARCH(PhaseFilter,G162))),1,IF(AND(OR(PhaseFilterType="EXACT",ISBLANK(PhaseFilterType)),NOT(ISERROR(MATCH(PhaseFilter,G162,0)))),1,$EK162))) ->  | EI162: =IF(AND(LocationFilterType="CONTAINS",NOT(ISERROR(SEARCH(LocationFilter,H162)))),1,IF(AND(LocationFilterType="NOT",ISERROR(SEARCH(LocationFilter,H162))),1,IF(AND(OR(LocationFilterType="EXACT",ISBLANK(LocationFilterType)),NOT(ISERROR(MATCH(LocationFilter,H162,0)))),1,$EK162))) ->  | EJ162: =IF(AND(PropertyFilterType="CONTAINS",NOT(ISERROR(SEARCH(PropertyFilter,I162)))),1,IF(AND(PropertyFilterType="NOT",ISERROR(SEARCH(PropertyFilter,I162))),1,IF(AND(OR(PropertyFilterType="EXACT",ISBLANK(PropertyFilterType)),NOT(ISERROR(MATCH(PropertyFilter,I162,0)))),1,$EK162))) ->  | EK162: =MATCH("NOT",$EK$27,0) ->  | EL162: =IF(ISBLANK(INDEX(INDIRECT("_"&$A$154&"Table1"),B162+1,2)),"",MATCH(INDEX(INDIRECT("_"&$A$154&"Table1"),B162+1,5),Accounts,0)) ->  | EZ162: FALSE | FA162: 1
D163: Regrading | J163: =IF(INDEX(INDIRECT("_"&$A$154&"Table4"),B162+1,14)=0,0,INDEX(INDIRECT("_"&$A$154&"Table4"),B162+1,14)) -> 0 | K163: =IF(OR(J163="",K162="",ISTEXT(K162),J163=0),"",IF(OR(ISBLANK(M163),ISBLANK(N163)),"Enter Dates",IF(K162="Date Range","",IF(OR(AND(CostType=ARO,L162>ScheduleYear),AND(CostType=ARO,N163<=ScheduleYear)),"Date Range",IF(OR(AND(CostType=Bond,O163>ScheduleYear),AND(CostType=LOM,LOMComplete)),J163,J163-Q163))))) ->  | M163: 2023 | N163: 2025 | P163: =IF(K163="","",SUM(T163:DO163)) ->  | Q163: =IF(OR(AND(CostType=ARO,N163<=ScheduleYear),AND(CostType=LOM,LOMComplete)),J163*R163,R163*EB163) -> 0 | R163: =IF(CostType=Bond,SUMIFS(T163:DP163,T$27:DP$27,"<="&O163,T$27:DP$27,"<="&ScheduleYear),SUMIF(T$27:DP$27,"<="&ScheduleYear,T163:DP163)) -> 0 | Y163: 1 | EA163: 1 | EB163: =IF(OR(J163="",EB162="",ISTEXT(EB162)),0,IF(OR(ISBLANK(M163),ISBLANK(N163)),0,IF(OR(AND(CostType=ARO,L162>ScheduleYear),AND(OR(CostType=ARO,AND(CostType=LOM,LOMComplete=TRUE)),N163<=ScheduleYear)),0,J163))) -> 0 | EC163: =IF(OR(J163="",EC162="",ISTEXT(EC162)),0,IF(OR(ISBLANK(M163),ISBLANK(N163)),0,IF(EC162="Date Range",0,IF(OR(AND(OtherCostType=ARO,L162>ScheduleYear),N163<=ScheduleYear),0,J163)))) ->  | EM163: Regrade | EN163: Regrade | EO163: =IF(ISNUMBER(K163),IF(INDEX(INDIRECT("_"&$A$154&"Table4"),B162+1,3)=0,0,INDEX(INDIRECT("_"&$A$154&"Table4"),B162+1,3)),0) -> 0 | EP163: =IF(Metric,"m3","cy") -> cy | EQ163: =INDEX(INDIRECT("_"&$A$154&"Table4"),B162+1,5) ->  | ES163: =IF(OR(NOT(ISNUMBER(K163)),K163=0),0,INDEX(INDIRECT("_"&$A$154&"Table4"),B162+1,11)) -> 0 | EZ163: TRUE
D164: Cover 1 Placement | J164: =INDEX(INDIRECT("_"&$A$154&"Table5"),B162+1,25) -> 0 | K164: =IF(OR(J164="",K162="",ISTEXT(K162),J164=0),"",IF(OR(ISBLANK(M164),ISBLANK(N164)),"Enter Dates",IF(K162="Date Range","",IF(OR(AND(CostType=ARO,L162>ScheduleYear),AND(CostType=ARO,N164<=ScheduleYear)),"Date Range",IF(OR(AND(CostType=Bond,O164>ScheduleYear),AND(CostType=LOM,LOMComplete)),J164,J164-Q164))))) ->  | M164: 2023 | N164: 2025 | Q164: 0 | R164: 0 | Y164: 1 | EA164: 1 | EB164: =IF(OR(J164="",EB162="",ISTEXT(EB162)),0,IF(OR(ISBLANK(M164),ISBLANK(N164)),0,IF(OR(AND(CostType=ARO,L162>ScheduleYear),AND(OR(CostType=ARO,AND(CostType=LOM,LOMComplete=TRUE)),N164<=ScheduleYear)),0,J164))) -> 0 | EC164: =IF(OR(J164="",EC162="",ISTEXT(EC162)),0,IF(OR(ISBLANK(M164),ISBLANK(N164)),0,IF(EC162="Date Range",0,IF(OR(AND(CostType=ARO,L162>ScheduleYear),N164<=ScheduleYear),0,J164)))) ->  | EM164: Cover | EN164: Cover | EO164: =IF(ISNUMBER(K164),INDEX(INDIRECT("_"&$A$154&"Table5"),B162+1,4),0) -> 0 | EP164: =IF(Metric,"m3","cy") -> cy | EQ164: =INDEX(INDIRECT("_"&$A$154&"Table5"),B162+1,10) ->  | ER164: =IF(OR(NOT(ISNUMBER(K164)),K164=0),0,INDEX(INDIRECT("_"&$A$154&"Table5"),B162+1,12)) -> 0 | ES164: =IF(OR(NOT(ISNUMBER(K164)),K164=0),0,INDEX(INDIRECT("_"&$A$154&"Table5"),B162+1,14)) -> 0 | ET164: =INDEX(INDIRECT("_"&$A$154&"Table5"),B162+1,5) ->  | EU164: =IF(OR(NOT(ISNUMBER(K164)),K164=0),0,INDEX(INDIRECT("_"&$A$154&"Table5"),B162+1,7)) -> 0 | EV164: =IF(OR(NOT(ISNUMBER(K164)),K164=0),0,INDEX(INDIRECT("_"&$A$154&"Table5"),B162+1,9)) -> 0 | EZ164: TRUE
D165: Cover 2 Placement | J165: =INDEX(INDIRECT("_"&$A$154&"Table6"),B162+1,25) -> 0 | K165: =IF(OR(J165="",K162="",ISTEXT(K162),J165=0),"",IF(OR(ISBLANK(M165),ISBLANK(N165)),"Enter Dates",IF(K162="Date Range","",IF(OR(AND(CostType=ARO,L162>ScheduleYear),AND(CostType=ARO,N165<=ScheduleYear)),"Date Range",IF(OR(AND(CostType=Bond,O165>ScheduleYear),AND(CostType=LOM,LOMComplete)),J165,J165-Q165))))) ->  | M165: 2023 | N165: 2025 | Q165: 0 | R165: 0 | Y165: 1 | EA165: 1 | EB165: =IF(OR(J165="",EB162="",ISTEXT(EB162)),0,IF(OR(ISBLANK(M165),ISBLANK(N165)),0,IF(OR(AND(CostType=ARO,L162>ScheduleYear),AND(OR(CostType=ARO,AND(CostType=LOM,LOMComplete=TRUE)),N165<=ScheduleYear)),0,J165))) -> 0 | EC165: =IF(OR(J165="",EC162="",ISTEXT(EC162)),0,IF(OR(ISBLANK(M165),ISBLANK(N165)),0,IF(EC162="Date Range",0,IF(OR(AND(CostType=ARO,L162>ScheduleYear),N165<=ScheduleYear),0,J165)))) ->  | EM165: Cover | EN165: Cover | EO165: =IF(ISNUMBER(K165),INDEX(INDIRECT("_"&$A$154&"Table6"),B162+1,4),0) -> 0 | EP165: =IF(Metric,"m3","cy") -> cy | EQ165: =INDEX(INDIRECT("_"&$A$154&"Table6"),B162+1,10) ->  | ER165: =IF(OR(NOT(ISNUMBER(K165)),K165=0),0,INDEX(INDIRECT("_"&$A$154&"Table6"),B162+1,12)) -> 0 | ES165: =IF(OR(NOT(ISNUMBER(K165)),K165=0),0,INDEX(INDIRECT("_"&$A$154&"Table6"),B162+1,14)) -> 0 | ET165: =INDEX(INDIRECT("_"&$A$154&"Table6"),B162+1,5) ->  | EU165: =IF(OR(NOT(ISNUMBER(K165)),K165=0),0,INDEX(INDIRECT("_"&$A$154&"Table6"),B162+1,7)) -> 0 | EV165: =IF(OR(NOT(ISNUMBER(K165)),K165=0),0,INDEX(INDIRECT("_"&$A$154&"Table6"),B162+1,9)) -> 0 | EZ165: TRUE
D166: Growth Media Placement | J166: =INDEX(INDIRECT("_"&$A$154&"Table7"),B162+1,11) -> 0 | K166: =IF(OR(J166="",K162="",ISTEXT(K162),J166=0),"",IF(OR(ISBLANK(M166),ISBLANK(N166)),"Enter Dates",IF(K162="Date Range","",IF(OR(AND(CostType=ARO,L162>ScheduleYear),AND(CostType=ARO,N166<=ScheduleYear)),"Date Range",IF(OR(AND(CostType=Bond,O166>ScheduleYear),AND(CostType=LOM,LOMComplete)),J166,J166-Q166))))) ->  | M166: 2023 | N166: 2025 | Q166: 0 | R166: 0 | Y166: 1 | EA166: 1 | EB166: =IF(OR(J166="",EB162="",ISTEXT(EB162)),0,IF(OR(ISBLANK(M166),ISBLANK(N166)),0,IF(OR(AND(CostType=ARO,L162>ScheduleYear),AND(OR(CostType=ARO,AND(CostType=LOM,LOMComplete=TRUE)),N166<=ScheduleYear)),0,J166))) -> 0 | EC166: =IF(OR(J166="",EC162="",ISTEXT(EC162)),0,IF(OR(ISBLANK(M166),ISBLANK(N166)),0,IF(EC162="Date Range",0,IF(OR(AND(CostType=ARO,L162>ScheduleYear),N166<=ScheduleYear),0,J166)))) ->  | EM166: GM | EN166: GM | EO166: =IF(ISNUMBER(K166),INDEX(INDIRECT("_"&$A$154&"Table7"),B162+1,3),0) -> 0 | EP166: =IF(Metric,"m3","cy") -> cy | EQ166: =INDEX(INDIRECT("_"&$A$154&"Table7"),B162+1,4) ->  | ER166: =IF(OR(NOT(ISNUMBER(K166)),K166=0),0,INDEX(INDIRECT("_"&$A$154&"Table7"),B162+1,6)) -> 0 | ES166: =IF(OR(NOT(ISNUMBER(K166)),K166=0),0,INDEX(INDIRECT("_"&$A$154&"Table7"),B162+1,8)) -> 0 | EZ166: TRUE
D167: Ripping/Scarifying | J167: =INDEX(INDIRECT("_"&$A$154&"Table8"),B162+1,9) -> 0 | K167: =IF(OR(J167="",K162="",ISTEXT(K162),J167=0),"",IF(OR(ISBLANK(M167),ISBLANK(N167)),"Enter Dates",IF(K162="Date Range","",IF(OR(AND(CostType=ARO,L162>ScheduleYear),AND(CostType=ARO,N167<=ScheduleYear)),"Date Range",IF(OR(AND(CostType=Bond,O167>ScheduleYear),AND(CostType=LOM,LOMComplete)),J167,J167-Q167))))) ->  | M167: 2023 | N167: 2025 | Q167: 0 | R167: 0 | Y167: 1 | EA167: 1 | EB167: =IF(OR(J167="",EB162="",ISTEXT(EB162)),0,IF(OR(ISBLANK(M167),ISBLANK(N167)),0,IF(OR(AND(CostType=ARO,L162>ScheduleYear),AND(OR(CostType=ARO,AND(CostType=LOM,LOMComplete=TRUE)),N167<=ScheduleYear)),0,J167))) -> 0 | EC167: =IF(OR(J167="",EC162="",ISTEXT(EC162)),0,IF(OR(ISBLANK(M167),ISBLANK(N167)), 0,IF(EC162="Date Range",0,IF(OR(AND(CostType=ARO,L162>ScheduleYear),N167<=ScheduleYear),0,J167)))) ->  | EM167: Rip | EN167: Rip | EO167: =IF(ISNUMBER(K167),INDEX(INDIRECT("_"&$A$154&"Table8"),B162+1,3),0) -> 0 | EP167: =IF(Metric,"ha","acres") -> acres | EQ167: =INDEX(INDIRECT("_"&$A$154&"Table8"),B162+1,5) ->  | ES167: =IF(OR(NOT(ISNUMBER(K167)),K167=0),0,INDEX(INDIRECT("_"&$A$154&"Table8"),B162+1,6)) -> 0 | EZ167: TRUE
D168: Revegetation | J168: =INDEX(INDIRECT("_"&$A$154&"Table8"),B162+1,13) -> 0 | K168: =IF(OR(J168="",K162="",ISTEXT(K162),J168=0),"",IF(OR(ISBLANK(M168),ISBLANK(N168)),"Enter Dates",IF(K162="Date Range","",IF(OR(AND(CostType=ARO,L162>ScheduleYear),AND(CostType=ARO,N168<=ScheduleYear)),"Date Range",IF(OR(AND(CostType=Bond,O168>ScheduleYear),AND(CostType=LOM,LOMComplete)),J168,J168-Q168))))) ->  | M168: 2023 | N168: 2025 | Q168: 0 | R168: 0 | Y168: 1 | EA168: 1 | EB168: =IF(OR(J168="",EB162="",ISTEXT(EB162)),0,IF(OR(ISBLANK(M168),ISBLANK(N168)),0,IF(OR(AND(CostType=ARO,L162>ScheduleYear),AND(OR(CostType=ARO,AND(CostType=LOM,LOMComplete=TRUE)),N168<=ScheduleYear)),0,J168))) -> 0 | EC168: =IF(OR(J168="",EC162="",ISTEXT(EC162)),0,IF(OR(ISBLANK(M168),ISBLANK(N168)), 0,IF(EC162="Date Range",0,IF(OR(AND(CostType=ARO,L162>ScheduleYear),N168<=ScheduleYear),0,J168)))) ->  | EM168: Reveg | EN168: Reveg | EO168: =IF(ISNUMBER(K168),INDEX(INDIRECT("_"&$A$154&"Table8"),B162+1,3),0) -> 0 | EP168: =IF(Metric,"ha","acres") -> acres | EZ168: TRUE
